Workbook

Sheet Introduction
B1: A model to estimate the direct epidemiologic impact of the A(H1N1)pdm09 vaccine.
B2: Authors: Rebekah H. Borse, Sundar S. Shrestha, Anthony E. Fiore, Charisma Y. Atkins, James A. Singleton, Carolyn Furlow, and Martin I. Meltzer
B3: Affiliations: (Borse, RH; Atkins, CY; Meltzer, MI) National Center for Emerging and Zoonotic Infectious Diseases, Centers for Disease Control and Prevention, Atlanta, Georgia, USA.;
B4: (Shrestha, SS) National Center for Chronic Disease Prevention and Health Promotion, Centers for Disease Control and Prevention, Atlanta, Georgia, USA.;
B5: (Fiore, AE) Center for Global Health, Centers for Disease Control and Prevention, Atlanta, Georgia, USA.; (Singleton, JA; Furlow, C) National Center For Immunization and Respiratory Diseases, Centers for Disease Control and Prevention, Atlanta, Georgia, USA.
B6: Date: September 20, 2011
B8: Objective: | C8: To estimate the number of medically attended cases, hospitalizations and deaths directly averted due to the pandemic influenza A (A(H1N1)pdm09) virus vaccination program in the United States.
B10: How to/How the model functions:
C11: 1). Start with the number of doses administered.
C12: 2). Enter the total number of medically attended cases, hospitalizations, and deaths that occurred during the pandemic.
C13: 3). Enter the background input data (risk groups, population, proportion subclinical cases, vaccine effectiveness, breakdown of cases, hospitalizations, and deaths).
C14: 4). The model takes the number of doses administered over time, multiplies the probability that someone did not
C15: have a prior infection, the multiplies by the probability that they will have an infection in the future, and then multiplies by the vaccine effectiveness.
C16: 5). This estimates the number of medically attended cases (or hospitalizations or deaths) averted.
C17: 6). Thesemedically attended cases are then added back into the epidemic curve (to account for the force of infection that occurred without a vaccination program).
C18: 7). This full process is then repeated (steps 1-2 and 4-6) until the number of medically attended cases in the new epidemic curve minus the medically attended cases in the
C19: original epidemic curve equals the number of medically attended cases averted.
B20: Embedded assumptions:
C21: 1). There is a 2 week delay in the time from vaccination to the time of vaccine protection.
C22: 2). Two doses are required for children< 10 years. Only the second dose provides protection, two weeks after it is given.
C23: 3). The probability of a prior medically attended or subclinical case for a vaccinated person is the same as that of the general population.
B24: MACROS MUST BE ENABLED/ SOLVER MUST BE INSTALLED
C25: 1). In order to facilitate the precise estimation of the epidemic curve without a vaccination program, MACROS must be enabled.
C26: *This can be done when you first open the file at the top of your screen.
C27: 2). The SOLVER ADD-IN must be installed in MS-Excel.
C28: * Click the MS Office button ,Excel Options, Add-Ins, Manage, Excel Add-Ins, Go. In the Add-Ins available box, select Solver Add-In, Click OK.
C29: 3). Solver must be active in Visual Basic.
C30: * ALT-F11, Tools, References, click SOLVER, click OK.

Sheet Input data doses
B1: Enter the weekly cumulative A(H1N1)pdm09 doses administered.
B3: influenza week | D3: cumulative number of doses | E3: =F3 -> 6 Months-9 Years | F3: 6 Months-9 Years | G3: 10-24, (10-17 all, 18-24 not pregnant) | H3: Pregnant 18-64 | I3: 25-64, High Risk, not pregnant | J3: 25-64, Health Care Worker, non-HR, not pregnant | K3: 25-64, Contact <6m, non-HCW, non-HR, not pregnant | L3: 25-64, non-Contact <6m, non-HCW, non-HR, not pregnant | M3: 65 Years+ | Q3: week | R3: influenza week | S3: weekly number of doses (assuming a 2 week delay) | T3: 6 Months-9 Years | U3: ='Input data breakdown'!C3 -> 6 Months-9 Years | V3: ='Input data breakdown'!D3 -> 10-24, (10-17 all, 18-24 not pregnant) | W3: ='Input data breakdown'!E3 -> Pregnant 18-64 | X3: ='Input data breakdown'!F3 -> 25-64, High Risk, not pregnant | Y3: ='Input data breakdown'!G3 -> 25-64, Health Care Worker, non-HR, not pregnant | Z3: ='Input data breakdown'!H3 -> 25-64, Contact <6m, non-HCW, non-HR, not pregnant | AA3: ='Input data breakdown'!I3 -> 25-64, non-Contact <6m, non-HCW, non-HR, not pregnant | AB3: ='Input data breakdown'!J3 -> 65 Years+
B4: date | C4: week | E4: 1st Dose | F4: 2nd Dose | T4: 1st Dose | U4: 2nd Dose
B5: 2009-01-10 | C5: 1 | D5: =SUM(E5:M5) -> 0 | Q5: 2009-01-10 | R5: 1
B6: 2009-01-17 | C6: 2 | D6: =SUM(E6:M6) -> 0 | Q6: 2009-01-17 | R6: 2
B7: 2009-01-24 | C7: 3 | D7: 0 | Q7: 2009-01-24 | R7: 3
B8: 2009-01-31 | C8: 4 | D8: 0 | Q8: 2009-01-31 | R8: 4 | S8: =D6-D5 -> 0 | T8: =E6-E5 -> 0 | U8: =F6-F5 -> 0 | V8: =G6-G5 -> 0 | W8: =H6-H5 -> 0 | X8: =I6-I5 -> 0 | Y8: =J6-J5 -> 0 | Z8: =K6-K5 -> 0 | AA8: =L6-L5 -> 0 | AB8: =M6-M5 -> 0
B9: 2009-02-07 | C9: 5 | D9: 0 | Q9: 2009-02-07 | R9: 5 | S9: 0 | T9: 0 | U9: 0 | V9: 0 | W9: 0 | X9: 0 | Y9: 0 | Z9: 0 | AA9: 0 | AB9: 0
B10: 2009-02-14 | C10: 6 | D10: 0 | Q10: 2009-02-14 | R10: 6 | S10: 0 | T10: 0 | U10: 0 | V10: 0 | W10: 0 | X10: 0 | Y10: 0 | Z10: 0 | AA10: 0 | AB10: 0
B11: 2009-02-21 | C11: 7 | D11: 0 | Q11: 2009-02-21 | R11: 7 | S11: 0 | T11: 0 | U11: 0 | V11: 0 | W11: 0 | X11: 0 | Y11: 0 | Z11: 0 | AA11: 0 | AB11: 0
B12: 2009-02-28 | C12: 8 | D12: 0 | Q12: 2009-02-28 | R12: 8 | S12: 0 | T12: 0 | U12: 0 | V12: 0 | W12: 0 | X12: 0 | Y12: 0 | Z12: 0 | AA12: 0 | AB12: 0
B13: 2009-03-07 | C13: 9 | D13: 0 | Q13: 2009-03-07 | R13: 9 | S13: 0 | T13: 0 | U13: 0 | V13: 0 | W13: 0 | X13: 0 | Y13: 0 | Z13: 0 | AA13: 0 | AB13: 0
B14: 2009-03-14 | C14: 10 | D14: 0 | Q14: 2009-03-14 | R14: 10 | S14: 0 | T14: 0 | U14: 0 | V14: 0 | W14: 0 | X14: 0 | Y14: 0 | Z14: 0 | AA14: 0 | AB14: 0
B15: 2009-03-21 | C15: 11 | D15: 0 | Q15: 2009-03-21 | R15: 11 | S15: 0 | T15: 0 | U15: 0 | V15: 0 | W15: 0 | X15: 0 | Y15: 0 | Z15: 0 | AA15: 0 | AB15: 0
B16: 2009-03-28 | C16: 12 | D16: 0 | Q16: 2009-03-28 | R16: 12 | S16: 0 | T16: 0 | U16: 0 | V16: 0 | W16: 0 | X16: 0 | Y16: 0 | Z16: 0 | AA16: 0 | AB16: 0
B17: 2009-04-04 | C17: 13 | D17: 0 | Q17: 2009-04-04 | R17: 13 | S17: 0 | T17: 0 | U17: 0 | V17: 0 | W17: 0 | X17: 0 | Y17: 0 | Z17: 0 | AA17: 0 | AB17: 0
B18: 2009-04-11 | C18: 14 | D18: 0 | Q18: 2009-04-11 | R18: 14 | S18: 0 | T18: 0 | U18: 0 | V18: 0 | W18: 0 | X18: 0 | Y18: 0 | Z18: 0 | AA18: 0 | AB18: 0
B19: 2009-04-18 | C19: 15 | D19: 0 | Q19: 2009-04-18 | R19: 15 | S19: 0 | T19: 0 | U19: 0 | V19: 0 | W19: 0 | X19: 0 | Y19: 0 | Z19: 0 | AA19: 0 | AB19: 0
B20: 2009-04-25 | C20: 16 | D20: 0 | Q20: 2009-04-25 | R20: 16 | S20: 0 | T20: 0 | U20: 0 | V20: 0 | W20: 0 | X20: 0 | Y20: 0 | Z20: 0 | AA20: 0 | AB20: 0
B21: 2009-05-02 | C21: 17 | D21: 0 | Q21: 2009-05-02 | R21: 17 | S21: 0 | T21: 0 | U21: 0 | V21: 0 | W21: 0 | X21: 0 | Y21: 0 | Z21: 0 | AA21: 0 | AB21: 0
B22: 2009-05-09 | C22: 18 | D22: 0 | Q22: 2009-05-09 | R22: 18 | S22: 0 | T22: 0 | U22: 0 | V22: 0 | W22: 0 | X22: 0 | Y22: 0 | Z22: 0 | AA22: 0 | AB22: 0
B23: 2009-05-16 | C23: 19 | D23: 0 | Q23: 2009-05-16 | R23: 19 | S23: 0 | T23: 0 | U23: 0 | V23: 0 | W23: 0 | X23: 0 | Y23: 0 | Z23: 0 | AA23: 0 | AB23: 0
B24: 2009-05-23 | C24: 20 | D24: 0 | Q24: 2009-05-23 | R24: 20 | S24: 0 | T24: 0 | U24: 0 | V24: 0 | W24: 0 | X24: 0 | Y24: 0 | Z24: 0 | AA24: 0 | AB24: 0
B25: 2009-05-30 | C25: 21 | D25: 0 | Q25: 2009-05-30 | R25: 21 | S25: 0 | T25: 0 | U25: 0 | V25: 0 | W25: 0 | X25: 0 | Y25: 0 | Z25: 0 | AA25: 0 | AB25: 0
B26: 2009-06-06 | C26: 22 | D26: 0 | Q26: 2009-06-06 | R26: 22 | S26: 0 | T26: 0 | U26: 0 | V26: 0 | W26: 0 | X26: 0 | Y26: 0 | Z26: 0 | AA26: 0 | AB26: 0
B27: 2009-06-13 | C27: 23 | D27: 0 | Q27: 2009-06-13 | R27: 23 | S27: 0 | T27: 0 | U27: 0 | V27: 0 | W27: 0 | X27: 0 | Y27: 0 | Z27: 0 | AA27: 0 | AB27: 0
B28: 2009-06-20 | C28: 24 | D28: 0 | Q28: 2009-06-20 | R28: 24 | S28: 0 | T28: 0 | U28: 0 | V28: 0 | W28: 0 | X28: 0 | Y28: 0 | Z28: 0 | AA28: 0 | AB28: 0
B29: 2009-06-27 | C29: 25 | D29: 0 | Q29: 2009-06-27 | R29: 25 | S29: 0 | T29: 0 | U29: 0 | V29: 0 | W29: 0 | X29: 0 | Y29: 0 | Z29: 0 | AA29: 0 | AB29: 0
B30: 2009-07-04 | C30: 26 | D30: 0 | Q30: 2009-07-04 | R30: 26 | S30: 0 | T30: 0 | U30: 0 | V30: 0 | W30: 0 | X30: 0 | Y30: 0 | Z30: 0 | AA30: 0 | AB30: 0
B31: 2009-07-11 | C31: 27 | D31: 0 | Q31: 2009-07-11 | R31: 27 | S31: 0 | T31: 0 | U31: 0 | V31: 0 | W31: 0 | X31: 0 | Y31: 0 | Z31: 0 | AA31: 0 | AB31: 0
B32: 2009-07-18 | C32: 28 | D32: 0 | Q32: 2009-07-18 | R32: 28 | S32: 0 | T32: 0 | U32: 0 | V32: 0 | W32: 0 | X32: 0 | Y32: 0 | Z32: 0 | AA32: 0 | AB32: 0
B33: 2009-07-25 | C33: 29 | D33: 0 | Q33: 2009-07-25 | R33: 29 | S33: 0 | T33: 0 | U33: 0 | V33: 0 | W33: 0 | X33: 0 | Y33: 0 | Z33: 0 | AA33: 0 | AB33: 0
B34: 2009-08-01 | C34: 30 | D34: 0 | Q34: 2009-08-01 | R34: 30 | S34: 0 | T34: 0 | U34: 0 | V34: 0 | W34: 0 | X34: 0 | Y34: 0 | Z34: 0 | AA34: 0 | AB34: 0
B35: 2009-08-08 | C35: 31 | D35: 0 | Q35: 2009-08-08 | R35: 31 | S35: 0 | T35: 0 | U35: 0 | V35: 0 | W35: 0 | X35: 0 | Y35: 0 | Z35: 0 | AA35: 0 | AB35: 0
B36: 2009-08-15 | C36: 32 | D36: 0 | Q36: 2009-08-15 | R36: 32 | S36: 0 | T36: 0 | U36: 0 | V36: 0 | W36: 0 | X36: 0 | Y36: 0 | Z36: 0 | AA36: 0 | AB36: 0
B37: 2009-08-22 | C37: 33 | D37: 0 | Q37: 2009-08-22 | R37: 33 | S37: 0 | T37: 0 | U37: 0 | V37: 0 | W37: 0 | X37: 0 | Y37: 0 | Z37: 0 | AA37: 0 | AB37: 0
B38: 2009-08-29 | C38: 34 | D38: 0 | Q38: 2009-08-29 | R38: 34 | S38: 0 | T38: 0 | U38: 0 | V38: 0 | W38: 0 | X38: 0 | Y38: 0 | Z38: 0 | AA38: 0 | AB38: 0
B39: 2009-09-05 | C39: 35 | D39: 0 | Q39: 2009-09-05 | R39: 35 | S39: 0 | T39: 0 | U39: 0 | V39: 0 | W39: 0 | X39: 0 | Y39: 0 | Z39: 0 | AA39: 0 | AB39: 0
B40: 2009-09-12 | C40: 36 | D40: 0 | Q40: 2009-09-12 | R40: 36 | S40: =D38-D37 -> 0 | T40: =E38-E37 -> 0 | U40: =F38-F37 -> 0 | V40: =G38-G37 -> 0 | W40: =H38-H37 -> 0 | X40: =I38-I37 -> 0 | Y40: =J38-J37 -> 0 | Z40: =K38-K37 -> 0 | AA40: =L38-L37 -> 0 | AB40: =M38-M37 -> 0
B41: 2009-09-19 | C41: 37 | D41: 0 | Q41: 2009-09-19 | R41: 37 | S41: 0 | T41: 0 | U41: 0 | V41: 0 | W41: 0 | X41: 0 | Y41: 0 | Z41: 0 | AA41: 0 | AB41: 0
B42: 2009-09-26 | C42: 38 | D42: 0 | Q42: 2009-09-26 | R42: 38 | S42: 0 | T42: 0 | U42: 0 | V42: 0 | W42: 0 | X42: 0 | Y42: 0 | Z42: 0 | AA42: 0 | AB42: 0
B43: 2009-10-03 | C43: 39 | D43: 0 | Q43: 2009-10-03 | R43: 39 | S43: 0 | T43: 0 | U43: 0 | V43: 0 | W43: 0 | X43: 0 | Y43: 0 | Z43: 0 | AA43: 0 | AB43: 0
B44: 2009-10-10 | C44: 40 | D44: 2970991 | E44: 835521 | G44: 578226 | H44: 170994 | I44: 313671 | J44: 282744 | K44: 68721 | L44: 363076 | M44: 358038 | Q44: 2009-10-10 | R44: 40 | S44: 0 | T44: 0 | U44: 0 | V44: 0 | W44: 0 | X44: 0 | Y44: 0 | Z44: 0 | AA44: 0 | AB44: 0
B45: 2009-10-17 | C45: 41 | D45: 6536176 | E45: 1838146 | G45: 1272096 | H45: 376186 | I45: 690076 | J45: 622036 | K45: 151187 | L45: 798766 | M45: 787683 | Q45: 2009-10-17 | R45: 41 | S45: 0 | T45: 0 | U45: 0 | V45: 0 | W45: 0 | X45: 0 | Y45: 0 | Z45: 0 | AA45: 0 | AB45: 0
B46: 2009-10-24 | C46: 42 | D46: 10992661 | E46: 3091428 | G46: 2139435 | H46: 632677 | I46: 1160583 | J46: 1046151 | K46: 254269 | L46: 1343379 | M46: 1324739 | Q46: 2009-10-24 | R46: 42 | S46: 2970991 | T46: 835521 | U46: 0 | V46: 578226 | W46: 170994 | X46: 313671 | Y46: 282744 | Z46: 68721 | AA46: 363076 | AB46: 358038
B47: 2009-10-31 | C47: 43 | D47: 17944499 | E47: 5013127 | F47: 118562 | G47: 3469353 | H47: 1025963 | I47: 1882026 | J47: 1696461 | K47: 412329 | L47: 2178453 | M47: 2148225 | Q47: 2009-10-31 | R47: 43 | S47: 3565185 | T47: 1002625 | U47: 0 | V47: 693870 | W47: 205192 | X47: 376405 | Y47: 339292 | Z47: 82466 | AA47: 435690 | AB47: 429645
B48: 2009-11-07 | C48: 44 | D48: 24238524 | E48: 6526497 | F48: 483410 | G48: 4776443 | H48: 1230336 | I48: 2467318 | J48: 2274687 | K48: 573287 | L48: 3116079 | M48: 2790467 | Q48: 2009-11-07 | R48: 44 | S48: 4456485 | T48: 1253282 | U48: 0 | V48: 867339 | W48: 256491 | X48: 470507 | Y48: 424115 | Z48: 103082 | AA48: 544613 | AB48: 537056
B49: 2009-11-14 | C49: 45 | D49: 30532552 | E49: 8039867 | F49: 848259 | G49: 6083534 | H49: 1434710 | I49: 3052610 | J49: 2852913 | K49: 734246 | L49: 4053704 | M49: 3432709 | Q49: 2009-11-14 | R49: 45 | S49: 6951838 | T49: 1921699 | U49: 118562 | V49: 1329918 | W49: 393286 | X49: 721443 | Y49: 650310 | Z49: 158060 | AA49: 835074 | AB49: 823486
B50: 2009-11-21 | C50: 46 | D50: 36826578 | E50: 9553237 | F50: 1213108 | G50: 7390624 | H50: 1639084 | I50: 3637902 | J50: 3431138 | K50: 895205 | L50: 4991330 | M50: 4074950 | Q50: 2009-11-21 | R50: 46 | S50: 6294025 | T50: 1513370 | U50: 364848 | V50: 1307090 | W50: 204373 | X50: 585292 | Y50: 578226 | Z50: 160958 | AA50: 937626 | AB50: 642242
B51: 2009-11-28 | C51: 47 | D51: 43120605 | E51: 11066608 | F51: 1577957 | G51: 8697714 | H51: 1843458 | I51: 4223194 | J51: 4009364 | K51: 1056163 | L51: 5928955 | M51: 4717192 | Q51: 2009-11-28 | R51: 47 | S51: 6294028 | T51: 1513370 | U51: 364849 | V51: 1307091 | W51: 204374 | X51: 585292 | Y51: 578226 | Z51: 160959 | AA51: 937625 | AB51: 642242
B52: 2009-12-05 | C52: 48 | D52: 47708688 | E52: 11837474 | F52: 2281668 | G52: 9511233 | H52: 1910584 | I52: 4717225 | J52: 4274738 | K52: 1145717 | L52: 6798875 | M52: 5231174 | Q52: 2009-12-05 | R52: 48 | S52: 6294026 | T52: 1513370 | U52: 364849 | V52: 1307090 | W52: 204374 | X52: 585292 | Y52: 578225 | Z52: 160959 | AA52: 937626 | AB52: 642241
B53: 2009-12-12 | C53: 49 | D53: 52296774 | E53: 12608340 | F53: 2985380 | G53: 10324753 | H53: 1977711 | I53: 5211256 | J53: 4540113 | K53: 1235270 | L53: 7668794 | M53: 5745157 | Q53: 2009-12-12 | R53: 49 | S53: 6294027 | T53: 1513371 | U53: 364849 | V53: 1307090 | W53: 204374 | X53: 585292 | Y53: 578226 | Z53: 160958 | AA53: 937625 | AB53: 642242
B54: 2009-12-19 | C54: 50 | D54: 56884857 | E54: 13379206 | F54: 3689091 | G54: 11138273 | H54: 2044837 | I54: 5705286 | J54: 4805487 | K54: 1324824 | L54: 8538714 | M54: 6259139 | Q54: 2009-12-19 | R54: 50 | S54: 4588083 | T54: 770866 | U54: 703711 | V54: 813519 | W54: 67126 | X54: 494031 | Y54: 265374 | Z54: 89554 | AA54: 869920 | AB54: 513982
B55: 2009-12-26 | C55: 51 | D55: 61472940 | E55: 14150072 | F55: 4392802 | G55: 11951792 | H55: 2111964 | I55: 6199317 | J55: 5070861 | K55: 1414378 | L55: 9408633 | M55: 6773121 | Q55: 2009-12-26 | R55: 51 | S55: 4588086 | T55: 770866 | U55: 703712 | V55: 813520 | W55: 67127 | X55: 494031 | Y55: 265375 | Z55: 89553 | AA55: 869919 | AB55: 513983
B56: 2010-01-03 | C56: 52 | D56: 64388293 | E56: 14540725 | F56: 4862375 | G56: 12405654 | H56: 2171118 | I56: 6479567 | J56: 5217339 | K56: 1463489 | L56: 10030786 | M56: 7217240 | Q56: 2010-01-03 | R56: 52 | S56: 4588083 | T56: 770866 | U56: 703711 | V56: 813520 | W56: 67126 | X56: 494030 | Y56: 265374 | Z56: 89554 | AA56: 869920 | AB56: 513982
B57: 2010-01-10 | C57: 1 | D57: 67303642 | E57: 14931379 | F57: 5331947 | G57: 12859515 | H57: 2230273 | I57: 6759817 | J57: 5363816 | K57: 1512599 | L57: 10652938 | M57: 7661358 | Q57: 2010-01-10 | R57: 1 | S57: 4588083 | T57: 770866 | U57: 703711 | V57: 813519 | W57: 67127 | X57: 494031 | Y57: 265374 | Z57: 89554 | AA57: 869919 | AB57: 513982
B58: 2010-01-17 | C58: 2 | D58: 70218995 | E58: 15322032 | F58: 5801520 | G58: 13313376 | H58: 2289428 | I58: 7040067 | J58: 5510294 | K58: 1561710 | L58: 11275091 | M58: 8105477 | Q58: 2010-01-17 | R58: 2 | S58: 2915353 | T58: 390653 | U58: 469573 | V58: 453862 | W58: 59154 | X58: 280250 | Y58: 146478 | Z58: 49111 | AA58: 622153 | AB58: 444119
B59: 2010-01-24 | C59: 3 | D59: 73134347 | E59: 15712686 | F59: 6271092 | G59: 13767237 | H59: 2348583 | I59: 7320318 | J59: 5656771 | K59: 1610821 | L59: 11897243 | M59: 8549596 | Q59: 2010-01-24 | R59: 3 | S59: 2915349 | T59: 390654 | U59: 469572 | V59: 453861 | W59: 59155 | X59: 280250 | Y59: 146477 | Z59: 49110 | AA59: 622152 | AB59: 444118
B60: 2010-01-31 | C60: 4 | D60: 76049699 | E60: 16103339 | F60: 6740665 | G60: 14221099 | H60: 2407738 | I60: 7600568 | J60: 5803248 | K60: 1659932 | L60: 12519396 | M60: 8993714 | Q60: 2010-01-31 | R60: 4 | S60: 2915353 | T60: 390653 | U60: 469573 | V60: 453861 | W60: 59155 | X60: 280250 | Y60: 146478 | Z60: 49111 | AA60: 622153 | AB60: 444119
B61: 2010-02-07 | C61: 5 | D61: 77978555 | E61: 16352938 | F61: 7054639 | G61: 14489139 | H61: 2407738 | I61: 7846240 | J61: 5863382 | K61: 1702241 | L61: 12999160 | M61: 9263078 | Q61: 2010-02-07 | R61: 5 | S61: 2915352 | T61: 390654 | U61: 469572 | V61: 453861 | W61: 59155 | X61: 280251 | Y61: 146477 | Z61: 49111 | AA61: 622152 | AB61: 444119
B62: 2010-02-14 | C62: 6 | D62: 79907410 | E62: 16602536 | F62: 7368613 | G62: 14757179 | H62: 2407738 | I62: 8091912 | J62: 5923516 | K62: 1744550 | L62: 13478924 | M62: 9532442 | Q62: 2010-02-14 | R62: 6 | S62: 2915352 | T62: 390653 | U62: 469573 | V62: 453862 | W62: 59155 | X62: 280250 | Y62: 146477 | Z62: 49111 | AA62: 622153 | AB62: 444118
B63: 2010-02-21 | C63: 7 | D63: 81836268 | E63: 16852134 | F63: 7682587 | G63: 15025220 | H63: 2407738 | I63: 8337584 | J63: 5983651 | K63: 1786859 | L63: 13958689 | M63: 9801806 | Q63: 2010-02-21 | R63: 7 | S63: 1928856 | T63: 249599 | U63: 313974 | V63: 268040 | W63: 0 | X63: 245672 | Y63: 60134 | Z63: 42309 | AA63: 479764 | AB63: 269364
B64: 2010-02-28 | C64: 8 | D64: 83765125 | E64: 17101732 | F64: 7996562 | G64: 15293260 | H64: 2407738 | I64: 8583256 | J64: 6043785 | K64: 1829169 | L64: 14438453 | M64: 10071170 | Q64: 2010-02-28 | R64: 8 | S64: 1928855 | T64: 249598 | U64: 313974 | V64: 268040 | W64: 0 | X64: 245672 | Y64: 60134 | Z64: 42309 | AA64: 479764 | AB64: 269364
B65: 2010-03-07 | C65: 9 | D65: 84632927 | E65: 17196439 | F65: 8152797 | G65: 15385525 | H65: 2407738 | I65: 8712608 | J65: 6090450 | K65: 1874348 | L65: 14613436 | M65: 10199586 | Q65: 2010-03-07 | R65: 9 | S65: 1928858 | T65: 249598 | U65: 313974 | V65: 268041 | W65: 0 | X65: 245672 | Y65: 60135 | Z65: 42309 | AA65: 479765 | AB65: 269364
B66: 2010-03-14 | C66: 10 | D66: 85500730 | E66: 17291146 | F66: 8309033 | G66: 15477789 | H66: 2407738 | I66: 8841960 | J66: 6137116 | K66: 1919527 | L66: 14788420 | M66: 10328001 | Q66: 2010-03-14 | R66: 10 | S66: 1928857 | T66: 249598 | U66: 313975 | V66: 268040 | W66: 0 | X66: 245672 | Y66: 60134 | Z66: 42310 | AA66: 479764 | AB66: 269364
B67: 2010-03-21 | C67: 11 | D67: 86368533 | E67: 17385853 | F67: 8465268 | G67: 15570054 | H67: 2407738 | I67: 8971313 | J67: 6183782 | K67: 1964706 | L67: 14963403 | M67: 10456416 | Q67: 2010-03-21 | R67: 11 | S67: 867802 | T67: 94707 | U67: 156235 | V67: 92265 | W67: 0 | X67: 129352 | Y67: 46665 | Z67: 45179 | AA67: 174983 | AB67: 128416
B68: 2010-03-28 | C68: 12 | D68: 87236334 | E68: 17480560 | F68: 8621503 | G68: 15662318 | H68: 2407738 | I68: 9100665 | J68: 6230448 | K68: 2009885 | L68: 15138386 | M68: 10584831 | Q68: 2010-03-28 | R68: 12 | S68: 867803 | T68: 94707 | U68: 156236 | V68: 92264 | W68: 0 | X68: 129352 | Y68: 46666 | Z68: 45179 | AA68: 174984 | AB68: 128415
B69: 2019-04-04 | C69: 13 | D69: 87680108 | E69: 17536309 | F69: 8736865 | G69: 15743228 | H69: 2407738 | I69: 9144343 | J69: 6238640 | K69: 2016746 | L69: 15207153 | M69: 10649086 | Q69: 2019-04-04 | R69: 13 | S69: 867803 | T69: 94707 | U69: 156235 | V69: 92265 | W69: 0 | X69: 129353 | Y69: 46666 | Z69: 45179 | AA69: 174983 | AB69: 128415
B70: 2010-04-11 | C70: 14 | D70: =SUM(E70:M70) -> 88123880 | E70: 17592057 | F70: 8852226 | G70: 15824137 | H70: 2407738 | I70: 9188021 | J70: 6246832 | K70: 2023608 | L70: 15275919 | M70: 10713342 | Q70: 2010-04-11 | R70: 14 | S70: 867801 | T70: 94707 | U70: 156235 | V70: 92264 | W70: 0 | X70: 129352 | Y70: 46666 | Z70: 45179 | AA70: 174983 | AB70: 128415
B71: 2010-04-18 | C71: 15 | D71: 88567652 | E71: 17647806 | F71: 8967588 | G71: 15905046 | H71: 2407738 | I71: 9231698 | J71: 6255024 | K71: 2030469 | L71: 15344686 | M71: 10777597 | Q71: 2010-04-18 | R71: 15 | S71: 443774 | T71: 55749 | U71: 115362 | V71: 80910 | W71: 0 | X71: 43678 | Y71: 8192 | Z71: 6861 | AA71: 68767 | AB71: 64255
S72: =D70-D69 -> 443772 | T72: =E70-E69 -> 55748 | U72: =F70-F69 -> 115361 | V72: =G70-G69 -> 80909 | W72: =H70-H69 -> 0 | X72: =I70-I69 -> 43678 | Y72: =J70-J69 -> 8192 | Z72: =K70-K69 -> 6862 | AA72: =L70-L69 -> 68766 | AB72: =M70-M69 -> 64256
S73: 443772 | T73: 55749 | U73: 115362 | V73: 80909 | W73: 0 | X73: 43677 | Y73: 8192 | Z73: 6861 | AA73: 68767 | AB73: 64255

Sheet Input data cases
B1: Enter the total number of A(H1N1)pdm09 clinical cases, by week.
B3: week | C3: influenza week | D3: Min. total cases | E3: Mid. total cases | F3: Max. total cases
B4: 2009-01-10 | C4: 1 | D4: ='fluecalc_reed data'!C2 -> 0 | E4: ='fluecalc_reed data'!D2 -> 0 | F4: ='fluecalc_reed data'!E2 -> 0
B5: 2009-01-17 | C5: 2 | D5: ='fluecalc_reed data'!C3 -> 0 | E5: ='fluecalc_reed data'!D3 -> 0 | F5: ='fluecalc_reed data'!E3 -> 0
B6: 2009-01-24 | C6: 3 | D6: ='fluecalc_reed data'!C4 -> 0 | E6: ='fluecalc_reed data'!D4 -> 0 | F6: ='fluecalc_reed data'!E4 -> 0
B7: 2009-01-31 | C7: 4 | D7: ='fluecalc_reed data'!C5 -> 0 | E7: ='fluecalc_reed data'!D5 -> 0 | F7: ='fluecalc_reed data'!E5 -> 0
B8: 2009-02-07 | C8: 5 | D8: ='fluecalc_reed data'!C6 -> 0 | E8: ='fluecalc_reed data'!D6 -> 0 | F8: ='fluecalc_reed data'!E6 -> 0
B9: 2009-02-14 | C9: 6 | D9: ='fluecalc_reed data'!C7 -> 0 | E9: ='fluecalc_reed data'!D7 -> 0 | F9: ='fluecalc_reed data'!E7 -> 0
B10: 2009-02-21 | C10: 7 | D10: ='fluecalc_reed data'!C8 -> 0 | E10: ='fluecalc_reed data'!D8 -> 0 | F10: ='fluecalc_reed data'!E8 -> 0
B11: 2009-02-28 | C11: 8 | D11: ='fluecalc_reed data'!C9 -> 0 | E11: ='fluecalc_reed data'!D9 -> 0 | F11: ='fluecalc_reed data'!E9 -> 0
B12: 2009-03-07 | C12: 9 | D12: ='fluecalc_reed data'!C10 -> 0 | E12: ='fluecalc_reed data'!D10 -> 0 | F12: ='fluecalc_reed data'!E10 -> 0
B13: 2009-03-14 | C13: 10 | D13: ='fluecalc_reed data'!C11 -> 0 | E13: ='fluecalc_reed data'!D11 -> 0 | F13: ='fluecalc_reed data'!E11 -> 0
B14: 2009-03-21 | C14: 11 | D14: ='fluecalc_reed data'!C12 -> 0 | E14: ='fluecalc_reed data'!D12 -> 0 | F14: ='fluecalc_reed data'!E12 -> 0
B15: 2009-03-28 | C15: 12 | D15: ='fluecalc_reed data'!C13 -> 0 | E15: ='fluecalc_reed data'!D13 -> 0 | F15: ='fluecalc_reed data'!E13 -> 0
B16: 2009-04-04 | C16: 13 | D16: ='fluecalc_reed data'!C14 -> 0 | E16: ='fluecalc_reed data'!D14 -> 0 | F16: ='fluecalc_reed data'!E14 -> 0
B17: 2009-04-11 | C17: 14 | D17: ='fluecalc_reed data'!C15 -> 120077.3777 | E17: ='fluecalc_reed data'!D15 -> 120077.3777 | F17: ='fluecalc_reed data'!E15 -> 120077.3777
B18: 2009-04-18 | C18: 15 | D18: ='fluecalc_reed data'!C16 -> 35606.46783 | E18: ='fluecalc_reed data'!D16 -> 35606.46783 | F18: ='fluecalc_reed data'!E16 -> 35606.46783
B19: 2009-04-25 | C19: 16 | D19: ='fluecalc_reed data'!C17 -> 65555.44113 | E19: ='fluecalc_reed data'!D17 -> 65555.44113 | F19: ='fluecalc_reed data'!E17 -> 65555.44113
B20: 2009-05-02 | C20: 17 | D20: ='fluecalc_reed data'!C18 -> 58322.36865 | E20: ='fluecalc_reed data'!D18 -> 58322.36865 | F20: ='fluecalc_reed data'!E18 -> 58322.36865
B21: 2009-05-09 | C21: 18 | D21: ='fluecalc_reed data'!C19 -> 77624.55918 | E21: ='fluecalc_reed data'!D19 -> 77624.55918 | F21: ='fluecalc_reed data'!E19 -> 77624.55918
B22: 2009-05-16 | C22: 19 | D22: ='fluecalc_reed data'!C20 -> 28387.49946 | E22: ='fluecalc_reed data'!D20 -> 28387.49946 | F22: ='fluecalc_reed data'!E20 -> 28387.49946
B23: 2009-05-23 | C23: 20 | D23: ='fluecalc_reed data'!C21 -> 82484.59163 | E23: ='fluecalc_reed data'!D21 -> 82484.59163 | F23: ='fluecalc_reed data'!E21 -> 82484.59163
B24: 2009-05-30 | C24: 21 | D24: ='fluecalc_reed data'!C22 -> 82383.29865 | E24: ='fluecalc_reed data'!D22 -> 82383.29865 | F24: ='fluecalc_reed data'!E22 -> 82383.29865
B25: 2009-06-06 | C25: 22 | D25: ='fluecalc_reed data'!C23 -> 246050.8795 | E25: ='fluecalc_reed data'!D23 -> 246050.8795 | F25: ='fluecalc_reed data'!E23 -> 246050.8795
B26: 2009-06-13 | C26: 23 | D26: ='fluecalc_reed data'!C24 -> 442477.8912 | E26: ='fluecalc_reed data'!D24 -> 442477.8912 | F26: ='fluecalc_reed data'!E24 -> 442477.8912
B27: 2009-06-20 | C27: 24 | D27: ='fluecalc_reed data'!C25 -> 552166.8775 | E27: ='fluecalc_reed data'!D25 -> 552166.8775 | F27: ='fluecalc_reed data'!E25 -> 552166.8775
B28: 2009-06-27 | C28: 25 | D28: ='fluecalc_reed data'!C26 -> 541266.0714 | E28: ='fluecalc_reed data'!D26 -> 541266.0714 | F28: ='fluecalc_reed data'!E26 -> 541266.0714
B29: 2009-07-04 | C29: 26 | D29: ='fluecalc_reed data'!C27 -> 295189.0395 | E29: ='fluecalc_reed data'!D27 -> 295189.0395 | F29: ='fluecalc_reed data'!E27 -> 295189.0395
B30: 2009-07-11 | C30: 27 | D30: ='fluecalc_reed data'!C28 -> 281296.2007 | E30: ='fluecalc_reed data'!D28 -> 281296.2007 | F30: ='fluecalc_reed data'!E28 -> 281296.2007
B31: 2009-07-18 | C31: 28 | D31: ='fluecalc_reed data'!C29 -> 68034.70264 | E31: ='fluecalc_reed data'!D29 -> 68034.70264 | F31: ='fluecalc_reed data'!E29 -> 68034.70264
B32: 2009-07-25 | C32: 29 | D32: ='fluecalc_reed data'!C30 -> 75900.72936 | E32: ='fluecalc_reed data'!D30 -> 75900.72936 | F32: ='fluecalc_reed data'!E30 -> 75900.72936
B33: 2009-08-01 | C33: 30 | D33: ='fluecalc_reed data'!C31 -> 220286.7191 | E33: ='fluecalc_reed data'!D31 -> 373785.8624 | F33: ='fluecalc_reed data'!E31 -> 479623.7883
B34: 2009-08-08 | C34: 31 | D34: ='fluecalc_reed data'!C32 -> 123916.1013 | E34: ='fluecalc_reed data'!D32 -> 156391.4848 | F34: ='fluecalc_reed data'!E32 -> 417849.889
B35: 2009-08-15 | C35: 32 | D35: ='fluecalc_reed data'!C33 -> 200656.6395 | E35: ='fluecalc_reed data'!D33 -> 299025.9215 | F35: ='fluecalc_reed data'!E33 -> 391415.4778
B36: 2009-08-22 | C36: 33 | D36: ='fluecalc_reed data'!C34 -> 211120.353 | E36: ='fluecalc_reed data'!D34 -> 297094.2794 | F36: ='fluecalc_reed data'!E34 -> 358382.8817
B37: 2009-08-29 | C37: 34 | D37: ='fluecalc_reed data'!C35 -> 397320.4919 | E37: ='fluecalc_reed data'!D35 -> 479462.5712 | F37: ='fluecalc_reed data'!E35 -> 718221.587
B38: 2009-09-05 | C38: 35 | D38: ='fluecalc_reed data'!C36 -> 437991.7207 | E38: ='fluecalc_reed data'!D36 -> 626256.2884 | F38: ='fluecalc_reed data'!E36 -> 852846.627
B39: 2009-09-12 | C39: 36 | D39: ='fluecalc_reed data'!C37 -> 1443766.058 | E39: ='fluecalc_reed data'!D37 -> 1675630.099 | F39: ='fluecalc_reed data'!E37 -> 2176083.87
B40: 2009-09-19 | C40: 37 | D40: ='fluecalc_reed data'!C38 -> 763666.0633 | E40: ='fluecalc_reed data'!D38 -> 1302845.731 | F40: ='fluecalc_reed data'!E38 -> 2529512.904
B41: 2009-09-26 | C41: 38 | D41: ='fluecalc_reed data'!C39 -> 1067903.742 | E41: ='fluecalc_reed data'!D39 -> 1508514.286 | F41: ='fluecalc_reed data'!E39 -> 2994502.122
B42: 2009-10-03 | C42: 39 | D42: ='fluecalc_reed data'!C40 -> 1678782.321 | E42: ='fluecalc_reed data'!D40 -> 2319691.269 | F42: ='fluecalc_reed data'!E40 -> 4531961.16
B43: 2009-10-10 | C43: 40 | D43: ='fluecalc_reed data'!C41 -> 2423919.447 | E43: ='fluecalc_reed data'!D41 -> 4461541.507 | F43: ='fluecalc_reed data'!E41 -> 6378511.584
B44: 2009-10-17 | C44: 41 | D44: ='fluecalc_reed data'!C42 -> 3521960.705 | E44: ='fluecalc_reed data'!D42 -> 6549204.886 | F44: ='fluecalc_reed data'!E42 -> 8184480.75
B45: 2009-10-24 | C45: 42 | D45: ='fluecalc_reed data'!C43 -> 4857183.218 | E45: ='fluecalc_reed data'!D43 -> 7120298.478 | F45: ='fluecalc_reed data'!E43 -> 8647509.269
B46: 2009-10-31 | C46: 43 | D46: ='fluecalc_reed data'!C44 -> 6030841.714 | E46: ='fluecalc_reed data'!D44 -> 6297209.879 | F46: ='fluecalc_reed data'!E44 -> 8894842.861
B47: 2009-11-07 | C47: 44 | D47: ='fluecalc_reed data'!C45 -> 4982984.963 | E47: ='fluecalc_reed data'!D45 -> 5899646.996 | F47: ='fluecalc_reed data'!E45 -> 8373476.871
B48: 2009-11-14 | C48: 45 | D48: ='fluecalc_reed data'!C46 -> 3505038.604 | E48: ='fluecalc_reed data'!D46 -> 5013180.908 | F48: ='fluecalc_reed data'!E46 -> 7190670.79
B49: 2009-11-21 | C49: 46 | D49: ='fluecalc_reed data'!C47 -> 1855168.033 | E49: ='fluecalc_reed data'!D47 -> 3350286.028 | F49: ='fluecalc_reed data'!E47 -> 5445357.274
B50: 2009-11-28 | C50: 47 | D50: ='fluecalc_reed data'!C48 -> 1206012.223 | E50: ='fluecalc_reed data'!D48 -> 1767166.464 | F50: ='fluecalc_reed data'!E48 -> 3964971.629
B51: 2009-12-05 | C51: 48 | D51: ='fluecalc_reed data'!C49 -> 914363.2914 | E51: ='fluecalc_reed data'!D49 -> 1020606.173 | F51: ='fluecalc_reed data'!E49 -> 2214147.358
B52: 2009-12-12 | C52: 49 | D52: ='fluecalc_reed data'!C50 -> 577357.5335 | E52: ='fluecalc_reed data'!D50 -> 804901.2919 | F52: ='fluecalc_reed data'!E50 -> 1234276.957
B53: 2009-12-19 | C53: 50 | D53: ='fluecalc_reed data'!C51 -> 563849.2721 | E53: ='fluecalc_reed data'!D51 -> 646357.6274 | F53: ='fluecalc_reed data'!E51 -> 821616.7452
B54: 2009-12-26 | C54: 51 | D54: ='fluecalc_reed data'!C52 -> 469327.3447 | E54: ='fluecalc_reed data'!D52 -> 612204.1749 | F54: ='fluecalc_reed data'!E52 -> 702553.0197
B55: 2010-01-03 | C55: 52 | D55: ='fluecalc_reed data'!C53 -> 466348.8249 | E55: ='fluecalc_reed data'!D53 -> 619080.132 | F55: ='fluecalc_reed data'!E53 -> 699972.633
B56: 2010-01-10 | C56: 1 | D56: ='fluecalc_reed data'!C54 -> 319990.7463 | E56: ='fluecalc_reed data'!D54 -> 418803.1203 | F56: ='fluecalc_reed data'!E54 -> 533296.2717
B57: 2010-01-17 | C57: 2 | D57: ='fluecalc_reed data'!C55 -> 290407.4213 | E57: ='fluecalc_reed data'!D55 -> 520389.8845 | F57: ='fluecalc_reed data'!E55 -> 756906.3808
B58: 2010-01-24 | C58: 3 | D58: ='fluecalc_reed data'!C56 -> 388526.3198 | E58: ='fluecalc_reed data'!D56 -> 486566.3456 | F58: ='fluecalc_reed data'!E56 -> 684340.7253
B59: 2010-01-31 | C59: 4 | D59: ='fluecalc_reed data'!C57 -> 177244.9378 | E59: ='fluecalc_reed data'!D57 -> 356400.2577 | F59: ='fluecalc_reed data'!E57 -> 445049.6516
B60: 2010-02-07 | C60: 5 | D60: ='fluecalc_reed data'!C58 -> 308179.3004 | E60: ='fluecalc_reed data'!D58 -> 493448.0897 | F60: ='fluecalc_reed data'!E58 -> 586200.0951
B61: 2010-02-14 | C61: 6 | D61: ='fluecalc_reed data'!C59 -> 218319.6804 | E61: ='fluecalc_reed data'!D59 -> 286708.7253 | F61: ='fluecalc_reed data'!E59 -> 644904.7921
B62: 2010-02-21 | C62: 7 | D62: ='fluecalc_reed data'!C60 -> 227364.0424 | E62: ='fluecalc_reed data'!D60 -> 319705.4141 | F62: ='fluecalc_reed data'!E60 -> 483871.4796
B63: 2010-02-28 | C63: 8 | D63: ='fluecalc_reed data'!C61 -> 176165.4873 | E63: ='fluecalc_reed data'!D61 -> 304445.4062 | F63: ='fluecalc_reed data'!E61 -> 356400.9832
B64: 2010-03-07 | C64: 9 | D64: ='fluecalc_reed data'!C62 -> 72348.46112 | E64: ='fluecalc_reed data'!D62 -> 261804.873 | F64: ='fluecalc_reed data'!E62 -> 314509.4422
B65: 2010-03-14 | C65: 10 | D65: ='fluecalc_reed data'!C63 -> 75089.96808 | E65: ='fluecalc_reed data'!D63 -> 121042.0959 | F65: ='fluecalc_reed data'!E63 -> 165614.1645
B66: 2010-03-21 | C66: 11 | D66: ='fluecalc_reed data'!C64 -> 10425.81386 | E66: ='fluecalc_reed data'!D64 -> 253806.864 | F66: ='fluecalc_reed data'!E64 -> 773012.7424
B67: 2010-03-28 | C67: 12 | D67: ='fluecalc_reed data'!C65 -> 10425.81386 | E67: ='fluecalc_reed data'!D65 -> 253806.864 | F67: ='fluecalc_reed data'!E65 -> 773012.7424
B68: 2019-04-04 | C68: 13 | D68: ='fluecalc_reed data'!C66 -> 10425.81386 | E68: ='fluecalc_reed data'!D66 -> 253806.864 | F68: ='fluecalc_reed data'!E66 -> 773012.7424
B69: 2010-04-11 | C69: 14 | D69: ='fluecalc_reed data'!C67 -> 10425.81386 | E69: ='fluecalc_reed data'!D67 -> 253806.864 | F69: ='fluecalc_reed data'!E67 -> 773012.7424
B70: 2010-04-18 | C70: 15 | D70: ='fluecalc_reed data'!C68 -> 0 | E70: ='fluecalc_reed data'!D68 -> 0 | F70: ='fluecalc_reed data'!E68 -> 0

Sheet Input data hosp
B1: Enter the total number of A(H1N1)pdm09 hospitalizations, by week.
B3: week | C3: influenza week | D3: Min. total hospitalizations | E3: Mid. total hospitalizations | F3: Max. total hospitalizations
B4: 2009-01-10 | C4: 1 | D4: ='fluecalc_reed data'!M2 -> 0 | E4: ='fluecalc_reed data'!N2 -> 0 | F4: ='fluecalc_reed data'!O2 -> 0
B5: 2009-01-17 | C5: 2 | D5: ='fluecalc_reed data'!M3 -> 0 | E5: ='fluecalc_reed data'!N3 -> 0 | F5: ='fluecalc_reed data'!O3 -> 0
B6: 2009-01-24 | C6: 3 | D6: ='fluecalc_reed data'!M4 -> 0 | E6: ='fluecalc_reed data'!N4 -> 0 | F6: ='fluecalc_reed data'!O4 -> 0
B7: 2009-01-31 | C7: 4 | D7: ='fluecalc_reed data'!M5 -> 0 | E7: ='fluecalc_reed data'!N5 -> 0 | F7: ='fluecalc_reed data'!O5 -> 0
B8: 2009-02-07 | C8: 5 | D8: ='fluecalc_reed data'!M6 -> 0 | E8: ='fluecalc_reed data'!N6 -> 0 | F8: ='fluecalc_reed data'!O6 -> 0
B9: 2009-02-14 | C9: 6 | D9: ='fluecalc_reed data'!M7 -> 0 | E9: ='fluecalc_reed data'!N7 -> 0 | F9: ='fluecalc_reed data'!O7 -> 0
B10: 2009-02-21 | C10: 7 | D10: ='fluecalc_reed data'!M8 -> 0 | E10: ='fluecalc_reed data'!N8 -> 0 | F10: ='fluecalc_reed data'!O8 -> 0
B11: 2009-02-28 | C11: 8 | D11: ='fluecalc_reed data'!M9 -> 0 | E11: ='fluecalc_reed data'!N9 -> 0 | F11: ='fluecalc_reed data'!O9 -> 0
B12: 2009-03-07 | C12: 9 | D12: ='fluecalc_reed data'!M10 -> 0 | E12: ='fluecalc_reed data'!N10 -> 0 | F12: ='fluecalc_reed data'!O10 -> 0
B13: 2009-03-14 | C13: 10 | D13: ='fluecalc_reed data'!M11 -> 0 | E13: ='fluecalc_reed data'!N11 -> 0 | F13: ='fluecalc_reed data'!O11 -> 0
B14: 2009-03-21 | C14: 11 | D14: ='fluecalc_reed data'!M12 -> 0 | E14: ='fluecalc_reed data'!N12 -> 0 | F14: ='fluecalc_reed data'!O12 -> 0
B15: 2009-03-28 | C15: 12 | D15: ='fluecalc_reed data'!M13 -> 0 | E15: ='fluecalc_reed data'!N13 -> 0 | F15: ='fluecalc_reed data'!O13 -> 0
B16: 2009-04-04 | C16: 13 | D16: ='fluecalc_reed data'!M14 -> 0 | E16: ='fluecalc_reed data'!N14 -> 0 | F16: ='fluecalc_reed data'!O14 -> 0
B17: 2009-04-11 | C17: 14 | D17: ='fluecalc_reed data'!M15 -> 541.3823492 | E17: ='fluecalc_reed data'!N15 -> 541.3823492 | F17: ='fluecalc_reed data'!O15 -> 541.3823492
B18: 2009-04-18 | C18: 15 | D18: ='fluecalc_reed data'!M16 -> 160.5357609 | E18: ='fluecalc_reed data'!N16 -> 160.5357609 | F18: ='fluecalc_reed data'!O16 -> 160.5357609
B19: 2009-04-25 | C19: 16 | D19: ='fluecalc_reed data'!M17 -> 295.5640721 | E19: ='fluecalc_reed data'!N17 -> 295.5640721 | F19: ='fluecalc_reed data'!O17 -> 295.5640721
B20: 2009-05-02 | C20: 17 | D20: ='fluecalc_reed data'!M18 -> 262.9529521 | E20: ='fluecalc_reed data'!N18 -> 262.9529521 | F20: ='fluecalc_reed data'!O18 -> 262.9529521
B21: 2009-05-09 | C21: 18 | D21: ='fluecalc_reed data'!M19 -> 349.9790469 | E21: ='fluecalc_reed data'!N19 -> 349.9790469 | F21: ='fluecalc_reed data'!O19 -> 349.9790469
B22: 2009-05-16 | C22: 19 | D22: ='fluecalc_reed data'!M20 -> 127.9882309 | E22: ='fluecalc_reed data'!N20 -> 127.9882309 | F22: ='fluecalc_reed data'!O20 -> 127.9882309
B23: 2009-05-23 | C23: 20 | D23: ='fluecalc_reed data'!M21 -> 371.8910493 | E23: ='fluecalc_reed data'!N21 -> 371.8910493 | F23: ='fluecalc_reed data'!O21 -> 371.8910493
B24: 2009-05-30 | C24: 21 | D24: ='fluecalc_reed data'!M22 -> 371.4343585 | E24: ='fluecalc_reed data'!N22 -> 371.4343585 | F24: ='fluecalc_reed data'!O22 -> 371.4343585
B25: 2009-06-06 | C25: 22 | D25: ='fluecalc_reed data'!M23 -> 1109.348036 | E25: ='fluecalc_reed data'!N23 -> 1109.348036 | F25: ='fluecalc_reed data'!O23 -> 1109.348036
B26: 2009-06-13 | C26: 23 | D26: ='fluecalc_reed data'!M24 -> 1994.961289 | E26: ='fluecalc_reed data'!N24 -> 1994.961289 | F26: ='fluecalc_reed data'!O24 -> 1994.961289
B27: 2009-06-20 | C27: 24 | D27: ='fluecalc_reed data'!M25 -> 2489.506409 | E27: ='fluecalc_reed data'!N25 -> 2489.506409 | F27: ='fluecalc_reed data'!O25 -> 2489.506409
B28: 2009-06-27 | C28: 25 | D28: ='fluecalc_reed data'!M26 -> 2440.358899 | E28: ='fluecalc_reed data'!N26 -> 2440.358899 | F28: ='fluecalc_reed data'!O26 -> 2440.358899
B29: 2009-07-04 | C29: 26 | D29: ='fluecalc_reed data'!M27 -> 1330.892952 | E29: ='fluecalc_reed data'!N27 -> 1330.892952 | F29: ='fluecalc_reed data'!O27 -> 1330.892952
B30: 2009-07-11 | C30: 27 | D30: ='fluecalc_reed data'!M28 -> 1268.255527 | E30: ='fluecalc_reed data'!N28 -> 1268.255527 | F30: ='fluecalc_reed data'!O28 -> 1268.255527
B31: 2009-07-18 | C31: 28 | D31: ='fluecalc_reed data'!M29 -> 306.7421012 | E31: ='fluecalc_reed data'!N29 -> 306.7421012 | F31: ='fluecalc_reed data'!O29 -> 306.7421012
B32: 2009-07-25 | C32: 29 | D32: ='fluecalc_reed data'!M30 -> 342.2069665 | E32: ='fluecalc_reed data'!N30 -> 342.2069665 | F32: ='fluecalc_reed data'!O30 -> 342.2069665
B33: 2009-08-01 | C33: 30 | D33: ='fluecalc_reed data'!M31 -> 993.2217316 | E33: ='fluecalc_reed data'!N31 -> 1685.313772 | F33: ='fluecalc_reed data'!O31 -> 2162.512436
B34: 2009-08-08 | C34: 31 | D34: ='fluecalc_reed data'!M32 -> 558.7089642 | E34: ='fluecalc_reed data'!N32 -> 705.1329375 | F34: ='fluecalc_reed data'!O32 -> 1883.988249
B35: 2009-08-15 | C35: 32 | D35: ='fluecalc_reed data'!M33 -> 904.7142548 | E35: ='fluecalc_reed data'!N33 -> 1348.238536 | F35: ='fluecalc_reed data'!O33 -> 1764.80162
B36: 2009-08-22 | C36: 33 | D36: ='fluecalc_reed data'!M34 -> 951.8927125 | E36: ='fluecalc_reed data'!N34 -> 1339.529209 | F36: ='fluecalc_reed data'!O34 -> 1615.865304
B37: 2009-08-29 | C37: 34 | D37: ='fluecalc_reed data'!M35 -> 1791.425959 | E37: ='fluecalc_reed data'!N35 -> 2161.785546 | F37: ='fluecalc_reed data'!O35 -> 3238.294579
B38: 2009-09-05 | C38: 35 | D38: ='fluecalc_reed data'!M36 -> 1974.812283 | E38: ='fluecalc_reed data'!N36 -> 2823.657507 | F38: ='fluecalc_reed data'!O36 -> 3845.305549
B39: 2009-09-12 | C39: 36 | D39: ='fluecalc_reed data'!M37 -> 6509.636621 | E39: ='fluecalc_reed data'!N37 -> 7555.062671 | F39: ='fluecalc_reed data'!O37 -> 9811.503165
B40: 2009-09-19 | C40: 37 | D40: ='fluecalc_reed data'!M38 -> 3443.209198 | E40: ='fluecalc_reed data'!N38 -> 5874.256591 | F40: ='fluecalc_reed data'!O38 -> 11405.04013
B41: 2009-09-26 | C41: 38 | D41: ='fluecalc_reed data'!M39 -> 4814.952718 | E41: ='fluecalc_reed data'!N39 -> 6801.572721 | F41: ='fluecalc_reed data'!O39 -> 13501.57843
B42: 2009-10-03 | C42: 39 | D42: ='fluecalc_reed data'!M40 -> 7569.275378 | E42: ='fluecalc_reed data'!N40 -> 10458.99863 | F42: ='fluecalc_reed data'!O40 -> 20433.65694
B43: 2009-10-10 | C43: 40 | D43: ='fluecalc_reed data'!M41 -> 10928.94151 | E43: ='fluecalc_reed data'!N41 -> 20116.14957 | F43: ='fluecalc_reed data'!O41 -> 28759.3633
B44: 2009-10-17 | C44: 41 | D44: ='fluecalc_reed data'!M42 -> 15879.77793 | E44: ='fluecalc_reed data'!N42 -> 29528.9834 | F44: ='fluecalc_reed data'!O42 -> 36902.09734
B45: 2009-10-24 | C45: 42 | D45: ='fluecalc_reed data'!M43 -> 21900.0146 | E45: ='fluecalc_reed data'!N43 -> 32103.92394 | F45: ='fluecalc_reed data'!O43 -> 38989.79526
B46: 2009-10-31 | C46: 43 | D46: ='fluecalc_reed data'!M44 -> 27191.79319 | E46: ='fluecalc_reed data'!N44 -> 28392.79106 | F46: ='fluecalc_reed data'!O44 -> 40104.97026
B47: 2009-11-07 | C47: 44 | D47: ='fluecalc_reed data'!M45 -> 22467.22813 | E47: ='fluecalc_reed data'!N45 -> 26600.26389 | F47: ='fluecalc_reed data'!O45 -> 37754.24098
B48: 2009-11-14 | C48: 45 | D48: ='fluecalc_reed data'!M46 -> 15803.47974 | E48: ='fluecalc_reed data'!N46 -> 22603.37528 | F48: ='fluecalc_reed data'!O46 -> 32421.21785
B49: 2009-11-21 | C49: 46 | D49: ='fluecalc_reed data'!M47 -> 8364.561349 | E49: ='fluecalc_reed data'!N47 -> 15105.73302 | F49: ='fluecalc_reed data'!O47 -> 24551.96735
B50: 2009-11-28 | C50: 47 | D50: ='fluecalc_reed data'!M48 -> 5437.654729 | E50: ='fluecalc_reed data'!N48 -> 7967.780836 | F50: ='fluecalc_reed data'!O48 -> 17877.22074
B51: 2009-12-05 | C51: 48 | D51: ='fluecalc_reed data'!M49 -> 4122.671213 | E51: ='fluecalc_reed data'!N49 -> 4601.697957 | F51: ='fluecalc_reed data'!O49 -> 9983.123404
B52: 2009-12-12 | C52: 49 | D52: ='fluecalc_reed data'!M50 -> 2603.183336 | E52: ='fluecalc_reed data'!N50 -> 3629.130146 | F52: ='fluecalc_reed data'!O50 -> 5565.09445
B53: 2009-12-19 | C53: 50 | D53: ='fluecalc_reed data'!M51 -> 2542.277434 | E53: ='fluecalc_reed data'!N51 -> 2914.290205 | F53: ='fluecalc_reed data'!O51 -> 3704.496599
B54: 2009-12-26 | C54: 51 | D54: ='fluecalc_reed data'!M52 -> 2116.098001 | E54: ='fluecalc_reed data'!N52 -> 2760.299491 | F54: ='fluecalc_reed data'!O52 -> 3167.663375
B55: 2010-01-03 | C55: 52 | D55: ='fluecalc_reed data'!M53 -> 2102.668484 | E55: ='fluecalc_reed data'!N53 -> 2791.301732 | F55: ='fluecalc_reed data'!O53 -> 3156.028956
B56: 2010-01-10 | C56: 1 | D56: ='fluecalc_reed data'!M54 -> 1442.770779 | E56: ='fluecalc_reed data'!N54 -> 1888.294931 | F56: ='fluecalc_reed data'!O54 -> 2404.5204
B57: 2010-01-17 | C57: 2 | D57: ='fluecalc_reed data'!M55 -> 1309.385806 | E57: ='fluecalc_reed data'!N55 -> 2346.328223 | F57: ='fluecalc_reed data'!O55 -> 3412.731216
B58: 2010-01-24 | C58: 3 | D58: ='fluecalc_reed data'!M56 -> 1751.783224 | E58: ='fluecalc_reed data'!N56 -> 2193.82502 | F58: ='fluecalc_reed data'!O56 -> 3085.547981
B59: 2010-01-31 | C59: 4 | D59: ='fluecalc_reed data'!M57 -> 799.1600379 | E59: ='fluecalc_reed data'!N57 -> 1606.933586 | F59: ='fluecalc_reed data'!O57 -> 2006.635004
B60: 2010-02-07 | C60: 5 | D60: ='fluecalc_reed data'!M58 -> 1389.515461 | E60: ='fluecalc_reed data'!N58 -> 2224.853353 | F60: ='fluecalc_reed data'!O58 -> 2643.052581
B61: 2010-02-14 | C61: 6 | D61: ='fluecalc_reed data'!M59 -> 984.3573886 | E61: ='fluecalc_reed data'!N59 -> 1292.709166 | F61: ='fluecalc_reed data'!O59 -> 2907.739677
B62: 2010-02-21 | C62: 7 | D62: ='fluecalc_reed data'!M60 -> 1025.136509 | E62: ='fluecalc_reed data'!N60 -> 1441.484276 | F62: ='fluecalc_reed data'!O60 -> 2181.674438
B63: 2010-02-28 | C63: 8 | D63: ='fluecalc_reed data'!M61 -> 794.2930232 | E63: ='fluecalc_reed data'!N61 -> 1372.680119 | F63: ='fluecalc_reed data'!O61 -> 1606.936857
B64: 2010-03-07 | C64: 9 | D64: ='fluecalc_reed data'!M62 -> 326.2039506 | E64: ='fluecalc_reed data'!N62 -> 1180.42295 | F64: ='fluecalc_reed data'!O62 -> 1418.056735
B65: 2010-03-14 | C65: 10 | D65: ='fluecalc_reed data'!M63 -> 338.5648272 | E65: ='fluecalc_reed data'!N63 -> 545.7532789 | F65: ='fluecalc_reed data'!O63 -> 746.7193346
B66: 2010-03-21 | C66: 11 | D66: ='fluecalc_reed data'!M64 -> 47.00779555 | E66: ='fluecalc_reed data'!N64 -> 1144.361614 | F66: ='fluecalc_reed data'!O64 -> 3485.351403
B67: 2010-03-28 | C67: 12 | D67: ='fluecalc_reed data'!M65 -> 47.00779555 | E67: ='fluecalc_reed data'!N65 -> 1144.361614 | F67: ='fluecalc_reed data'!O65 -> 3485.351403
B68: 2019-04-04 | C68: 13 | D68: ='fluecalc_reed data'!M66 -> 47.00779555 | E68: ='fluecalc_reed data'!N66 -> 1144.361614 | F68: ='fluecalc_reed data'!O66 -> 3485.351403
B69: 2010-04-11 | C69: 14 | D69: ='fluecalc_reed data'!M67 -> 47.00779555 | E69: ='fluecalc_reed data'!N67 -> 1144.361614 | F69: ='fluecalc_reed data'!O67 -> 3485.351403
B70: 2010-04-18 | C70: 15 | D70: ='fluecalc_reed data'!M68 -> 0 | E70: ='fluecalc_reed data'!N68 -> 0 | F70: ='fluecalc_reed data'!O68 -> 0

Sheet Input data death
B1: Enter the total number of A(H1N1)pdm09 deaths, by influenza week.
B3: week | C3: influenza week | D3: Min. total deaths | E3: Mid. total deaths | F3: Max. total deaths
B4: 2009-01-10 | C4: 1 | D4: ='fluecalc_reed data'!X2 -> 0 | E4: ='fluecalc_reed data'!Y2 -> 0 | F4: ='fluecalc_reed data'!Z2 -> 0
B5: 2009-01-17 | C5: 2 | D5: ='fluecalc_reed data'!X3 -> 0 | E5: ='fluecalc_reed data'!Y3 -> 0 | F5: ='fluecalc_reed data'!Z3 -> 0
B6: 2009-01-24 | C6: 3 | D6: ='fluecalc_reed data'!X4 -> 0 | E6: ='fluecalc_reed data'!Y4 -> 0 | F6: ='fluecalc_reed data'!Z4 -> 0
B7: 2009-01-31 | C7: 4 | D7: ='fluecalc_reed data'!X5 -> 0 | E7: ='fluecalc_reed data'!Y5 -> 0 | F7: ='fluecalc_reed data'!Z5 -> 0
B8: 2009-02-07 | C8: 5 | D8: ='fluecalc_reed data'!X6 -> 0 | E8: ='fluecalc_reed data'!Y6 -> 0 | F8: ='fluecalc_reed data'!Z6 -> 0
B9: 2009-02-14 | C9: 6 | D9: ='fluecalc_reed data'!X7 -> 0 | E9: ='fluecalc_reed data'!Y7 -> 0 | F9: ='fluecalc_reed data'!Z7 -> 0
B10: 2009-02-21 | C10: 7 | D10: ='fluecalc_reed data'!X8 -> 0 | E10: ='fluecalc_reed data'!Y8 -> 0 | F10: ='fluecalc_reed data'!Z8 -> 0
B11: 2009-02-28 | C11: 8 | D11: ='fluecalc_reed data'!X9 -> 0 | E11: ='fluecalc_reed data'!Y9 -> 0 | F11: ='fluecalc_reed data'!Z9 -> 0
B12: 2009-03-07 | C12: 9 | D12: ='fluecalc_reed data'!X10 -> 0 | E12: ='fluecalc_reed data'!Y10 -> 0 | F12: ='fluecalc_reed data'!Z10 -> 0
B13: 2009-03-14 | C13: 10 | D13: ='fluecalc_reed data'!X11 -> 0 | E13: ='fluecalc_reed data'!Y11 -> 0 | F13: ='fluecalc_reed data'!Z11 -> 0
B14: 2009-03-21 | C14: 11 | D14: ='fluecalc_reed data'!X12 -> 0 | E14: ='fluecalc_reed data'!Y12 -> 0 | F14: ='fluecalc_reed data'!Z12 -> 0
B15: 2009-03-28 | C15: 12 | D15: ='fluecalc_reed data'!X13 -> 0 | E15: ='fluecalc_reed data'!Y13 -> 0 | F15: ='fluecalc_reed data'!Z13 -> 0
B16: 2009-04-04 | C16: 13 | D16: ='fluecalc_reed data'!X14 -> 0 | E16: ='fluecalc_reed data'!Y14 -> 0 | F16: ='fluecalc_reed data'!Z14 -> 0
B17: 2009-04-11 | C17: 14 | D17: ='fluecalc_reed data'!X15 -> 20.29593811 | E17: ='fluecalc_reed data'!Y15 -> 20.29593811 | F17: ='fluecalc_reed data'!Z15 -> 20.29593811
B18: 2009-04-18 | C18: 15 | D18: ='fluecalc_reed data'!X16 -> 6.018341518 | E18: ='fluecalc_reed data'!Y16 -> 6.018341518 | F18: ='fluecalc_reed data'!Z16 -> 6.018341518
B19: 2009-04-25 | C19: 16 | D19: ='fluecalc_reed data'!X17 -> 11.08043165 | E19: ='fluecalc_reed data'!Y17 -> 11.08043165 | F19: ='fluecalc_reed data'!Z17 -> 11.08043165
B20: 2009-05-02 | C20: 17 | D20: ='fluecalc_reed data'!X18 -> 9.857870044 | E20: ='fluecalc_reed data'!Y18 -> 9.857870044 | F20: ='fluecalc_reed data'!Z18 -> 9.857870044
B21: 2009-05-09 | C21: 18 | D21: ='fluecalc_reed data'!X19 -> 13.12040019 | E21: ='fluecalc_reed data'!Y19 -> 13.12040019 | F21: ='fluecalc_reed data'!Z19 -> 13.12040019
B22: 2009-05-16 | C22: 19 | D22: ='fluecalc_reed data'!X20 -> 4.798163844 | E22: ='fluecalc_reed data'!Y20 -> 4.798163844 | F22: ='fluecalc_reed data'!Z20 -> 4.798163844
B23: 2009-05-23 | C23: 20 | D23: ='fluecalc_reed data'!X21 -> 13.94186148 | E23: ='fluecalc_reed data'!Y21 -> 13.94186148 | F23: ='fluecalc_reed data'!Z21 -> 13.94186148
B24: 2009-05-30 | C24: 21 | D24: ='fluecalc_reed data'!X22 -> 13.92474056 | E24: ='fluecalc_reed data'!Y22 -> 13.92474056 | F24: ='fluecalc_reed data'!Z22 -> 13.92474056
B25: 2009-06-06 | C25: 22 | D25: ='fluecalc_reed data'!X23 -> 41.58846169 | E25: ='fluecalc_reed data'!Y23 -> 41.58846169 | F25: ='fluecalc_reed data'!Z23 -> 41.58846169
B26: 2009-06-13 | C26: 23 | D26: ='fluecalc_reed data'!X24 -> 74.78930727 | E26: ='fluecalc_reed data'!Y24 -> 74.78930727 | F26: ='fluecalc_reed data'!Z24 -> 74.78930727
B27: 2009-06-20 | C27: 24 | D27: ='fluecalc_reed data'!X25 -> 93.32935969 | E27: ='fluecalc_reed data'!Y25 -> 93.32935969 | F27: ='fluecalc_reed data'!Z25 -> 93.32935969
B28: 2009-06-27 | C28: 25 | D28: ='fluecalc_reed data'!X26 -> 91.4868637 | E28: ='fluecalc_reed data'!Y26 -> 91.4868637 | F28: ='fluecalc_reed data'!Z26 -> 91.4868637
B29: 2009-07-04 | C29: 26 | D29: ='fluecalc_reed data'!X27 -> 49.89398163 | E29: ='fluecalc_reed data'!Y27 -> 49.89398163 | F29: ='fluecalc_reed data'!Z27 -> 49.89398163
B30: 2009-07-11 | C30: 27 | D30: ='fluecalc_reed data'!X28 -> 47.54576083 | E30: ='fluecalc_reed data'!Y28 -> 47.54576083 | F30: ='fluecalc_reed data'!Z28 -> 47.54576083
B31: 2009-07-18 | C31: 28 | D31: ='fluecalc_reed data'!X29 -> 11.49948592 | E31: ='fluecalc_reed data'!Y29 -> 11.49948592 | F31: ='fluecalc_reed data'!Z29 -> 11.49948592
B32: 2009-07-25 | C32: 29 | D32: ='fluecalc_reed data'!X30 -> 12.82903187 | E32: ='fluecalc_reed data'!Y30 -> 12.82903187 | F32: ='fluecalc_reed data'!Z30 -> 12.82903187
B33: 2009-08-01 | C33: 30 | D33: ='fluecalc_reed data'!X31 -> 40.05811403 | E33: ='fluecalc_reed data'!Y31 -> 67.97121843 | F33: ='fluecalc_reed data'!Z31 -> 87.21735239
B34: 2009-08-08 | C34: 31 | D34: ='fluecalc_reed data'!X32 -> 22.53356596 | E34: ='fluecalc_reed data'!Y32 -> 28.43906323 | F34: ='fluecalc_reed data'!Z32 -> 75.98405647
B35: 2009-08-15 | C35: 32 | D35: ='fluecalc_reed data'!X33 -> 36.48847547 | E35: ='fluecalc_reed data'!Y33 -> 54.37647132 | F35: ='fluecalc_reed data'!Z33 -> 71.1770819
B36: 2009-08-22 | C36: 33 | D36: ='fluecalc_reed data'!X34 -> 38.39125304 | E36: ='fluecalc_reed data'!Y34 -> 54.0252112 | F36: ='fluecalc_reed data'!Z34 -> 65.17025811
B37: 2009-08-29 | C37: 34 | D37: ='fluecalc_reed data'!X35 -> 72.25088121 | E37: ='fluecalc_reed data'!Y35 -> 87.18803581 | F37: ='fluecalc_reed data'!Z35 -> 130.605251
B38: 2009-09-05 | C38: 35 | D38: ='fluecalc_reed data'!X36 -> 91.29763083 | E38: ='fluecalc_reed data'!Y36 -> 129.9796547 | F38: ='fluecalc_reed data'!Z36 -> 176.4625575
B39: 2009-09-12 | C39: 36 | D39: ='fluecalc_reed data'!X37 -> 300.9472882 | E39: ='fluecalc_reed data'!Y37 -> 347.7774605 | F39: ='fluecalc_reed data'!Z37 -> 450.2536714
B40: 2009-09-19 | C40: 37 | D40: ='fluecalc_reed data'!X38 -> 159.1831512 | E40: ='fluecalc_reed data'!Y38 -> 270.4059686 | F40: ='fluecalc_reed data'!Z38 -> 523.3816985
B41: 2009-09-26 | C41: 38 | D41: ='fluecalc_reed data'!X39 -> 222.6002844 | E41: ='fluecalc_reed data'!Y39 -> 313.0925303 | F41: ='fluecalc_reed data'!Z39 -> 619.5926514
B42: 2009-10-03 | C42: 39 | D42: ='fluecalc_reed data'!X40 -> 349.9354927 | E42: ='fluecalc_reed data'!Y40 -> 481.452523 | F42: ='fluecalc_reed data'!Z40 -> 937.7084125
B43: 2009-10-10 | C43: 40 | D43: ='fluecalc_reed data'!X41 -> 505.2563607 | E43: ='fluecalc_reed data'!Y41 -> 925.9940941 | F43: ='fluecalc_reed data'!Z41 -> 1319.778295
B44: 2009-10-17 | C44: 41 | D44: ='fluecalc_reed data'!X42 -> 734.1386904 | E44: ='fluecalc_reed data'!Y42 -> 1359.289169 | F44: ='fluecalc_reed data'!Z42 -> 1693.451506
B45: 2009-10-24 | C45: 42 | D45: ='fluecalc_reed data'!X43 -> 1012.460509 | E45: ='fluecalc_reed data'!Y43 -> 1477.819791 | F45: ='fluecalc_reed data'!Z43 -> 1789.25677
B46: 2009-10-31 | C46: 43 | D46: ='fluecalc_reed data'!X44 -> 1257.10495 | E46: ='fluecalc_reed data'!Y44 -> 1306.98754 | F46: ='fluecalc_reed data'!Z44 -> 1840.432582
B47: 2009-11-07 | C47: 44 | D47: ='fluecalc_reed data'!X45 -> 1038.683382 | E47: ='fluecalc_reed data'!Y45 -> 1224.473261 | F47: ='fluecalc_reed data'!Z45 -> 1732.556707
B48: 2009-11-14 | C48: 45 | D48: ='fluecalc_reed data'!X46 -> 730.6113457 | E48: ='fluecalc_reed data'!Y46 -> 1040.486995 | F48: ='fluecalc_reed data'!Z46 -> 1487.822215
B49: 2009-11-21 | C49: 46 | D49: ='fluecalc_reed data'!X47 -> 386.7023924 | E49: ='fluecalc_reed data'!Y47 -> 695.3527319 | F49: ='fluecalc_reed data'!Z47 -> 1126.699269
B50: 2009-11-28 | C50: 47 | D50: ='fluecalc_reed data'!X48 -> 251.3884476 | E50: ='fluecalc_reed data'!Y48 -> 366.7758569 | F50: ='fluecalc_reed data'!Z48 -> 820.3925675
B51: 2009-12-05 | C51: 48 | D51: ='fluecalc_reed data'!X49 -> 190.5953886 | E51: ='fluecalc_reed data'!Y49 -> 211.8270753 | F51: ='fluecalc_reed data'!Z49 -> 458.1293905
B52: 2009-12-12 | C52: 49 | D52: ='fluecalc_reed data'!X50 -> 120.3478798 | E52: ='fluecalc_reed data'!Y50 -> 167.0574714 | F52: ='fluecalc_reed data'!Z50 -> 255.3843347
B53: 2009-12-19 | C53: 50 | D53: ='fluecalc_reed data'!X51 -> 117.5321365 | E53: ='fluecalc_reed data'!Y51 -> 134.1516928 | F53: ='fluecalc_reed data'!Z51 -> 170.0007804
B54: 2009-12-26 | C54: 51 | D54: ='fluecalc_reed data'!X52 -> 97.82941693 | E54: ='fluecalc_reed data'!Y52 -> 127.0631349 | F54: ='fluecalc_reed data'!Z52 -> 145.3652963
B55: 2010-01-03 | C55: 52 | D55: ='fluecalc_reed data'!X53 -> 97.20855632 | E55: ='fluecalc_reed data'!Y53 -> 128.4902416 | F55: ='fluecalc_reed data'!Z53 -> 144.8313883
B56: 2010-01-10 | C56: 1 | D56: ='fluecalc_reed data'!X54 -> 66.70079739 | E56: ='fluecalc_reed data'!Y54 -> 86.92269598 | F56: ='fluecalc_reed data'!Z54 -> 110.3443703
B57: 2010-01-17 | C57: 2 | D57: ='fluecalc_reed data'!X55 -> 60.53427104 | E57: ='fluecalc_reed data'!Y55 -> 108.0070552 | F57: ='fluecalc_reed data'!Z55 -> 156.6115542
B58: 2010-01-24 | C58: 3 | D58: ='fluecalc_reed data'!X56 -> 80.9867649 | E58: ='fluecalc_reed data'!Y56 -> 100.9869709 | F58: ='fluecalc_reed data'!Z56 -> 141.5969891
B59: 2010-01-31 | C59: 4 | D59: ='fluecalc_reed data'!X57 -> 36.94600178 | E59: ='fluecalc_reed data'!Y57 -> 73.9709657 | F59: ='fluecalc_reed data'!Z57 -> 92.08525572
B60: 2010-02-07 | C60: 5 | D60: ='fluecalc_reed data'!X58 -> 64.2387485 | E60: ='fluecalc_reed data'!Y58 -> 102.4152787 | F60: ='fluecalc_reed data'!Z58 -> 121.2907042
B61: 2010-02-14 | C61: 6 | D61: ='fluecalc_reed data'!X59 -> 45.5078684 | E61: ='fluecalc_reed data'!Y59 -> 59.50647011 | F61: ='fluecalc_reed data'!Z59 -> 133.4372973
B62: 2010-02-21 | C62: 7 | D62: ='fluecalc_reed data'!X60 -> 47.39312964 | E62: ='fluecalc_reed data'!Y60 -> 66.35494142 | F62: ='fluecalc_reed data'!Z60 -> 100.117883
B63: 2010-02-28 | C63: 8 | D63: ='fluecalc_reed data'!X61 -> 36.72099462 | E63: ='fluecalc_reed data'!Y61 -> 63.18772282 | F63: ='fluecalc_reed data'!Z61 -> 73.7429533
B64: 2010-03-07 | C64: 9 | D64: ='fluecalc_reed data'!X62 -> 15.08074875 | E64: ='fluecalc_reed data'!Y62 -> 54.33766914 | F64: ='fluecalc_reed data'!Z62 -> 65.07517151
B65: 2010-03-14 | C65: 10 | D65: ='fluecalc_reed data'!X63 -> 15.65220496 | E65: ='fluecalc_reed data'!Y63 -> 25.12231833 | F65: ='fluecalc_reed data'!Z63 -> 34.2672388
B66: 2010-03-21 | C66: 11 | D66: ='fluecalc_reed data'!X64 -> 2.1732194 | E66: ='fluecalc_reed data'!Y64 -> 52.67768029 | F66: ='fluecalc_reed data'!Z64 -> 159.9441226
B67: 2010-03-28 | C67: 12 | D67: ='fluecalc_reed data'!X65 -> 2.1732194 | E67: ='fluecalc_reed data'!Y65 -> 52.67768029 | F67: ='fluecalc_reed data'!Z65 -> 159.9441226
B68: 2019-04-04 | C68: 13 | D68: ='fluecalc_reed data'!X66 -> 2.1732194 | E68: ='fluecalc_reed data'!Y66 -> 52.67768029 | F68: ='fluecalc_reed data'!Z66 -> 159.9441226
B69: 2010-04-11 | C69: 14 | D69: ='fluecalc_reed data'!X67 -> 2.1732194 | E69: ='fluecalc_reed data'!Y67 -> 52.67768029 | F69: ='fluecalc_reed data'!Z67 -> 159.9441226
B70: 2010-04-18 | C70: 15 | D70: ='fluecalc_reed data'!X68 -> 0 | E70: ='fluecalc_reed data'!Y68 -> 0 | F70: ='fluecalc_reed data'!Z68 -> 0

Sheet Input data breakdown
B1: Enter the input data in the white cells.
B3: Population sub-groups | C3: ='Input data doses'!F3 -> 6 Months-9 Years | D3: ='Input data doses'!G3 -> 10-24, (10-17 all, 18-24 not pregnant) | E3: ='Input data doses'!H3 -> Pregnant 18-64 | F3: ='Input data doses'!I3 -> 25-64, High Risk, not pregnant | G3: ='Input data doses'!J3 -> 25-64, Health Care Worker, non-HR, not pregnant | H3: ='Input data doses'!K3 -> 25-64, Contact <6m, non-HCW, non-HR, not pregnant | I3: ='Input data doses'!L3 -> 25-64, non-Contact <6m, non-HCW, non-HR, not pregnant | J3: ='Input data doses'!M3 -> 65 Years+ | K3: Total
B4: population | C4: 39429115 | D4: 59684833.4 | E4: 5578781.788 | F4: 33949395.23 | G4: 17451920.82 | H4: 8933717.767 | I4: 96235755 | J4: 37989965.01 | K4: =SUM(C4:J4) -> 299253484
B5: proportion of A(H1N1)pdm09 clinical cases | C5: 0.2013945 | D5: 0.2234 | E5: 0.022 | F5: 0.135 | G5: 0.056 | H5: 0.025 | I5: 0.23950604 | J5: 0.09769946 | K5: =SUM(C5:J5) -> 1
B6: clinical cases per 100,000 population (mid) | C6: ='mid cases averted (1)'!$C$87 -> 31074.4683 | D6: ='mid cases averted (1)'!$D$87 -> 22771.5353 | E6: ='mid cases averted (1)'!$E$87 -> 23991.44664 | F6: ='mid cases averted (1)'!$F$87 -> 24192.17169 | G6: ='mid cases averted (1)'!$G$87 -> 19521.71296 | H6: ='mid cases averted (1)'!$H$87 -> 17024.75654 | I6: ='mid cases averted (1)'!$I$87 -> 15140.95058 | J6: ='mid cases averted (1)'!$J$87 -> 15645.75047 | K6: ='min cases averted (1)'!$B$87 -> 14458.62164
B7: proportion of A(H1N1)pdm09 hospitalizations | C7: 0.1973403666 | D7: 0.2234 | E7: 0.022 | F7: 0.135 | G7: 0.056 | H7: 0.025 | I7: 0.2418723915 | J7: 0.09938724188 | K7: =SUM(C7:J7) -> 1
B8: hospitalizations per 100,000 population (mid) | C8: ='mid hosp averted (1)'!$C$87 -> 137.2875144 | D8: ='mid hosp averted (1)'!$D$87 -> 102.6718349 | E8: ='mid hosp averted (1)'!$E$87 -> 108.1721464 | F8: ='mid hosp averted (1)'!$F$87 -> 109.0771713 | G8: ='mid hosp averted (1)'!$G$87 -> 88.01910208 | H8: ='mid hosp averted (1)'!$H$87 -> 76.7608758 | I8: ='mid hosp averted (1)'!$I$87 -> 68.94169894 | J8: ='mid hosp averted (1)'!$J$87 -> 71.76189289 | K8: ='min hosp averted (1)'!$B$87 -> 65.19068685
B9: proportion of A(H1N1)pdm09 deaths | C9: 0.06017501139 | D9: 0.08 | E9: 0.0398069461 | F9: 0.24 | G9: 0.09 | H9: 0.06 | I9: 0.3 | J9: 0.1300180425 | K9: =SUM(C9:J9) -> 1
B10: deaths per 100,000 population (mid) | C10: ='mid death averted (1)'!$C$87 -> 1.90281228 | D10: ='mid death averted (1)'!$D$87 -> 1.671178327 | E10: ='mid death averted (1)'!$E$87 -> 8.896440529 | F10: ='mid death averted (1)'!$F$87 -> 8.814059809 | G10: ='mid death averted (1)'!$G$87 -> 6.429779345 | H10: ='mid death averted (1)'!$H$87 -> 8.373669501 | I10: ='mid death averted (1)'!$I$87 -> 3.886705102 | J10: ='mid death averted (1)'!$J$87 -> 4.267087253 | K10: ='min death averted (1)'!$B$87 -> 2.96337402
B11: Vaccine effectiveness (against clinical cases, hospitalizations and deaths) | C11: 0.62 | D11: 0.62 | E11: 0.62 | F11: 0.62 | G11: 0.62 | H11: 0.62 | I11: 0.62 | J11: 0.43 | K11: N/A
B13: Subclinical cases as a proportion of all seroprevalent cases | C13: 0.3

Sheet model_check
B1: Model check
B2: Run the SOLVER program, if needed, to improve the precision of the epidemic curve without a vaccination program.
B3: SOLVER needs to be run, unless the new epidemic curve, minus the cases averted, minus the old epidemic curve equals 0.
B4: WARNING- This program can take some time. Be prepared to sit back for 5-10 mins. and relax after you begin the SOLVER program.
C5: Sometimes, you need to run SOLVER multiple times to get the precise epidemic curve without a vaccination program.
B7: Clinical Cases (Summary) | E7: min | F7: mid | G7: max
C8: Epidemic curve (without a vaccination program) | E8: ='min cases averted (3)'!$B$86 -> 43980836.82 | F8: ='mid cases averted (3)'!$B$86 -> 61866905.38 | G8: ='max cases averted (3)'!$B$86 -> 90777686.6 | I8: =IF((E11+F11+G11)<0.5, IF((E11+F11+G11)>-0.5,"You do not need to run SOLVER.","You must run SOLVER!"), "You must run SOLVER!") -> You do not need to run SOLVER.
C9: Clinical Cases averted | E9: ='min cases averted (3)'!$AI$86 -> 712907.8168 | F9: ='mid cases averted (3)'!$AI$86 -> 1029157.381 | G9: ='max cases averted (3)'!$AI$86 -> 1458929.599
C10: Epidemic curve (with a vaccination program) | E10: ='min cases averted (1)'!$B$86 -> 43267929 | F10: ='mid cases averted (1)'!$B$86 -> 60837748 | G10: ='max cases averted (1)'!$B$86 -> 89318757
C11: Difference | E11: =E8-E9-E10 -> 1.639127731e-06 | F11: =F8-F9-F10 -> -2.913177013e-05 | G11: 2.513825893e-05
B13: Hospitalizations (Summary) | E13: min | F13: mid | G13: max
C14: =C8 -> Epidemic curve (without a vaccination program) | E14: ='min hosp averted (3)'!$B$86 -> 199008.5837 | F14: ='mid hosp averted (3)'!$B$86 -> 280544.0898 | G14: ='max hosp averted (3)'!$B$86 -> 413111.7415 | I14: =IF((E17+F17+G17)<0.5, IF((E17+F17+G17)>-0.5,"You do not need to run SOLVER.","You must run SOLVER!"), "You must run SOLVER!") -> You do not need to run SOLVER.
C15: Hospitalizations averted | E15: ='min hosp averted (3)'!$AI$86 -> 3923.181893 | F15: ='mid hosp averted (3)'!$AI$86 -> 6240.089639 | G15: ='max hosp averted (3)'!$AI$86 -> 10392.89523
C16: =C10 -> Epidemic curve (with a vaccination program) | E16: ='min hosp averted (1)'!$B$86 -> 195085.4016 | F16: ='mid hosp averted (1)'!$B$86 -> 274304 | G16: ='max hosp averted (1)'!$B$86 -> 402718.8461
C17: =C11 -> Difference | E17: =E14-E15-E16 -> 0.0001170450705 | F17: =F14-F15-F16 -> 0.0001230000053 | G17: =G14-G15-G16 -> 0.0001319998992
B20: Deaths (Summary) | E20: min | F20: mid | G20: max
C21: =C8 -> Epidemic curve (without a vaccination program) | E21: ='min death averted (3)'!$B$86 -> 9069.367119 | F21: ='mid death averted (3)'!$B$86 -> 12782.84557 | G21: ='max death averted (3)'!$B$86 -> 18825.9375 | I21: =IF((E24+F24+G24)<0.5, IF((E24+F24+G24)>-0.5,"You do not need to run SOLVER.","You must run SOLVER!"), "You must run SOLVER!") -> You do not need to run SOLVER.
C22: Deaths averted | E22: ='min death averted (3)'!$AI$86 -> 201.3670894 | F22: ='mid death averted (3)'!$AI$86 -> 314.8455311 | G22: ='max death averted (3)'!$AI$86 -> 519.9374261
C23: =C10 -> Epidemic curve (with a vaccination program) | E23: ='min death averted (1)'!$B$86 -> 8868 | F23: ='mid death averted (1)'!$B$86 -> 12468 | G23: ='max death averted (1)'!$B$86 -> 18306
C24: =C11 -> Difference | E24: =E21-E22-E23 -> 2.950481394e-05 | F24: =F21-F22-F23 -> 3.982964336e-05 | G24: =G21-G22-G23 -> 7.050011118e-05

Sheet summary_model_assumptions
B1: Summary of input data and model assumptions
C3: Population | D3: Percent vaccinated | E3: Doses required to achieve effectiveness | F3: Time (weeks) from administration (full coverage) until effectiveness is achieved | G3: Assumed effectiveness against clinical cases, hospitalizations, and deaths | H3: Subclinical cases as a proportion of all seropostive cases
B4: ='Input data breakdown'!C3 -> 6 Months-9 Years | C4: ='mid cases averted (1)'!Y2 -> 39429115 | D4: =TEXT(('Input data doses'!E71/summary_model_assumptions!C4),"#,###%")& " 1st dose" -> 45% 1st dose | E4: 2 | F4: 2 | G4: ='Input data breakdown'!C11 -> 0.62 | H4: ='Input data breakdown'!C13 -> 0.3
D5: =TEXT(('Input data doses'!F71/summary_model_assumptions!C4),"#,###%")& " 2nd dose" -> 23% 2nd dose | E5: (with a 4 week interval between doses)
B6: ='Input data breakdown'!D3 -> 10-24, (10-17 all, 18-24 not pregnant) | C6: ='mid cases averted (1)'!Z2 -> 59684833.4 | D6: ='Input data doses'!G71/summary_model_assumptions!C6 -> 0.2664838803 | E6: 1 | F6: 2 | G6: ='Input data breakdown'!D11 -> 0.62 | H6: =H4 -> 0.3
B7: ='Input data breakdown'!E3 -> Pregnant 18-64 | C7: ='mid cases averted (1)'!AA2 -> 5578781.788 | D7: ='Input data doses'!H71/summary_model_assumptions!C7 -> 0.4315884886 | E7: 1 | F7: 2 | G7: ='Input data breakdown'!E11 -> 0.62 | H7: =H4 -> 0.3
B8: ='Input data breakdown'!F3 -> 25-64, High Risk, not pregnant | C8: ='mid cases averted (1)'!AB2 -> 33949395.23 | D8: ='Input data doses'!I71/summary_model_assumptions!C8 -> 0.2719252564 | E8: 1 | F8: 2 | G8: ='Input data breakdown'!F11 -> 0.62 | H8: =H4 -> 0.3
B9: ='Input data breakdown'!G3 -> 25-64, Health Care Worker, non-HR, not pregnant | C9: ='mid cases averted (1)'!AC2 -> 17451920.82 | D9: ='Input data doses'!J71/summary_model_assumptions!C9 -> 0.3584146447 | E9: 1 | F9: 2 | G9: ='Input data breakdown'!G11 -> 0.62 | H9: =H4 -> 0.3
B10: ='Input data breakdown'!H3 -> 25-64, Contact <6m, non-HCW, non-HR, not pregnant | C10: ='mid cases averted (1)'!AD2 -> 8933717.767 | D10: ='Input data doses'!K71/summary_model_assumptions!C10 -> 0.2272815252 | E10: 1 | F10: 2 | G10: ='Input data breakdown'!H11 -> 0.62 | H10: =H4 -> 0.3
B11: ='Input data breakdown'!I3 -> 25-64, non-Contact <6m, non-HCW, non-HR, not pregnant | C11: ='mid cases averted (1)'!AE2 -> 96235755 | D11: ='Input data doses'!L71/summary_model_assumptions!C11 -> 0.1594489075 | E11: 1 | F11: 2 | G11: ='Input data breakdown'!I11 -> 0.62 | H11: =H4 -> 0.3
B12: ='Input data breakdown'!J3 -> 65 Years+ | C12: ='mid cases averted (1)'!AF2 -> 37989965.01 | D12: ='Input data doses'!M71/summary_model_assumptions!C12 -> 0.2836958918 | E12: 1 | F12: 2 | G12: ='Input data breakdown'!J11 -> 0.43 | H12: =H4 -> 0.3
B13: Total | C13: ='mid cases averted (1)'!X2 -> 299253484 | D13: =('Input data doses'!D71-'Input data doses'!F71)/summary_model_assumptions!C13 -> 0.2659954462 | E13: ="1-2" -> 1-2 | F13: 2 | G13: N/A | H13: =H4 -> 0.3

Sheet results_tables
B1: Results
B3: Clinical Cases | C3: Estimated number of clinical cases without a vaccination program | F3: Estimated number of clinical cases averted due to a vaccination program | I3: Number of doses administered to avoid one clinical case
B4: =summary_model_assumptions!B4 -> 6 Months-9 Years | D4: ='mid cases averted (3)'!C86 -> 12333906.31 | G4: ='mid cases averted (3)'!AJ86 -> 81518.46803 | J4: ='mid cases averted (3)'!AJ89 -> 326.4952672
C5: ="(" & TEXT(('min cases averted (3)'!C86),"#,###") & " - " & TEXT(('max cases averted (3)'!C86),"#,###") & ")" -> (8,766,004 - 18,088,655) | F5: ="(" & TEXT(('min cases averted (3)'!AJ86),"#,###") & " - " & TEXT(('max cases averted (3)'!AJ86),"#,###") & ")" -> (52,081 - 100,349) | I5: ="(" & TEXT(('max cases averted (3)'!AJ89),"#,###") & " - " & TEXT(('min cases averted (3)'!AJ89),"#,###") & ")" -> (265 - 511)
B6: =summary_model_assumptions!B6 -> 10-24, (10-17 all, 18-24 not pregnant) | D6: ='mid cases averted (3)'!D86 -> 13891876.6 | G6: ='mid cases averted (3)'!AK86 -> 300723.6961 | J6: ='mid cases averted (3)'!AK89 -> 52.88923422
C7: ="(" & TEXT(('min cases averted (3)'!D86),"#,###") & " - " & TEXT(('max cases averted (3)'!D86),"#,###") & ")" -> (9,879,008 - 20,374,801) | F7: ="(" & TEXT(('min cases averted (3)'!AK86),"#,###") & " - " & TEXT(('max cases averted (3)'!AK86),"#,###") & ")" -> (212,953 - 420,991) | I7: ="(" & TEXT(('max cases averted (3)'!AK89),"#,###") & " - " & TEXT(('min cases averted (3)'!AK89),"#,###") & ")" -> (38 - 75)
B8: =summary_model_assumptions!B7 -> Pregnant 18-64 | D8: ='mid cases averted (3)'!E86 -> 1410031.88 | G8: ='mid cases averted (3)'!AL86 -> 71601.42402 | J8: ='mid cases averted (3)'!AL89 -> 33.62695691
C9: ="(" & TEXT(('min cases averted (3)'!E86),"#,###") & " - " & TEXT(('max cases averted (3)'!E86),"#,###") & ")" -> (1,004,978 - 2,062,896) | F9: ="(" & TEXT(('min cases averted (3)'!AL86),"#,###") & " - " & TEXT(('max cases averted (3)'!AL86),"#,###") & ")" -> (53,084 - 97,884) | I9: ="(" & TEXT(('max cases averted (3)'!AL89),"#,###") & " - " & TEXT(('min cases averted (3)'!AL89),"#,###") & ")" -> (25 - 45)
B10: =summary_model_assumptions!B8 -> 25-64, High Risk, not pregnant | D10: ='mid cases averted (3)'!F86 -> 8378054.135 | G10: ='mid cases averted (3)'!AM86 -> 164958.1549 | J10: ='mid cases averted (3)'!AM89 -> 55.96387768
C11: ="(" & TEXT(('min cases averted (3)'!F86),"#,###") & " - " & TEXT(('max cases averted (3)'!F86),"#,###") & ")" -> (5,957,746 - 12,286,626) | F11: ="(" & TEXT(('min cases averted (3)'!AM86),"#,###") & " - " & TEXT(('max cases averted (3)'!AM86),"#,###") & ")" -> (116,575 - 228,593) | I11: ="(" & TEXT(('max cases averted (3)'!AM89),"#,###") & " - " & TEXT(('min cases averted (3)'!AM89),"#,###") & ")" -> (40 - 79)
B12: =summary_model_assumptions!B9 -> 25-64, Health Care Worker, non-HR, not pregnant | D12: ='mid cases averted (3)'!G86 -> 3530340.606 | G12: ='mid cases averted (3)'!AN86 -> 123426.7178 | J12: ='mid cases averted (3)'!AN89 -> 50.67803887
C13: ="(" & TEXT(('min cases averted (3)'!G86),"#,###") & " - " & TEXT(('max cases averted (3)'!G86),"#,###") & ")" -> (2,510,291 - 5,178,995) | F13: ="(" & TEXT(('min cases averted (3)'!AN86),"#,###") & " - " & TEXT(('max cases averted (3)'!AN86),"#,###") & ")" -> (87,287 - 177,144) | I13: ="(" & TEXT(('max cases averted (3)'!AN89),"#,###") & " - " & TEXT(('min cases averted (3)'!AN89),"#,###") & ")" -> (35 - 72)
B14: =summary_model_assumptions!B10 -> 25-64, Contact <6m, non-HCW, non-HR, not pregnant | D14: ='mid cases averted (3)'!H86 -> 1550006.96 | G14: ='mid cases averted (3)'!AO86 -> 29063.26049 | J14: ='mid cases averted (3)'!AO89 -> 69.86377185
C15: ="(" & TEXT(('min cases averted (3)'!H86),"#,###") & " - " & TEXT(('max cases averted (3)'!H86),"#,###") & ")" -> (1,101,603 - 2,276,098) | F15: ="(" & TEXT(('min cases averted (3)'!AO86),"#,###") & " - " & TEXT(('max cases averted (3)'!AO86),"#,###") & ")" -> (19,904 - 43,129) | I15: ="(" & TEXT(('max cases averted (3)'!AO89),"#,###") & " - " & TEXT(('min cases averted (3)'!AO89),"#,###") & ")" -> (47 - 102)
B16: =summary_model_assumptions!B11 -> 25-64, non-Contact <6m, non-HCW, non-HR, not pregnant | D16: ='mid cases averted (3)'!I86 -> 14734335.55 | G16: ='mid cases averted (3)'!AP86 -> 163327.4472 | J16: ='mid cases averted (3)'!AP89 -> 93.95044288
C17: ="(" & TEXT(('min cases averted (3)'!I86),"#,###") & " - " & TEXT(('max cases averted (3)'!I86),"#,###") & ")" -> (10,470,235 - 21,640,930) | F17: ="(" & TEXT(('min cases averted (3)'!AP86),"#,###") & " - " & TEXT(('max cases averted (3)'!AP86),"#,###") & ")" -> (107,305 - 248,548) | I17: ="(" & TEXT(('max cases averted (3)'!AP89),"#,###") & " - " & TEXT(('min cases averted (3)'!AP89),"#,###") & ")" -> (62 - 143)
B18: =summary_model_assumptions!B12 -> 65 Years+ | D18: ='mid cases averted (3)'!J86 -> 6038353.34 | G18: ='mid cases averted (3)'!AQ86 -> 94538.21297 | J18: ='mid cases averted (3)'!AQ89 -> 114.0025463
C19: ="(" & TEXT(('min cases averted (3)'!J86),"#,###") & " - " & TEXT(('max cases averted (3)'!J86),"#,###") & ")" -> (4,290,972 - 8,868,687) | F19: ="(" & TEXT(('min cases averted (3)'!AQ86),"#,###") & " - " & TEXT(('max cases averted (3)'!AQ86),"#,###") & ")" -> (63,719 - 142,293) | I19: ="(" & TEXT(('max cases averted (3)'!AQ89),"#,###") & " - " & TEXT(('min cases averted (3)'!AQ89),"#,###") & ")" -> (76 - 169)
B20: Total | D20: ='mid cases averted (3)'!B86 -> 61866905.38 | G20: ='mid cases averted (3)'!AI86 -> 1029157.381 | J20: ='mid cases averted (3)'!AI89 -> 86.058414
C21: ="(" & TEXT(('min cases averted (3)'!B86),"#,###") & " - " & TEXT(('max cases averted (3)'!B86),"#,###") & ")" -> (43,980,837 - 90,777,687) | F21: ="(" & TEXT(('min cases averted (3)'!AI86),"#,###") & " - " & TEXT(('max cases averted (3)'!AI86),"#,###") & ")" -> (712,908 - 1,458,930) | I21: ="(" & TEXT(('max cases averted (3)'!AI89),"#,###") & " - " & TEXT(('min cases averted (3)'!AI89),"#,###") & ")" -> (61 - 124)
B23: Hospitalizations | C23: Estimated number of hospitalizations without a vaccination program | F23: Estimated number of hospitalizations averted due to a vaccination program | I23: Number of doses administered to avoid one hospitalization
B24: =B4 -> 6 Months-9 Years | D24: ='mid hosp averted (3)'!C86 -> 54745.45684 | G24: ='mid hosp averted (3)'!AJ86 -> 614.2049087 | J24: ='mid hosp averted (3)'!AJ89 -> 43333.08578
C25: ="(" & TEXT(('min hosp averted (3)'!C86),"#,###") & " - " & TEXT(('max hosp averted (3)'!C86),"#,###") & ")" -> (38,826 - 80,563) | F25: ="(" & TEXT(('min hosp averted (3)'!AJ86),"#,###") & " - " & TEXT(('max hosp averted (3)'!AJ86),"#,###") & ")" -> (328 - 1,090) | I25: ="(" & TEXT(('max hosp averted (3)'!AJ89),"#,###") & " - " & TEXT(('min hosp averted (3)'!AJ89),"#,###") & ")" -> (24,421 - 81,227)
B26: =B6 -> 10-24, (10-17 all, 18-24 not pregnant) | D26: ='mid hosp averted (3)'!D86 -> 63117.30161 | G26: ='mid hosp averted (3)'!AK86 -> 1837.788001 | J26: ='mid hosp averted (3)'!AK89 -> 8654.45089
C27: ="(" & TEXT(('min hosp averted (3)'!D86),"#,###") & " - " & TEXT(('max hosp averted (3)'!D86),"#,###") & ")" -> (44,761 - 92,999) | F27: ="(" & TEXT(('min hosp averted (3)'!AK86),"#,###") & " - " & TEXT(('max hosp averted (3)'!AK86),"#,###") & ")" -> (1,179 - 3,032) | I27: ="(" & TEXT(('max hosp averted (3)'!AK89),"#,###") & " - " & TEXT(('min hosp averted (3)'!AK89),"#,###") & ")" -> (5,246 - 13,489)
B28: =B8 -> Pregnant 18-64 | D28: ='mid hosp averted (3)'!E86 -> 6480.882374 | G28: ='mid hosp averted (3)'!AL86 -> 446.1943649 | J28: ='mid hosp averted (3)'!AL89 -> 5396.16407
C29: ="(" & TEXT(('min hosp averted (3)'!E86),"#,###") & " - " & TEXT(('max hosp averted (3)'!E86),"#,###") & ")" -> (4,590 - 9,582) | F29: ="(" & TEXT(('min hosp averted (3)'!AL86),"#,###") & " - " & TEXT(('max hosp averted (3)'!AL86),"#,###") & ")" -> (298 - 722) | I29: ="(" & TEXT(('max hosp averted (3)'!AL89),"#,###") & " - " & TEXT(('min hosp averted (3)'!AL89),"#,###") & ")" -> (3,336 - 8,072)
B30: =B10 -> 25-64, High Risk, not pregnant | D30: ='mid hosp averted (3)'!F86 -> 38059.95844 | G30: ='mid hosp averted (3)'!AM86 -> 1028.918427 | J30: ='mid hosp averted (3)'!AM89 -> 8972.235076
C31: ="(" & TEXT(('min hosp averted (3)'!F86),"#,###") & " - " & TEXT(('max hosp averted (3)'!F86),"#,###") & ")" -> (26,990 - 56,074) | F31: ="(" & TEXT(('min hosp averted (3)'!AM86),"#,###") & " - " & TEXT(('max hosp averted (3)'!AM86),"#,###") & ")" -> (653 - 1,707) | I31: ="(" & TEXT(('max hosp averted (3)'!AM89),"#,###") & " - " & TEXT(('min hosp averted (3)'!AM89),"#,###") & ")" -> (5,409 - 14,132)
B32: =B12 -> 25-64, Health Care Worker, non-HR, not pregnant | D32: ='mid hosp averted (3)'!G86 -> 16081.75038 | G32: ='mid hosp averted (3)'!AN86 -> 720.7263673 | J32: ='mid hosp averted (3)'!AN89 -> 8678.777805
C33: ="(" & TEXT(('min hosp averted (3)'!G86),"#,###") & " - " & TEXT(('max hosp averted (3)'!G86),"#,###") & ")" -> (11,394 - 23,734) | F33: ="(" & TEXT(('min hosp averted (3)'!AN86),"#,###") & " - " & TEXT(('max hosp averted (3)'!AN86),"#,###") & ")" -> (469 - 1,181) | I33: ="(" & TEXT(('max hosp averted (3)'!AN89),"#,###") & " - " & TEXT(('min hosp averted (3)'!AN89),"#,###") & ")" -> (5,294 - 13,324)
B34: =B14 -> 25-64, Contact <6m, non-HCW, non-HR, not pregnant | D34: ='mid hosp averted (3)'!H86 -> 7020.325168 | G34: ='mid hosp averted (3)'!AO86 -> 162.7251495 | J34: ='mid hosp averted (3)'!AO89 -> 12477.90527
C35: ="(" & TEXT(('min hosp averted (3)'!H86),"#,###") & " - " & TEXT(('max hosp averted (3)'!H86),"#,###") & ")" -> (4,981 - 10,338) | F35: ="(" & TEXT(('min hosp averted (3)'!AO86),"#,###") & " - " & TEXT(('max hosp averted (3)'!AO86),"#,###") & ")" -> (104 - 270) | I35: ="(" & TEXT(('max hosp averted (3)'!AO89),"#,###") & " - " & TEXT(('min hosp averted (3)'!AO89),"#,###") & ")" -> (7,528 - 19,516)
B36: =B16 -> 25-64, non-Contact <6m, non-HCW, non-HR, not pregnant | D36: ='mid hosp averted (3)'!I86 -> 67248.924 | G36: ='mid hosp averted (3)'!AP86 -> 902.3594927 | J36: ='mid hosp averted (3)'!AP89 -> 17005.06962
C37: ="(" & TEXT(('min hosp averted (3)'!I86),"#,###") & " - " & TEXT(('max hosp averted (3)'!I86),"#,###") & ")" -> (47,743 - 98,922) | F37: ="(" & TEXT(('min hosp averted (3)'!AP86),"#,###") & " - " & TEXT(('max hosp averted (3)'!AP86),"#,###") & ")" -> (558 - 1,516) | I37: ="(" & TEXT(('max hosp averted (3)'!AP89),"#,###") & " - " & TEXT(('min hosp averted (3)'!AP89),"#,###") & ")" -> (10,124 - 27,524)
B38: =B18 -> 65 Years+ | D38: ='mid hosp averted (3)'!J86 -> 27789.49094 | G38: ='mid hosp averted (3)'!AQ86 -> 527.1729277 | J38: ='mid hosp averted (3)'!AQ89 -> 20444.13974
C39: ="(" & TEXT(('min hosp averted (3)'!J86),"#,###") & " - " & TEXT(('max hosp averted (3)'!J86),"#,###") & ")" -> (19,723 - 40,901) | F39: ="(" & TEXT(('min hosp averted (3)'!AQ86),"#,###") & " - " & TEXT(('max hosp averted (3)'!AQ86),"#,###") & ")" -> (334 - 876) | I39: ="(" & TEXT(('max hosp averted (3)'!AQ89),"#,###") & " - " & TEXT(('min hosp averted (3)'!AQ89),"#,###") & ")" -> (12,305 - 32,278)
B40: Total | D40: ='mid hosp averted (3)'!B86 -> 280544.0898 | G40: ='mid hosp averted (3)'!AI86 -> 6240.089639 | J40: ='mid hosp averted (3)'!AI89 -> 14193.33008
C41: ="(" & TEXT(('min hosp averted (3)'!B86),"#,###") & " - " & TEXT(('max hosp averted (3)'!B86),"#,###") & ")" -> (199,009 - 413,112) | F41: ="(" & TEXT(('min hosp averted (3)'!AI86),"#,###") & " - " & TEXT(('max hosp averted (3)'!AI86),"#,###") & ")" -> (3,923 - 10,393) | I41: ="(" & TEXT(('max hosp averted (3)'!AI89),"#,###") & " - " & TEXT(('min hosp averted (3)'!AI89),"#,###") & ")" -> (8,522 - 22,575)
B43: Deaths | C43: Estimated number of deaths without a vaccination program | F43: Estimated number of deaths averted due to a vaccination program | I43: Number of doses administered to avoid one death
B44: =B24 -> 6 Months-9 Years | D44: ='mid death averted (3)'!C86 -> 758.8834217 | G44: ='mid death averted (3)'!AJ86 -> 8.621382092 | J44: ='mid death averted (3)'!AJ89 -> 3087137.737
C45: ="(" & TEXT(('min death averted (3)'!C86),"#,###") & " - " & TEXT(('max death averted (3)'!C86),"#,###") & ")" -> (538 - 1,117) | F45: ="(" & TEXT(('min death averted (3)'!AJ86),"#,###") & " - " & TEXT(('max death averted (3)'!AJ86),"#,###") & ")" -> (5 - 15) | I45: ="(" & TEXT(('max death averted (3)'!AJ89),"#,###") & " - " & TEXT(('min death averted (3)'!AJ89),"#,###") & ")" -> (1,745,154 - 5,761,939)
B46: =B26 -> 10-24, (10-17 all, 18-24 not pregnant) | D46: ='mid death averted (3)'!D86 -> 1027.734629 | G46: ='mid death averted (3)'!AK86 -> 30.29462549 | J46: ='mid death averted (3)'!AK89 -> 525012.1348
C47: ="(" & TEXT(('min death averted (3)'!D86),"#,###") & " - " & TEXT(('max death averted (3)'!D86),"#,###") & ")" -> (729 - 1,514) | F47: ="(" & TEXT(('min death averted (3)'!AK86),"#,###") & " - " & TEXT(('max death averted (3)'!AK86),"#,###") & ")" -> (20 - 50) | I47: ="(" & TEXT(('max death averted (3)'!AK89),"#,###") & " - " & TEXT(('min death averted (3)'!AK89),"#,###") & ")" -> (319,229 - 814,797)
B48: =B28 -> Pregnant 18-64 | D48: ='mid death averted (3)'!E86 -> 533.4771123 | G48: ='mid death averted (3)'!AL86 -> 37.16410119 | J48: ='mid death averted (3)'!AL89 -> 64786.66032
C49: ="(" & TEXT(('min death averted (3)'!E86),"#,###") & " - " & TEXT(('max death averted (3)'!E86),"#,###") & ")" -> (378 - 789) | F49: ="(" & TEXT(('min death averted (3)'!AL86),"#,###") & " - " & TEXT(('max death averted (3)'!AL86),"#,###") & ")" -> (25 - 60) | I49: ="(" & TEXT(('max death averted (3)'!AL89),"#,###") & " - " & TEXT(('min death averted (3)'!AL89),"#,###") & ")" -> (40,177 - 96,492)
B50: =B30 -> 25-64, High Risk, not pregnant | D50: ='mid death averted (3)'!F86 -> 3076.521891 | G50: ='mid death averted (3)'!AM86 -> 84.20187918 | J50: ='mid death averted (3)'!AM89 -> 109637.6719
C51: ="(" & TEXT(('min death averted (3)'!F86),"#,###") & " - " & TEXT(('max death averted (3)'!F86),"#,###") & ")" -> (2,182 - 4,533) | F51: ="(" & TEXT(('min death averted (3)'!AM86),"#,###") & " - " & TEXT(('max death averted (3)'!AM86),"#,###") & ")" -> (54 - 139) | I51: ="(" & TEXT(('max death averted (3)'!AM89),"#,###") & " - " & TEXT(('min death averted (3)'!AM89),"#,###") & ")" -> (66,300 - 171,951)
B52: =B32 -> 25-64, Health Care Worker, non-HR, not pregnant | D52: ='mid death averted (3)'!G86 -> 1175.439774 | G52: ='mid death averted (3)'!AN86 -> 53.31976871 | J52: ='mid death averted (3)'!AN89 -> 117311.5366
C53: ="(" & TEXT(('min death averted (3)'!G86),"#,###") & " - " & TEXT(('max death averted (3)'!G86),"#,###") & ")" -> (833 - 1,735) | F53: ="(" & TEXT(('min death averted (3)'!AN86),"#,###") & " - " & TEXT(('max death averted (3)'!AN86),"#,###") & ")" -> (35 - 87) | I53: ="(" & TEXT(('max death averted (3)'!AN89),"#,###") & " - " & TEXT(('min death averted (3)'!AN89),"#,###") & ")" -> (71,786 - 179,325)
B54: =B34 -> 25-64, Contact <6m, non-HCW, non-HR, not pregnant | D54: ='mid death averted (3)'!H86 -> 766.0575019 | G54: ='mid death averted (3)'!AO86 -> 17.97749921 | J54: ='mid death averted (3)'!AO89 -> 112945.0196
C55: ="(" & TEXT(('min death averted (3)'!H86),"#,###") & " - " & TEXT(('max death averted (3)'!H86),"#,###") & ")" -> (544 - 1,128) | F55: ="(" & TEXT(('min death averted (3)'!AO86),"#,###") & " - " & TEXT(('max death averted (3)'!AO86),"#,###") & ")" -> (12 - 30) | I55: ="(" & TEXT(('max death averted (3)'!AO89),"#,###") & " - " & TEXT(('min death averted (3)'!AO89),"#,###") & ")" -> (68,351 - 175,889)
B56: =B36 -> 25-64, non-Contact <6m, non-HCW, non-HR, not pregnant | D56: ='mid death averted (3)'!I86 -> 3791.920254 | G56: ='mid death averted (3)'!AP86 -> 51.52024395 | J56: ='mid death averted (3)'!AP89 -> 297837.9919
C57: ="(" & TEXT(('min death averted (3)'!I86),"#,###") & " - " & TEXT(('max death averted (3)'!I86),"#,###") & ")" -> (2,692 - 5,578) | F57: ="(" & TEXT(('min death averted (3)'!AP86),"#,###") & " - " & TEXT(('max death averted (3)'!AP86),"#,###") & ")" -> (32 - 86) | I57: ="(" & TEXT(('max death averted (3)'!AP89),"#,###") & " - " & TEXT(('min death averted (3)'!AP89),"#,###") & ")" -> (177,870 - 479,999)
B58: =B38 -> 65 Years+ | D58: ='mid death averted (3)'!J86 -> 1652.810987 | G58: ='mid death averted (3)'!AQ86 -> 31.74603126 | J58: ='mid death averted (3)'!AQ89 -> 339494.3107
C59: ="(" & TEXT(('min death averted (3)'!J86),"#,###") & " - " & TEXT(('max death averted (3)'!J86),"#,###") & ")" -> (1,173 - 2,433) | F59: ="(" & TEXT(('min death averted (3)'!AQ86),"#,###") & " - " & TEXT(('max death averted (3)'!AQ86),"#,###") & ")" -> (20 - 53) | I59: ="(" & TEXT(('max death averted (3)'!AQ89),"#,###") & " - " & TEXT(('min death averted (3)'!AQ89),"#,###") & ")" -> (204,961 - 533,711)
B60: Total | D60: ='mid death averted (3)'!B86 -> 12782.84557 | G60: ='mid death averted (3)'!AI86 -> 314.8455311 | J60: ='mid death averted (3)'!AI89 -> 281305.0949
C61: ="(" & TEXT(('min death averted (3)'!B86),"#,###") & " - " & TEXT(('max death averted (3)'!B86),"#,###") & ")" -> (9,069 - 18,826) | F61: ="(" & TEXT(('min death averted (3)'!AI86),"#,###") & " - " & TEXT(('max death averted (3)'!AI86),"#,###") & ")" -> (201 - 520) | I61: ="(" & TEXT(('max death averted (3)'!AI89),"#,###") & " - " & TEXT(('min death averted (3)'!AI89),"#,###") & ")" -> (170,343 - 439,832)

Sheet timeline
A1: Timeline
A3: Week ending | B3: 2009-10 H1N1 Epidemic curve (mid estimate- medically attended cases) | D3: Cases averted (mid estimate) | F3: Doses administered
A4: ='Input data doses'!Q18 -> 2009-04-11 | B4: ='mid cases averted (1)'!B16 -> 120077.3777 | D4: ='mid cases averted (3)'!B16-'mid cases averted (1)'!B16 -> 0 | F4: ='Input data doses'!S20 -> 0
A5: ='Input data doses'!Q19 -> 2009-04-18 | B5: ='mid cases averted (1)'!B17 -> 35606.46783 | D5: ='mid cases averted (3)'!B17-'mid cases averted (1)'!B17 -> 0 | F5: ='Input data doses'!S21 -> 0
A6: ='Input data doses'!Q20 -> 2009-04-25 | B6: ='mid cases averted (1)'!B18 -> 65555.44113 | D6: ='mid cases averted (3)'!B18-'mid cases averted (1)'!B18 -> 0 | F6: ='Input data doses'!S22 -> 0
A7: ='Input data doses'!Q21 -> 2009-05-02 | B7: ='mid cases averted (1)'!B19 -> 58322.36865 | D7: ='mid cases averted (3)'!B19-'mid cases averted (1)'!B19 -> 0 | F7: ='Input data doses'!S23 -> 0
A8: ='Input data doses'!Q22 -> 2009-05-09 | B8: ='mid cases averted (1)'!B20 -> 77624.55918 | D8: ='mid cases averted (3)'!B20-'mid cases averted (1)'!B20 -> 0 | F8: ='Input data doses'!S24 -> 0
A9: ='Input data doses'!Q23 -> 2009-05-16 | B9: ='mid cases averted (1)'!B21 -> 28387.49946 | D9: ='mid cases averted (3)'!B21-'mid cases averted (1)'!B21 -> 0 | F9: ='Input data doses'!S25 -> 0
A10: ='Input data doses'!Q24 -> 2009-05-23 | B10: ='mid cases averted (1)'!B22 -> 82484.59163 | D10: ='mid cases averted (3)'!B22-'mid cases averted (1)'!B22 -> 0 | F10: ='Input data doses'!S26 -> 0
A11: ='Input data doses'!Q25 -> 2009-05-30 | B11: ='mid cases averted (1)'!B23 -> 82383.29865 | D11: ='mid cases averted (3)'!B23-'mid cases averted (1)'!B23 -> 0 | F11: ='Input data doses'!S27 -> 0
A12: ='Input data doses'!Q26 -> 2009-06-06 | B12: ='mid cases averted (1)'!B24 -> 246050.8795 | D12: ='mid cases averted (3)'!B24-'mid cases averted (1)'!B24 -> 0 | F12: ='Input data doses'!S28 -> 0
A13: ='Input data doses'!Q27 -> 2009-06-13 | B13: ='mid cases averted (1)'!B25 -> 442477.8912 | D13: ='mid cases averted (3)'!B25-'mid cases averted (1)'!B25 -> 0 | F13: ='Input data doses'!S29 -> 0
A14: ='Input data doses'!Q28 -> 2009-06-20 | B14: ='mid cases averted (1)'!B26 -> 552166.8775 | D14: ='mid cases averted (3)'!B26-'mid cases averted (1)'!B26 -> 0 | F14: ='Input data doses'!S30 -> 0
A15: ='Input data doses'!Q29 -> 2009-06-27 | B15: ='mid cases averted (1)'!B27 -> 541266.0714 | D15: ='mid cases averted (3)'!B27-'mid cases averted (1)'!B27 -> 0 | F15: ='Input data doses'!S31 -> 0
A16: ='Input data doses'!Q30 -> 2009-07-04 | B16: ='mid cases averted (1)'!B28 -> 295189.0395 | D16: ='mid cases averted (3)'!B28-'mid cases averted (1)'!B28 -> 0 | F16: ='Input data doses'!S32 -> 0
A17: ='Input data doses'!Q31 -> 2009-07-11 | B17: ='mid cases averted (1)'!B29 -> 281296.2007 | D17: ='mid cases averted (3)'!B29-'mid cases averted (1)'!B29 -> 0 | F17: ='Input data doses'!S33 -> 0
A18: ='Input data doses'!Q32 -> 2009-07-18 | B18: ='mid cases averted (1)'!B30 -> 68034.70264 | D18: ='mid cases averted (3)'!B30-'mid cases averted (1)'!B30 -> 0 | F18: ='Input data doses'!S34 -> 0
A19: ='Input data doses'!Q33 -> 2009-07-25 | B19: ='mid cases averted (1)'!B31 -> 75900.72936 | D19: ='mid cases averted (3)'!B31-'mid cases averted (1)'!B31 -> 0 | F19: ='Input data doses'!S35 -> 0
A20: ='Input data doses'!Q34 -> 2009-08-01 | B20: ='mid cases averted (1)'!B32 -> 373785.8624 | D20: ='mid cases averted (3)'!B32-'mid cases averted (1)'!B32 -> 0 | F20: ='Input data doses'!S36 -> 0
A21: ='Input data doses'!Q35 -> 2009-08-08 | B21: ='mid cases averted (1)'!B33 -> 156391.4848 | D21: ='mid cases averted (3)'!B33-'mid cases averted (1)'!B33 -> 0 | F21: ='Input data doses'!S37 -> 0
A22: ='Input data doses'!Q36 -> 2009-08-15 | B22: ='mid cases averted (1)'!B34 -> 299025.9215 | D22: ='mid cases averted (3)'!B34-'mid cases averted (1)'!B34 -> 0 | F22: ='Input data doses'!S38 -> 0
A23: ='Input data doses'!Q37 -> 2009-08-22 | B23: ='mid cases averted (1)'!B35 -> 297094.2794 | D23: ='mid cases averted (3)'!B35-'mid cases averted (1)'!B35 -> 0 | F23: ='Input data doses'!S39 -> 0
A24: ='Input data doses'!Q38 -> 2009-08-29 | B24: ='mid cases averted (1)'!B36 -> 479462.5712 | D24: ='mid cases averted (3)'!B36-'mid cases averted (1)'!B36 -> 0 | F24: ='Input data doses'!S40 -> 0
A25: ='Input data doses'!Q39 -> 2009-09-05 | B25: ='mid cases averted (1)'!B37 -> 626256.2884 | D25: ='mid cases averted (3)'!B37-'mid cases averted (1)'!B37 -> 0 | F25: ='Input data doses'!S41 -> 0
A26: ='Input data doses'!Q40 -> 2009-09-12 | B26: ='mid cases averted (1)'!B38 -> 1675630.099 | D26: ='mid cases averted (3)'!B38-'mid cases averted (1)'!B38 -> 0 | F26: ='Input data doses'!S42 -> 0
A27: ='Input data doses'!Q41 -> 2009-09-19 | B27: ='mid cases averted (1)'!B39 -> 1302845.731 | D27: ='mid cases averted (3)'!B39-'mid cases averted (1)'!B39 -> 0 | F27: ='Input data doses'!S43 -> 0
A28: ='Input data doses'!Q42 -> 2009-09-26 | B28: ='mid cases averted (1)'!B40 -> 1508514.286 | D28: ='mid cases averted (3)'!B40-'mid cases averted (1)'!B40 -> 0 | F28: ='Input data doses'!S44 -> 0
A29: ='Input data doses'!Q43 -> 2009-10-03 | B29: ='mid cases averted (1)'!B41 -> 2319691.269 | D29: ='mid cases averted (3)'!B41-'mid cases averted (1)'!B41 -> 0 | F29: ='Input data doses'!S45 -> 0
A30: ='Input data doses'!Q44 -> 2009-10-10 | B30: ='mid cases averted (1)'!B42 -> 4461541.507 | D30: ='mid cases averted (3)'!B42-'mid cases averted (1)'!B42 -> 0 | F30: ='Input data doses'!S46 -> 2970991
A31: ='Input data doses'!Q45 -> 2009-10-17 | B31: ='mid cases averted (1)'!B43 -> 6549204.886 | D31: ='mid cases averted (3)'!B43-'mid cases averted (1)'!B43 -> 0 | F31: ='Input data doses'!S47 -> 3565185
A32: ='Input data doses'!Q46 -> 2009-10-24 | B32: ='mid cases averted (1)'!B44 -> 7120298.478 | D32: ='mid cases averted (3)'!B44-'mid cases averted (1)'!B44 -> 139203.6649 | F32: ='Input data doses'!S48 -> 4456485
A33: ='Input data doses'!Q47 -> 2009-10-31 | B33: ='mid cases averted (1)'!B45 -> 6297209.879 | D33: ='mid cases averted (3)'!B45-'mid cases averted (1)'!B45 -> 130610.8521 | F33: ='Input data doses'!S49 -> 6951838
A34: ='Input data doses'!Q48 -> 2009-11-07 | B34: ='mid cases averted (1)'!B46 -> 5899646.996 | D34: ='mid cases averted (3)'!B46-'mid cases averted (1)'!B46 -> 125115.4428 | F34: ='Input data doses'!S50 -> 6294025
A35: ='Input data doses'!Q49 -> 2009-11-14 | B35: ='mid cases averted (1)'!B47 -> 5013180.908 | D35: ='mid cases averted (3)'!B47-'mid cases averted (1)'!B47 -> 145470.4518 | F35: ='Input data doses'!S51 -> 6294028
A36: ='Input data doses'!Q50 -> 2009-11-21 | B36: ='mid cases averted (1)'!B48 -> 3350286.028 | D36: ='mid cases averted (3)'!B48-'mid cases averted (1)'!B48 -> 99758.88283 | F36: ='Input data doses'!S52 -> 6294026
A37: ='Input data doses'!Q51 -> 2009-11-28 | B37: ='mid cases averted (1)'!B49 -> 1767166.464 | D37: ='mid cases averted (3)'!B49-'mid cases averted (1)'!B49 -> 73970.42108 | F37: ='Input data doses'!S53 -> 6294027
A38: ='Input data doses'!Q52 -> 2009-12-05 | B38: ='mid cases averted (1)'!B50 -> 1020606.173 | D38: ='mid cases averted (3)'!B50-'mid cases averted (1)'!B50 -> 60394.3323 | F38: ='Input data doses'!S54 -> 4588083
A39: ='Input data doses'!Q53 -> 2009-12-12 | B39: ='mid cases averted (1)'!B51 -> 804901.2919 | D39: ='mid cases averted (3)'!B51-'mid cases averted (1)'!B51 -> 52406.69073 | F39: ='Input data doses'!S55 -> 4588086
A40: ='Input data doses'!Q54 -> 2009-12-19 | B40: ='mid cases averted (1)'!B52 -> 646357.6274 | D40: ='mid cases averted (3)'!B52-'mid cases averted (1)'!B52 -> 37546.71633 | F40: ='Input data doses'!S56 -> 4588083
A41: ='Input data doses'!Q55 -> 2009-12-26 | B41: ='mid cases averted (1)'!B53 -> 612204.1749 | D41: ='mid cases averted (3)'!B53-'mid cases averted (1)'!B53 -> 33519.40664 | F41: ='Input data doses'!S57 -> 4588083
A42: ='Input data doses'!Q56 -> 2010-01-03 | B42: ='mid cases averted (1)'!B54 -> 619080.132 | D42: ='mid cases averted (3)'!B54-'mid cases averted (1)'!B54 -> 29744.02997 | F42: ='Input data doses'!S58 -> 2915353
A43: ='Input data doses'!Q57 -> 2010-01-10 | B43: ='mid cases averted (1)'!B55 -> 418803.1203 | D43: ='mid cases averted (3)'!B55-'mid cases averted (1)'!B55 -> 26031.50515 | F43: ='Input data doses'!S59 -> 2915349
A44: ='Input data doses'!Q58 -> 2010-01-17 | B44: ='mid cases averted (1)'!B56 -> 520389.8845 | D44: ='mid cases averted (3)'!B56-'mid cases averted (1)'!B56 -> 15146.82124 | F44: ='Input data doses'!S60 -> 2915353
A45: ='Input data doses'!Q59 -> 2010-01-24 | B45: ='mid cases averted (1)'!B57 -> 486566.3456 | D45: ='mid cases averted (3)'!B57-'mid cases averted (1)'!B57 -> 13181.53496 | F45: ='Input data doses'!S61 -> 2915352
A46: ='Input data doses'!Q60 -> 2010-01-31 | B46: ='mid cases averted (1)'!B58 -> 356400.2577 | D46: ='mid cases averted (3)'!B58-'mid cases averted (1)'!B58 -> 11370.20951 | F46: ='Input data doses'!S62 -> 2915352
A47: ='Input data doses'!Q61 -> 2010-02-07 | B47: ='mid cases averted (1)'!B59 -> 493448.0897 | D47: ='mid cases averted (3)'!B59-'mid cases averted (1)'!B59 -> 10025.13904 | F47: ='Input data doses'!S63 -> 1928856
A48: ='Input data doses'!Q62 -> 2010-02-14 | B48: ='mid cases averted (1)'!B60 -> 286708.7253 | D48: ='mid cases averted (3)'!B60-'mid cases averted (1)'!B60 -> 8226.94063 | F48: ='Input data doses'!S64 -> 1928855
A49: ='Input data doses'!Q63 -> 2010-02-21 | B49: ='mid cases averted (1)'!B61 -> 319705.4141 | D49: ='mid cases averted (3)'!B61-'mid cases averted (1)'!B61 -> 4771.212288 | F49: ='Input data doses'!S65 -> 1928858
A50: ='Input data doses'!Q64 -> 2010-02-28 | B50: ='mid cases averted (1)'!B62 -> 304445.4062 | D50: ='mid cases averted (3)'!B62-'mid cases averted (1)'!B62 -> 4002.087794 | F50: ='Input data doses'!S66 -> 1928857
A51: ='Input data doses'!Q65 -> 2010-03-07 | B51: ='mid cases averted (1)'!B63 -> 261804.873 | D51: ='mid cases averted (3)'!B63-'mid cases averted (1)'!B63 -> 3275.227954 | F51: ='Input data doses'!S67 -> 867802
A52: ='Input data doses'!Q66 -> 2010-03-14 | B52: ='mid cases averted (1)'!B64 -> 121042.0959 | D52: ='mid cases averted (3)'!B64-'mid cases averted (1)'!B64 -> 2655.222992 | F52: ='Input data doses'!S68 -> 867803
A53: ='Input data doses'!Q67 -> 2010-03-21 | B53: ='mid cases averted (1)'!B65 -> 253806.864 | D53: ='mid cases averted (3)'!B65-'mid cases averted (1)'!B65 -> 1095.185464 | F53: ='Input data doses'!S69 -> 867803
A54: ='Input data doses'!Q68 -> 2010-03-28 | B54: ='mid cases averted (1)'!B66 -> 253806.864 | D54: ='mid cases averted (3)'!B66-'mid cases averted (1)'!B66 -> 819.1741994 | F54: ='Input data doses'!S70 -> 867801
A55: ='Input data doses'!Q69 -> 2019-04-04 | B55: ='mid cases averted (1)'!B67 -> 253806.864 | D55: ='mid cases averted (3)'!B67-'mid cases averted (1)'!B67 -> 544.6427934 | F55: ='Input data doses'!S71 -> 443774
A56: ='Input data doses'!Q70 -> 2010-04-11 | B56: ='mid cases averted (1)'!B68 -> 253806.864 | D56: ='mid cases averted (3)'!B68-'mid cases averted (1)'!B68 -> 271.5859543 | F56: ='Input data doses'!S72 -> 443772

Sheet results_tables (2)
B2: Estimated clinical attack rate, per 100,000 population | D2: Estimated hospitalization rate, per 100,000 population | F2: Estimated mortality rate, per 100,000 population
B3: Without a vaccination program | C3: With a vaccination program | D3: Without a vaccination program | E3: With a vaccination program | F3: Without a vaccination program | G3: With a vaccination program
A4: 6 months - 9 years | B4: ='mid cases averted (3)'!$C$87 -> 31281.21518 | C4: ='mid cases averted (1)'!$C$87 -> 31074.4683 | D4: ='mid hosp averted (3)'!$C$87 -> 138.845259 | E4: ='mid hosp averted (1)'!$C$87 -> 137.2875144 | F4: ='mid death averted (3)'!$C$87 -> 1.924677796 | G4: ='mid death averted (1)'!$C$87 -> 1.90281228
B5: ="(" & TEXT(('min cases averted (3)'!$C$87),"#,###") & " - " & TEXT(('max cases averted (3)'!$C$87),"#,###") & ")" -> (22,232 - 45,876) | C5: ="(" & TEXT(('min cases averted (1)'!$C$87),"#,###") & " - " & TEXT(('max cases averted (1)'!$C$87),"#,###") & ")" -> (22,100 - 45,622) | D5: ="(" & TEXT(('min hosp averted (3)'!$C$87),"#,###") & " - " & TEXT(('max hosp averted (3)'!$C$87),"#,###") & ")" -> (98 - 204) | E5: ="(" & TEXT(('min hosp averted (1)'!$C$87),"#,###") & " - " & TEXT(('max hosp averted (1)'!$C$87),"#,###") & ")" -> (98 - 202) | F5: ="(" & TEXT(('min death averted (3)'!$C$87),"#,###") & " - " & TEXT(('max death averted (3)'!$C$87),"#,###") & ")" -> (1 - 3) | G5: ="(" & TEXT(('min death averted (1)'!$C$87),"#,###") & " - " & TEXT(('max death averted (1)'!$C$87),"#,###") & ")" -> (1 - 3)
A6: 10 - 24 years | B6: ='mid cases averted (3)'!$D$87 -> 23275.38808 | C6: ='mid cases averted (1)'!$D$87 -> 22771.5353 | D6: ='mid hosp averted (3)'!$D$87 -> 105.750989 | E6: ='mid hosp averted (1)'!$D$87 -> 102.6718349 | F6: ='mid death averted (3)'!$D$87 -> 1.721935993 | G6: ='mid death averted (1)'!$D$87 -> 1.671178327
B7: ="(" & TEXT(('min cases averted (3)'!$D$87),"#,###") & " - " & TEXT(('max cases averted (3)'!$D$87),"#,###") & ")" -> (16,552 - 34,137) | C7: ="(" & TEXT(('min cases averted (1)'!$D$87),"#,###") & " - " & TEXT(('max cases averted (1)'!$D$87),"#,###") & ")" -> (16,195 - 33,432) | D7: ="(" & TEXT(('min hosp averted (3)'!$D$87),"#,###") & " - " & TEXT(('max hosp averted (3)'!$D$87),"#,###") & ")" -> (75 - 156) | E7: ="(" & TEXT(('min hosp averted (1)'!$D$87),"#,###") & " - " & TEXT(('max hosp averted (1)'!$D$87),"#,###") & ")" -> (73 - 151) | F7: ="(" & TEXT(('min death averted (3)'!$D$87),"#,###") & " - " & TEXT(('max death averted (3)'!$D$87),"#,###") & ")" -> (1 - 3) | G7: ="(" & TEXT(('min death averted (1)'!$D$87),"#,###") & " - " & TEXT(('max death averted (1)'!$D$87),"#,###") & ")" -> (1 - 2)
A8: Pregnant Women (18-64 yrs) | B8: ='mid cases averted (3)'!$E$87 -> 25274.90649 | C8: ='mid cases averted (1)'!$E$87 -> 23991.44664 | D8: ='mid hosp averted (3)'!$E$87 -> 116.1702074 | E8: ='mid hosp averted (1)'!$E$87 -> 108.1721464 | F8: ='mid death averted (3)'!$E$87 -> 9.562609413 | G8: ='mid death averted (1)'!$E$87 -> 8.896440529
B9: ="(" & TEXT(('min cases averted (3)'!$E$87),"#,###") & " - " & TEXT(('max cases averted (3)'!$E$87),"#,###") & ")" -> (18,014 - 36,978) | C9: ="(" & TEXT(('min cases averted (1)'!$E$87),"#,###") & " - " & TEXT(('max cases averted (1)'!$E$87),"#,###") & ")" -> (17,063 - 35,223) | D9: ="(" & TEXT(('min hosp averted (3)'!$E$87),"#,###") & " - " & TEXT(('max hosp averted (3)'!$E$87),"#,###") & ")" -> (82 - 172) | E9: ="(" & TEXT(('min hosp averted (1)'!$E$87),"#,###") & " - " & TEXT(('max hosp averted (1)'!$E$87),"#,###") & ")" -> (77 - 159) | F9: ="(" & TEXT(('min death averted (3)'!$E$87),"#,###") & " - " & TEXT(('max death averted (3)'!$E$87),"#,###") & ")" -> (7 - 14) | G9: ="(" & TEXT(('min death averted (1)'!$E$87),"#,###") & " - " & TEXT(('max death averted (1)'!$E$87),"#,###") & ")" -> (6 - 13)
A10: High risk (25 - 64 yrs) | B10: ='mid cases averted (3)'!$F$87 -> 24678.06593 | C10: ='mid cases averted (1)'!$F$87 -> 24192.17169 | D10: ='mid hosp averted (3)'!$F$87 -> 112.1079129 | E10: ='mid hosp averted (1)'!$F$87 -> 109.0771713 | F10: ='mid death averted (3)'!$F$87 -> 9.062081581 | G10: ='mid death averted (1)'!$F$87 -> 8.814059809
B11: ="(" & TEXT(('min cases averted (3)'!$F$87),"#,###") & " - " & TEXT(('max cases averted (3)'!$F$87),"#,###") & ")" -> (17,549 - 36,191) | C11: ="(" & TEXT(('min cases averted (1)'!$F$87),"#,###") & " - " & TEXT(('max cases averted (1)'!$F$87),"#,###") & ")" -> (17,206 - 35,518) | D11: ="(" & TEXT(('min hosp averted (3)'!$F$87),"#,###") & " - " & TEXT(('max hosp averted (3)'!$F$87),"#,###") & ")" -> (79 - 165) | E11: ="(" & TEXT(('min hosp averted (1)'!$F$87),"#,###") & " - " & TEXT(('max hosp averted (1)'!$F$87),"#,###") & ")" -> (78 - 160) | F11: ="(" & TEXT(('min death averted (3)'!$F$87),"#,###") & " - " & TEXT(('max death averted (3)'!$F$87),"#,###") & ")" -> (6 - 13) | G11: ="(" & TEXT(('min death averted (1)'!$F$87),"#,###") & " - " & TEXT(('max death averted (1)'!$F$87),"#,###") & ")" -> (6 - 13)
A12: Health Care (25 - 64 yrs) | B12: ='mid cases averted (3)'!$G$87 -> 20228.95154 | C12: ='mid cases averted (1)'!$G$87 -> 19521.71296 | D12: ='mid hosp averted (3)'!$G$87 -> 92.14888465 | E12: ='mid hosp averted (1)'!$G$87 -> 88.01910208 | F12: ='mid death averted (3)'!$G$87 -> 6.735303159 | G12: ='mid death averted (1)'!$G$87 -> 6.429779345
B13: ="(" & TEXT(('min cases averted (3)'!$G$87),"#,###") & " - " & TEXT(('max cases averted (3)'!$G$87),"#,###") & ")" -> (14,384 - 29,676) | C13: ="(" & TEXT(('min cases averted (1)'!$G$87),"#,###") & " - " & TEXT(('max cases averted (1)'!$G$87),"#,###") & ")" -> (13,884 - 28,661) | D13: ="(" & TEXT(('min hosp averted (3)'!$G$87),"#,###") & " - " & TEXT(('max hosp averted (3)'!$G$87),"#,###") & ")" -> (65 - 136) | E13: ="(" & TEXT(('min hosp averted (1)'!$G$87),"#,###") & " - " & TEXT(('max hosp averted (1)'!$G$87),"#,###") & ")" -> (63 - 129) | F13: ="(" & TEXT(('min death averted (3)'!$G$87),"#,###") & " - " & TEXT(('max death averted (3)'!$G$87),"#,###") & ")" -> (5 - 10) | G13: ="(" & TEXT(('min death averted (1)'!$G$87),"#,###") & " - " & TEXT(('max death averted (1)'!$G$87),"#,###") & ")" -> (5 - 9)
A14: Contact/Caretakers <6 months | B14: ='mid cases averted (3)'!$H$87 -> 17350.07755 | C14: ='mid cases averted (1)'!$H$87 -> 17024.75654 | D14: ='mid hosp averted (3)'!$H$87 -> 78.58234781 | E14: ='mid hosp averted (1)'!$H$87 -> 76.7608758 | F14: ='mid death averted (3)'!$H$87 -> 8.574901534 | G14: ='mid death averted (1)'!$H$87 -> 8.373669501
B15: ="(" & TEXT(('min cases averted (3)'!$H$87),"#,###") & " - " & TEXT(('max cases averted (3)'!$H$87),"#,###") & ")" -> (12,331 - 25,478) | C15: ="(" & TEXT(('min cases averted (1)'!$H$87),"#,###") & " - " & TEXT(('max cases averted (1)'!$H$87),"#,###") & ")" -> (12,108 - 24,995) | D15: ="(" & TEXT(('min hosp averted (3)'!$H$87),"#,###") & " - " & TEXT(('max hosp averted (3)'!$H$87),"#,###") & ")" -> (56 - 116) | E15: ="(" & TEXT(('min hosp averted (1)'!$H$87),"#,###") & " - " & TEXT(('max hosp averted (1)'!$H$87),"#,###") & ")" -> (55 - 113) | F15: ="(" & TEXT(('min death averted (3)'!$H$87),"#,###") & " - " & TEXT(('max death averted (3)'!$H$87),"#,###") & ")" -> (6 - 13) | G15: ="(" & TEXT(('min death averted (1)'!$H$87),"#,###") & " - " & TEXT(('max death averted (1)'!$H$87),"#,###") & ")" -> (6 - 12)
A16: 25 - 64 years (all others) | B16: ='mid cases averted (3)'!$I$87 -> 15310.66655 | C16: ='mid cases averted (1)'!$I$87 -> 15140.95058 | D16: ='mid hosp averted (3)'!$I$87 -> 69.87935409 | E16: ='mid hosp averted (1)'!$I$87 -> 68.94169894 | F16: ='mid death averted (3)'!$I$87 -> 3.940240562 | G16: ='mid death averted (1)'!$I$87 -> 3.886705102
B17: ="(" & TEXT(('min cases averted (3)'!$I$87),"#,###") & " - " & TEXT(('max cases averted (3)'!$I$87),"#,###") & ")" -> (10,880 - 22,487) | C17: ="(" & TEXT(('min cases averted (1)'!$I$87),"#,###") & " - " & TEXT(('max cases averted (1)'!$I$87),"#,###") & ")" -> (10,768 - 22,229) | D17: ="(" & TEXT(('min hosp averted (3)'!$I$87),"#,###") & " - " & TEXT(('max hosp averted (3)'!$I$87),"#,###") & ")" -> (50 - 103) | E17: ="(" & TEXT(('min hosp averted (1)'!$I$87),"#,###") & " - " & TEXT(('max hosp averted (1)'!$I$87),"#,###") & ")" -> (49 - 101) | F17: ="(" & TEXT(('min death averted (3)'!$I$87),"#,###") & " - " & TEXT(('max death averted (3)'!$I$87),"#,###") & ")" -> (3 - 6) | G17: ="(" & TEXT(('min death averted (1)'!$I$87),"#,###") & " - " & TEXT(('max death averted (1)'!$I$87),"#,###") & ")" -> (3 - 6)
A18: ≥65 years | B18: ='mid cases averted (3)'!$J$87 -> 15894.60095 | C18: ='mid cases averted (1)'!$J$87 -> 15645.75047 | D18: ='mid hosp averted (3)'!$J$87 -> 73.14955657 | E18: ='mid hosp averted (1)'!$J$87 -> 71.76189289 | F18: ='mid death averted (3)'!$J$87 -> 4.350651512 | G18: ='mid death averted (1)'!$J$87 -> 4.267087253
B19: ="(" & TEXT(('min cases averted (3)'!$J$87),"#,###") & " - " & TEXT(('max cases averted (3)'!$J$87),"#,###") & ")" -> (11,295 - 23,345) | C19: ="(" & TEXT(('min cases averted (1)'!$J$87),"#,###") & " - " & TEXT(('max cases averted (1)'!$J$87),"#,###") & ")" -> (11,127 - 22,970) | D19: ="(" & TEXT(('min hosp averted (3)'!$J$87),"#,###") & " - " & TEXT(('max hosp averted (3)'!$J$87),"#,###") & ")" -> (52 - 108) | E19: ="(" & TEXT(('min hosp averted (1)'!$J$87),"#,###") & " - " & TEXT(('max hosp averted (1)'!$J$87),"#,###") & ")" -> (51 - 105) | F19: ="(" & TEXT(('min death averted (3)'!$J$87),"#,###") & " - " & TEXT(('max death averted (3)'!$J$87),"#,###") & ")" -> (3 - 6) | G19: ="(" & TEXT(('min death averted (1)'!$J$87),"#,###") & " - " & TEXT(('max death averted (1)'!$J$87),"#,###") & ")" -> (3 - 6)
A20: Total | B20: ='mid cases averted (3)'!$B$87 -> 20673.74607 | C20: ='mid cases averted (1)'!$B$87 -> 20329.83783 | D20: ='mid hosp averted (3)'!$B$87 -> 93.74797781 | E20: ='mid hosp averted (1)'!$B$87 -> 91.66275905 | F20: ='mid death averted (3)'!$B$87 -> 4.271577861 | G20: ='mid death averted (1)'!$B$87 -> 4.166367533
B21: ="(" & TEXT(('min cases averted (3)'!$B$87),"#,###") & " - " & TEXT(('max cases averted (3)'!$B$87),"#,###") & ")" -> (14,697 - 30,335) | C21: ="(" & TEXT(('min cases averted (1)'!$B$87),"#,###") & " - " & TEXT(('max cases averted (1)'!$B$87),"#,###") & ")" -> (14,459 - 29,847) | D21: ="(" & TEXT(('min hosp averted (3)'!$B$87),"#,###") & " - " & TEXT(('max hosp averted (3)'!$B$87),"#,###") & ")" -> (67 - 138) | E21: ="(" & TEXT(('min hosp averted (1)'!$B$87),"#,###") & " - " & TEXT(('max hosp averted (1)'!$B$87),"#,###") & ")" -> (65 - 135) | F21: ="(" & TEXT(('min death averted (3)'!$B$87),"#,###") & " - " & TEXT(('max death averted (3)'!$B$87),"#,###") & ")" -> (3 - 6) | G21: ="(" & TEXT(('min death averted (1)'!$B$87),"#,###") & " - " & TEXT(('max death averted (1)'!$B$87),"#,###") & ")" -> (3 - 6)

Sheet min cases averted (1)
A1: week | B1: Total Min cases | C1: ='Input data doses'!U3 -> 6 Months-9 Years | D1: ='Input data doses'!V3 -> 10-24, (10-17 all, 18-24 not pregnant) | E1: ='Input data doses'!W3 -> Pregnant 18-64 | F1: ='Input data doses'!X3 -> 25-64, High Risk, not pregnant | G1: ='Input data doses'!Y3 -> 25-64, Health Care Worker, non-HR, not pregnant | H1: ='Input data doses'!Z3 -> 25-64, Contact <6m, non-HCW, non-HR, not pregnant | I1: ='Input data doses'!AA3 -> 25-64, non-Contact <6m, non-HCW, non-HR, not pregnant | J1: ='Input data doses'!AB3 -> 65 Years+ | L1: prior infection adjustment for vaccinees: currently totally made up- needs values | M1: =B1 -> Total Min cases | N1: =C1 -> 6 Months-9 Years | O1: 10-24, (10-17 all, 18-24 not pregnant) | P1: Pregnant 18-64 | Q1: 25-64, High Risk, not pregnant | R1: 25-64, Health Care Worker, non-HR, not pregnant | S1: 25-64, Contact <6m, non-HCW, non-HR, not pregnant | T1: 25-64, non-Contact <6m, non-HCW, non-HR, not pregnant | U1: 65 Years+ | W1: week | X1: Probability of infection | Y1: ='Input data doses'!U3 -> 6 Months-9 Years | Z1: ='Input data doses'!V3 -> 10-24, (10-17 all, 18-24 not pregnant) | AA1: ='Input data doses'!W3 -> Pregnant 18-64 | AB1: ='Input data doses'!X3 -> 25-64, High Risk, not pregnant | AC1: ='Input data doses'!Y3 -> 25-64, Health Care Worker, non-HR, not pregnant | AD1: ='Input data doses'!Z3 -> 25-64, Contact <6m, non-HCW, non-HR, not pregnant | AE1: ='Input data doses'!AA3 -> 25-64, non-Contact <6m, non-HCW, non-HR, not pregnant | AF1: ='Input data doses'!AB3 -> 65 Years+ | AH1: week | AI1: Total Min Cases averted | AJ1: ='Input data doses'!U3 -> 6 Months-9 Years | AK1: ='Input data doses'!V3 -> 10-24, (10-17 all, 18-24 not pregnant) | AL1: ='Input data doses'!W3 -> Pregnant 18-64 | AM1: ='Input data doses'!X3 -> 25-64, High Risk, not pregnant | AN1: ='Input data doses'!Y3 -> 25-64, Health Care Worker, non-HR, not pregnant | AO1: ='Input data doses'!Z3 -> 25-64, Contact <6m, non-HCW, non-HR, not pregnant | AP1: ='Input data doses'!AA3 -> 25-64, non-Contact <6m, non-HCW, non-HR, not pregnant | AQ1: ='Input data doses'!AB3 -> 65 Years+
A2: percentage | B2: =SUM(C2:J2) -> 1 | C2: ='Input data breakdown'!C5 -> 0.2013945 | D2: ='Input data breakdown'!D5 -> 0.2234 | E2: ='Input data breakdown'!E5 -> 0.022 | F2: ='Input data breakdown'!F5 -> 0.135 | G2: ='Input data breakdown'!G5 -> 0.056 | H2: ='Input data breakdown'!H5 -> 0.025 | I2: ='Input data breakdown'!I5 -> 0.23950604 | J2: ='Input data breakdown'!J5 -> 0.09769946 | L2: influenza week | M2: proportion of clinical cases among total seropositives | S2: =1-'Input data breakdown'!C13 -> 0.7 | W2: population | X2: =SUM(Y2:AF2) -> 299253484 | Y2: ='Input data breakdown'!C4 -> 39429115 | Z2: ='Input data breakdown'!D4 -> 59684833.4 | AA2: ='Input data breakdown'!E4 -> 5578781.788 | AB2: ='Input data breakdown'!F4 -> 33949395.23 | AC2: ='Input data breakdown'!G4 -> 17451920.82 | AD2: ='Input data breakdown'!H4 -> 8933717.767 | AE2: ='Input data breakdown'!I4 -> 96235755 | AF2: ='Input data breakdown'!J4 -> 37989965.01 | AH2: vaccine effectiveness | AJ2: ='Input data breakdown'!C11 -> 0.62 | AK2: ='Input data breakdown'!D11 -> 0.62 | AL2: ='Input data breakdown'!E11 -> 0.62 | AM2: ='Input data breakdown'!F11 -> 0.62 | AN2: ='Input data breakdown'!G11 -> 0.62 | AO2: ='Input data breakdown'!H11 -> 0.62 | AP2: ='Input data breakdown'!I11 -> 0.62 | AQ2: ='Input data breakdown'!J11 -> 0.43
A3: cases with prior immunity | B3: ='Input data cases'!D4 -> 0 | C3: =$B3*C$2 -> 0 | D3: 0 | E3: 0 | F3: 0 | G3: 0 | H3: 0 | I3: 0 | J3: 0 | L3: 1 | M3: =1-(((SUM(B$3:B3)*(1/$S$2))/X$2)) -> 1 | N3: =1-(((SUM(C$3:C3)*(1/$S$2))/Y$2)) -> 1 | O3: =1-(((SUM(D$3:D3)*(1/$S$2))/Z$2)) -> 1 | P3: =1-(((SUM(E$3:E3)*(1/$S$2))/AA$2)) -> 1 | Q3: =1-(((SUM(F$3:F3)*(1/$S$2))/AB$2)) -> 1 | R3: =1-(((SUM(G$3:G3)*(1/$S$2))/AC$2)) -> 1 | S3: =1-(((SUM(H$3:H3)*(1/$S$2))/AD$2)) -> 1 | T3: =1-(((SUM(I$3:I3)*(1/$S$2))/AE$2)) -> 1 | U3: =1-(((SUM(J$3:J3)*(1/$S$2))/AF$2)) -> 1 | W3: 1 | X3: ='min cases averted (1)'!B3/X$2 -> 0 | Y3: ='min cases averted (1)'!C3/Y$2 -> 0 | Z3: ='min cases averted (1)'!D3/Z$2 -> 0 | AA3: ='min cases averted (1)'!E3/AA$2 -> 0 | AB3: ='min cases averted (1)'!F3/AB$2 -> 0 | AC3: ='min cases averted (1)'!G3/AC$2 -> 0 | AD3: ='min cases averted (1)'!H3/AD$2 -> 0 | AE3: ='min cases averted (1)'!I3/AE$2 -> 0 | AF3: ='min cases averted (1)'!J3/AF$2 -> 0 | AH3: 1 | AI3: =SUM(AJ3:AQ3) -> 0 | AJ3: ='Input data doses'!U5*SUM('min cases averted (1)'!Y3:Y$84)*AJ$2*N3 -> 0 | AK3: ='Input data doses'!V5*SUM('min cases averted (1)'!Z3:Z$84)*AK$2*O3 -> 0 | AL3: ='Input data doses'!W5*SUM('min cases averted (1)'!AA3:AA$84)*AL$2*P3 -> 0 | AM3: ='Input data doses'!X5*SUM('min cases averted (1)'!AB3:AB$84)*AM$2*Q3 -> 0 | AN3: ='Input data doses'!Y5*SUM('min cases averted (1)'!AC3:AC$84)*AN$2*R3 -> 0 | AO3: ='Input data doses'!Z5*SUM('min cases averted (1)'!AD3:AD$84)*AO$2*S3 -> 0 | AP3: ='Input data doses'!AA5*SUM('min cases averted (1)'!AE3:AE$84)*AP$2*T3 -> 0 | AQ3: ='Input data doses'!AB5*SUM('min cases averted (1)'!AF3:AF$84)*AQ$2*U3 -> 0
A4: 2 | B4: ='Input data cases'!D5 -> 0 | C4: 0 | D4: 0 | E4: 0 | F4: 0 | G4: 0 | H4: 0 | I4: 0 | J4: 0 | L4: 2 | M4: =1-(((SUM(B$3:B4)*(1/$S$2))/X$2)) -> 1 | N4: =1-(((SUM(C$3:C4)*(1/$S$2))/Y$2)) -> 1 | O4: =1-(((SUM(D$3:D4)*(1/$S$2))/Z$2)) -> 1 | P4: =1-(((SUM(E$3:E4)*(1/$S$2))/AA$2)) -> 1 | Q4: =1-(((SUM(F$3:F4)*(1/$S$2))/AB$2)) -> 1 | R4: =1-(((SUM(G$3:G4)*(1/$S$2))/AC$2)) -> 1 | S4: =1-(((SUM(H$3:H4)*(1/$S$2))/AD$2)) -> 1 | T4: =1-(((SUM(I$3:I4)*(1/$S$2))/AE$2)) -> 1 | U4: =1-(((SUM(J$3:J4)*(1/$S$2))/AF$2)) -> 1 | W4: 2 | X4: ='min cases averted (1)'!B4/X$2 -> 0 | Y4: ='min cases averted (1)'!C4/Y$2 -> 0 | Z4: ='min cases averted (1)'!D4/Z$2 -> 0 | AA4: ='min cases averted (1)'!E4/AA$2 -> 0 | AB4: ='min cases averted (1)'!F4/AB$2 -> 0 | AC4: ='min cases averted (1)'!G4/AC$2 -> 0 | AD4: ='min cases averted (1)'!H4/AD$2 -> 0 | AE4: ='min cases averted (1)'!I4/AE$2 -> 0 | AF4: ='min cases averted (1)'!J4/AF$2 -> 0 | AH4: 2 | AI4: 0 | AJ4: ='Input data doses'!U6*SUM('min cases averted (1)'!Y4:Y$84)*AJ$2*N4 -> 0 | AK4: ='Input data doses'!V6*SUM('min cases averted (1)'!Z4:Z$84)*AK$2*O4 -> 0 | AL4: ='Input data doses'!W6*SUM('min cases averted (1)'!AA4:AA$84)*AL$2*P4 -> 0 | AM4: ='Input data doses'!X6*SUM('min cases averted (1)'!AB4:AB$84)*AM$2*Q4 -> 0 | AN4: ='Input data doses'!Y6*SUM('min cases averted (1)'!AC4:AC$84)*AN$2*R4 -> 0 | AO4: ='Input data doses'!Z6*SUM('min cases averted (1)'!AD4:AD$84)*AO$2*S4 -> 0 | AP4: ='Input data doses'!AA6*SUM('min cases averted (1)'!AE4:AE$84)*AP$2*T4 -> 0 | AQ4: ='Input data doses'!AB6*SUM('min cases averted (1)'!AF4:AF$84)*AQ$2*U4 -> 0
A5: 3 | B5: ='Input data cases'!D6 -> 0 | C5: 0 | D5: 0 | E5: 0 | F5: 0 | G5: 0 | H5: 0 | I5: 0 | J5: 0 | L5: 3 | M5: =1-(((SUM(B$3:B5)*(1/$S$2))/X$2)) -> 1 | N5: =1-(((SUM(C$3:C5)*(1/$S$2))/Y$2)) -> 1 | O5: =1-(((SUM(D$3:D5)*(1/$S$2))/Z$2)) -> 1 | P5: =1-(((SUM(E$3:E5)*(1/$S$2))/AA$2)) -> 1 | Q5: =1-(((SUM(F$3:F5)*(1/$S$2))/AB$2)) -> 1 | R5: =1-(((SUM(G$3:G5)*(1/$S$2))/AC$2)) -> 1 | S5: =1-(((SUM(H$3:H5)*(1/$S$2))/AD$2)) -> 1 | T5: =1-(((SUM(I$3:I5)*(1/$S$2))/AE$2)) -> 1 | U5: =1-(((SUM(J$3:J5)*(1/$S$2))/AF$2)) -> 1 | W5: 3 | X5: ='min cases averted (1)'!B5/X$2 -> 0 | Y5: ='min cases averted (1)'!C5/Y$2 -> 0 | Z5: ='min cases averted (1)'!D5/Z$2 -> 0 | AA5: ='min cases averted (1)'!E5/AA$2 -> 0 | AB5: ='min cases averted (1)'!F5/AB$2 -> 0 | AC5: ='min cases averted (1)'!G5/AC$2 -> 0 | AD5: ='min cases averted (1)'!H5/AD$2 -> 0 | AE5: ='min cases averted (1)'!I5/AE$2 -> 0 | AF5: ='min cases averted (1)'!J5/AF$2 -> 0 | AH5: 3 | AI5: 0 | AJ5: ='Input data doses'!U7*SUM('min cases averted (1)'!Y5:Y$84)*AJ$2*N5 -> 0 | AK5: ='Input data doses'!V7*SUM('min cases averted (1)'!Z5:Z$84)*AK$2*O5 -> 0 | AL5: ='Input data doses'!W7*SUM('min cases averted (1)'!AA5:AA$84)*AL$2*P5 -> 0 | AM5: ='Input data doses'!X7*SUM('min cases averted (1)'!AB5:AB$84)*AM$2*Q5 -> 0 | AN5: ='Input data doses'!Y7*SUM('min cases averted (1)'!AC5:AC$84)*AN$2*R5 -> 0 | AO5: ='Input data doses'!Z7*SUM('min cases averted (1)'!AD5:AD$84)*AO$2*S5 -> 0 | AP5: ='Input data doses'!AA7*SUM('min cases averted (1)'!AE5:AE$84)*AP$2*T5 -> 0 | AQ5: ='Input data doses'!AB7*SUM('min cases averted (1)'!AF5:AF$84)*AQ$2*U5 -> 0
A6: 4 | B6: ='Input data cases'!D7 -> 0 | C6: 0 | D6: 0 | E6: 0 | F6: 0 | G6: 0 | H6: 0 | I6: 0 | J6: 0 | L6: 4 | M6: =1-(((SUM(B$3:B6)*(1/$S$2))/X$2)) -> 1 | N6: =1-(((SUM(C$3:C6)*(1/$S$2))/Y$2)) -> 1 | O6: =1-(((SUM(D$3:D6)*(1/$S$2))/Z$2)) -> 1 | P6: =1-(((SUM(E$3:E6)*(1/$S$2))/AA$2)) -> 1 | Q6: =1-(((SUM(F$3:F6)*(1/$S$2))/AB$2)) -> 1 | R6: =1-(((SUM(G$3:G6)*(1/$S$2))/AC$2)) -> 1 | S6: =1-(((SUM(H$3:H6)*(1/$S$2))/AD$2)) -> 1 | T6: =1-(((SUM(I$3:I6)*(1/$S$2))/AE$2)) -> 1 | U6: =1-(((SUM(J$3:J6)*(1/$S$2))/AF$2)) -> 1 | W6: 4 | X6: ='min cases averted (1)'!B6/X$2 -> 0 | Y6: ='min cases averted (1)'!C6/Y$2 -> 0 | Z6: ='min cases averted (1)'!D6/Z$2 -> 0 | AA6: ='min cases averted (1)'!E6/AA$2 -> 0 | AB6: ='min cases averted (1)'!F6/AB$2 -> 0 | AC6: ='min cases averted (1)'!G6/AC$2 -> 0 | AD6: ='min cases averted (1)'!H6/AD$2 -> 0 | AE6: ='min cases averted (1)'!I6/AE$2 -> 0 | AF6: ='min cases averted (1)'!J6/AF$2 -> 0 | AH6: 4 | AI6: =SUM(AJ6:AQ6) -> 0 | AJ6: ='Input data doses'!U8*SUM('min cases averted (1)'!Y6:Y$84)*AJ$2*N6 -> 0 | AK6: ='Input data doses'!V8*SUM('min cases averted (1)'!Z6:Z$84)*AK$2*O6 -> 0 | AL6: ='Input data doses'!W8*SUM('min cases averted (1)'!AA6:AA$84)*AL$2*P6 -> 0 | AM6: ='Input data doses'!X8*SUM('min cases averted (1)'!AB6:AB$84)*AM$2*Q6 -> 0 | AN6: ='Input data doses'!Y8*SUM('min cases averted (1)'!AC6:AC$84)*AN$2*R6 -> 0 | AO6: ='Input data doses'!Z8*SUM('min cases averted (1)'!AD6:AD$84)*AO$2*S6 -> 0 | AP6: ='Input data doses'!AA8*SUM('min cases averted (1)'!AE6:AE$84)*AP$2*T6 -> 0 | AQ6: ='Input data doses'!AB8*SUM('min cases averted (1)'!AF6:AF$84)*AQ$2*U6 -> 0
A7: 5 | B7: ='Input data cases'!D8 -> 0 | C7: 0 | D7: 0 | E7: 0 | F7: 0 | G7: 0 | H7: 0 | I7: 0 | J7: 0 | L7: 5 | M7: =1-(((SUM(B$3:B7)*(1/$S$2))/X$2)) -> 1 | N7: =1-(((SUM(C$3:C7)*(1/$S$2))/Y$2)) -> 1 | O7: =1-(((SUM(D$3:D7)*(1/$S$2))/Z$2)) -> 1 | P7: =1-(((SUM(E$3:E7)*(1/$S$2))/AA$2)) -> 1 | Q7: =1-(((SUM(F$3:F7)*(1/$S$2))/AB$2)) -> 1 | R7: =1-(((SUM(G$3:G7)*(1/$S$2))/AC$2)) -> 1 | S7: =1-(((SUM(H$3:H7)*(1/$S$2))/AD$2)) -> 1 | T7: =1-(((SUM(I$3:I7)*(1/$S$2))/AE$2)) -> 1 | U7: =1-(((SUM(J$3:J7)*(1/$S$2))/AF$2)) -> 1 | W7: 5 | X7: ='min cases averted (1)'!B7/X$2 -> 0 | Y7: ='min cases averted (1)'!C7/Y$2 -> 0 | Z7: ='min cases averted (1)'!D7/Z$2 -> 0 | AA7: ='min cases averted (1)'!E7/AA$2 -> 0 | AB7: ='min cases averted (1)'!F7/AB$2 -> 0 | AC7: ='min cases averted (1)'!G7/AC$2 -> 0 | AD7: ='min cases averted (1)'!H7/AD$2 -> 0 | AE7: ='min cases averted (1)'!I7/AE$2 -> 0 | AF7: ='min cases averted (1)'!J7/AF$2 -> 0 | AH7: 5 | AI7: 0 | AJ7: ='Input data doses'!U9*SUM('min cases averted (1)'!Y7:Y$84)*AJ$2*N7 -> 0 | AK7: ='Input data doses'!V9*SUM('min cases averted (1)'!Z7:Z$84)*AK$2*O7 -> 0 | AL7: ='Input data doses'!W9*SUM('min cases averted (1)'!AA7:AA$84)*AL$2*P7 -> 0 | AM7: ='Input data doses'!X9*SUM('min cases averted (1)'!AB7:AB$84)*AM$2*Q7 -> 0 | AN7: ='Input data doses'!Y9*SUM('min cases averted (1)'!AC7:AC$84)*AN$2*R7 -> 0 | AO7: ='Input data doses'!Z9*SUM('min cases averted (1)'!AD7:AD$84)*AO$2*S7 -> 0 | AP7: ='Input data doses'!AA9*SUM('min cases averted (1)'!AE7:AE$84)*AP$2*T7 -> 0 | AQ7: ='Input data doses'!AB9*SUM('min cases averted (1)'!AF7:AF$84)*AQ$2*U7 -> 0
A8: 6 | B8: ='Input data cases'!D9 -> 0 | C8: 0 | D8: 0 | E8: 0 | F8: 0 | G8: 0 | H8: 0 | I8: 0 | J8: 0 | L8: 6 | M8: =1-(((SUM(B$3:B8)*(1/$S$2))/X$2)) -> 1 | N8: =1-(((SUM(C$3:C8)*(1/$S$2))/Y$2)) -> 1 | O8: =1-(((SUM(D$3:D8)*(1/$S$2))/Z$2)) -> 1 | P8: =1-(((SUM(E$3:E8)*(1/$S$2))/AA$2)) -> 1 | Q8: =1-(((SUM(F$3:F8)*(1/$S$2))/AB$2)) -> 1 | R8: =1-(((SUM(G$3:G8)*(1/$S$2))/AC$2)) -> 1 | S8: =1-(((SUM(H$3:H8)*(1/$S$2))/AD$2)) -> 1 | T8: =1-(((SUM(I$3:I8)*(1/$S$2))/AE$2)) -> 1 | U8: =1-(((SUM(J$3:J8)*(1/$S$2))/AF$2)) -> 1 | W8: 6 | X8: ='min cases averted (1)'!B8/X$2 -> 0 | Y8: ='min cases averted (1)'!C8/Y$2 -> 0 | Z8: ='min cases averted (1)'!D8/Z$2 -> 0 | AA8: ='min cases averted (1)'!E8/AA$2 -> 0 | AB8: ='min cases averted (1)'!F8/AB$2 -> 0 | AC8: ='min cases averted (1)'!G8/AC$2 -> 0 | AD8: ='min cases averted (1)'!H8/AD$2 -> 0 | AE8: ='min cases averted (1)'!I8/AE$2 -> 0 | AF8: ='min cases averted (1)'!J8/AF$2 -> 0 | AH8: 6 | AI8: 0 | AJ8: ='Input data doses'!U10*SUM('min cases averted (1)'!Y8:Y$84)*AJ$2*N8 -> 0 | AK8: ='Input data doses'!V10*SUM('min cases averted (1)'!Z8:Z$84)*AK$2*O8 -> 0 | AL8: ='Input data doses'!W10*SUM('min cases averted (1)'!AA8:AA$84)*AL$2*P8 -> 0 | AM8: ='Input data doses'!X10*SUM('min cases averted (1)'!AB8:AB$84)*AM$2*Q8 -> 0 | AN8: ='Input data doses'!Y10*SUM('min cases averted (1)'!AC8:AC$84)*AN$2*R8 -> 0 | AO8: ='Input data doses'!Z10*SUM('min cases averted (1)'!AD8:AD$84)*AO$2*S8 -> 0 | AP8: ='Input data doses'!AA10*SUM('min cases averted (1)'!AE8:AE$84)*AP$2*T8 -> 0 | AQ8: ='Input data doses'!AB10*SUM('min cases averted (1)'!AF8:AF$84)*AQ$2*U8 -> 0
A9: 7 | B9: ='Input data cases'!D10 -> 0 | C9: =$B9*C$2 -> 0 | D9: 0 | E9: 0 | F9: 0 | G9: 0 | H9: 0 | I9: 0 | J9: 0 | L9: 7 | M9: =1-(((SUM(B$3:B9)*(1/$S$2))/X$2)) -> 1 | N9: =1-(((SUM(C$3:C9)*(1/$S$2))/Y$2)) -> 1 | O9: =1-(((SUM(D$3:D9)*(1/$S$2))/Z$2)) -> 1 | P9: =1-(((SUM(E$3:E9)*(1/$S$2))/AA$2)) -> 1 | Q9: =1-(((SUM(F$3:F9)*(1/$S$2))/AB$2)) -> 1 | R9: =1-(((SUM(G$3:G9)*(1/$S$2))/AC$2)) -> 1 | S9: =1-(((SUM(H$3:H9)*(1/$S$2))/AD$2)) -> 1 | T9: =1-(((SUM(I$3:I9)*(1/$S$2))/AE$2)) -> 1 | U9: =1-(((SUM(J$3:J9)*(1/$S$2))/AF$2)) -> 1 | W9: 7 | X9: ='min cases averted (1)'!B9/X$2 -> 0 | Y9: ='min cases averted (1)'!C9/Y$2 -> 0 | Z9: ='min cases averted (1)'!D9/Z$2 -> 0 | AA9: ='min cases averted (1)'!E9/AA$2 -> 0 | AB9: ='min cases averted (1)'!F9/AB$2 -> 0 | AC9: ='min cases averted (1)'!G9/AC$2 -> 0 | AD9: ='min cases averted (1)'!H9/AD$2 -> 0 | AE9: ='min cases averted (1)'!I9/AE$2 -> 0 | AF9: ='min cases averted (1)'!J9/AF$2 -> 0 | AH9: 7 | AI9: 0 | AJ9: ='Input data doses'!U11*SUM('min cases averted (1)'!Y9:Y$84)*AJ$2*N9 -> 0 | AK9: ='Input data doses'!V11*SUM('min cases averted (1)'!Z9:Z$84)*AK$2*O9 -> 0 | AL9: ='Input data doses'!W11*SUM('min cases averted (1)'!AA9:AA$84)*AL$2*P9 -> 0 | AM9: ='Input data doses'!X11*SUM('min cases averted (1)'!AB9:AB$84)*AM$2*Q9 -> 0 | AN9: ='Input data doses'!Y11*SUM('min cases averted (1)'!AC9:AC$84)*AN$2*R9 -> 0 | AO9: ='Input data doses'!Z11*SUM('min cases averted (1)'!AD9:AD$84)*AO$2*S9 -> 0 | AP9: ='Input data doses'!AA11*SUM('min cases averted (1)'!AE9:AE$84)*AP$2*T9 -> 0 | AQ9: ='Input data doses'!AB11*SUM('min cases averted (1)'!AF9:AF$84)*AQ$2*U9 -> 0
A10: 8 | B10: ='Input data cases'!D11 -> 0 | C10: 0 | D10: 0 | E10: 0 | F10: 0 | G10: 0 | H10: 0 | I10: 0 | J10: 0 | L10: 8 | M10: =1-(((SUM(B$3:B10)*(1/$S$2))/X$2)) -> 1 | N10: =1-(((SUM(C$3:C10)*(1/$S$2))/Y$2)) -> 1 | O10: =1-(((SUM(D$3:D10)*(1/$S$2))/Z$2)) -> 1 | P10: =1-(((SUM(E$3:E10)*(1/$S$2))/AA$2)) -> 1 | Q10: =1-(((SUM(F$3:F10)*(1/$S$2))/AB$2)) -> 1 | R10: =1-(((SUM(G$3:G10)*(1/$S$2))/AC$2)) -> 1 | S10: =1-(((SUM(H$3:H10)*(1/$S$2))/AD$2)) -> 1 | T10: =1-(((SUM(I$3:I10)*(1/$S$2))/AE$2)) -> 1 | U10: =1-(((SUM(J$3:J10)*(1/$S$2))/AF$2)) -> 1 | W10: 8 | X10: ='min cases averted (1)'!B10/X$2 -> 0 | Y10: ='min cases averted (1)'!C10/Y$2 -> 0 | Z10: ='min cases averted (1)'!D10/Z$2 -> 0 | AA10: ='min cases averted (1)'!E10/AA$2 -> 0 | AB10: ='min cases averted (1)'!F10/AB$2 -> 0 | AC10: ='min cases averted (1)'!G10/AC$2 -> 0 | AD10: ='min cases averted (1)'!H10/AD$2 -> 0 | AE10: ='min cases averted (1)'!I10/AE$2 -> 0 | AF10: ='min cases averted (1)'!J10/AF$2 -> 0 | AH10: 8 | AI10: 0 | AJ10: ='Input data doses'!U12*SUM('min cases averted (1)'!Y10:Y$84)*AJ$2*N10 -> 0 | AK10: ='Input data doses'!V12*SUM('min cases averted (1)'!Z10:Z$84)*AK$2*O10 -> 0 | AL10: ='Input data doses'!W12*SUM('min cases averted (1)'!AA10:AA$84)*AL$2*P10 -> 0 | AM10: ='Input data doses'!X12*SUM('min cases averted (1)'!AB10:AB$84)*AM$2*Q10 -> 0 | AN10: ='Input data doses'!Y12*SUM('min cases averted (1)'!AC10:AC$84)*AN$2*R10 -> 0 | AO10: ='Input data doses'!Z12*SUM('min cases averted (1)'!AD10:AD$84)*AO$2*S10 -> 0 | AP10: ='Input data doses'!AA12*SUM('min cases averted (1)'!AE10:AE$84)*AP$2*T10 -> 0 | AQ10: ='Input data doses'!AB12*SUM('min cases averted (1)'!AF10:AF$84)*AQ$2*U10 -> 0
A11: 9 | B11: ='Input data cases'!D12 -> 0 | C11: 0 | D11: 0 | E11: 0 | F11: 0 | G11: 0 | H11: 0 | I11: 0 | J11: 0 | L11: 9 | M11: =1-(((SUM(B$3:B11)*(1/$S$2))/X$2)) -> 1 | N11: =1-(((SUM(C$3:C11)*(1/$S$2))/Y$2)) -> 1 | O11: =1-(((SUM(D$3:D11)*(1/$S$2))/Z$2)) -> 1 | P11: =1-(((SUM(E$3:E11)*(1/$S$2))/AA$2)) -> 1 | Q11: =1-(((SUM(F$3:F11)*(1/$S$2))/AB$2)) -> 1 | R11: =1-(((SUM(G$3:G11)*(1/$S$2))/AC$2)) -> 1 | S11: =1-(((SUM(H$3:H11)*(1/$S$2))/AD$2)) -> 1 | T11: =1-(((SUM(I$3:I11)*(1/$S$2))/AE$2)) -> 1 | U11: =1-(((SUM(J$3:J11)*(1/$S$2))/AF$2)) -> 1 | W11: 9 | X11: ='min cases averted (1)'!B11/X$2 -> 0 | Y11: ='min cases averted (1)'!C11/Y$2 -> 0 | Z11: ='min cases averted (1)'!D11/Z$2 -> 0 | AA11: ='min cases averted (1)'!E11/AA$2 -> 0 | AB11: ='min cases averted (1)'!F11/AB$2 -> 0 | AC11: ='min cases averted (1)'!G11/AC$2 -> 0 | AD11: ='min cases averted (1)'!H11/AD$2 -> 0 | AE11: ='min cases averted (1)'!I11/AE$2 -> 0 | AF11: ='min cases averted (1)'!J11/AF$2 -> 0 | AH11: 9 | AI11: 0 | AJ11: ='Input data doses'!U13*SUM('min cases averted (1)'!Y11:Y$84)*AJ$2*N11 -> 0 | AK11: ='Input data doses'!V13*SUM('min cases averted (1)'!Z11:Z$84)*AK$2*O11 -> 0 | AL11: ='Input data doses'!W13*SUM('min cases averted (1)'!AA11:AA$84)*AL$2*P11 -> 0 | AM11: ='Input data doses'!X13*SUM('min cases averted (1)'!AB11:AB$84)*AM$2*Q11 -> 0 | AN11: ='Input data doses'!Y13*SUM('min cases averted (1)'!AC11:AC$84)*AN$2*R11 -> 0 | AO11: ='Input data doses'!Z13*SUM('min cases averted (1)'!AD11:AD$84)*AO$2*S11 -> 0 | AP11: ='Input data doses'!AA13*SUM('min cases averted (1)'!AE11:AE$84)*AP$2*T11 -> 0 | AQ11: ='Input data doses'!AB13*SUM('min cases averted (1)'!AF11:AF$84)*AQ$2*U11 -> 0
A12: 10 | B12: ='Input data cases'!D13 -> 0 | C12: 0 | D12: 0 | E12: 0 | F12: 0 | G12: 0 | H12: 0 | I12: 0 | J12: 0 | L12: 10 | M12: =1-(((SUM(B$3:B12)*(1/$S$2))/X$2)) -> 1 | N12: =1-(((SUM(C$3:C12)*(1/$S$2))/Y$2)) -> 1 | O12: =1-(((SUM(D$3:D12)*(1/$S$2))/Z$2)) -> 1 | P12: =1-(((SUM(E$3:E12)*(1/$S$2))/AA$2)) -> 1 | Q12: =1-(((SUM(F$3:F12)*(1/$S$2))/AB$2)) -> 1 | R12: =1-(((SUM(G$3:G12)*(1/$S$2))/AC$2)) -> 1 | S12: =1-(((SUM(H$3:H12)*(1/$S$2))/AD$2)) -> 1 | T12: =1-(((SUM(I$3:I12)*(1/$S$2))/AE$2)) -> 1 | U12: =1-(((SUM(J$3:J12)*(1/$S$2))/AF$2)) -> 1 | W12: 10 | X12: ='min cases averted (1)'!B12/X$2 -> 0 | Y12: ='min cases averted (1)'!C12/Y$2 -> 0 | Z12: ='min cases averted (1)'!D12/Z$2 -> 0 | AA12: ='min cases averted (1)'!E12/AA$2 -> 0 | AB12: ='min cases averted (1)'!F12/AB$2 -> 0 | AC12: ='min cases averted (1)'!G12/AC$2 -> 0 | AD12: ='min cases averted (1)'!H12/AD$2 -> 0 | AE12: ='min cases averted (1)'!I12/AE$2 -> 0 | AF12: ='min cases averted (1)'!J12/AF$2 -> 0 | AH12: 10 | AI12: 0 | AJ12: ='Input data doses'!U14*SUM('min cases averted (1)'!Y12:Y$84)*AJ$2*N12 -> 0 | AK12: ='Input data doses'!V14*SUM('min cases averted (1)'!Z12:Z$84)*AK$2*O12 -> 0 | AL12: ='Input data doses'!W14*SUM('min cases averted (1)'!AA12:AA$84)*AL$2*P12 -> 0 | AM12: ='Input data doses'!X14*SUM('min cases averted (1)'!AB12:AB$84)*AM$2*Q12 -> 0 | AN12: ='Input data doses'!Y14*SUM('min cases averted (1)'!AC12:AC$84)*AN$2*R12 -> 0 | AO12: ='Input data doses'!Z14*SUM('min cases averted (1)'!AD12:AD$84)*AO$2*S12 -> 0 | AP12: ='Input data doses'!AA14*SUM('min cases averted (1)'!AE12:AE$84)*AP$2*T12 -> 0 | AQ12: ='Input data doses'!AB14*SUM('min cases averted (1)'!AF12:AF$84)*AQ$2*U12 -> 0
A13: 11 | B13: ='Input data cases'!D14 -> 0 | C13: 0 | D13: 0 | E13: 0 | F13: 0 | G13: 0 | H13: 0 | I13: 0 | J13: 0 | L13: 11 | M13: =1-(((SUM(B$3:B13)*(1/$S$2))/X$2)) -> 1 | N13: =1-(((SUM(C$3:C13)*(1/$S$2))/Y$2)) -> 1 | O13: =1-(((SUM(D$3:D13)*(1/$S$2))/Z$2)) -> 1 | P13: =1-(((SUM(E$3:E13)*(1/$S$2))/AA$2)) -> 1 | Q13: =1-(((SUM(F$3:F13)*(1/$S$2))/AB$2)) -> 1 | R13: =1-(((SUM(G$3:G13)*(1/$S$2))/AC$2)) -> 1 | S13: =1-(((SUM(H$3:H13)*(1/$S$2))/AD$2)) -> 1 | T13: =1-(((SUM(I$3:I13)*(1/$S$2))/AE$2)) -> 1 | U13: =1-(((SUM(J$3:J13)*(1/$S$2))/AF$2)) -> 1 | W13: 11 | X13: ='min cases averted (1)'!B13/X$2 -> 0 | Y13: ='min cases averted (1)'!C13/Y$2 -> 0 | Z13: ='min cases averted (1)'!D13/Z$2 -> 0 | AA13: ='min cases averted (1)'!E13/AA$2 -> 0 | AB13: ='min cases averted (1)'!F13/AB$2 -> 0 | AC13: ='min cases averted (1)'!G13/AC$2 -> 0 | AD13: ='min cases averted (1)'!H13/AD$2 -> 0 | AE13: ='min cases averted (1)'!I13/AE$2 -> 0 | AF13: ='min cases averted (1)'!J13/AF$2 -> 0 | AH13: 11 | AI13: 0 | AJ13: ='Input data doses'!U15*SUM('min cases averted (1)'!Y13:Y$84)*AJ$2*N13 -> 0 | AK13: ='Input data doses'!V15*SUM('min cases averted (1)'!Z13:Z$84)*AK$2*O13 -> 0 | AL13: ='Input data doses'!W15*SUM('min cases averted (1)'!AA13:AA$84)*AL$2*P13 -> 0 | AM13: ='Input data doses'!X15*SUM('min cases averted (1)'!AB13:AB$84)*AM$2*Q13 -> 0 | AN13: ='Input data doses'!Y15*SUM('min cases averted (1)'!AC13:AC$84)*AN$2*R13 -> 0 | AO13: ='Input data doses'!Z15*SUM('min cases averted (1)'!AD13:AD$84)*AO$2*S13 -> 0 | AP13: ='Input data doses'!AA15*SUM('min cases averted (1)'!AE13:AE$84)*AP$2*T13 -> 0 | AQ13: ='Input data doses'!AB15*SUM('min cases averted (1)'!AF13:AF$84)*AQ$2*U13 -> 0
A14: 12 | B14: ='Input data cases'!D15 -> 0 | C14: 0 | D14: 0 | E14: 0 | F14: 0 | G14: 0 | H14: 0 | I14: 0 | J14: 0 | L14: 12 | M14: =1-(((SUM(B$3:B14)*(1/$S$2))/X$2)) -> 1 | N14: =1-(((SUM(C$3:C14)*(1/$S$2))/Y$2)) -> 1 | O14: =1-(((SUM(D$3:D14)*(1/$S$2))/Z$2)) -> 1 | P14: =1-(((SUM(E$3:E14)*(1/$S$2))/AA$2)) -> 1 | Q14: =1-(((SUM(F$3:F14)*(1/$S$2))/AB$2)) -> 1 | R14: =1-(((SUM(G$3:G14)*(1/$S$2))/AC$2)) -> 1 | S14: =1-(((SUM(H$3:H14)*(1/$S$2))/AD$2)) -> 1 | T14: =1-(((SUM(I$3:I14)*(1/$S$2))/AE$2)) -> 1 | U14: =1-(((SUM(J$3:J14)*(1/$S$2))/AF$2)) -> 1 | W14: 12 | X14: ='min cases averted (1)'!B14/X$2 -> 0 | Y14: ='min cases averted (1)'!C14/Y$2 -> 0 | Z14: ='min cases averted (1)'!D14/Z$2 -> 0 | AA14: ='min cases averted (1)'!E14/AA$2 -> 0 | AB14: ='min cases averted (1)'!F14/AB$2 -> 0 | AC14: ='min cases averted (1)'!G14/AC$2 -> 0 | AD14: ='min cases averted (1)'!H14/AD$2 -> 0 | AE14: ='min cases averted (1)'!I14/AE$2 -> 0 | AF14: ='min cases averted (1)'!J14/AF$2 -> 0 | AH14: 12 | AI14: 0 | AJ14: ='Input data doses'!U16*SUM('min cases averted (1)'!Y14:Y$84)*AJ$2*N14 -> 0 | AK14: ='Input data doses'!V16*SUM('min cases averted (1)'!Z14:Z$84)*AK$2*O14 -> 0 | AL14: ='Input data doses'!W16*SUM('min cases averted (1)'!AA14:AA$84)*AL$2*P14 -> 0 | AM14: ='Input data doses'!X16*SUM('min cases averted (1)'!AB14:AB$84)*AM$2*Q14 -> 0 | AN14: ='Input data doses'!Y16*SUM('min cases averted (1)'!AC14:AC$84)*AN$2*R14 -> 0 | AO14: ='Input data doses'!Z16*SUM('min cases averted (1)'!AD14:AD$84)*AO$2*S14 -> 0 | AP14: ='Input data doses'!AA16*SUM('min cases averted (1)'!AE14:AE$84)*AP$2*T14 -> 0 | AQ14: ='Input data doses'!AB16*SUM('min cases averted (1)'!AF14:AF$84)*AQ$2*U14 -> 0
A15: 13 | B15: ='Input data cases'!D16 -> 0 | C15: 0 | D15: 0 | E15: 0 | F15: 0 | G15: 0 | H15: 0 | I15: 0 | J15: 0 | L15: 13 | M15: =1-(((SUM(B$3:B15)*(1/$S$2))/X$2)) -> 1 | N15: =1-(((SUM(C$3:C15)*(1/$S$2))/Y$2)) -> 1 | O15: =1-(((SUM(D$3:D15)*(1/$S$2))/Z$2)) -> 1 | P15: =1-(((SUM(E$3:E15)*(1/$S$2))/AA$2)) -> 1 | Q15: =1-(((SUM(F$3:F15)*(1/$S$2))/AB$2)) -> 1 | R15: =1-(((SUM(G$3:G15)*(1/$S$2))/AC$2)) -> 1 | S15: =1-(((SUM(H$3:H15)*(1/$S$2))/AD$2)) -> 1 | T15: =1-(((SUM(I$3:I15)*(1/$S$2))/AE$2)) -> 1 | U15: =1-(((SUM(J$3:J15)*(1/$S$2))/AF$2)) -> 1 | W15: 13 | X15: ='min cases averted (1)'!B15/X$2 -> 0 | Y15: ='min cases averted (1)'!C15/Y$2 -> 0 | Z15: ='min cases averted (1)'!D15/Z$2 -> 0 | AA15: ='min cases averted (1)'!E15/AA$2 -> 0 | AB15: ='min cases averted (1)'!F15/AB$2 -> 0 | AC15: ='min cases averted (1)'!G15/AC$2 -> 0 | AD15: ='min cases averted (1)'!H15/AD$2 -> 0 | AE15: ='min cases averted (1)'!I15/AE$2 -> 0 | AF15: ='min cases averted (1)'!J15/AF$2 -> 0 | AH15: 13 | AI15: 0 | AJ15: ='Input data doses'!U17*SUM('min cases averted (1)'!Y15:Y$84)*AJ$2*N15 -> 0 | AK15: ='Input data doses'!V17*SUM('min cases averted (1)'!Z15:Z$84)*AK$2*O15 -> 0 | AL15: ='Input data doses'!W17*SUM('min cases averted (1)'!AA15:AA$84)*AL$2*P15 -> 0 | AM15: ='Input data doses'!X17*SUM('min cases averted (1)'!AB15:AB$84)*AM$2*Q15 -> 0 | AN15: ='Input data doses'!Y17*SUM('min cases averted (1)'!AC15:AC$84)*AN$2*R15 -> 0 | AO15: ='Input data doses'!Z17*SUM('min cases averted (1)'!AD15:AD$84)*AO$2*S15 -> 0 | AP15: ='Input data doses'!AA17*SUM('min cases averted (1)'!AE15:AE$84)*AP$2*T15 -> 0 | AQ15: ='Input data doses'!AB17*SUM('min cases averted (1)'!AF15:AF$84)*AQ$2*U15 -> 0
A16: 14 | B16: ='Input data cases'!D17 -> 120077.3777 | C16: 24182.92344 | D16: 26825.28618 | E16: 2641.702309 | F16: 16210.44599 | G16: 6724.333151 | H16: 3001.934443 | I16: 28759.25723 | J16: 11731.49496 | L16: 14 | M16: =1-(((SUM(B$3:B16)*(1/$S$2))/X$2)) -> 0.9994267766 | N16: =1-(((SUM(C$3:C16)*(1/$S$2))/Y$2)) -> 0.9991238192 | O16: =1-(((SUM(D$3:D16)*(1/$S$2))/Z$2)) -> 0.9993579301 | P16: =1-(((SUM(E$3:E16)*(1/$S$2))/AA$2)) -> 0.9993235332 | Q16: =1-(((SUM(F$3:F16)*(1/$S$2))/AB$2)) -> 0.9993178736 | R16: =1-(((SUM(G$3:G16)*(1/$S$2))/AC$2)) -> 0.9994495626 | S16: =1-(((SUM(H$3:H16)*(1/$S$2))/AD$2)) -> 0.9995199672 | T16: =1-(((SUM(I$3:I16)*(1/$S$2))/AE$2)) -> 0.9995730833 | U16: =1-(((SUM(J$3:J16)*(1/$S$2))/AF$2)) -> 0.9995588499 | W16: 14 | X16: ='min cases averted (1)'!B16/X$2 -> 0.0004012564068 | Y16: ='min cases averted (1)'!C16/Y$2 -> 0.0006133265594 | Z16: ='min cases averted (1)'!D16/Z$2 -> 0.000449448958 | AA16: ='min cases averted (1)'!E16/AA$2 -> 0.0004735267322 | AB16: ='min cases averted (1)'!F16/AB$2 -> 0.0004774885055 | AC16: ='min cases averted (1)'!G16/AC$2 -> 0.0003853061919 | AD16: ='min cases averted (1)'!H16/AD$2 -> 0.0003360229773 | AE16: ='min cases averted (1)'!I16/AE$2 -> 0.0002988417063 | AF16: ='min cases averted (1)'!J16/AF$2 -> 0.0003088051005 | AH16: 14 | AI16: 0 | AJ16: ='Input data doses'!U18*SUM('min cases averted (1)'!Y16:Y$84)*AJ$2*N16 -> 0 | AK16: ='Input data doses'!V18*SUM('min cases averted (1)'!Z16:Z$84)*AK$2*O16 -> 0 | AL16: ='Input data doses'!W18*SUM('min cases averted (1)'!AA16:AA$84)*AL$2*P16 -> 0 | AM16: ='Input data doses'!X18*SUM('min cases averted (1)'!AB16:AB$84)*AM$2*Q16 -> 0 | AN16: ='Input data doses'!Y18*SUM('min cases averted (1)'!AC16:AC$84)*AN$2*R16 -> 0 | AO16: ='Input data doses'!Z18*SUM('min cases averted (1)'!AD16:AD$84)*AO$2*S16 -> 0 | AP16: ='Input data doses'!AA18*SUM('min cases averted (1)'!AE16:AE$84)*AP$2*T16 -> 0 | AQ16: ='Input data doses'!AB18*SUM('min cases averted (1)'!AF16:AF$84)*AQ$2*U16 -> 0
A17: 15 | B17: ='Input data cases'!D18 -> 35606.46783 | C17: 7170.946786 | D17: 7954.484914 | E17: 783.3422923 | F17: 4806.873157 | G17: 1993.962199 | H17: 890.1616958 | I17: 8527.964109 | J17: 3478.73268 | L17: 15 | M17: =1-(((SUM(B$3:B17)*(1/$S$2))/X$2)) -> 0.999256799 | N17: =1-(((SUM(C$3:C17)*(1/$S$2))/Y$2)) -> 0.9988640059 | O17: =1-(((SUM(D$3:D17)*(1/$S$2))/Z$2)) -> 0.9991675375 | P17: =1-(((SUM(E$3:E17)*(1/$S$2))/AA$2)) -> 0.999122941 | Q17: =1-(((SUM(F$3:F17)*(1/$S$2))/AB$2)) -> 0.999115603 | R17: =1-(((SUM(G$3:G17)*(1/$S$2))/AC$2)) -> 0.9992863417 | S17: =1-(((SUM(H$3:H17)*(1/$S$2))/AD$2)) -> 0.9993776233 | T17: =1-(((SUM(I$3:I17)*(1/$S$2))/AE$2)) -> 0.9994464899 | U17: =1-(((SUM(J$3:J17)*(1/$S$2))/AF$2)) -> 0.9994280359 | W17: 15 | X17: ='min cases averted (1)'!B17/X$2 -> 0.0001189843051 | Y17: ='min cases averted (1)'!C17/Y$2 -> 0.0001818693315 | Z17: ='min cases averted (1)'!D17/Z$2 -> 0.0001332748114 | AA17: ='min cases averted (1)'!E17/AA$2 -> 0.0001404145783 | AB17: ='min cases averted (1)'!F17/AB$2 -> 0.0001415893604 | AC17: ='min cases averted (1)'!G17/AC$2 -> 0.0001142545981 | AD17: ='min cases averted (1)'!H17/AD$2 -> 9.964067805e-05 | AE17: ='min cases averted (1)'!I17/AE$2 -> 8.861533958e-05 | AF17: ='min cases averted (1)'!J17/AF$2 -> 9.156977847e-05 | AH17: 15 | AI17: 0 | AJ17: ='Input data doses'!U19*SUM('min cases averted (1)'!Y17:Y$84)*AJ$2*N17 -> 0 | AK17: ='Input data doses'!V19*SUM('min cases averted (1)'!Z17:Z$84)*AK$2*O17 -> 0 | AL17: ='Input data doses'!W19*SUM('min cases averted (1)'!AA17:AA$84)*AL$2*P17 -> 0 | AM17: ='Input data doses'!X19*SUM('min cases averted (1)'!AB17:AB$84)*AM$2*Q17 -> 0 | AN17: ='Input data doses'!Y19*SUM('min cases averted (1)'!AC17:AC$84)*AN$2*R17 -> 0 | AO17: ='Input data doses'!Z19*SUM('min cases averted (1)'!AD17:AD$84)*AO$2*S17 -> 0 | AP17: ='Input data doses'!AA19*SUM('min cases averted (1)'!AE17:AE$84)*AP$2*T17 -> 0 | AQ17: ='Input data doses'!AB19*SUM('min cases averted (1)'!AF17:AF$84)*AQ$2*U17 -> 0
A18: 16 | B18: ='Input data cases'!D19 -> 65555.44113 | C18: 13202.50529 | D18: 14645.08555 | E18: 1442.219705 | F18: 8849.984552 | G18: 3671.104703 | H18: 1638.886028 | I18: 15700.9241 | J18: 6404.731198 | L18: 16 | M18: =1-(((SUM(B$3:B18)*(1/$S$2))/X$2)) -> 0.9989438515 | N18: =1-(((SUM(C$3:C18)*(1/$S$2))/Y$2)) -> 0.9983856608 | O18: =1-(((SUM(D$3:D18)*(1/$S$2))/Z$2)) -> 0.9988170037 | P18: =1-(((SUM(E$3:E18)*(1/$S$2))/AA$2)) -> 0.9987536285 | Q18: =1-(((SUM(F$3:F18)*(1/$S$2))/AB$2)) -> 0.9987432007 | R18: =1-(((SUM(G$3:G18)*(1/$S$2))/AC$2)) -> 0.9989858341 | S18: =1-(((SUM(H$3:H18)*(1/$S$2))/AD$2)) -> 0.9991155526 | T18: =1-(((SUM(I$3:I18)*(1/$S$2))/AE$2)) -> 0.9992134176 | U18: =1-(((SUM(J$3:J18)*(1/$S$2))/AF$2)) -> 0.9991871929 | W18: 16 | X18: ='min cases averted (1)'!B18/X$2 -> 0.0002190632512 | Y18: ='min cases averted (1)'!C18/Y$2 -> 0.0003348415324 | Z18: ='min cases averted (1)'!D18/Z$2 -> 0.0002453736521 | AA18: ='min cases averted (1)'!E18/AA$2 -> 0.0002585187519 | AB18: ='min cases averted (1)'!F18/AB$2 -> 0.0002606816556 | AC18: ='min cases averted (1)'!G18/AC$2 -> 0.000210355338 | AD18: ='min cases averted (1)'!H18/AD$2 -> 0.0001834494967 | AE18: ='min cases averted (1)'!I18/AE$2 -> 0.0001631506305 | AF18: ='min cases averted (1)'!J18/AF$2 -> 0.0001685900789 | AH18: 16 | AI18: 0 | AJ18: ='Input data doses'!U20*SUM('min cases averted (1)'!Y18:Y$84)*AJ$2*N18 -> 0 | AK18: ='Input data doses'!V20*SUM('min cases averted (1)'!Z18:Z$84)*AK$2*O18 -> 0 | AL18: ='Input data doses'!W20*SUM('min cases averted (1)'!AA18:AA$84)*AL$2*P18 -> 0 | AM18: ='Input data doses'!X20*SUM('min cases averted (1)'!AB18:AB$84)*AM$2*Q18 -> 0 | AN18: ='Input data doses'!Y20*SUM('min cases averted (1)'!AC18:AC$84)*AN$2*R18 -> 0 | AO18: ='Input data doses'!Z20*SUM('min cases averted (1)'!AD18:AD$84)*AO$2*S18 -> 0 | AP18: ='Input data doses'!AA20*SUM('min cases averted (1)'!AE18:AE$84)*AP$2*T18 -> 0 | AQ18: ='Input data doses'!AB20*SUM('min cases averted (1)'!AF18:AF$84)*AQ$2*U18 -> 0
A19: 17 | B19: ='Input data cases'!D20 -> 58322.36865 | C19: 11745.80427 | D19: 13029.21716 | E19: 1283.09211 | F19: 7873.519767 | G19: 3266.052644 | H19: 1458.059216 | I19: 13968.55956 | J19: 5698.063923 | L19: 17 | M19: =1-(((SUM(B$3:B19)*(1/$S$2))/X$2)) -> 0.9986654331 | N19: =1-(((SUM(C$3:C19)*(1/$S$2))/Y$2)) -> 0.9979600941 | O19: =1-(((SUM(D$3:D19)*(1/$S$2))/Z$2)) -> 0.9985051461 | P19: =1-(((SUM(E$3:E19)*(1/$S$2))/AA$2)) -> 0.9984250641 | Q19: =1-(((SUM(F$3:F19)*(1/$S$2))/AB$2)) -> 0.9984118874 | R19: =1-(((SUM(G$3:G19)*(1/$S$2))/AC$2)) -> 0.998718483 | S19: =1-(((SUM(H$3:H19)*(1/$S$2))/AD$2)) -> 0.9988823976 | T19: =1-(((SUM(I$3:I19)*(1/$S$2))/AE$2)) -> 0.9990060614 | U19: =1-(((SUM(J$3:J19)*(1/$S$2))/AF$2)) -> 0.9989729234 | W19: 17 | X19: ='min cases averted (1)'!B19/X$2 -> 0.0001948928643 | Y19: ='min cases averted (1)'!C19/Y$2 -> 0.0002978967261 | Z19: ='min cases averted (1)'!D19/Z$2 -> 0.000218300302 | AA19: ='min cases averted (1)'!E19/AA$2 -> 0.0002299950346 | AB19: ='min cases averted (1)'!F19/AB$2 -> 0.0002319192939 | AC19: ='min cases averted (1)'!G19/AC$2 -> 0.0001871457405 | AD19: ='min cases averted (1)'!H19/AD$2 -> 0.0001632085604 | AE19: ='min cases averted (1)'!I19/AE$2 -> 0.0001451493736 | AF19: ='min cases averted (1)'!J19/AF$2 -> 0.0001499886594 | AH19: 17 | AI19: 0 | AJ19: ='Input data doses'!U21*SUM('min cases averted (1)'!Y19:Y$84)*AJ$2*N19 -> 0 | AK19: ='Input data doses'!V21*SUM('min cases averted (1)'!Z19:Z$84)*AK$2*O19 -> 0 | AL19: ='Input data doses'!W21*SUM('min cases averted (1)'!AA19:AA$84)*AL$2*P19 -> 0 | AM19: ='Input data doses'!X21*SUM('min cases averted (1)'!AB19:AB$84)*AM$2*Q19 -> 0 | AN19: ='Input data doses'!Y21*SUM('min cases averted (1)'!AC19:AC$84)*AN$2*R19 -> 0 | AO19: ='Input data doses'!Z21*SUM('min cases averted (1)'!AD19:AD$84)*AO$2*S19 -> 0 | AP19: ='Input data doses'!AA21*SUM('min cases averted (1)'!AE19:AE$84)*AP$2*T19 -> 0 | AQ19: ='Input data doses'!AB21*SUM('min cases averted (1)'!AF19:AF$84)*AQ$2*U19 -> 0
A20: 18 | B20: ='Input data cases'!D21 -> 77624.55918 | C20: 15633.15928 | D20: 17341.32652 | E20: 1707.740302 | F20: 10479.31549 | G20: 4346.975314 | H20: 1940.61398 | I20: 18591.55078 | J20: 7583.877515 | L20: 18 | M20: =1-(((SUM(B$3:B20)*(1/$S$2))/X$2)) -> 0.9982948702 | N20: =1-(((SUM(C$3:C20)*(1/$S$2))/Y$2)) -> 0.9973936831 | O20: =1-(((SUM(D$3:D20)*(1/$S$2))/Z$2)) -> 0.9980900771 | P20: =1-(((SUM(E$3:E20)*(1/$S$2))/AA$2)) -> 0.9979877592 | Q20: =1-(((SUM(F$3:F20)*(1/$S$2))/AB$2)) -> 0.9979709237 | R20: =1-(((SUM(G$3:G20)*(1/$S$2))/AC$2)) -> 0.9983626503 | S20: =1-(((SUM(H$3:H20)*(1/$S$2))/AD$2)) -> 0.9985720782 | T20: =1-(((SUM(I$3:I20)*(1/$S$2))/AE$2)) -> 0.9987300791 | U20: =1-(((SUM(J$3:J20)*(1/$S$2))/AF$2)) -> 0.9986877399 | W20: 18 | X20: ='min cases averted (1)'!B20/X$2 -> 0.0002593940032 | Y20: ='min cases averted (1)'!C20/Y$2 -> 0.0003964877042 | Z20: ='min cases averted (1)'!D20/Z$2 -> 0.000290548294 | AA20: ='min cases averted (1)'!E20/AA$2 -> 0.0003061134791 | AB20: ='min cases averted (1)'!F20/AB$2 -> 0.0003086745852 | AC20: ='min cases averted (1)'!G20/AC$2 -> 0.0002490829153 | AD20: ='min cases averted (1)'!H20/AD$2 -> 0.0002172235602 | AE20: ='min cases averted (1)'!I20/AE$2 -> 0.0001931875609 | AF20: ='min cases averted (1)'!J20/AF$2 -> 0.0001996284417 | AH20: 18 | AI20: 0 | AJ20: ='Input data doses'!U22*SUM('min cases averted (1)'!Y20:Y$84)*AJ$2*N20 -> 0 | AK20: ='Input data doses'!V22*SUM('min cases averted (1)'!Z20:Z$84)*AK$2*O20 -> 0 | AL20: ='Input data doses'!W22*SUM('min cases averted (1)'!AA20:AA$84)*AL$2*P20 -> 0 | AM20: ='Input data doses'!X22*SUM('min cases averted (1)'!AB20:AB$84)*AM$2*Q20 -> 0 | AN20: ='Input data doses'!Y22*SUM('min cases averted (1)'!AC20:AC$84)*AN$2*R20 -> 0 | AO20: ='Input data doses'!Z22*SUM('min cases averted (1)'!AD20:AD$84)*AO$2*S20 -> 0 | AP20: ='Input data doses'!AA22*SUM('min cases averted (1)'!AE20:AE$84)*AP$2*T20 -> 0 | AQ20: ='Input data doses'!AB22*SUM('min cases averted (1)'!AF20:AF$84)*AQ$2*U20 -> 0
A21: 19 | B21: ='Input data cases'!D22 -> 28387.49946 | C21: 5717.08626 | D21: 6341.767379 | E21: 624.5249881 | F21: 3832.312427 | G21: 1589.69997 | H21: 709.6874865 | I21: 6798.977581 | J21: 2773.443368 | L21: 19 | M21: =1-(((SUM(B$3:B21)*(1/$S$2))/X$2)) -> 0.9981593545 | N21: =1-(((SUM(C$3:C21)*(1/$S$2))/Y$2)) -> 0.9971865451 | O21: =1-(((SUM(D$3:D21)*(1/$S$2))/Z$2)) -> 0.9979382853 | P21: =1-(((SUM(E$3:E21)*(1/$S$2))/AA$2)) -> 0.9978278356 | Q21: =1-(((SUM(F$3:F21)*(1/$S$2))/AB$2)) -> 0.9978096622 | R21: =1-(((SUM(G$3:G21)*(1/$S$2))/AC$2)) -> 0.9982325214 | S21: =1-(((SUM(H$3:H21)*(1/$S$2))/AD$2)) -> 0.9984585936 | T21: =1-(((SUM(I$3:I21)*(1/$S$2))/AE$2)) -> 0.9986291517 | U21: =1-(((SUM(J$3:J21)*(1/$S$2))/AF$2)) -> 0.9985834476 | W21: 19 | X21: ='min cases averted (1)'!B21/X$2 -> 9.486104917e-05 | Y21: ='min cases averted (1)'!C21/Y$2 -> 0.0001449965656 | Z21: ='min cases averted (1)'!D21/Z$2 -> 0.0001062542529 | AA21: ='min cases averted (1)'!E21/AA$2 -> 0.0001119464808 | AB21: ='min cases averted (1)'!F21/AB$2 -> 0.0001128830838 | AC21: ='min cases averted (1)'!G21/AC$2 -> 9.109025799e-05 | AD21: ='min cases averted (1)'!H21/AD$2 -> 7.943921053e-05 | AE21: ='min cases averted (1)'!I21/AE$2 -> 7.064918419e-05 | AF21: ='min cases averted (1)'!J21/AF$2 -> 7.300463076e-05 | AH21: 19 | AI21: 0 | AJ21: ='Input data doses'!U23*SUM('min cases averted (1)'!Y21:Y$84)*AJ$2*N21 -> 0 | AK21: ='Input data doses'!V23*SUM('min cases averted (1)'!Z21:Z$84)*AK$2*O21 -> 0 | AL21: ='Input data doses'!W23*SUM('min cases averted (1)'!AA21:AA$84)*AL$2*P21 -> 0 | AM21: ='Input data doses'!X23*SUM('min cases averted (1)'!AB21:AB$84)*AM$2*Q21 -> 0 | AN21: ='Input data doses'!Y23*SUM('min cases averted (1)'!AC21:AC$84)*AN$2*R21 -> 0 | AO21: ='Input data doses'!Z23*SUM('min cases averted (1)'!AD21:AD$84)*AO$2*S21 -> 0 | AP21: ='Input data doses'!AA23*SUM('min cases averted (1)'!AE21:AE$84)*AP$2*T21 -> 0 | AQ21: ='Input data doses'!AB23*SUM('min cases averted (1)'!AF21:AF$84)*AQ$2*U21 -> 0
A22: 20 | B22: ='Input data cases'!D23 -> 82484.59163 | C22: 16611.94309 | D22: 18427.05777 | E22: 1814.661016 | F22: 11135.41987 | G22: 4619.137131 | H22: 2062.114791 | I22: 19755.5579 | J22: 8058.70006 | L22: 20 | M22: =1-(((SUM(B$3:B22)*(1/$S$2))/X$2)) -> 0.9977655909 | N22: =1-(((SUM(C$3:C22)*(1/$S$2))/Y$2)) -> 0.9965846714 | O22: =1-(((SUM(D$3:D22)*(1/$S$2))/Z$2)) -> 0.9974972291 | P22: =1-(((SUM(E$3:E22)*(1/$S$2))/AA$2)) -> 0.9973631512 | Q22: =1-(((SUM(F$3:F22)*(1/$S$2))/AB$2)) -> 0.99734109 | R22: =1-(((SUM(G$3:G22)*(1/$S$2))/AC$2)) -> 0.9978544101 | S22: =1-(((SUM(H$3:H22)*(1/$S$2))/AD$2)) -> 0.9981288453 | T22: =1-(((SUM(I$3:I22)*(1/$S$2))/AE$2)) -> 0.9983358904 | U22: =1-(((SUM(J$3:J22)*(1/$S$2))/AF$2)) -> 0.9982804089 | W22: 20 | X22: ='min cases averted (1)'!B22/X$2 -> 0.000275634524 | Y22: ='min cases averted (1)'!C22/Y$2 -> 0.0004213115889 | Z22: ='min cases averted (1)'!D22/Z$2 -> 0.0003087393685 | AA22: ='min cases averted (1)'!E22/AA$2 -> 0.0003252790815 | AB22: ='min cases averted (1)'!F22/AB$2 -> 0.0003280005371 | AC22: ='min cases averted (1)'!G22/AC$2 -> 0.0002646778644 | AD22: ='min cases averted (1)'!H22/AD$2 -> 0.000230823812 | AE22: ='min cases averted (1)'!I22/AE$2 -> 0.0002052829315 | AF22: ='min cases averted (1)'!J22/AF$2 -> 0.0002121270725 | AH22: 20 | AI22: 0 | AJ22: ='Input data doses'!U24*SUM('min cases averted (1)'!Y22:Y$84)*AJ$2*N22 -> 0 | AK22: ='Input data doses'!V24*SUM('min cases averted (1)'!Z22:Z$84)*AK$2*O22 -> 0 | AL22: ='Input data doses'!W24*SUM('min cases averted (1)'!AA22:AA$84)*AL$2*P22 -> 0 | AM22: ='Input data doses'!X24*SUM('min cases averted (1)'!AB22:AB$84)*AM$2*Q22 -> 0 | AN22: ='Input data doses'!Y24*SUM('min cases averted (1)'!AC22:AC$84)*AN$2*R22 -> 0 | AO22: ='Input data doses'!Z24*SUM('min cases averted (1)'!AD22:AD$84)*AO$2*S22 -> 0 | AP22: ='Input data doses'!AA24*SUM('min cases averted (1)'!AE22:AE$84)*AP$2*T22 -> 0 | AQ22: ='Input data doses'!AB24*SUM('min cases averted (1)'!AF22:AF$84)*AQ$2*U22 -> 0
A23: 21 | B23: ='Input data cases'!D24 -> 82383.29865 | C23: 16591.54324 | D23: 18404.42892 | E23: 1812.43257 | F23: 11121.74532 | G23: 4613.464725 | H23: 2059.582466 | I23: 19731.29762 | J23: 8048.803792 | L23: 21 | M23: =1-(((SUM(B$3:B23)*(1/$S$2))/X$2)) -> 0.9973723108 | N23: =1-(((SUM(C$3:C23)*(1/$S$2))/Y$2)) -> 0.9959835368 | O23: =1-(((SUM(D$3:D23)*(1/$S$2))/Z$2)) -> 0.9970567145 | P23: =1-(((SUM(E$3:E23)*(1/$S$2))/AA$2)) -> 0.9968990375 | Q23: =1-(((SUM(F$3:F23)*(1/$S$2))/AB$2)) -> 0.9968730932 | R23: =1-(((SUM(G$3:G23)*(1/$S$2))/AC$2)) -> 0.9974767632 | S23: =1-(((SUM(H$3:H23)*(1/$S$2))/AD$2)) -> 0.9977995019 | T23: =1-(((SUM(I$3:I23)*(1/$S$2))/AE$2)) -> 0.9980429892 | U23: =1-(((SUM(J$3:J23)*(1/$S$2))/AF$2)) -> 0.9979777424 | W23: 21 | X23: ='min cases averted (1)'!B23/X$2 -> 0.0002752960385 | Y23: ='min cases averted (1)'!C23/Y$2 -> 0.0004207942086 | Z23: ='min cases averted (1)'!D23/Z$2 -> 0.0003083602294 | AA23: ='min cases averted (1)'!E23/AA$2 -> 0.0003248796313 | AB23: ='min cases averted (1)'!F23/AB$2 -> 0.000327597745 | AC23: ='min cases averted (1)'!G23/AC$2 -> 0.0002643528339 | AD23: ='min cases averted (1)'!H23/AD$2 -> 0.0002305403551 | AE23: ='min cases averted (1)'!I23/AE$2 -> 0.0002050308393 | AF23: ='min cases averted (1)'!J23/AF$2 -> 0.0002118665756 | AH23: 21 | AI23: 0 | AJ23: ='Input data doses'!U25*SUM('min cases averted (1)'!Y23:Y$84)*AJ$2*N23 -> 0 | AK23: ='Input data doses'!V25*SUM('min cases averted (1)'!Z23:Z$84)*AK$2*O23 -> 0 | AL23: ='Input data doses'!W25*SUM('min cases averted (1)'!AA23:AA$84)*AL$2*P23 -> 0 | AM23: ='Input data doses'!X25*SUM('min cases averted (1)'!AB23:AB$84)*AM$2*Q23 -> 0 | AN23: ='Input data doses'!Y25*SUM('min cases averted (1)'!AC23:AC$84)*AN$2*R23 -> 0 | AO23: ='Input data doses'!Z25*SUM('min cases averted (1)'!AD23:AD$84)*AO$2*S23 -> 0 | AP23: ='Input data doses'!AA25*SUM('min cases averted (1)'!AE23:AE$84)*AP$2*T23 -> 0 | AQ23: ='Input data doses'!AB25*SUM('min cases averted (1)'!AF23:AF$84)*AQ$2*U23 -> 0
A24: 22 | B24: ='Input data cases'!D25 -> 246050.8795 | C24: 49553.29384 | D24: 54967.76647 | E24: 5413.119348 | F24: 33216.86873 | G24: 13778.84925 | H24: 6151.271987 | I24: 58930.67178 | J24: 24039.03806 | L24: 22 | M24: =1-(((SUM(B$3:B24)*(1/$S$2))/X$2)) -> 0.9961977171 | N24: =1-(((SUM(C$3:C24)*(1/$S$2))/Y$2)) -> 0.9941881524 | O24: =1-(((SUM(D$3:D24)*(1/$S$2))/Z$2)) -> 0.9957410472 | P24: =1-(((SUM(E$3:E24)*(1/$S$2))/AA$2)) -> 0.9955128876 | Q24: =1-(((SUM(F$3:F24)*(1/$S$2))/AB$2)) -> 0.9954753461 | R24: =1-(((SUM(G$3:G24)*(1/$S$2))/AC$2)) -> 0.9963488604 | S24: =1-(((SUM(H$3:H24)*(1/$S$2))/AD$2)) -> 0.9968158654 | T24: =1-(((SUM(I$3:I24)*(1/$S$2))/AE$2)) -> 0.997168193 | U24: =1-(((SUM(J$3:J24)*(1/$S$2))/AF$2)) -> 0.9970737804 | W24: 22 | X24: ='min cases averted (1)'!B24/X$2 -> 0.0008222155885 | Y24: ='min cases averted (1)'!C24/Y$2 -> 0.001256769112 | Z24: ='min cases averted (1)'!D24/Z$2 -> 0.0009209670756 | AA24: ='min cases averted (1)'!E24/AA$2 -> 0.0009703049078 | AB24: ='min cases averted (1)'!F24/AB$2 -> 0.0009784229883 | AC24: ='min cases averted (1)'!G24/AC$2 -> 0.0007895319601 | AD24: ='min cases averted (1)'!H24/AD$2 -> 0.0006885455918 | AE24: ='min cases averted (1)'!I24/AE$2 -> 0.0006123573487 | AF24: ='min cases averted (1)'!J24/AF$2 -> 0.0006327733667 | AH24: 22 | AI24: 0 | AJ24: ='Input data doses'!U26*SUM('min cases averted (1)'!Y24:Y$84)*AJ$2*N24 -> 0 | AK24: ='Input data doses'!V26*SUM('min cases averted (1)'!Z24:Z$84)*AK$2*O24 -> 0 | AL24: ='Input data doses'!W26*SUM('min cases averted (1)'!AA24:AA$84)*AL$2*P24 -> 0 | AM24: ='Input data doses'!X26*SUM('min cases averted (1)'!AB24:AB$84)*AM$2*Q24 -> 0 | AN24: ='Input data doses'!Y26*SUM('min cases averted (1)'!AC24:AC$84)*AN$2*R24 -> 0 | AO24: ='Input data doses'!Z26*SUM('min cases averted (1)'!AD24:AD$84)*AO$2*S24 -> 0 | AP24: ='Input data doses'!AA26*SUM('min cases averted (1)'!AE24:AE$84)*AP$2*T24 -> 0 | AQ24: ='Input data doses'!AB26*SUM('min cases averted (1)'!AF24:AF$84)*AQ$2*U24 -> 0
A25: 23 | B25: ='Input data cases'!D26 -> 442477.8912 | C25: 89112.61366 | D25: 98849.5609 | E25: 9734.513607 | F25: 59734.51531 | G25: 24778.76191 | H25: 11061.94728 | I25: 105976.1275 | J25: 43229.85103 | L25: 23 | M25: =1-(((SUM(B$3:B25)*(1/$S$2))/X$2)) -> 0.9940854233 | N25: =1-(((SUM(C$3:C25)*(1/$S$2))/Y$2)) -> 0.990959479 | O25: =1-(((SUM(D$3:D25)*(1/$S$2))/Z$2)) -> 0.9933750582 | P25: =1-(((SUM(E$3:E25)*(1/$S$2))/AA$2)) -> 0.9930201484 | Q25: =1-(((SUM(F$3:F25)*(1/$S$2))/AB$2)) -> 0.9929617513 | R25: =1-(((SUM(G$3:G25)*(1/$S$2))/AC$2)) -> 0.9943205318 | S25: =1-(((SUM(H$3:H25)*(1/$S$2))/AD$2)) -> 0.9950469734 | T25: =1-(((SUM(I$3:I25)*(1/$S$2))/AE$2)) -> 0.9955950306 | U25: =1-(((SUM(J$3:J25)*(1/$S$2))/AF$2)) -> 0.9954481688 | W25: 23 | X25: ='min cases averted (1)'!B25/X$2 -> 0.001478605647 | Y25: ='min cases averted (1)'!C25/Y$2 -> 0.002260071363 | Z25: ='min cases averted (1)'!D25/Z$2 -> 0.00165619229 | AA25: ='min cases averted (1)'!E25/AA$2 -> 0.001744917435 | AB25: ='min cases averted (1)'!F25/AB$2 -> 0.001759516331 | AC25: ='min cases averted (1)'!G25/AC$2 -> 0.001419830067 | AD25: ='min cases averted (1)'!H25/AD$2 -> 0.001238224395 | AE25: ='min cases averted (1)'!I25/AE$2 -> 0.001101213655 | AF25: ='min cases averted (1)'!J25/AF$2 -> 0.001137928162 | AH25: 23 | AI25: 0 | AJ25: ='Input data doses'!U27*SUM('min cases averted (1)'!Y25:Y$84)*AJ$2*N25 -> 0 | AK25: ='Input data doses'!V27*SUM('min cases averted (1)'!Z25:Z$84)*AK$2*O25 -> 0 | AL25: ='Input data doses'!W27*SUM('min cases averted (1)'!AA25:AA$84)*AL$2*P25 -> 0 | AM25: ='Input data doses'!X27*SUM('min cases averted (1)'!AB25:AB$84)*AM$2*Q25 -> 0 | AN25: ='Input data doses'!Y27*SUM('min cases averted (1)'!AC25:AC$84)*AN$2*R25 -> 0 | AO25: ='Input data doses'!Z27*SUM('min cases averted (1)'!AD25:AD$84)*AO$2*S25 -> 0 | AP25: ='Input data doses'!AA27*SUM('min cases averted (1)'!AE25:AE$84)*AP$2*T25 -> 0 | AQ25: ='Input data doses'!AB27*SUM('min cases averted (1)'!AF25:AF$84)*AQ$2*U25 -> 0
A26: 24 | B26: ='Input data cases'!D27 -> 552166.8775 | C26: 111203.3722 | D26: 123354.0804 | E26: 12147.67131 | F26: 74542.52847 | G26: 30921.34514 | H26: 13804.17194 | I26: 132247.3023 | J26: 53946.40576 | L26: 24 | M26: =1-(((SUM(B$3:B26)*(1/$S$2))/X$2)) -> 0.991449498 | N26: =1-(((SUM(C$3:C26)*(1/$S$2))/Y$2)) -> 0.9869304269 | O26: =1-(((SUM(D$3:D26)*(1/$S$2))/Z$2)) -> 0.9904225474 | P26: =1-(((SUM(E$3:E26)*(1/$S$2))/AA$2)) -> 0.9899094664 | Q26: =1-(((SUM(F$3:F26)*(1/$S$2))/AB$2)) -> 0.9898250437 | R26: =1-(((SUM(G$3:G26)*(1/$S$2))/AC$2)) -> 0.9917893863 | S26: =1-(((SUM(H$3:H26)*(1/$S$2))/AD$2)) -> 0.9928395782 | T26: =1-(((SUM(I$3:I26)*(1/$S$2))/AE$2)) -> 0.9936318859 | U26: =1-(((SUM(J$3:J26)*(1/$S$2))/AF$2)) -> 0.9934195727 | W26: 24 | X26: ='min cases averted (1)'!B26/X$2 -> 0.001845147699 | Y26: ='min cases averted (1)'!C26/Y$2 -> 0.002820336501 | Z26: ='min cases averted (1)'!D26/Z$2 -> 0.002066757557 | AA26: ='min cases averted (1)'!E26/AA$2 -> 0.002177477408 | AB26: ='min cases averted (1)'!F26/AB$2 -> 0.002195695327 | AC26: ='min cases averted (1)'!G26/AC$2 -> 0.001771801824 | AD26: ='min cases averted (1)'!H26/AD$2 -> 0.001545176633 | AE26: ='min cases averted (1)'!I26/AE$2 -> 0.001374201327 | AF26: ='min cases averted (1)'!J26/AF$2 -> 0.001420017253 | AH26: 24 | AI26: 0 | AJ26: ='Input data doses'!U28*SUM('min cases averted (1)'!Y26:Y$84)*AJ$2*N26 -> 0 | AK26: ='Input data doses'!V28*SUM('min cases averted (1)'!Z26:Z$84)*AK$2*O26 -> 0 | AL26: ='Input data doses'!W28*SUM('min cases averted (1)'!AA26:AA$84)*AL$2*P26 -> 0 | AM26: ='Input data doses'!X28*SUM('min cases averted (1)'!AB26:AB$84)*AM$2*Q26 -> 0 | AN26: ='Input data doses'!Y28*SUM('min cases averted (1)'!AC26:AC$84)*AN$2*R26 -> 0 | AO26: ='Input data doses'!Z28*SUM('min cases averted (1)'!AD26:AD$84)*AO$2*S26 -> 0 | AP26: ='Input data doses'!AA28*SUM('min cases averted (1)'!AE26:AE$84)*AP$2*T26 -> 0 | AQ26: ='Input data doses'!AB28*SUM('min cases averted (1)'!AF26:AF$84)*AQ$2*U26 -> 0
A27: 25 | B27: ='Input data cases'!D28 -> 541266.0714 | C27: 109008.0098 | D27: 120918.8403 | E27: 11907.85357 | F27: 73070.91964 | G27: 30310.9 | H27: 13531.65178 | I27: 129636.4933 | J27: 52881.40289 | L27: 25 | M27: =1-(((SUM(B$3:B27)*(1/$S$2))/X$2)) -> 0.9888656108 | N27: =1-(((SUM(C$3:C27)*(1/$S$2))/Y$2)) -> 0.9829809157 | O27: =1-(((SUM(D$3:D27)*(1/$S$2))/Z$2)) -> 0.9875283247 | P27: =1-(((SUM(E$3:E27)*(1/$S$2))/AA$2)) -> 0.9868601951 | Q27: =1-(((SUM(F$3:F27)*(1/$S$2))/AB$2)) -> 0.9867502606 | R27: =1-(((SUM(G$3:G27)*(1/$S$2))/AC$2)) -> 0.9893082104 | S27: =1-(((SUM(H$3:H27)*(1/$S$2))/AD$2)) -> 0.9906757611 | T27: =1-(((SUM(I$3:I27)*(1/$S$2))/AE$2)) -> 0.9917074973 | U27: =1-(((SUM(J$3:J27)*(1/$S$2))/AF$2)) -> 0.9914310249 | W27: 25 | X27: ='min cases averted (1)'!B27/X$2 -> 0.001808721035 | Y27: ='min cases averted (1)'!C27/Y$2 -> 0.002764657787 | Z27: ='min cases averted (1)'!D27/Z$2 -> 0.0020259559 | AA27: ='min cases averted (1)'!E27/AA$2 -> 0.002134489934 | AB27: ='min cases averted (1)'!F27/AB$2 -> 0.002152348198 | AC27: ='min cases averted (1)'!G27/AC$2 -> 0.001736823145 | AD27: ='min cases averted (1)'!H27/AD$2 -> 0.001514671958 | AE27: ='min cases averted (1)'!I27/AE$2 -> 0.001347072025 | AF27: ='min cases averted (1)'!J27/AF$2 -> 0.001391983459 | AH27: 25 | AI27: 0 | AJ27: ='Input data doses'!U29*SUM('min cases averted (1)'!Y27:Y$84)*AJ$2*N27 -> 0 | AK27: ='Input data doses'!V29*SUM('min cases averted (1)'!Z27:Z$84)*AK$2*O27 -> 0 | AL27: ='Input data doses'!W29*SUM('min cases averted (1)'!AA27:AA$84)*AL$2*P27 -> 0 | AM27: ='Input data doses'!X29*SUM('min cases averted (1)'!AB27:AB$84)*AM$2*Q27 -> 0 | AN27: ='Input data doses'!Y29*SUM('min cases averted (1)'!AC27:AC$84)*AN$2*R27 -> 0 | AO27: ='Input data doses'!Z29*SUM('min cases averted (1)'!AD27:AD$84)*AO$2*S27 -> 0 | AP27: ='Input data doses'!AA29*SUM('min cases averted (1)'!AE27:AE$84)*AP$2*T27 -> 0 | AQ27: ='Input data doses'!AB29*SUM('min cases averted (1)'!AF27:AF$84)*AQ$2*U27 -> 0
A28: 26 | B28: ='Input data cases'!D29 -> 295189.0395 | C28: 59449.44902 | D28: 65945.23142 | E28: 6494.158869 | F28: 39850.52033 | G28: 16530.58621 | H28: 7379.725987 | I28: 70699.5579 | J28: 28839.80976 | L28: 26 | M28: =1-(((SUM(B$3:B28)*(1/$S$2))/X$2)) -> 0.9874564422 | N28: =1-(((SUM(C$3:C28)*(1/$S$2))/Y$2)) -> 0.9808269799 | O28: =1-(((SUM(D$3:D28)*(1/$S$2))/Z$2)) -> 0.9859499091 | P28: =1-(((SUM(E$3:E28)*(1/$S$2))/AA$2)) -> 0.9851972209 | Q28: =1-(((SUM(F$3:F28)*(1/$S$2))/AB$2)) -> 0.9850733731 | R28: =1-(((SUM(G$3:G28)*(1/$S$2))/AC$2)) -> 0.9879550571 | S28: =1-(((SUM(H$3:H28)*(1/$S$2))/AD$2)) -> 0.9894956851 | T28: =1-(((SUM(I$3:I28)*(1/$S$2))/AE$2)) -> 0.9906579978 | U28: =1-(((SUM(J$3:J28)*(1/$S$2))/AF$2)) -> 0.9903465351 | W28: 26 | X28: ='min cases averted (1)'!B28/X$2 -> 0.0009864180545 | Y28: ='min cases averted (1)'!C28/Y$2 -> 0.001507755095 | Z28: ='min cases averted (1)'!D28/Z$2 -> 0.001104890936 | AA28: ='min cases averted (1)'!E28/AA$2 -> 0.001164081894 | AB28: ='min cases averted (1)'!F28/AB$2 -> 0.001173821214 | AC28: ='min cases averted (1)'!G28/AC$2 -> 0.0009472072664 | AD28: ='min cases averted (1)'!H28/AD$2 -> 0.0008260531819 | AE28: ='min cases averted (1)'!I28/AE$2 -> 0.0007346495894 | AF28: ='min cases averted (1)'!J28/AF$2 -> 0.0007591428356 | AH28: 26 | AI28: 0 | AJ28: ='Input data doses'!U30*SUM('min cases averted (1)'!Y28:Y$84)*AJ$2*N28 -> 0 | AK28: ='Input data doses'!V30*SUM('min cases averted (1)'!Z28:Z$84)*AK$2*O28 -> 0 | AL28: ='Input data doses'!W30*SUM('min cases averted (1)'!AA28:AA$84)*AL$2*P28 -> 0 | AM28: ='Input data doses'!X30*SUM('min cases averted (1)'!AB28:AB$84)*AM$2*Q28 -> 0 | AN28: ='Input data doses'!Y30*SUM('min cases averted (1)'!AC28:AC$84)*AN$2*R28 -> 0 | AO28: ='Input data doses'!Z30*SUM('min cases averted (1)'!AD28:AD$84)*AO$2*S28 -> 0 | AP28: ='Input data doses'!AA30*SUM('min cases averted (1)'!AE28:AE$84)*AP$2*T28 -> 0 | AQ28: ='Input data doses'!AB30*SUM('min cases averted (1)'!AF28:AF$84)*AQ$2*U28 -> 0
A29: 27 | B29: ='Input data cases'!D30 -> 281296.2007 | C29: 56651.5077 | D29: 62841.57124 | E29: 6188.516416 | F29: 37974.9871 | G29: 15752.58724 | H29: 7032.405018 | I29: 67372.1391 | J29: 27482.48691 | L29: 27 | M29: =1-(((SUM(B$3:B29)*(1/$S$2))/X$2)) -> 0.9861135949 | N29: =1-(((SUM(C$3:C29)*(1/$S$2))/Y$2)) -> 0.9787744173 | O29: =1-(((SUM(D$3:D29)*(1/$S$2))/Z$2)) -> 0.9844457804 | P29: =1-(((SUM(E$3:E29)*(1/$S$2))/AA$2)) -> 0.9836125134 | Q29: =1-(((SUM(F$3:F29)*(1/$S$2))/AB$2)) -> 0.983475407 | R29: =1-(((SUM(G$3:G29)*(1/$S$2))/AC$2)) -> 0.986665589 | S29: =1-(((SUM(H$3:H29)*(1/$S$2))/AD$2)) -> 0.9883711485 | T29: =1-(((SUM(I$3:I29)*(1/$S$2))/AE$2)) -> 0.9896578923 | U29: =1-(((SUM(J$3:J29)*(1/$S$2))/AF$2)) -> 0.989313086 | W29: 27 | X29: ='min cases averted (1)'!B29/X$2 -> 0.0009399930686 | Y29: ='min cases averted (1)'!C29/Y$2 -> 0.001436793793 | Z29: ='min cases averted (1)'!D29/Z$2 -> 0.001052890117 | AA29: ='min cases averted (1)'!E29/AA$2 -> 0.0011092953 | AB29: ='min cases averted (1)'!F29/AB$2 -> 0.001118576247 | AC29: ='min cases averted (1)'!G29/AC$2 -> 0.0009026277053 | AD29: ='min cases averted (1)'!H29/AD$2 -> 0.0007871756419 | AE29: ='min cases averted (1)'!I29/AE$2 -> 0.0007000738873 | AF29: ='min cases averted (1)'!J29/AF$2 -> 0.0007234143782 | AH29: 27 | AI29: 0 | AJ29: ='Input data doses'!U31*SUM('min cases averted (1)'!Y29:Y$84)*AJ$2*N29 -> 0 | AK29: ='Input data doses'!V31*SUM('min cases averted (1)'!Z29:Z$84)*AK$2*O29 -> 0 | AL29: ='Input data doses'!W31*SUM('min cases averted (1)'!AA29:AA$84)*AL$2*P29 -> 0 | AM29: ='Input data doses'!X31*SUM('min cases averted (1)'!AB29:AB$84)*AM$2*Q29 -> 0 | AN29: ='Input data doses'!Y31*SUM('min cases averted (1)'!AC29:AC$84)*AN$2*R29 -> 0 | AO29: ='Input data doses'!Z31*SUM('min cases averted (1)'!AD29:AD$84)*AO$2*S29 -> 0 | AP29: ='Input data doses'!AA31*SUM('min cases averted (1)'!AE29:AE$84)*AP$2*T29 -> 0 | AQ29: ='Input data doses'!AB31*SUM('min cases averted (1)'!AF29:AF$84)*AQ$2*U29 -> 0
A30: 28 | B30: ='Input data cases'!D31 -> 68034.70264 | C30: 13701.81492 | D30: 15198.95257 | E30: 1496.763458 | F30: 9184.684856 | G30: 3809.943348 | H30: 1700.867566 | I30: 16294.72221 | J30: 6646.953709 | L30: 28 | M30: =1-(((SUM(B$3:B30)*(1/$S$2))/X$2)) -> 0.985788812 | N30: =1-(((SUM(C$3:C30)*(1/$S$2))/Y$2)) -> 0.9782779816 | O30: =1-(((SUM(D$3:D30)*(1/$S$2))/Z$2)) -> 0.9840819896 | P30: =1-(((SUM(E$3:E30)*(1/$S$2))/AA$2)) -> 0.9832292337 | Q30: =1-(((SUM(F$3:F30)*(1/$S$2))/AB$2)) -> 0.9830889207 | R30: =1-(((SUM(G$3:G30)*(1/$S$2))/AC$2)) -> 0.9863537164 | S30: =1-(((SUM(H$3:H30)*(1/$S$2))/AD$2)) -> 0.9880991665 | T30: =1-(((SUM(I$3:I30)*(1/$S$2))/AE$2)) -> 0.9894160053 | U30: =1-(((SUM(J$3:J30)*(1/$S$2))/AF$2)) -> 0.9890631345 | W30: 28 | X30: ='min cases averted (1)'!B30/X$2 -> 0.000227348072 | Y30: ='min cases averted (1)'!C30/Y$2 -> 0.0003475050079 | Z30: ='min cases averted (1)'!D30/Z$2 -> 0.0002546535142 | AA30: ='min cases averted (1)'!E30/AA$2 -> 0.0002682957526 | AB30: ='min cases averted (1)'!F30/AB$2 -> 0.0002705404557 | AC30: ='min cases averted (1)'!G30/AC$2 -> 0.0002183108317 | AD30: ='min cases averted (1)'!H30/AD$2 -> 0.00019038743 | AE30: ='min cases averted (1)'!I30/AE$2 -> 0.0001693208747 | AF30: ='min cases averted (1)'!J30/AF$2 -> 0.0001749660393 | AH30: 28 | AI30: 0 | AJ30: ='Input data doses'!U32*SUM('min cases averted (1)'!Y30:Y$84)*AJ$2*N30 -> 0 | AK30: ='Input data doses'!V32*SUM('min cases averted (1)'!Z30:Z$84)*AK$2*O30 -> 0 | AL30: ='Input data doses'!W32*SUM('min cases averted (1)'!AA30:AA$84)*AL$2*P30 -> 0 | AM30: ='Input data doses'!X32*SUM('min cases averted (1)'!AB30:AB$84)*AM$2*Q30 -> 0 | AN30: ='Input data doses'!Y32*SUM('min cases averted (1)'!AC30:AC$84)*AN$2*R30 -> 0 | AO30: ='Input data doses'!Z32*SUM('min cases averted (1)'!AD30:AD$84)*AO$2*S30 -> 0 | AP30: ='Input data doses'!AA32*SUM('min cases averted (1)'!AE30:AE$84)*AP$2*T30 -> 0 | AQ30: ='Input data doses'!AB32*SUM('min cases averted (1)'!AF30:AF$84)*AQ$2*U30 -> 0
A31: 29 | B31: ='Input data cases'!D32 -> 75900.72936 | C31: 15285.98944 | D31: 16956.22294 | E31: 1669.816046 | F31: 10246.59846 | G31: 4250.440844 | H31: 1897.518234 | I31: 18178.68312 | J31: 7415.460272 | L31: 29 | M31: =1-(((SUM(B$3:B31)*(1/$S$2))/X$2)) -> 0.9854264783 | N31: =1-(((SUM(C$3:C31)*(1/$S$2))/Y$2)) -> 0.977724149 | O31: =1-(((SUM(D$3:D31)*(1/$S$2))/Z$2)) -> 0.9836761382 | P31: =1-(((SUM(E$3:E31)*(1/$S$2))/AA$2)) -> 0.9828016401 | Q31: =1-(((SUM(F$3:F31)*(1/$S$2))/AB$2)) -> 0.9826577496 | R31: =1-(((SUM(G$3:G31)*(1/$S$2))/AC$2)) -> 0.9860057857 | S31: =1-(((SUM(H$3:H31)*(1/$S$2))/AD$2)) -> 0.9877957384 | T31: =1-(((SUM(I$3:I31)*(1/$S$2))/AE$2)) -> 0.9891461519 | U31: =1-(((SUM(J$3:J31)*(1/$S$2))/AF$2)) -> 0.9887842842 | W31: 29 | X31: ='min cases averted (1)'!B31/X$2 -> 0.0002536335696 | Y31: ='min cases averted (1)'!C31/Y$2 -> 0.0003876827933 | Z31: ='min cases averted (1)'!D31/Z$2 -> 0.0002840960086 | AA31: ='min cases averted (1)'!E31/AA$2 -> 0.0002993155333 | AB31: ='min cases averted (1)'!F31/AB$2 -> 0.0003018197643 | AC31: ='min cases averted (1)'!G31/AC$2 -> 0.0002435514628 | AD31: ='min cases averted (1)'!H31/AD$2 -> 0.0002123996172 | AE31: ='min cases averted (1)'!I31/AE$2 -> 0.0001888973919 | AF31: ='min cases averted (1)'!J31/AF$2 -> 0.0001951952383 | AH31: 29 | AI31: 0 | AJ31: ='Input data doses'!U33*SUM('min cases averted (1)'!Y31:Y$84)*AJ$2*N31 -> 0 | AK31: ='Input data doses'!V33*SUM('min cases averted (1)'!Z31:Z$84)*AK$2*O31 -> 0 | AL31: ='Input data doses'!W33*SUM('min cases averted (1)'!AA31:AA$84)*AL$2*P31 -> 0 | AM31: ='Input data doses'!X33*SUM('min cases averted (1)'!AB31:AB$84)*AM$2*Q31 -> 0 | AN31: ='Input data doses'!Y33*SUM('min cases averted (1)'!AC31:AC$84)*AN$2*R31 -> 0 | AO31: ='Input data doses'!Z33*SUM('min cases averted (1)'!AD31:AD$84)*AO$2*S31 -> 0 | AP31: ='Input data doses'!AA33*SUM('min cases averted (1)'!AE31:AE$84)*AP$2*T31 -> 0 | AQ31: ='Input data doses'!AB33*SUM('min cases averted (1)'!AF31:AF$84)*AQ$2*U31 -> 0
A32: 30 | B32: ='Input data cases'!D33 -> 220286.7191 | C32: =$B32*C$2 -> 44364.53365 | D32: =$B32*D$2 -> 49212.05304 | E32: 4846.30782 | F32: 29738.70708 | G32: 12336.05627 | H32: 5507.167977 | I32: 52759.99975 | J32: 21521.8935 | L32: 30 | M32: =1-(((SUM(B$3:B32)*(1/$S$2))/X$2)) -> 0.9843748772 | N32: =1-(((SUM(C$3:C32)*(1/$S$2))/Y$2)) -> 0.9761167606 | O32: =1-(((SUM(D$3:D32)*(1/$S$2))/Z$2)) -> 0.9824982354 | P32: =1-(((SUM(E$3:E32)*(1/$S$2))/AA$2)) -> 0.981560635 | Q32: =1-(((SUM(F$3:F32)*(1/$S$2))/AB$2)) -> 0.9814063615 | R32: =1-(((SUM(G$3:G32)*(1/$S$2))/AC$2)) -> 0.9849959864 | S32: =1-(((SUM(H$3:H32)*(1/$S$2))/AD$2)) -> 0.9869150991 | T32: =1-(((SUM(I$3:I32)*(1/$S$2))/AE$2)) -> 0.9883629562 | U32: =1-(((SUM(J$3:J32)*(1/$S$2))/AF$2)) -> 0.9879749767 | W32: 30 | X32: ='min cases averted (1)'!B32/X$2 -> 0.0007361208168 | Y32: ='min cases averted (1)'!C32/Y$2 -> 0.001125171936 | Z32: ='min cases averted (1)'!D32/Z$2 -> 0.0008245319664 | AA32: ='min cases averted (1)'!E32/AA$2 -> 0.0008687035995 | AB32: ='min cases averted (1)'!F32/AB$2 -> 0.0008759716301 | AC32: ='min cases averted (1)'!G32/AC$2 -> 0.0007068595141 | AD32: ='min cases averted (1)'!H32/AD$2 -> 0.0006164474993 | AE32: ='min cases averted (1)'!I32/AE$2 -> 0.0005482369806 | AF32: ='min cases averted (1)'!J32/AF$2 -> 0.0005665152231 | AH32: 30 | AI32: 0 | AJ32: ='Input data doses'!U34*SUM('min cases averted (1)'!Y32:Y$84)*AJ$2*N32 -> 0 | AK32: ='Input data doses'!V34*SUM('min cases averted (1)'!Z32:Z$84)*AK$2*O32 -> 0 | AL32: ='Input data doses'!W34*SUM('min cases averted (1)'!AA32:AA$84)*AL$2*P32 -> 0 | AM32: ='Input data doses'!X34*SUM('min cases averted (1)'!AB32:AB$84)*AM$2*Q32 -> 0 | AN32: ='Input data doses'!Y34*SUM('min cases averted (1)'!AC32:AC$84)*AN$2*R32 -> 0 | AO32: ='Input data doses'!Z34*SUM('min cases averted (1)'!AD32:AD$84)*AO$2*S32 -> 0 | AP32: ='Input data doses'!AA34*SUM('min cases averted (1)'!AE32:AE$84)*AP$2*T32 -> 0 | AQ32: ='Input data doses'!AB34*SUM('min cases averted (1)'!AF32:AF$84)*AQ$2*U32 -> 0
A33: 31 | B33: ='Input data cases'!D34 -> 123916.1013 | C33: =$B33*C$2 -> 24956.02125 | D33: 27682.85702 | E33: 2726.154228 | F33: 16728.67367 | G33: 6939.30167 | H33: 3097.902531 | I33: 29678.6547 | J33: 12106.53618 | L33: 31 | M33: =1-(((SUM(B$3:B33)*(1/$S$2))/X$2)) -> 0.9837833285 | N33: =1-(((SUM(C$3:C33)*(1/$S$2))/Y$2)) -> 0.9752125694 | O33: =1-(((SUM(D$3:D33)*(1/$S$2))/Z$2)) -> 0.9818356393 | P33: =1-(((SUM(E$3:E33)*(1/$S$2))/AA$2)) -> 0.9808625424 | Q33: =1-(((SUM(F$3:F33)*(1/$S$2))/AB$2)) -> 0.9807024284 | R33: =1-(((SUM(G$3:G33)*(1/$S$2))/AC$2)) -> 0.9844279522 | S33: =1-(((SUM(H$3:H33)*(1/$S$2))/AD$2)) -> 0.9864197203 | T33: =1-(((SUM(I$3:I33)*(1/$S$2))/AE$2)) -> 0.9879223915 | U33: =1-(((SUM(J$3:J33)*(1/$S$2))/AF$2)) -> 0.9875197236 | W33: 31 | X33: ='min cases averted (1)'!B33/X$2 -> 0.0004140840721 | Y33: ='min cases averted (1)'!C33/Y$2 -> 0.0006329338423 | Z33: ='min cases averted (1)'!D33/Z$2 -> 0.0004638172789 | AA33: ='min cases averted (1)'!E33/AA$2 -> 0.0004886647894 | AB33: ='min cases averted (1)'!F33/AB$2 -> 0.0004927532157 | AC33: ='min cases averted (1)'!G33/AC$2 -> 0.0003976239488 | AD33: ='min cases averted (1)'!H33/AD$2 -> 0.0003467652115 | AE33: ='min cases averted (1)'!I33/AE$2 -> 0.0003083953018 | AF33: ='min cases averted (1)'!J33/AF$2 -> 0.0003186772132 | AH33: 31 | AI33: 0 | AJ33: ='Input data doses'!U35*SUM('min cases averted (1)'!Y33:Y$84)*AJ$2*N33 -> 0 | AK33: ='Input data doses'!V35*SUM('min cases averted (1)'!Z33:Z$84)*AK$2*O33 -> 0 | AL33: ='Input data doses'!W35*SUM('min cases averted (1)'!AA33:AA$84)*AL$2*P33 -> 0 | AM33: ='Input data doses'!X35*SUM('min cases averted (1)'!AB33:AB$84)*AM$2*Q33 -> 0 | AN33: ='Input data doses'!Y35*SUM('min cases averted (1)'!AC33:AC$84)*AN$2*R33 -> 0 | AO33: ='Input data doses'!Z35*SUM('min cases averted (1)'!AD33:AD$84)*AO$2*S33 -> 0 | AP33: ='Input data doses'!AA35*SUM('min cases averted (1)'!AE33:AE$84)*AP$2*T33 -> 0 | AQ33: ='Input data doses'!AB35*SUM('min cases averted (1)'!AF33:AF$84)*AQ$2*U33 -> 0
A34: 32 | B34: ='Input data cases'!D35 -> 200656.6395 | C34: =$B34*C$2 -> 40411.14358 | D34: 44826.69326 | E34: 4414.446068 | F34: 27088.64633 | G34: 11236.77181 | H34: 5016.415987 | I34: 48058.47712 | J34: 19604.04532 | L34: 32 | M34: =1-(((SUM(B$3:B34)*(1/$S$2))/X$2)) -> 0.9828254371 | N34: =1-(((SUM(C$3:C34)*(1/$S$2))/Y$2)) -> 0.9737484177 | O34: =1-(((SUM(D$3:D34)*(1/$S$2))/Z$2)) -> 0.9807627011 | P34: =1-(((SUM(E$3:E34)*(1/$S$2))/AA$2)) -> 0.9797321251 | Q34: =1-(((SUM(F$3:F34)*(1/$S$2))/AB$2)) -> 0.9795625534 | R34: =1-(((SUM(G$3:G34)*(1/$S$2))/AC$2)) -> 0.9835081376 | S34: =1-(((SUM(H$3:H34)*(1/$S$2))/AD$2)) -> 0.9856175561 | T34: =1-(((SUM(I$3:I34)*(1/$S$2))/AE$2)) -> 0.9872089876 | U34: =1-(((SUM(J$3:J34)*(1/$S$2))/AF$2)) -> 0.9867825347 | W34: 32 | X34: ='min cases averted (1)'!B34/X$2 -> 0.0006705239879 | Y34: ='min cases averted (1)'!C34/Y$2 -> 0.001024906179 | Z34: ='min cases averted (1)'!D34/Z$2 -> 0.0007510566874 | AA34: ='min cases averted (1)'!E34/AA$2 -> 0.0007912921201 | AB34: ='min cases averted (1)'!F34/AB$2 -> 0.0007979124856 | AC34: ='min cases averted (1)'!G34/AC$2 -> 0.0006438702036 | AD34: ='min cases averted (1)'!H34/AD$2 -> 0.000561514939 | AE34: ='min cases averted (1)'!I34/AE$2 -> 0.0004993827618 | AF34: ='min cases averted (1)'!J34/AF$2 -> 0.0005160322027 | AH34: 32 | AI34: 0 | AJ34: ='Input data doses'!U36*SUM('min cases averted (1)'!Y34:Y$84)*AJ$2*N34 -> 0 | AK34: ='Input data doses'!V36*SUM('min cases averted (1)'!Z34:Z$84)*AK$2*O34 -> 0 | AL34: ='Input data doses'!W36*SUM('min cases averted (1)'!AA34:AA$84)*AL$2*P34 -> 0 | AM34: ='Input data doses'!X36*SUM('min cases averted (1)'!AB34:AB$84)*AM$2*Q34 -> 0 | AN34: ='Input data doses'!Y36*SUM('min cases averted (1)'!AC34:AC$84)*AN$2*R34 -> 0 | AO34: ='Input data doses'!Z36*SUM('min cases averted (1)'!AD34:AD$84)*AO$2*S34 -> 0 | AP34: ='Input data doses'!AA36*SUM('min cases averted (1)'!AE34:AE$84)*AP$2*T34 -> 0 | AQ34: ='Input data doses'!AB36*SUM('min cases averted (1)'!AF34:AF$84)*AQ$2*U34 -> 0
A35: 33 | B35: ='Input data cases'!D36 -> 211120.353 | C35: 42518.47793 | D35: 47164.28686 | E35: 4644.647766 | F35: 28501.24765 | G35: 11822.73977 | H35: 5278.008824 | I35: 50564.59971 | J35: 20626.34448 | L35: 33 | M35: =1-(((SUM(B$3:B35)*(1/$S$2))/X$2)) -> 0.9818175941 | N35: =1-(((SUM(C$3:C35)*(1/$S$2))/Y$2)) -> 0.9722079144 | O35: =1-(((SUM(D$3:D35)*(1/$S$2))/Z$2)) -> 0.9796338121 | P35: =1-(((SUM(E$3:E35)*(1/$S$2))/AA$2)) -> 0.9785427595 | Q35: =1-(((SUM(F$3:F35)*(1/$S$2))/AB$2)) -> 0.9783632369 | R35: =1-(((SUM(G$3:G35)*(1/$S$2))/AC$2)) -> 0.9825403571 | S35: =1-(((SUM(H$3:H35)*(1/$S$2))/AD$2)) -> 0.9847735611 | T35: =1-(((SUM(I$3:I35)*(1/$S$2))/AE$2)) -> 0.9864583815 | U35: =1-(((SUM(J$3:J35)*(1/$S$2))/AF$2)) -> 0.9860069034 | W35: 33 | X35: ='min cases averted (1)'!B35/X$2 -> 0.0007054900419 | Y35: ='min cases averted (1)'!C35/Y$2 -> 0.001078352327 | Z35: ='min cases averted (1)'!D35/Z$2 -> 0.0007902223089 | AA35: ='min cases averted (1)'!E35/AA$2 -> 0.0008325559132 | AB35: ='min cases averted (1)'!F35/AB$2 -> 0.0008395215132 | AC35: ='min cases averted (1)'!G35/AC$2 -> 0.0006774463333 | AD35: ='min cases averted (1)'!H35/AD$2 -> 0.0005907964592 | AE35: ='min cases averted (1)'!I35/AE$2 -> 0.0005254242532 | AF35: ='min cases averted (1)'!J35/AF$2 -> 0.0005429419184 | AH35: 33 | AI35: =SUM(AJ35:AQ35) -> 0 | AJ35: ='Input data doses'!U37*SUM('min cases averted (1)'!Y35:Y$84)*AJ$2*N35 -> 0 | AK35: ='Input data doses'!V37*SUM('min cases averted (1)'!Z35:Z$84)*AK$2*O35 -> 0 | AL35: ='Input data doses'!W37*SUM('min cases averted (1)'!AA35:AA$84)*AL$2*P35 -> 0 | AM35: ='Input data doses'!X37*SUM('min cases averted (1)'!AB35:AB$84)*AM$2*Q35 -> 0 | AN35: ='Input data doses'!Y37*SUM('min cases averted (1)'!AC35:AC$84)*AN$2*R35 -> 0 | AO35: ='Input data doses'!Z37*SUM('min cases averted (1)'!AD35:AD$84)*AO$2*S35 -> 0 | AP35: ='Input data doses'!AA37*SUM('min cases averted (1)'!AE35:AE$84)*AP$2*T35 -> 0 | AQ35: ='Input data doses'!AB37*SUM('min cases averted (1)'!AF35:AF$84)*AQ$2*U35 -> 0
A36: 34 | B36: ='Input data cases'!D37 -> 397320.4919 | C36: 80018.1618 | D36: 88761.39789 | E36: 8741.050821 | F36: 53638.2664 | G36: 22249.94755 | H36: 9933.012297 | I36: 95160.65762 | J36: 38817.9975 | L36: 34 | M36: =1-(((SUM(B$3:B36)*(1/$S$2))/X$2)) -> 0.979920872 | N36: =1-(((SUM(C$3:C36)*(1/$S$2))/Y$2)) -> 0.9693087456 | O36: =1-(((SUM(D$3:D36)*(1/$S$2))/Z$2)) -> 0.9775092859 | P36: =1-(((SUM(E$3:E36)*(1/$S$2))/AA$2)) -> 0.9763044186 | Q36: =1-(((SUM(F$3:F36)*(1/$S$2))/AB$2)) -> 0.9761061689 | R36: =1-(((SUM(G$3:G36)*(1/$S$2))/AC$2)) -> 0.980719031 | S36: =1-(((SUM(H$3:H36)*(1/$S$2))/AD$2)) -> 0.9831851947 | T36: =1-(((SUM(I$3:I36)*(1/$S$2))/AE$2)) -> 0.9850457693 | U36: =1-(((SUM(J$3:J36)*(1/$S$2))/AF$2)) -> 0.9845471947 | W36: 34 | X36: ='min cases averted (1)'!B36/X$2 -> 0.001327705484 | Y36: ='min cases averted (1)'!C36/Y$2 -> 0.002029418155 | Z36: ='min cases averted (1)'!D36/Z$2 -> 0.001487168395 | AA36: ='min cases averted (1)'!E36/AA$2 -> 0.001566838631 | AB36: ='min cases averted (1)'!F36/AB$2 -> 0.001579947626 | AC36: ='min cases averted (1)'!G36/AC$2 -> 0.001274928289 | AD36: ='min cases averted (1)'!H36/AD$2 -> 0.001111856514 | AE36: ='min cases averted (1)'!I36/AE$2 -> 0.0009888285037 | AF36: ='min cases averted (1)'!J36/AF$2 -> 0.001021796085 | AH36: 34 | AI36: 0 | AJ36: ='Input data doses'!U38*SUM('min cases averted (1)'!Y36:Y$84)*AJ$2*N36 -> 0 | AK36: ='Input data doses'!V38*SUM('min cases averted (1)'!Z36:Z$84)*AK$2*O36 -> 0 | AL36: ='Input data doses'!W38*SUM('min cases averted (1)'!AA36:AA$84)*AL$2*P36 -> 0 | AM36: ='Input data doses'!X38*SUM('min cases averted (1)'!AB36:AB$84)*AM$2*Q36 -> 0 | AN36: ='Input data doses'!Y38*SUM('min cases averted (1)'!AC36:AC$84)*AN$2*R36 -> 0 | AO36: ='Input data doses'!Z38*SUM('min cases averted (1)'!AD36:AD$84)*AO$2*S36 -> 0 | AP36: ='Input data doses'!AA38*SUM('min cases averted (1)'!AE36:AE$84)*AP$2*T36 -> 0 | AQ36: ='Input data doses'!AB38*SUM('min cases averted (1)'!AF36:AF$84)*AQ$2*U36 -> 0
A37: 35 | B37: ='Input data cases'!D38 -> 437991.7207 | C37: =$B37*C$2 -> 88209.1236 | D37: 97847.35041 | E37: 9635.817856 | F37: 59128.8823 | G37: 24527.53636 | H37: 10949.79302 | I37: 104901.6626 | J37: 42791.5546 | L37: 35 | M37: =1-(((SUM(B$3:B37)*(1/$S$2))/X$2)) -> 0.9778299943 | N37: =1-(((SUM(C$3:C37)*(1/$S$2))/Y$2)) -> 0.9661128069 | O37: =1-(((SUM(D$3:D37)*(1/$S$2))/Z$2)) -> 0.975167285 | P37: =1-(((SUM(E$3:E37)*(1/$S$2))/AA$2)) -> 0.9738369526 | Q37: =1-(((SUM(F$3:F37)*(1/$S$2))/AB$2)) -> 0.9736180588 | R37: =1-(((SUM(G$3:G37)*(1/$S$2))/AC$2)) -> 0.9787112671 | S37: =1-(((SUM(H$3:H37)*(1/$S$2))/AD$2)) -> 0.981434237 | T37: =1-(((SUM(I$3:I37)*(1/$S$2))/AE$2)) -> 0.9834885569 | U37: =1-(((SUM(J$3:J37)*(1/$S$2))/AF$2)) -> 0.9829380647 | W37: 35 | X37: ='min cases averted (1)'!B37/X$2 -> 0.001463614441 | Y37: ='min cases averted (1)'!C37/Y$2 -> 0.002237157076 | Z37: ='min cases averted (1)'!D37/Z$2 -> 0.001639400579 | AA37: ='min cases averted (1)'!E37/AA$2 -> 0.001727226162 | AB37: ='min cases averted (1)'!F37/AB$2 -> 0.001741677043 | AC37: ='min cases averted (1)'!G37/AC$2 -> 0.001405434772 | AD37: ='min cases averted (1)'!H37/AD$2 -> 0.001225670354 | AE37: ='min cases averted (1)'!I37/AE$2 -> 0.001090048731 | AF37: ='min cases averted (1)'!J37/AF$2 -> 0.001126390998 | AH37: 35 | AI37: 0 | AJ37: ='Input data doses'!U39*SUM('min cases averted (1)'!Y37:Y$84)*AJ$2*N37 -> 0 | AK37: ='Input data doses'!V39*SUM('min cases averted (1)'!Z37:Z$84)*AK$2*O37 -> 0 | AL37: ='Input data doses'!W39*SUM('min cases averted (1)'!AA37:AA$84)*AL$2*P37 -> 0 | AM37: ='Input data doses'!X39*SUM('min cases averted (1)'!AB37:AB$84)*AM$2*Q37 -> 0 | AN37: ='Input data doses'!Y39*SUM('min cases averted (1)'!AC37:AC$84)*AN$2*R37 -> 0 | AO37: ='Input data doses'!Z39*SUM('min cases averted (1)'!AD37:AD$84)*AO$2*S37 -> 0 | AP37: ='Input data doses'!AA39*SUM('min cases averted (1)'!AE37:AE$84)*AP$2*T37 -> 0 | AQ37: ='Input data doses'!AB39*SUM('min cases averted (1)'!AF37:AF$84)*AQ$2*U37 -> 0
A38: 36 | B38: ='Input data cases'!D39 -> 1443766.058 | C38: 290766.5434 | D38: 322537.3374 | E38: 31762.85328 | F38: 194908.4179 | G38: 80850.89927 | H38: =$B38*H$2 -> 36094.15146 | I38: 345790.6913 | J38: 141055.1643 | L38: 36 | M38: =1-(((SUM(B$3:B38)*(1/$S$2))/X$2)) -> 0.9709377673 | N38: =1-(((SUM(C$3:C38)*(1/$S$2))/Y$2)) -> 0.9555779324 | O38: =1-(((SUM(D$3:D38)*(1/$S$2))/Z$2)) -> 0.9674472731 | P38: =1-(((SUM(E$3:E38)*(1/$S$2))/AA$2)) -> 0.9657033661 | Q38: =1-(((SUM(F$3:F38)*(1/$S$2))/AB$2)) -> 0.9654164224 | R38: =1-(((SUM(G$3:G38)*(1/$S$2))/AC$2)) -> 0.9720930108 | S38: =1-(((SUM(H$3:H38)*(1/$S$2))/AD$2)) -> 0.9756624996 | T38: =1-(((SUM(I$3:I38)*(1/$S$2))/AE$2)) -> 0.9783554678 | U38: =1-(((SUM(J$3:J38)*(1/$S$2))/AF$2)) -> 0.9776338382 | W38: 36 | X38: ='min cases averted (1)'!B38/X$2 -> 0.004824558896 | Y38: ='min cases averted (1)'!C38/Y$2 -> 0.007374412118 | Z38: ='min cases averted (1)'!D38/Z$2 -> 0.00540400834 | AA38: ='min cases averted (1)'!E38/AA$2 -> 0.005693510607 | AB38: ='min cases averted (1)'!F38/AB$2 -> 0.005741145507 | AC38: ='min cases averted (1)'!G38/AC$2 -> 0.004632779401 | AD38: ='min cases averted (1)'!H38/AD$2 -> 0.004040216223 | AE38: ='min cases averted (1)'!I38/AE$2 -> 0.003593162347 | AF38: ='min cases averted (1)'!J38/AF$2 -> 0.003712958521 | AH38: 36 | AI38: 0 | AJ38: ='Input data doses'!U40*SUM('min cases averted (1)'!Y38:Y$84)*AJ$2*N38 -> 0 | AK38: ='Input data doses'!V40*SUM('min cases averted (1)'!Z38:Z$84)*AK$2*O38 -> 0 | AL38: ='Input data doses'!W40*SUM('min cases averted (1)'!AA38:AA$84)*AL$2*P38 -> 0 | AM38: ='Input data doses'!X40*SUM('min cases averted (1)'!AB38:AB$84)*AM$2*Q38 -> 0 | AN38: ='Input data doses'!Y40*SUM('min cases averted (1)'!AC38:AC$84)*AN$2*R38 -> 0 | AO38: ='Input data doses'!Z40*SUM('min cases averted (1)'!AD38:AD$84)*AO$2*S38 -> 0 | AP38: ='Input data doses'!AA40*SUM('min cases averted (1)'!AE38:AE$84)*AP$2*T38 -> 0 | AQ38: ='Input data doses'!AB40*SUM('min cases averted (1)'!AF38:AF$84)*AQ$2*U38 -> 0
A39: 37 | B39: ='Input data cases'!D40 -> 763666.0633 | C39: 153798.145 | D39: 170602.9985 | E39: 16800.65339 | F39: 103094.9185 | G39: 42765.29954 | H39: 19091.65158 | I39: 182902.6347 | J39: 74609.762 | L39: 37 | M39: =1-(((SUM(B$3:B39)*(1/$S$2))/X$2)) -> 0.9672921906 | N39: =1-(((SUM(C$3:C39)*(1/$S$2))/Y$2)) -> 0.9500056127 | O39: =1-(((SUM(D$3:D39)*(1/$S$2))/Z$2)) -> 0.9633638476 | P39: =1-(((SUM(E$3:E39)*(1/$S$2))/AA$2)) -> 0.9614011843 | Q39: =1-(((SUM(F$3:F39)*(1/$S$2))/AB$2)) -> 0.9610782463 | R39: =1-(((SUM(G$3:G39)*(1/$S$2))/AC$2)) -> 0.9685923482 | S39: =1-(((SUM(H$3:H39)*(1/$S$2))/AD$2)) -> 0.972609595 | T39: =1-(((SUM(I$3:I39)*(1/$S$2))/AE$2)) -> 0.9756403701 | U39: =1-(((SUM(J$3:J39)*(1/$S$2))/AF$2)) -> 0.9748282191 | W39: 37 | X39: ='min cases averted (1)'!B39/X$2 -> 0.002551903667 | Y39: ='min cases averted (1)'!C39/Y$2 -> 0.003900623815 | Z39: ='min cases averted (1)'!D39/Z$2 -> 0.002858397835 | AA39: ='min cases averted (1)'!E39/AA$2 -> 0.003011527253 | AB39: ='min cases averted (1)'!F39/AB$2 -> 0.003036723272 | AC39: ='min cases averted (1)'!G39/AC$2 -> 0.002450463762 | AD39: ='min cases averted (1)'!H39/AD$2 -> 0.002137033213 | AE39: ='min cases averted (1)'!I39/AE$2 -> 0.001900568398 | AF39: ='min cases averted (1)'!J39/AF$2 -> 0.001963933423 | AH39: 37 | AI39: 0 | AJ39: ='Input data doses'!U41*SUM('min cases averted (1)'!Y39:Y$84)*AJ$2*N39 -> 0 | AK39: ='Input data doses'!V41*SUM('min cases averted (1)'!Z39:Z$84)*AK$2*O39 -> 0 | AL39: ='Input data doses'!W41*SUM('min cases averted (1)'!AA39:AA$84)*AL$2*P39 -> 0 | AM39: ='Input data doses'!X41*SUM('min cases averted (1)'!AB39:AB$84)*AM$2*Q39 -> 0 | AN39: ='Input data doses'!Y41*SUM('min cases averted (1)'!AC39:AC$84)*AN$2*R39 -> 0 | AO39: ='Input data doses'!Z41*SUM('min cases averted (1)'!AD39:AD$84)*AO$2*S39 -> 0 | AP39: ='Input data doses'!AA41*SUM('min cases averted (1)'!AE39:AE$84)*AP$2*T39 -> 0 | AQ39: ='Input data doses'!AB41*SUM('min cases averted (1)'!AF39:AF$84)*AQ$2*U39 -> 0
A40: 38 | B40: ='Input data cases'!D41 -> 1067903.742 | C40: 215069.9402 | D40: 238569.696 | E40: 23493.88232 | F40: 144167.0052 | G40: 59802.60955 | H40: 26697.59355 | I40: 255769.3963 | J40: 104333.6189 | L40: 38 | M40: =1-(((SUM(B$3:B40)*(1/$S$2))/X$2)) -> 0.962194249 | N40: =1-(((SUM(C$3:C40)*(1/$S$2))/Y$2)) -> 0.942213331 | O40: =1-(((SUM(D$3:D40)*(1/$S$2))/Z$2)) -> 0.9576536222 | P40: =1-(((SUM(E$3:E40)*(1/$S$2))/AA$2)) -> 0.955385052 | Q40: =1-(((SUM(F$3:F40)*(1/$S$2))/AB$2)) -> 0.9550117799 | R40: =1-(((SUM(G$3:G40)*(1/$S$2))/AC$2)) -> 0.9636970533 | S40: =1-(((SUM(H$3:H40)*(1/$S$2))/AD$2)) -> 0.9683404407 | T40: =1-(((SUM(I$3:I40)*(1/$S$2))/AE$2)) -> 0.9718436019 | U40: =1-(((SUM(J$3:J40)*(1/$S$2))/AF$2)) -> 0.9709048665 | W40: 38 | X40: ='min cases averted (1)'!B40/X$2 -> 0.003568559095 | Y40: ='min cases averted (1)'!C40/Y$2 -> 0.005454597197 | Z40: ='min cases averted (1)'!D40/Z$2 -> 0.003997157777 | AA40: ='min cases averted (1)'!E40/AA$2 -> 0.004211292576 | AB40: ='min cases averted (1)'!F40/AB$2 -> 0.004246526461 | AC40: ='min cases averted (1)'!G40/AC$2 -> 0.003426706445 | AD40: ='min cases averted (1)'!H40/AD$2 -> 0.002988407989 | AE40: ='min cases averted (1)'!I40/AE$2 -> 0.002657737723 | AF40: ='min cases averted (1)'!J40/AF$2 -> 0.002746346803 | AH40: 38 | AI40: 0 | AJ40: ='Input data doses'!U42*SUM('min cases averted (1)'!Y40:Y$84)*AJ$2*N40 -> 0 | AK40: ='Input data doses'!V42*SUM('min cases averted (1)'!Z40:Z$84)*AK$2*O40 -> 0 | AL40: ='Input data doses'!W42*SUM('min cases averted (1)'!AA40:AA$84)*AL$2*P40 -> 0 | AM40: ='Input data doses'!X42*SUM('min cases averted (1)'!AB40:AB$84)*AM$2*Q40 -> 0 | AN40: ='Input data doses'!Y42*SUM('min cases averted (1)'!AC40:AC$84)*AN$2*R40 -> 0 | AO40: ='Input data doses'!Z42*SUM('min cases averted (1)'!AD40:AD$84)*AO$2*S40 -> 0 | AP40: ='Input data doses'!AA42*SUM('min cases averted (1)'!AE40:AE$84)*AP$2*T40 -> 0 | AQ40: ='Input data doses'!AB42*SUM('min cases averted (1)'!AF40:AF$84)*AQ$2*U40 -> 0
A41: 39 | B41: ='Input data cases'!D42 -> 1678782.321 | C41: 338097.5262 | D41: 375039.9705 | E41: 36933.21106 | F41: 226635.6133 | G41: 94011.80998 | H41: 41969.55803 | I41: 402078.5057 | J41: 164016.1262 | L41: 39 | M41: =1-(((SUM(B$3:B41)*(1/$S$2))/X$2)) -> 0.9541801052 | N41: =1-(((SUM(C$3:C41)*(1/$S$2))/Y$2)) -> 0.9299635895 | O41: =1-(((SUM(D$3:D41)*(1/$S$2))/Z$2)) -> 0.9486769467 | P41: =1-(((SUM(E$3:E41)*(1/$S$2))/AA$2)) -> 0.9459274801 | Q41: =1-(((SUM(F$3:F41)*(1/$S$2))/AB$2)) -> 0.945475081 | R41: =1-(((SUM(G$3:G41)*(1/$S$2))/AC$2)) -> 0.9560014772 | S41: =1-(((SUM(H$3:H41)*(1/$S$2))/AD$2)) -> 0.9616291797 | T41: =1-(((SUM(I$3:I41)*(1/$S$2))/AE$2)) -> 0.9658749485 | U41: =1-(((SUM(J$3:J41)*(1/$S$2))/AF$2)) -> 0.964737218 | W41: 39 | X41: ='min cases averted (1)'!B41/X$2 -> 0.005609900672 | Y41: ='min cases averted (1)'!C41/Y$2 -> 0.008574819044 | Z41: ='min cases averted (1)'!D41/Z$2 -> 0.006283672906 | AA41: ='min cases averted (1)'!E41/AA$2 -> 0.006620300358 | AB41: ='min cases averted (1)'!F41/AB$2 -> 0.006675689268 | AC41: ='min cases averted (1)'!G41/AC$2 -> 0.005386903308 | AD41: ='min cases averted (1)'!H41/AD$2 -> 0.004697882687 | AE41: ='min cases averted (1)'!I41/AE$2 -> 0.004178057373 | AF41: ='min cases averted (1)'!J41/AF$2 -> 0.00431735397 | AH41: 39 | AI41: 0 | AJ41: ='Input data doses'!U43*SUM('min cases averted (1)'!Y41:Y$84)*AJ$2*N41 -> 0 | AK41: ='Input data doses'!V43*SUM('min cases averted (1)'!Z41:Z$84)*AK$2*O41 -> 0 | AL41: ='Input data doses'!W43*SUM('min cases averted (1)'!AA41:AA$84)*AL$2*P41 -> 0 | AM41: ='Input data doses'!X43*SUM('min cases averted (1)'!AB41:AB$84)*AM$2*Q41 -> 0 | AN41: ='Input data doses'!Y43*SUM('min cases averted (1)'!AC41:AC$84)*AN$2*R41 -> 0 | AO41: ='Input data doses'!Z43*SUM('min cases averted (1)'!AD41:AD$84)*AO$2*S41 -> 0 | AP41: ='Input data doses'!AA43*SUM('min cases averted (1)'!AE41:AE$84)*AP$2*T41 -> 0 | AQ41: ='Input data doses'!AB43*SUM('min cases averted (1)'!AF41:AF$84)*AQ$2*U41 -> 0
A42: 40 | B42: ='Input data cases'!D43 -> 2423919.447 | C42: 488164.0451 | D42: 541503.6045 | E42: 53326.22784 | F42: 327229.1254 | G42: 135739.489 | H42: 60597.98618 | I42: 580543.3481 | J42: 236815.6211 | L42: 40 | M42: =1-(((SUM(B$3:B42)*(1/$S$2))/X$2)) -> 0.9426088379 | N42: =1-(((SUM(C$3:C42)*(1/$S$2))/Y$2)) -> 0.9122767302 | O42: =1-(((SUM(D$3:D42)*(1/$S$2))/Z$2)) -> 0.9357159223 | P42: =1-(((SUM(E$3:E42)*(1/$S$2))/AA$2)) -> 0.9322721108 | Q42: =1-(((SUM(F$3:F42)*(1/$S$2))/AB$2)) -> 0.9317054637 | R42: =1-(((SUM(G$3:G42)*(1/$S$2))/AC$2)) -> 0.9448901756 | S42: =1-(((SUM(H$3:H42)*(1/$S$2))/AD$2)) -> 0.9519390872 | T42: =1-(((SUM(I$3:I42)*(1/$S$2))/AE$2)) -> 0.9572570742 | U42: =1-(((SUM(J$3:J42)*(1/$S$2))/AF$2)) -> 0.9558320234 | W42: 40 | X42: ='min cases averted (1)'!B42/X$2 -> 0.008099887142 | Y42: ='min cases averted (1)'!C42/Y$2 -> 0.01238080147 | Z42: ='min cases averted (1)'!D42/Z$2 -> 0.009072717032 | AA42: ='min cases averted (1)'!E42/AA$2 -> 0.009558758501 | AB42: ='min cases averted (1)'!F42/AB$2 -> 0.009638732095 | AC42: ='min cases averted (1)'!G42/AC$2 -> 0.007777911123 | AD42: ='min cases averted (1)'!H42/AD$2 -> 0.006783064762 | AE42: ='min cases averted (1)'!I42/AE$2 -> 0.006032512012 | AF42: ='min cases averted (1)'!J42/AF$2 -> 0.006233636199 | AH42: 40 | AI42: 0 | AJ42: ='Input data doses'!U44*SUM('min cases averted (1)'!Y42:Y$84)*AJ$2*N42 -> 0 | AK42: ='Input data doses'!V44*SUM('min cases averted (1)'!Z42:Z$84)*AK$2*O42 -> 0 | AL42: ='Input data doses'!W44*SUM('min cases averted (1)'!AA42:AA$84)*AL$2*P42 -> 0 | AM42: ='Input data doses'!X44*SUM('min cases averted (1)'!AB42:AB$84)*AM$2*Q42 -> 0 | AN42: ='Input data doses'!Y44*SUM('min cases averted (1)'!AC42:AC$84)*AN$2*R42 -> 0 | AO42: ='Input data doses'!Z44*SUM('min cases averted (1)'!AD42:AD$84)*AO$2*S42 -> 0 | AP42: ='Input data doses'!AA44*SUM('min cases averted (1)'!AE42:AE$84)*AP$2*T42 -> 0 | AQ42: ='Input data doses'!AB44*SUM('min cases averted (1)'!AF42:AF$84)*AQ$2*U42 -> 0
A43: 41 | B43: ='Input data cases'!D44 -> 3521960.705 | C43: 709303.5152 | D43: 786806.0215 | E43: 77483.13551 | F43: 475464.6952 | G43: 197229.7995 | H43: 88049.01763 | I43: 843530.8615 | J43: 344093.659 | L43: 41 | M43: =1-(((SUM(B$3:B43)*(1/$S$2))/X$2)) -> 0.925795759 | N43: =1-(((SUM(C$3:C43)*(1/$S$2))/Y$2)) -> 0.8865776818 | O43: =1-(((SUM(D$3:D43)*(1/$S$2))/Z$2)) -> 0.9168835232 | P43: =1-(((SUM(E$3:E43)*(1/$S$2))/AA$2)) -> 0.9124308268 | Q43: =1-(((SUM(F$3:F43)*(1/$S$2))/AB$2)) -> 0.9116981771 | R43: =1-(((SUM(G$3:G43)*(1/$S$2))/AC$2)) -> 0.928745428 | S43: =1-(((SUM(H$3:H43)*(1/$S$2))/AD$2)) -> 0.9378593598 | T43: =1-(((SUM(I$3:I43)*(1/$S$2))/AE$2)) -> 0.9447352824 | U43: =1-(((SUM(J$3:J43)*(1/$S$2))/AF$2)) -> 0.9428927546 | W43: 41 | X43: ='min cases averted (1)'!B43/X$2 -> 0.01176915523 | Y43: ='min cases averted (1)'!C43/Y$2 -> 0.0179893339 | Z43: ='min cases averted (1)'!D43/Z$2 -> 0.01318267936 | AA43: ='min cases averted (1)'!E43/AA$2 -> 0.01388889877 | AB43: ='min cases averted (1)'!F43/AB$2 -> 0.01400510059 | AC43: ='min cases averted (1)'!G43/AC$2 -> 0.01130132331 | AD43: ='min cases averted (1)'!H43/AD$2 -> 0.009855809185 | AE43: ='min cases averted (1)'!I43/AE$2 -> 0.00876525426 | AF43: ='min cases averted (1)'!J43/AF$2 -> 0.009057488181 | AH43: 41 | AI43: 0 | AJ43: ='Input data doses'!U45*SUM('min cases averted (1)'!Y43:Y$84)*AJ$2*N43 -> 0 | AK43: ='Input data doses'!V45*SUM('min cases averted (1)'!Z43:Z$84)*AK$2*O43 -> 0 | AL43: ='Input data doses'!W45*SUM('min cases averted (1)'!AA43:AA$84)*AL$2*P43 -> 0 | AM43: ='Input data doses'!X45*SUM('min cases averted (1)'!AB43:AB$84)*AM$2*Q43 -> 0 | AN43: ='Input data doses'!Y45*SUM('min cases averted (1)'!AC43:AC$84)*AN$2*R43 -> 0 | AO43: ='Input data doses'!Z45*SUM('min cases averted (1)'!AD43:AD$84)*AO$2*S43 -> 0 | AP43: ='Input data doses'!AA45*SUM('min cases averted (1)'!AE43:AE$84)*AP$2*T43 -> 0 | AQ43: ='Input data doses'!AB45*SUM('min cases averted (1)'!AF43:AF$84)*AQ$2*U43 -> 0
A44: 42 | B44: ='Input data cases'!D45 -> 4857183.218 | C44: 978209.9856 | D44: 1085094.731 | E44: 106858.0308 | F44: 655719.7344 | G44: 272002.2602 | H44: 121429.5804 | I44: 1163324.718 | J44: 474544.1775 | L44: 42 | M44: =1-(((SUM(B$3:B44)*(1/$S$2))/X$2)) -> 0.9026086165 | N44: =1-(((SUM(C$3:C44)*(1/$S$2))/Y$2)) -> 0.8511357796 | O44: =1-(((SUM(D$3:D44)*(1/$S$2))/Z$2)) -> 0.8909115092 | P44: =1-(((SUM(E$3:E44)*(1/$S$2))/AA$2)) -> 0.8850674462 | Q44: =1-(((SUM(F$3:F44)*(1/$S$2))/AB$2)) -> 0.8841058601 | R44: =1-(((SUM(G$3:G44)*(1/$S$2))/AC$2)) -> 0.9064799902 | S44: =1-(((SUM(H$3:H44)*(1/$S$2))/AD$2)) -> 0.918441819 | T44: =1-(((SUM(I$3:I44)*(1/$S$2))/AE$2)) -> 0.9274663115 | U44: =1-(((SUM(J$3:J44)*(1/$S$2))/AF$2)) -> 0.9250480355 | W44: 42 | X44: ='min cases averted (1)'!B44/X$2 -> 0.01623099973 | Y44: ='min cases averted (1)'!C44/Y$2 -> 0.02480933152 | Z44: ='min cases averted (1)'!D44/Z$2 -> 0.01818040981 | AA44: ='min cases averted (1)'!E44/AA$2 -> 0.01915436647 | AB44: ='min cases averted (1)'!F44/AB$2 -> 0.01931462196 | AC44: ='min cases averted (1)'!G44/AC$2 -> 0.01558580646 | AD44: ='min cases averted (1)'!H44/AD$2 -> 0.01359227856 | AE44: ='min cases averted (1)'!I44/AE$2 -> 0.01208827964 | AF44: ='min cases averted (1)'!J44/AF$2 -> 0.01249130336 | AH44: 42 | AI44: 104088.5841 | AJ44: ='Input data doses'!U46*SUM('min cases averted (1)'!Y44:Y$84)*AJ$2*N44 -> 0 | AK44: ='Input data doses'!V46*SUM('min cases averted (1)'!Z44:Z$84)*AK$2*O44 -> 33143.32261 | AL44: ='Input data doses'!W46*SUM('min cases averted (1)'!AA44:AA$84)*AL$2*P44 -> 10258.53209 | AM44: ='Input data doses'!X46*SUM('min cases averted (1)'!AB44:AB$84)*AM$2*Q44 -> 18955.05461 | AN44: ='Input data doses'!Y46*SUM('min cases averted (1)'!AC44:AC$84)*AN$2*R44 -> 14136.47367 | AO44: ='Input data doses'!Z46*SUM('min cases averted (1)'!AD44:AD$84)*AO$2*S44 -> 3035.942746 | AP44: ='Input data doses'!AA46*SUM('min cases averted (1)'!AE44:AE$84)*AP$2*T44 -> 14405.23588 | AQ44: ='Input data doses'!AB46*SUM('min cases averted (1)'!AF44:AF$84)*AQ$2*U44 -> 10154.02246
A45: 43 | B45: ='Input data cases'!D46 -> 6030841.714 | C45: 1214578.352 | D45: 1347290.039 | E45: 132678.5177 | F45: 814163.6313 | G45: 337727.136 | H45: 150771.0428 | I45: 1444423.017 | J45: 589209.9788 | L45: 43 | M45: =1-(((SUM(B$3:B45)*(1/$S$2))/X$2)) -> 0.8738186821 | N45: =1-(((SUM(C$3:C45)*(1/$S$2))/Y$2)) -> 0.8071299243 | O45: =1-(((SUM(D$3:D45)*(1/$S$2))/Z$2)) -> 0.8586637849 | P45: =1-(((SUM(E$3:E45)*(1/$S$2))/AA$2)) -> 0.8510921543 | Q45: =1-(((SUM(F$3:F45)*(1/$S$2))/AB$2)) -> 0.849846313 | R45: =1-(((SUM(G$3:G45)*(1/$S$2))/AC$2)) -> 0.8788344753 | S45: =1-(((SUM(H$3:H45)*(1/$S$2))/AD$2)) -> 0.8943323486 | T45: =1-(((SUM(I$3:I45)*(1/$S$2))/AE$2)) -> 0.9060245776 | U45: =1-(((SUM(J$3:J45)*(1/$S$2))/AF$2)) -> 0.9028914333 | W45: 43 | X45: ='min cases averted (1)'!B45/X$2 -> 0.02015295405 | Y45: ='min cases averted (1)'!C45/Y$2 -> 0.03080409874 | Z45: ='min cases averted (1)'!D45/Z$2 -> 0.02257340705 | AA45: ='min cases averted (1)'!E45/AA$2 -> 0.02378270432 | AB45: ='min cases averted (1)'!F45/AB$2 -> 0.02398168291 | AC45: ='min cases averted (1)'!G45/AC$2 -> 0.01935186043 | AD45: ='min cases averted (1)'!H45/AD$2 -> 0.01687662928 | AE45: ='min cases averted (1)'!I45/AE$2 -> 0.01500921374 | AF45: ='min cases averted (1)'!J45/AF$2 -> 0.01550962152 | AH45: 43 | AI45: 99642.6141 | AJ45: ='Input data doses'!U47*SUM('min cases averted (1)'!Y45:Y$84)*AJ$2*N45 -> 0 | AK45: ='Input data doses'!V47*SUM('min cases averted (1)'!Z45:Z$84)*AK$2*O45 -> 31616.53859 | AL45: ='Input data doses'!W47*SUM('min cases averted (1)'!AA45:AA$84)*AL$2*P45 -> 9763.694881 | AM45: ='Input data doses'!X47*SUM('min cases averted (1)'!AB45:AB$84)*AM$2*Q45 -> 18033.97178 | AN45: ='Input data doses'!Y47*SUM('min cases averted (1)'!AC45:AC$84)*AN$2*R45 -> 13564.98692 | AO45: ='Input data doses'!Z47*SUM('min cases averted (1)'!AD45:AD$84)*AO$2*S45 -> 2926.008147 | AP45: ='Input data doses'!AA47*SUM('min cases averted (1)'!AE45:AE$84)*AP$2*T45 -> 13928.08679 | AQ45: ='Input data doses'!AB47*SUM('min cases averted (1)'!AF45:AF$84)*AQ$2*U45 -> 9809.326983
A46: 44 | B46: ='Input data cases'!D47 -> 4982984.963 | C46: 1003545.765 | D46: 1113198.841 | E46: 109625.6692 | F46: 672702.97 | G46: 279047.1579 | H46: 124574.6241 | I46: 1193454.996 | J46: 486834.9401 | L46: 44 | M46: =1-(((SUM(B$3:B46)*(1/$S$2))/X$2)) -> 0.8500309893 | N46: =1-(((SUM(C$3:C46)*(1/$S$2))/Y$2)) -> 0.7707700718 | O46: =1-(((SUM(D$3:D46)*(1/$S$2))/Z$2)) -> 0.8320190919 | P46: =1-(((SUM(E$3:E46)*(1/$S$2))/AA$2)) -> 0.8230200581 | Q46: =1-(((SUM(F$3:F46)*(1/$S$2))/AB$2)) -> 0.821539351 | R46: =1-(((SUM(G$3:G46)*(1/$S$2))/AC$2)) -> 0.8559923594 | S46: =1-(((SUM(H$3:H46)*(1/$S$2))/AD$2)) -> 0.8744118907 | T46: =1-(((SUM(I$3:I46)*(1/$S$2))/AE$2)) -> 0.8883083378 | U46: =1-(((SUM(J$3:J46)*(1/$S$2))/AF$2)) -> 0.8845845334 | W46: 44 | X46: ='min cases averted (1)'!B46/X$2 -> 0.01665138496 | Y46: ='min cases averted (1)'!C46/Y$2 -> 0.02545189678 | Z46: ='min cases averted (1)'!D46/Z$2 -> 0.01865128505 | AA46: ='min cases averted (1)'!E46/AA$2 -> 0.01965046732 | AB46: ='min cases averted (1)'!F46/AB$2 -> 0.01981487345 | AC46: ='min cases averted (1)'!G46/AC$2 -> 0.01598948109 | AD46: ='min cases averted (1)'!H46/AD$2 -> 0.01394432053 | AE46: ='min cases averted (1)'!I46/AE$2 -> 0.01240136783 | AF46: ='min cases averted (1)'!J46/AF$2 -> 0.01281482992 | AH46: 44 | AI46: 89133.44172 | AJ46: ='Input data doses'!U48*SUM('min cases averted (1)'!Y46:Y$84)*AJ$2*N46 -> 0 | AK46: ='Input data doses'!V48*SUM('min cases averted (1)'!Z46:Z$84)*AK$2*O46 -> 28194.63857 | AL46: ='Input data doses'!W48*SUM('min cases averted (1)'!AA46:AA$84)*AL$2*P46 -> 8689.424995 | AM46: ='Input data doses'!X48*SUM('min cases averted (1)'!AB46:AB$84)*AM$2*Q46 -> 16044.32195 | AN46: ='Input data doses'!Y48*SUM('min cases averted (1)'!AC46:AC$84)*AN$2*R46 -> 12159.7178 | AO46: ='Input data doses'!Z48*SUM('min cases averted (1)'!AD46:AD$84)*AO$2*S46 -> 2632.884776 | AP46: ='Input data doses'!AA48*SUM('min cases averted (1)'!AE46:AE$84)*AP$2*T46 -> 12567.73274 | AQ46: ='Input data doses'!AB48*SUM('min cases averted (1)'!AF46:AF$84)*AQ$2*U46 -> 8844.720887
A47: 45 | B47: ='Input data cases'!D48 -> 3505038.604 | C47: 705895.497 | D47: 783025.624 | E47: 77110.84928 | F47: 473180.2115 | G47: 196282.1618 | H47: 87625.96509 | I47: 839477.916 | J47: 342440.3788 | L47: 45 | M47: =1-(((SUM(B$3:B47)*(1/$S$2))/X$2)) -> 0.8332986929 | N47: =1-(((SUM(C$3:C47)*(1/$S$2))/Y$2)) -> 0.7451945005 | O47: =1-(((SUM(D$3:D47)*(1/$S$2))/Z$2)) -> 0.8132771776 | P47: =1-(((SUM(E$3:E47)*(1/$S$2))/AA$2)) -> 0.8032741064 | Q47: =1-(((SUM(F$3:F47)*(1/$S$2))/AB$2)) -> 0.8016281942 | R47: =1-(((SUM(G$3:G47)*(1/$S$2))/AC$2)) -> 0.8399251832 | S47: =1-(((SUM(H$3:H47)*(1/$S$2))/AD$2)) -> 0.8603998127 | T47: =1-(((SUM(I$3:I47)*(1/$S$2))/AE$2)) -> 0.87584671 | U47: =1-(((SUM(J$3:J47)*(1/$S$2))/AF$2)) -> 0.8717074344 | W47: 45 | X47: ='min cases averted (1)'!B47/X$2 -> 0.01171260751 | Y47: ='min cases averted (1)'!C47/Y$2 -> 0.01790289985 | Z47: ='min cases averted (1)'!D47/Z$2 -> 0.01311934003 | AA47: ='min cases averted (1)'!E47/AA$2 -> 0.01382216624 | AB47: ='min cases averted (1)'!F47/AB$2 -> 0.01393780974 | AC47: ='min cases averted (1)'!G47/AC$2 -> 0.0112470234 | AD47: ='min cases averted (1)'!H47/AD$2 -> 0.009808454596 | AE47: ='min cases averted (1)'!I47/AE$2 -> 0.008723139502 | AF47: ='min cases averted (1)'!J47/AF$2 -> 0.009013969315 | AH47: 45 | AI47: 97584.52878 | AJ47: ='Input data doses'!U49*SUM('min cases averted (1)'!Y47:Y$84)*AJ$2*N47 -> 3316.336222 | AK47: ='Input data doses'!V49*SUM('min cases averted (1)'!Z47:Z$84)*AK$2*O47 -> 29750.58103 | AL47: ='Input data doses'!W49*SUM('min cases averted (1)'!AA47:AA$84)*AL$2*P47 -> 9155.21148 | AM47: ='Input data doses'!X49*SUM('min cases averted (1)'!AB47:AB$84)*AM$2*Q47 -> 16900.11086 | AN47: ='Input data doses'!Y49*SUM('min cases averted (1)'!AC47:AC$84)*AN$2*R47 -> 12880.08259 | AO47: ='Input data doses'!Z49*SUM('min cases averted (1)'!AD47:AD$84)*AO$2*S47 -> 2796.680698 | AP47: ='Input data doses'!AA49*SUM('min cases averted (1)'!AE47:AE$84)*AP$2*T47 -> 13376.60482 | AQ47: ='Input data doses'!AB49*SUM('min cases averted (1)'!AF47:AF$84)*AQ$2*U47 -> 9408.921079
A48: 46 | B48: ='Input data cases'!D49 -> 1855168.033 | C48: 373620.6385 | D48: 414444.5387 | E48: 40813.69674 | F48: 250447.6845 | G48: 103889.4099 | H48: 46379.20084 | I48: 444323.9492 | J48: 181248.9151 | L48: 46 | M48: =1-(((SUM(B$3:B48)*(1/$S$2))/X$2)) -> 0.8244425218 | N48: =1-(((SUM(C$3:C48)*(1/$S$2))/Y$2)) -> 0.7316577075 | O48: =1-(((SUM(D$3:D48)*(1/$S$2))/Z$2)) -> 0.8033573438 | P48: =1-(((SUM(E$3:E48)*(1/$S$2))/AA$2)) -> 0.7928228496 | Q48: =1-(((SUM(F$3:F48)*(1/$S$2))/AB$2)) -> 0.7910894967 | R48: =1-(((SUM(G$3:G48)*(1/$S$2))/AC$2)) -> 0.8314210509 | S48: =1-(((SUM(H$3:H48)*(1/$S$2))/AD$2)) -> 0.8529834153 | T48: =1-(((SUM(I$3:I48)*(1/$S$2))/AE$2)) -> 0.8692509442 | U48: =1-(((SUM(J$3:J48)*(1/$S$2))/AF$2)) -> 0.8648917655 | W48: 46 | X48: ='min cases averted (1)'!B48/X$2 -> 0.006199319749 | Y48: ='min cases averted (1)'!C48/Y$2 -> 0.009475755125 | Z48: ='min cases averted (1)'!D48/Z$2 -> 0.006943883648 | AA48: ='min cases averted (1)'!E48/AA$2 -> 0.007315879755 | AB48: ='min cases averted (1)'!F48/AB$2 -> 0.007377088247 | AC48: ='min cases averted (1)'!G48/AC$2 -> 0.005952892576 | AD48: ='min cases averted (1)'!H48/AD$2 -> 0.005191478178 | AE48: ='min cases averted (1)'!I48/AE$2 -> 0.00461703604 | AF48: ='min cases averted (1)'!J48/AF$2 -> 0.004770968203 | AH48: 46 | AI48: 65833.88182 | AJ48: ='Input data doses'!U50*SUM('min cases averted (1)'!Y48:Y$84)*AJ$2*N48 -> 7056.875608 | AK48: ='Input data doses'!V50*SUM('min cases averted (1)'!Z48:Z$84)*AK$2*O48 -> 20342.08228 | AL48: ='Input data doses'!W50*SUM('min cases averted (1)'!AA48:AA$84)*AL$2*P48 -> 3307.081884 | AM48: ='Input data doses'!X50*SUM('min cases averted (1)'!AB48:AB$84)*AM$2*Q48 -> 9529.319679 | AN48: ='Input data doses'!Y50*SUM('min cases averted (1)'!AC48:AC$84)*AN$2*R48 -> 7984.089358 | AO48: ='Input data doses'!Z50*SUM('min cases averted (1)'!AD48:AD$84)*AO$2*S48 -> 1988.487651 | AP48: ='Input data doses'!AA50*SUM('min cases averted (1)'!AE48:AE$84)*AP$2*T48 -> 10498.24705 | AQ48: ='Input data doses'!AB50*SUM('min cases averted (1)'!AF48:AF$84)*AQ$2*U48 -> 5127.698306
A49: 47 | B49: ='Input data cases'!D50 -> 1206012.223 | C49: 242884.2287 | D49: 269423.1307 | E49: 26532.26891 | F49: 162811.6502 | G49: 67536.68451 | H49: 30150.30558 | I49: 288847.2118 | J49: 117826.743 | L49: 47 | M49: =1-(((SUM(B$3:B49)*(1/$S$2))/X$2)) -> 0.8186852802 | N49: =1-(((SUM(C$3:C49)*(1/$S$2))/Y$2)) -> 0.7228576756 | O49: =1-(((SUM(D$3:D49)*(1/$S$2))/Z$2)) -> 0.7969086337 | P49: =1-(((SUM(E$3:E49)*(1/$S$2))/AA$2)) -> 0.7860286707 | Q49: =1-(((SUM(F$3:F49)*(1/$S$2))/AB$2)) -> 0.7842384742 | R49: =1-(((SUM(G$3:G49)*(1/$S$2))/AC$2)) -> 0.8258926636 | S49: =1-(((SUM(H$3:H49)*(1/$S$2))/AD$2)) -> 0.8481621454 | T49: =1-(((SUM(I$3:I49)*(1/$S$2))/AE$2)) -> 0.8649631525 | U49: =1-(((SUM(J$3:J49)*(1/$S$2))/AF$2)) -> 0.8604610187 | W49: 47 | X49: ='min cases averted (1)'!B49/X$2 -> 0.004030069115 | Y49: ='min cases averted (1)'!C49/Y$2 -> 0.006160022327 | Z49: ='min cases averted (1)'!D49/Z$2 -> 0.004514097056 | AA49: ='min cases averted (1)'!E49/AA$2 -> 0.004755925205 | AB49: ='min cases averted (1)'!F49/AB$2 -> 0.004795715773 | AC49: ='min cases averted (1)'!G49/AC$2 -> 0.003869871129 | AD49: ='min cases averted (1)'!H49/AD$2 -> 0.003374888973 | AE49: ='min cases averted (1)'!I49/AE$2 -> 0.003001454208 | AF49: ='min cases averted (1)'!J49/AF$2 -> 0.003101522809 | AH49: 47 | AI49: 50813.32867 | AJ49: ='Input data doses'!U51*SUM('min cases averted (1)'!Y49:Y$84)*AJ$2*N49 -> 5422.589694 | AK49: ='Input data doses'!V51*SUM('min cases averted (1)'!Z49:Z$84)*AK$2*O49 -> 15694.36504 | AL49: ='Input data doses'!W51*SUM('min cases averted (1)'!AA49:AA$84)*AL$2*P49 -> 2550.101985 | AM49: ='Input data doses'!X51*SUM('min cases averted (1)'!AB49:AB$84)*AM$2*Q49 -> 7347.382839 | AN49: ='Input data doses'!Y51*SUM('min cases averted (1)'!AC49:AC$84)*AN$2*R49 -> 6168.452543 | AO49: ='Input data doses'!Z51*SUM('min cases averted (1)'!AD49:AD$84)*AO$2*S49 -> 1537.843501 | AP49: ='Input data doses'!AA51*SUM('min cases averted (1)'!AE49:AE$84)*AP$2*T49 -> 8124.880987 | AQ49: ='Input data doses'!AB51*SUM('min cases averted (1)'!AF49:AF$84)*AQ$2*U49 -> 3967.712082
A50: 48 | B50: ='Input data cases'!D51 -> 914363.2914 | C50: 184147.7379 | D50: 204268.7593 | E50: 20115.99241 | F50: 123439.0443 | G50: 51204.34432 | H50: 22859.08228 | I50: 218995.531 | J50: 89332.79981 | L50: 48 | M50: =1-(((SUM(B$3:B50)*(1/$S$2))/X$2)) -> 0.8143203076 | N50: =1-(((SUM(C$3:C50)*(1/$S$2))/Y$2)) -> 0.7161857481 | O50: =1-(((SUM(D$3:D50)*(1/$S$2))/Z$2)) -> 0.7920194099 | P50: =1-(((SUM(E$3:E50)*(1/$S$2))/AA$2)) -> 0.7808775225 | Q50: =1-(((SUM(F$3:F50)*(1/$S$2))/AB$2)) -> 0.7790442287 | R50: =1-(((SUM(G$3:G50)*(1/$S$2))/AC$2)) -> 0.8217012016 | S50: =1-(((SUM(H$3:H50)*(1/$S$2))/AD$2)) -> 0.8445067991 | T50: =1-(((SUM(I$3:I50)*(1/$S$2))/AE$2)) -> 0.8617122738 | U50: =1-(((SUM(J$3:J50)*(1/$S$2))/AF$2)) -> 0.8571017556 | W50: 48 | X50: ='min cases averted (1)'!B50/X$2 -> 0.003055480856 | Y50: ='min cases averted (1)'!C50/Y$2 -> 0.004670349256 | Z50: ='min cases averted (1)'!D50/Z$2 -> 0.003422456723 | AA50: ='min cases averted (1)'!E50/AA$2 -> 0.003605803772 | AB50: ='min cases averted (1)'!F50/AB$2 -> 0.00363597182 | AC50: ='min cases averted (1)'!G50/AC$2 -> 0.002934023415 | AD50: ='min cases averted (1)'!H50/AD$2 -> 0.002558742383 | AE50: ='min cases averted (1)'!I50/AE$2 -> 0.002275615036 | AF50: ='min cases averted (1)'!J50/AF$2 -> 0.00235148413 | AH50: 48 | AI50: 41133.88953 | AJ50: ='Input data doses'!U52*SUM('min cases averted (1)'!Y50:Y$84)*AJ$2*N50 -> 4374.580302 | AK50: ='Input data doses'!V52*SUM('min cases averted (1)'!Z50:Z$84)*AK$2*O50 -> 12700.69485 | AL50: ='Input data doses'!W52*SUM('min cases averted (1)'!AA50:AA$84)*AL$2*P50 -> 2062.808228 | AM50: ='Input data doses'!X52*SUM('min cases averted (1)'!AB50:AB$84)*AM$2*Q50 -> 5942.968259 | AN50: ='Input data doses'!Y52*SUM('min cases averted (1)'!AC50:AC$84)*AN$2*R50 -> 4997.152023 | AO50: ='Input data doses'!Z52*SUM('min cases averted (1)'!AD50:AD$84)*AO$2*S50 -> 1246.78962 | AP50: ='Input data doses'!AA52*SUM('min cases averted (1)'!AE50:AE$84)*AP$2*T50 -> 6590.811861 | AQ50: ='Input data doses'!AB52*SUM('min cases averted (1)'!AF50:AF$84)*AQ$2*U50 -> 3218.084395
A51: 49 | B51: ='Input data cases'!D52 -> 577357.5335 | C51: 116276.6318 | D51: 128981.673 | E51: 12701.86574 | F51: 77943.26702 | G51: 32332.02188 | H51: 14433.93834 | I51: 138280.6165 | J51: 56407.51925 | L51: 49 | M51: =1-(((SUM(B$3:B51)*(1/$S$2))/X$2)) -> 0.8115641276 | N51: =1-(((SUM(C$3:C51)*(1/$S$2))/Y$2)) -> 0.7119728847 | O51: =1-(((SUM(D$3:D51)*(1/$S$2))/Z$2)) -> 0.7889322012 | P51: =1-(((SUM(E$3:E51)*(1/$S$2))/AA$2)) -> 0.7776249266 | Q51: =1-(((SUM(F$3:F51)*(1/$S$2))/AB$2)) -> 0.7757644199 | R51: =1-(((SUM(G$3:G51)*(1/$S$2))/AC$2)) -> 0.8190545816 | S51: =1-(((SUM(H$3:H51)*(1/$S$2))/AD$2)) -> 0.8421986993 | T51: =1-(((SUM(I$3:I51)*(1/$S$2))/AE$2)) -> 0.8596595676 | U51: =1-(((SUM(J$3:J51)*(1/$S$2))/AF$2)) -> 0.8549806121 | W51: 49 | X51: ='min cases averted (1)'!B51/X$2 -> 0.001929326021 | Y51: ='min cases averted (1)'!C51/Y$2 -> 0.002949004353 | Z51: ='min cases averted (1)'!D51/Z$2 -> 0.002161046042 | AA51: ='min cases averted (1)'!E51/AA$2 -> 0.002276817094 | AB51: ='min cases averted (1)'!F51/AB$2 -> 0.002295866142 | AC51: ='min cases averted (1)'!G51/AC$2 -> 0.001852634 | AD51: ='min cases averted (1)'!H51/AD$2 -> 0.001615669838 | AE51: ='min cases averted (1)'!I51/AE$2 -> 0.00143689439 | AF51: ='min cases averted (1)'!J51/AF$2 -> 0.001484800506 | AH51: 49 | AI51: 33893.68151 | AJ51: ='Input data doses'!U53*SUM('min cases averted (1)'!Y51:Y$84)*AJ$2*N51 -> 3596.674574 | AK51: ='Input data doses'!V53*SUM('min cases averted (1)'!Z51:Z$84)*AK$2*O51 -> 10463.05026 | AL51: ='Input data doses'!W53*SUM('min cases averted (1)'!AA51:AA$84)*AL$2*P51 -> 1698.920585 | AM51: ='Input data doses'!X53*SUM('min cases averted (1)'!AB51:AB$84)*AM$2*Q51 -> 4894.384961 | AN51: ='Input data doses'!Y53*SUM('min cases averted (1)'!AC51:AC$84)*AN$2*R51 -> 4119.544579 | AO51: ='Input data doses'!Z53*SUM('min cases averted (1)'!AD51:AD$84)*AO$2*S51 -> 1028.321386 | AP51: ='Input data doses'!AA53*SUM('min cases averted (1)'!AE51:AE$84)*AP$2*T51 -> 5437.880326 | AQ51: ='Input data doses'!AB53*SUM('min cases averted (1)'!AF51:AF$84)*AQ$2*U51 -> 2654.904842
A52: 50 | B52: ='Input data cases'!D53 -> 563849.2721 | C52: 113556.1422 | D52: 125963.9274 | E52: 12404.68399 | F52: 76119.65173 | G52: 31575.55924 | H52: 14096.2318 | I52: 135045.3063 | J52: 55087.7694 | L52: 50 | M52: =1-(((SUM(B$3:B52)*(1/$S$2))/X$2)) -> 0.808872433 | N52: =1-(((SUM(C$3:C52)*(1/$S$2))/Y$2)) -> 0.7078585885 | O52: =1-(((SUM(D$3:D52)*(1/$S$2))/Z$2)) -> 0.7859172231 | P52: =1-(((SUM(E$3:E52)*(1/$S$2))/AA$2)) -> 0.7744484308 | Q52: =1-(((SUM(F$3:F52)*(1/$S$2))/AB$2)) -> 0.7725613479 | R52: =1-(((SUM(G$3:G52)*(1/$S$2))/AC$2)) -> 0.8164698837 | S52: =1-(((SUM(H$3:H52)*(1/$S$2))/AD$2)) -> 0.8399446015 | T52: =1-(((SUM(I$3:I52)*(1/$S$2))/AE$2)) -> 0.8576548879 | U52: =1-(((SUM(J$3:J52)*(1/$S$2))/AF$2)) -> 0.8529090962 | W52: 50 | X52: ='min cases averted (1)'!B52/X$2 -> 0.001884186157 | Y52: ='min cases averted (1)'!C52/Y$2 -> 0.002880007381 | Z52: ='min cases averted (1)'!D52/Z$2 -> 0.002110484695 | AA52: ='min cases averted (1)'!E52/AA$2 -> 0.002223547086 | AB52: ='min cases averted (1)'!F52/AB$2 -> 0.002242150449 | AC52: ='min cases averted (1)'!G52/AC$2 -> 0.001809288477 | AD52: ='min cases averted (1)'!H52/AD$2 -> 0.001577868494 | AE52: ='min cases averted (1)'!I52/AE$2 -> 0.001403275802 | AF52: ='min cases averted (1)'!J52/AF$2 -> 0.001450061073 | AH52: 50 | AI52: 24009.61492 | AJ52: ='Input data doses'!U54*SUM('min cases averted (1)'!Y52:Y$84)*AJ$2*N52 -> 5986.313398 | AK52: ='Input data doses'!V54*SUM('min cases averted (1)'!Z52:Z$84)*AK$2*O52 -> 5630.561636 | AL52: ='Input data doses'!W54*SUM('min cases averted (1)'!AA52:AA$84)*AL$2*P52 -> 482.3414742 | AM52: ='Input data doses'!X54*SUM('min cases averted (1)'!AB52:AB$84)*AM$2*Q52 -> 3570.893774 | AN52: ='Input data doses'!Y54*SUM('min cases averted (1)'!AC52:AC$84)*AN$2*R52 -> 1635.804359 | AO52: ='Input data doses'!Z54*SUM('min cases averted (1)'!AD52:AD$84)*AO$2*S52 -> 495.2579318 | AP52: ='Input data doses'!AA54*SUM('min cases averted (1)'!AE52:AE$84)*AP$2*T52 -> 4368.777455 | AQ52: ='Input data doses'!AB54*SUM('min cases averted (1)'!AF52:AF$84)*AQ$2*U52 -> 1839.664888
A53: 51 | B53: ='Input data cases'!D54 -> 469327.3447 | C53: 94519.94593 | D53: 104847.7288 | E53: 10325.20158 | F53: 63359.19154 | G53: 26282.3313 | H53: 11733.18362 | I53: 112406.7338 | J53: 45853.02814 | L53: 51 | M53: =1-(((SUM(B$3:B53)*(1/$S$2))/X$2)) -> 0.8066319658 | N53: =1-(((SUM(C$3:C53)*(1/$S$2))/Y$2)) -> 0.704434 | O53: =1-(((SUM(D$3:D53)*(1/$S$2))/Z$2)) -> 0.7834076665 | P53: =1-(((SUM(E$3:E53)*(1/$S$2))/AA$2)) -> 0.7718044327 | Q53: =1-(((SUM(F$3:F53)*(1/$S$2))/AB$2)) -> 0.7698952288 | R53: =1-(((SUM(G$3:G53)*(1/$S$2))/AC$2)) -> 0.8143184766 | S53: =1-(((SUM(H$3:H53)*(1/$S$2))/AD$2)) -> 0.8380683735 | T53: =1-(((SUM(I$3:I53)*(1/$S$2))/AE$2)) -> 0.8559862664 | U53: =1-(((SUM(J$3:J53)*(1/$S$2))/AF$2)) -> 0.8511848428 | W53: 51 | X53: ='min cases averted (1)'!B53/X$2 -> 0.001568327087 | Y53: ='min cases averted (1)'!C53/Y$2 -> 0.002397211957 | Z53: ='min cases averted (1)'!D53/Z$2 -> 0.001756689645 | AA53: ='min cases averted (1)'!E53/AA$2 -> 0.001850798611 | AB53: ='min cases averted (1)'!F53/AB$2 -> 0.001866283364 | AC53: ='min cases averted (1)'!G53/AC$2 -> 0.001505985019 | AD53: ='min cases averted (1)'!H53/AD$2 -> 0.001313359558 | AE53: ='min cases averted (1)'!I53/AE$2 -> 0.001168035039 | AF53: ='min cases averted (1)'!J53/AF$2 -> 0.001206977372 | AH53: 51 | AI53: 20375.35718 | AJ53: ='Input data doses'!U55*SUM('min cases averted (1)'!Y53:Y$84)*AJ$2*N53 -> 5072.202839 | AK53: ='Input data doses'!V55*SUM('min cases averted (1)'!Z53:Z$84)*AK$2*O53 -> 4778.658598 | AL53: ='Input data doses'!W55*SUM('min cases averted (1)'!AA53:AA$84)*AL$2*P53 -> 409.2781721 | AM53: ='Input data doses'!X55*SUM('min cases averted (1)'!AB53:AB$84)*AM$2*Q53 -> 3029.830449 | AN53: ='Input data doses'!Y55*SUM('min cases averted (1)'!AC53:AC$84)*AN$2*R53 -> 1389.088318 | AO53: ='Input data doses'!Z55*SUM('min cases averted (1)'!AD53:AD$84)*AO$2*S53 -> 420.7248279 | AP53: ='Input data doses'!AA55*SUM('min cases averted (1)'!AE53:AE$84)*AP$2*T53 -> 3712.413946 | AQ53: ='Input data doses'!AB55*SUM('min cases averted (1)'!AF53:AF$84)*AQ$2*U53 -> 1563.160032
A54: 52 | B54: ='Input data cases'!D55 -> 466348.8249 | C54: 93920.08841 | D54: 104182.3275 | E54: 10259.67415 | F54: 62957.09136 | G54: 26115.53419 | H54: 11658.72062 | I54: 111693.3603 | J54: 45562.02836 | L54: 52 | M54: =1-(((SUM(B$3:B54)*(1/$S$2))/X$2)) -> 0.8044057173 | N54: =1-(((SUM(C$3:C54)*(1/$S$2))/Y$2)) -> 0.7010311451 | O54: =1-(((SUM(D$3:D54)*(1/$S$2))/Z$2)) -> 0.7809140364 | P54: =1-(((SUM(E$3:E54)*(1/$S$2))/AA$2)) -> 0.7691772145 | Q54: =1-(((SUM(F$3:F54)*(1/$S$2))/AB$2)) -> 0.7672460298 | R54: =1-(((SUM(G$3:G54)*(1/$S$2))/AC$2)) -> 0.812180723 | S54: =1-(((SUM(H$3:H54)*(1/$S$2))/AD$2)) -> 0.8362040528 | T54: =1-(((SUM(I$3:I54)*(1/$S$2))/AE$2)) -> 0.8543282346 | U54: =1-(((SUM(J$3:J54)*(1/$S$2))/AF$2)) -> 0.8494715322 | W54: 52 | X54: ='min cases averted (1)'!B54/X$2 -> 0.00155837392 | Y54: ='min cases averted (1)'!C54/Y$2 -> 0.002381998389 | Z54: ='min cases averted (1)'!D54/Z$2 -> 0.001745541062 | AA54: ='min cases averted (1)'!E54/AA$2 -> 0.001839052779 | AB54: ='min cases averted (1)'!F54/AB$2 -> 0.00185443926 | AC54: ='min cases averted (1)'!G54/AC$2 -> 0.001496427497 | AD54: ='min cases averted (1)'!H54/AD$2 -> 0.001305024507 | AE54: ='min cases averted (1)'!I54/AE$2 -> 0.001160622269 | AF54: ='min cases averted (1)'!J54/AF$2 -> 0.001199317461 | AH54: 52 | AI54: 17358.88118 | AJ54: ='Input data doses'!U56*SUM('min cases averted (1)'!Y54:Y$84)*AJ$2*N54 -> 4314.481408 | AK54: ='Input data doses'!V56*SUM('min cases averted (1)'!Z54:Z$84)*AK$2*O54 -> 4071.524182 | AL54: ='Input data doses'!W56*SUM('min cases averted (1)'!AA54:AA$84)*AL$2*P54 -> 348.6316874 | AM54: ='Input data doses'!X56*SUM('min cases averted (1)'!AB54:AB$84)*AM$2*Q54 -> 2580.810226 | AN54: ='Input data doses'!Y56*SUM('min cases averted (1)'!AC54:AC$84)*AN$2*R54 -> 1184.192247 | AO54: ='Input data doses'!Z56*SUM('min cases averted (1)'!AD54:AD$84)*AO$2*S54 -> 358.8156771 | AP54: ='Input data doses'!AA56*SUM('min cases averted (1)'!AE54:AE$84)*AP$2*T54 -> 3167.017476 | AQ54: ='Input data doses'!AB56*SUM('min cases averted (1)'!AF54:AF$84)*AQ$2*U54 -> 1333.408279
A55: 1 | B55: ='Input data cases'!D56 -> 319990.7463 | C55: 64444.37635 | D55: 71485.93272 | E55: 7039.796418 | F55: 43198.75075 | G55: 17919.48179 | H55: 7999.768657 | I55: 76639.71648 | J55: 31262.92312 | L55: 1 | M55: =1-(((SUM(B$3:B55)*(1/$S$2))/X$2)) -> 0.8028781507 | N55: =1-(((SUM(C$3:C55)*(1/$S$2))/Y$2)) -> 0.6986962361 | O55: =1-(((SUM(D$3:D55)*(1/$S$2))/Z$2)) -> 0.7792030027 | P55: =1-(((SUM(E$3:E55)*(1/$S$2))/AA$2)) -> 0.7673745177 | Q55: =1-(((SUM(F$3:F55)*(1/$S$2))/AB$2)) -> 0.7654282507 | R55: =1-(((SUM(G$3:G55)*(1/$S$2))/AC$2)) -> 0.8107138782 | S55: =1-(((SUM(H$3:H55)*(1/$S$2))/AD$2)) -> 0.8349248272 | T55: =1-(((SUM(I$3:I55)*(1/$S$2))/AE$2)) -> 0.8531905565 | U55: =1-(((SUM(J$3:J55)*(1/$S$2))/AF$2)) -> 0.8482959239 | W55: 1 | X55: ='min cases averted (1)'!B55/X$2 -> 0.001069296644 | Y55: ='min cases averted (1)'!C55/Y$2 -> 0.001634436288 | Z55: ='min cases averted (1)'!D55/Z$2 -> 0.001197723587 | AA55: ='min cases averted (1)'!E55/AA$2 -> 0.001261887754 | AB55: ='min cases averted (1)'!F55/AB$2 -> 0.001272445369 | AC55: ='min cases averted (1)'!G55/AC$2 -> 0.001026791376 | AD55: ='min cases averted (1)'!H55/AD$2 -> 0.0008954579566 | AE55: ='min cases averted (1)'!I55/AE$2 -> 0.000796374658 | AF55: ='min cases averted (1)'!J55/AF$2 -> 0.0008229258203 | AH55: 1 | AI55: 14395.20644 | AJ55: ='Input data doses'!U57*SUM('min cases averted (1)'!Y55:Y$84)*AJ$2*N55 -> 3573.978724 | AK55: ='Input data doses'!V57*SUM('min cases averted (1)'!Z55:Z$84)*AK$2*O55 -> 3376.573 | AL55: ='Input data doses'!W57*SUM('min cases averted (1)'!AA55:AA$84)*AL$2*P55 -> 289.0856678 | AM55: ='Input data doses'!X57*SUM('min cases averted (1)'!AB55:AB$84)*AM$2*Q55 -> 2139.927489 | AN55: ='Input data doses'!Y57*SUM('min cases averted (1)'!AC55:AC$84)*AN$2*R55 -> 982.4476406 | AO55: ='Input data doses'!Z57*SUM('min cases averted (1)'!AD55:AD$84)*AO$2*S55 -> 297.7685233 | AP55: ='Input data doses'!AA57*SUM('min cases averted (1)'!AE55:AE$84)*AP$2*T55 -> 2628.715048 | AQ55: ='Input data doses'!AB57*SUM('min cases averted (1)'!AF55:AF$84)*AQ$2*U55 -> 1106.710343
A56: 2 | B56: ='Input data cases'!D57 -> 290407.4213 | C56: 58486.4574 | D56: 64877.01791 | E56: 6388.963268 | F56: 39205.00187 | G56: 16262.81559 | H56: 7260.185532 | I56: 69554.33146 | J56: 28372.64824 | L56: 2 | M56: =1-(((SUM(B$3:B56)*(1/$S$2))/X$2)) -> 0.8014918084 | N56: =1-(((SUM(C$3:C56)*(1/$S$2))/Y$2)) -> 0.6965771908 | O56: =1-(((SUM(D$3:D56)*(1/$S$2))/Z$2)) -> 0.777650155 | P56: =1-(((SUM(E$3:E56)*(1/$S$2))/AA$2)) -> 0.7657384812 | Q56: =1-(((SUM(F$3:F56)*(1/$S$2))/AB$2)) -> 0.7637785263 | R56: =1-(((SUM(G$3:G56)*(1/$S$2))/AC$2)) -> 0.809382644 | S56: =1-(((SUM(H$3:H56)*(1/$S$2))/AD$2)) -> 0.8337638666 | T56: =1-(((SUM(I$3:I56)*(1/$S$2))/AE$2)) -> 0.8521580574 | U56: =1-(((SUM(J$3:J56)*(1/$S$2))/AF$2)) -> 0.8472290012 | W56: 2 | X56: ='min cases averted (1)'!B56/X$2 -> 0.0009704395665 | Y56: ='min cases averted (1)'!C56/Y$2 -> 0.001483331731 | Z56: ='min cases averted (1)'!D56/Z$2 -> 0.001086993365 | AA56: ='min cases averted (1)'!E56/AA$2 -> 0.001145225519 | AB56: ='min cases averted (1)'!F56/AB$2 -> 0.001154807077 | AC56: ='min cases averted (1)'!G56/AC$2 -> 0.0009318639341 | AD56: ='min cases averted (1)'!H56/AD$2 -> 0.0008126723634 | AE56: ='min cases averted (1)'!I56/AE$2 -> 0.0007227493716 | AF56: ='min cases averted (1)'!J56/AF$2 -> 0.000746845864 | AH56: 2 | AI56: 7969.451492 | AJ56: ='Input data doses'!U58*SUM('min cases averted (1)'!Y56:Y$84)*AJ$2*N56 -> 2046.154591 | AK56: ='Input data doses'!V58*SUM('min cases averted (1)'!Z56:Z$84)*AK$2*O56 -> 1617.941322 | AL56: ='Input data doses'!W58*SUM('min cases averted (1)'!AA56:AA$84)*AL$2*P56 -> 218.7677976 | AM56: ='Input data doses'!X58*SUM('min cases averted (1)'!AB56:AB$84)*AM$2*Q56 -> 1042.438134 | AN56: ='Input data doses'!Y58*SUM('min cases averted (1)'!AC56:AC$84)*AN$2*R56 -> 465.9148798 | AO56: ='Input data doses'!Z58*SUM('min cases averted (1)'!AD56:AD$84)*AO$2*S56 -> 140.334718 | AP56: ='Input data doses'!AA58*SUM('min cases averted (1)'!AE56:AE$84)*AP$2*T56 -> 1615.968405 | AQ56: ='Input data doses'!AB58*SUM('min cases averted (1)'!AF56:AF$84)*AQ$2*U56 -> 821.9316448
A57: 3 | B57: ='Input data cases'!D58 -> 388526.3198 | C57: 78247.06392 | D57: 86796.77985 | E57: 8547.579036 | F57: 52451.05318 | G57: 21757.47391 | H57: 9713.157996 | I57: 93054.4003 | J57: 37958.81164 | L57: 3 | M57: =1-(((SUM(B$3:B57)*(1/$S$2))/X$2)) -> 0.7996370678 | N57: =1-(((SUM(C$3:C57)*(1/$S$2))/Y$2)) -> 0.6937421913 | O57: =1-(((SUM(D$3:D57)*(1/$S$2))/Z$2)) -> 0.7755726523 | P57: =1-(((SUM(E$3:E57)*(1/$S$2))/AA$2)) -> 0.7635496831 | Q57: =1-(((SUM(F$3:F57)*(1/$S$2))/AB$2)) -> 0.7615714156 | R57: =1-(((SUM(G$3:G57)*(1/$S$2))/AC$2)) -> 0.8076016305 | S57: =1-(((SUM(H$3:H57)*(1/$S$2))/AD$2)) -> 0.8322106566 | T57: =1-(((SUM(I$3:I57)*(1/$S$2))/AE$2)) -> 0.8507767116 | U57: =1-(((SUM(J$3:J57)*(1/$S$2))/AF$2)) -> 0.8458016013 | W57: 3 | X57: ='min cases averted (1)'!B57/X$2 -> 0.001298318451 | Y57: ='min cases averted (1)'!C57/Y$2 -> 0.001984499625 | Z57: ='min cases averted (1)'!D57/Z$2 -> 0.001454251858 | AA57: ='min cases averted (1)'!E57/AA$2 -> 0.001532158697 | AB57: ='min cases averted (1)'!F57/AB$2 -> 0.001544977542 | AC57: ='min cases averted (1)'!G57/AC$2 -> 0.00124670941 | AD57: ='min cases averted (1)'!H57/AD$2 -> 0.001087247017 | AE57: ='min cases averted (1)'!I57/AE$2 -> 0.0009669420715 | AF57: ='min cases averted (1)'!J57/AF$2 -> 0.0009991799581 | AH57: 3 | AI57: 6779.39778 | AJ57: ='Input data doses'!U59*SUM('min cases averted (1)'!Y57:Y$84)*AJ$2*N57 -> 1738.230562 | AK57: ='Input data doses'!V59*SUM('min cases averted (1)'!Z57:Z$84)*AK$2*O57 -> 1376.388514 | AL57: ='Input data doses'!W59*SUM('min cases averted (1)'!AA57:AA$84)*AL$2*P57 -> 186.0752327 | AM57: ='Input data doses'!X59*SUM('min cases averted (1)'!AB57:AB$84)*AM$2*Q57 -> 886.6138006 | AN57: ='Input data doses'!Y59*SUM('min cases averted (1)'!AC57:AC$84)*AN$2*R57 -> 396.5408391 | AO57: ='Input data doses'!Z59*SUM('min cases averted (1)'!AD57:AD$84)*AO$2*S57 -> 119.4778755 | AP57: ='Input data doses'!AA59*SUM('min cases averted (1)'!AE57:AE$84)*AP$2*T57 -> 1376.15899 | AQ57: ='Input data doses'!AB59*SUM('min cases averted (1)'!AF57:AF$84)*AQ$2*U57 -> 699.9119663
A58: 4 | B58: ='Input data cases'!D59 -> 177244.9378 | C58: 35696.15562 | D58: 39596.5191 | E58: 3899.388631 | F58: 23928.0666 | G58: 9925.716515 | H58: 4431.123444 | I58: 42451.23316 | J58: 17316.73471 | L58: 4 | M58: =1-(((SUM(B$3:B58)*(1/$S$2))/X$2)) -> 0.7987909388 | N58: =1-(((SUM(C$3:C58)*(1/$S$2))/Y$2)) -> 0.6924488702 | O58: =1-(((SUM(D$3:D58)*(1/$S$2))/Z$2)) -> 0.7746248998 | P58: =1-(((SUM(E$3:E58)*(1/$S$2))/AA$2)) -> 0.7625511577 | Q58: =1-(((SUM(F$3:F58)*(1/$S$2))/AB$2)) -> 0.760564536 | R58: =1-(((SUM(G$3:G58)*(1/$S$2))/AC$2)) -> 0.8067891357 | S58: =1-(((SUM(H$3:H58)*(1/$S$2))/AD$2)) -> 0.8315020853 | T58: =1-(((SUM(I$3:I58)*(1/$S$2))/AE$2)) -> 0.8501465443 | U58: =1-(((SUM(J$3:J58)*(1/$S$2))/AF$2)) -> 0.8451504242 | W58: 4 | X58: ='min cases averted (1)'!B58/X$2 -> 0.0005922903066 | Y58: ='min cases averted (1)'!C58/Y$2 -> 0.0009053247993 | Z58: ='min cases averted (1)'!D58/Z$2 -> 0.0006634268179 | AA58: ='min cases averted (1)'!E58/AA$2 -> 0.0006989677639 | AB58: ='min cases averted (1)'!F58/AB$2 -> 0.0007048156953 | AC58: ='min cases averted (1)'!G58/AC$2 -> 0.0005687463643 | AD58: ='min cases averted (1)'!H58/AD$2 -> 0.0004959999364 | AE58: ='min cases averted (1)'!I58/AE$2 -> 0.0004411170584 | AF58: ='min cases averted (1)'!J58/AF$2 -> 0.0004558239184 | AH58: 4 | AI58: 5209.702923 | AJ58: ='Input data doses'!U60*SUM('min cases averted (1)'!Y58:Y$84)*AJ$2*N58 -> 1334.925984 | AK58: ='Input data doses'!V60*SUM('min cases averted (1)'!Z58:Z$84)*AK$2*O58 -> 1057.716509 | AL58: ='Input data doses'!W60*SUM('min cases averted (1)'!AA58:AA$84)*AL$2*P58 -> 142.9813954 | AM58: ='Input data doses'!X60*SUM('min cases averted (1)'!AB58:AB$84)*AM$2*Q58 -> 681.2698979 | AN58: ='Input data doses'!Y60*SUM('min cases averted (1)'!AC58:AC$84)*AN$2*R58 -> 304.7986347 | AO58: ='Input data doses'!Z60*SUM('min cases averted (1)'!AD58:AD$84)*AO$2*S58 -> 91.8513792 | AP58: ='Input data doses'!AA60*SUM('min cases averted (1)'!AE58:AE$84)*AP$2*T58 -> 1058.051451 | AQ58: ='Input data doses'!AB60*SUM('min cases averted (1)'!AF58:AF$84)*AQ$2*U58 -> 538.1076724
A59: 5 | B59: ='Input data cases'!D60 -> 308179.3004 | C59: 62065.61611 | D59: 68847.2557 | E59: 6779.944608 | F59: 41604.20555 | G59: 17258.04082 | H59: 7704.482509 | I59: 73810.80384 | J59: 30108.95123 | L59: 5 | M59: =1-(((SUM(B$3:B59)*(1/$S$2))/X$2)) -> 0.7973197574 | N59: =1-(((SUM(C$3:C59)*(1/$S$2))/Y$2)) -> 0.690200147 | O59: =1-(((SUM(D$3:D59)*(1/$S$2))/Z$2)) -> 0.7729770235 | P59: =1-(((SUM(E$3:E59)*(1/$S$2))/AA$2)) -> 0.7608150018 | Q59: =1-(((SUM(F$3:F59)*(1/$S$2))/AB$2)) -> 0.7588138545 | R59: =1-(((SUM(G$3:G59)*(1/$S$2))/AC$2)) -> 0.8053764348 | S59: =1-(((SUM(H$3:H59)*(1/$S$2))/AD$2)) -> 0.8302700782 | T59: =1-(((SUM(I$3:I59)*(1/$S$2))/AE$2)) -> 0.84905086 | U59: =1-(((SUM(J$3:J59)*(1/$S$2))/AF$2)) -> 0.8440182098 | W59: 5 | X59: ='min cases averted (1)'!B59/X$2 -> 0.001029826942 | Y59: ='min cases averted (1)'!C59/Y$2 -> 0.001574106244 | Z59: ='min cases averted (1)'!D59/Z$2 -> 0.00115351341 | AA59: ='min cases averted (1)'!E59/AA$2 -> 0.00121530916 | AB59: ='min cases averted (1)'!F59/AB$2 -> 0.001225477075 | AC59: ='min cases averted (1)'!G59/AC$2 -> 0.0009888906213 | AD59: ='min cases averted (1)'!H59/AD$2 -> 0.0008624049595 | AE59: ='min cases averted (1)'!I59/AE$2 -> 0.0007669790073 | AF59: ='min cases averted (1)'!J59/AF$2 -> 0.0007925501175 | AH59: 5 | AI59: 4487.735027 | AJ59: ='Input data doses'!U61*SUM('min cases averted (1)'!Y59:Y$84)*AJ$2*N59 -> 1148.670961 | AK59: ='Input data doses'!V61*SUM('min cases averted (1)'!Z59:Z$84)*AK$2*O59 -> 911.1638032 | AL59: ='Input data doses'!W61*SUM('min cases averted (1)'!AA59:AA$84)*AL$2*P59 -> 123.1520535 | AM59: ='Input data doses'!X61*SUM('min cases averted (1)'!AB59:AB$84)*AM$2*Q59 -> 586.7755028 | AN59: ='Input data doses'!Y61*SUM('min cases averted (1)'!AC59:AC$84)*AN$2*R59 -> 262.6642537 | AO59: ='Input data doses'!Z61*SUM('min cases averted (1)'!AD59:AD$84)*AO$2*S59 -> 79.17603878 | AP59: ='Input data doses'!AA61*SUM('min cases averted (1)'!AE59:AE$84)*AP$2*T59 -> 912.2167563 | AQ59: ='Input data doses'!AB61*SUM('min cases averted (1)'!AF59:AF$84)*AQ$2*U59 -> 463.9156582
A60: 6 | B60: ='Input data cases'!D61 -> 218319.6804 | C60: 43968.38288 | D60: 48772.61661 | E60: 4803.03297 | F60: 29473.15686 | G60: 12225.9021 | H60: 5457.992011 | I60: 52288.88212 | J60: 21329.71489 | L60: 6 | M60: =1-(((SUM(B$3:B60)*(1/$S$2))/X$2)) -> 0.7962775465 | N60: =1-(((SUM(C$3:C60)*(1/$S$2))/Y$2)) -> 0.6886071116 | O60: =1-(((SUM(D$3:D60)*(1/$S$2))/Z$2)) -> 0.7718096387 | P60: =1-(((SUM(E$3:E60)*(1/$S$2))/AA$2)) -> 0.7595850781 | Q60: =1-(((SUM(F$3:F60)*(1/$S$2))/AB$2)) -> 0.7575736406 | R60: =1-(((SUM(G$3:G60)*(1/$S$2))/AC$2)) -> 0.8043756525 | S60: =1-(((SUM(H$3:H60)*(1/$S$2))/AD$2)) -> 0.8293973025 | T60: =1-(((SUM(I$3:I60)*(1/$S$2))/AE$2)) -> 0.8482746579 | U60: =1-(((SUM(J$3:J60)*(1/$S$2))/AF$2)) -> 0.843216129 | W60: 6 | X60: ='min cases averted (1)'!B60/X$2 -> 0.0007295476648 | Y60: ='min cases averted (1)'!C60/Y$2 -> 0.001115124772 | Z60: ='min cases averted (1)'!D60/Z$2 -> 0.0008171693516 | AA60: ='min cases averted (1)'!E60/AA$2 -> 0.0008609465565 | AB60: ='min cases averted (1)'!F60/AB$2 -> 0.0008681496876 | AC60: ='min cases averted (1)'!G60/AC$2 -> 0.0007005476493 | AD60: ='min cases averted (1)'!H60/AD$2 -> 0.0006109429638 | AE60: ='min cases averted (1)'!I60/AE$2 -> 0.0005433415274 | AF60: ='min cases averted (1)'!J60/AF$2 -> 0.0005614565552 | AH60: 6 | AI60: 3246.99775 | AJ60: ='Input data doses'!U62*SUM('min cases averted (1)'!Y60:Y$84)*AJ$2*N60 -> 830.4488069 | AK60: ='Input data doses'!V62*SUM('min cases averted (1)'!Z60:Z$84)*AK$2*O60 -> 659.2662921 | AL60: ='Input data doses'!W62*SUM('min cases averted (1)'!AA60:AA$84)*AL$2*P60 -> 89.09613349 | AM60: ='Input data doses'!X62*SUM('min cases averted (1)'!AB60:AB$84)*AM$2*Q60 -> 424.5021269 | AN60: ='Input data doses'!Y62*SUM('min cases averted (1)'!AC60:AC$84)*AN$2*R60 -> 190.0994297 | AO60: ='Input data doses'!Z62*SUM('min cases averted (1)'!AD60:AD$84)*AO$2*S60 -> 57.31348859 | AP60: ='Input data doses'!AA62*SUM('min cases averted (1)'!AE60:AE$84)*AP$2*T60 -> 660.4217571 | AQ60: ='Input data doses'!AB62*SUM('min cases averted (1)'!AF60:AF$84)*AQ$2*U60 -> 335.849715
A61: 7 | B61: ='Input data cases'!D62 -> 227364.0424 | C61: 45789.86763 | D61: 50793.12706 | E61: 5002.008932 | F61: 30694.14572 | G61: 12732.38637 | H61: 5684.101059 | I61: 54455.06142 | J61: 22213.34416 | L61: 7 | M61: =1-(((SUM(B$3:B61)*(1/$S$2))/X$2)) -> 0.7951921597 | N61: =1-(((SUM(C$3:C61)*(1/$S$2))/Y$2)) -> 0.6869480813 | O61: =1-(((SUM(D$3:D61)*(1/$S$2))/Z$2)) -> 0.7705938925 | P61: =1-(((SUM(E$3:E61)*(1/$S$2))/AA$2)) -> 0.7583042023 | Q61: =1-(((SUM(F$3:F61)*(1/$S$2))/AB$2)) -> 0.7562820483 | R61: =1-(((SUM(G$3:G61)*(1/$S$2))/AC$2)) -> 0.8033334106 | S61: =1-(((SUM(H$3:H61)*(1/$S$2))/AD$2)) -> 0.8284883703 | T61: =1-(((SUM(I$3:I61)*(1/$S$2))/AE$2)) -> 0.8474662998 | U61: =1-(((SUM(J$3:J61)*(1/$S$2))/AF$2)) -> 0.8423808203 | W61: 7 | X61: ='min cases averted (1)'!B61/X$2 -> 0.0007597707446 | Y61: ='min cases averted (1)'!C61/Y$2 -> 0.001161321212 | Z61: ='min cases averted (1)'!D61/Z$2 -> 0.0008510223481 | AA61: ='min cases averted (1)'!E61/AA$2 -> 0.0008966131177 | AB61: ='min cases averted (1)'!F61/AB$2 -> 0.000904114654 | AC61: ='min cases averted (1)'!G61/AC$2 -> 0.0007295693411 | AD61: ='min cases averted (1)'!H61/AD$2 -> 0.000636252589 | AE61: ='min cases averted (1)'!I61/AE$2 -> 0.0005658506178 | AF61: ='min cases averted (1)'!J61/AF$2 -> 0.0005847160996 | AH61: 7 | AI61: 1573.9244 | AJ61: ='Input data doses'!U63*SUM('min cases averted (1)'!Y61:Y$84)*AJ$2*N61 -> 404.8123013 | AK61: ='Input data doses'!V63*SUM('min cases averted (1)'!Z61:Z$84)*AK$2*O61 -> 284.0860305 | AL61: ='Input data doses'!W63*SUM('min cases averted (1)'!AA61:AA$84)*AL$2*P61 -> 0 | AM61: ='Input data doses'!X63*SUM('min cases averted (1)'!AB61:AB$84)*AM$2*Q61 -> 271.4855402 | AN61: ='Input data doses'!Y63*SUM('min cases averted (1)'!AC61:AC$84)*AN$2*R61 -> 56.95950937 | AO61: ='Input data doses'!Z63*SUM('min cases averted (1)'!AD61:AD$84)*AO$2*S61 -> 36.04395853 | AP61: ='Input data doses'!AA63*SUM('min cases averted (1)'!AE61:AE$84)*AP$2*T61 -> 371.8224687 | AQ61: ='Input data doses'!AB63*SUM('min cases averted (1)'!AF61:AF$84)*AQ$2*U61 -> 148.7145915
A62: 8 | B62: ='Input data cases'!D63 -> 176165.4873 | C62: 35478.76022 | D62: 39355.36985 | E62: 3875.64072 | F62: 23782.34078 | G62: 9865.267286 | H62: 4404.137181 | I62: 42192.69824 | J62: 17211.27298 | L62: 8 | M62: =1-(((SUM(B$3:B62)*(1/$S$2))/X$2)) -> 0.7943511838 | N62: =1-(((SUM(C$3:C62)*(1/$S$2))/Y$2)) -> 0.6856626367 | O62: =1-(((SUM(D$3:D62)*(1/$S$2))/Z$2)) -> 0.7696519118 | P62: =1-(((SUM(E$3:E62)*(1/$S$2))/AA$2)) -> 0.7573117581 | Q62: =1-(((SUM(F$3:F62)*(1/$S$2))/AB$2)) -> 0.7552813008 | R62: =1-(((SUM(G$3:G62)*(1/$S$2))/AC$2)) -> 0.802525864 | S62: =1-(((SUM(H$3:H62)*(1/$S$2))/AD$2)) -> 0.8277841142 | T62: =1-(((SUM(I$3:I62)*(1/$S$2))/AE$2)) -> 0.8468399704 | U62: =1-(((SUM(J$3:J62)*(1/$S$2))/AF$2)) -> 0.841733609 | W62: 8 | X62: ='min cases averted (1)'!B62/X$2 -> 0.0005886831622 | Y62: ='min cases averted (1)'!C62/Y$2 -> 0.0008998112239 | Z62: ='min cases averted (1)'!D62/Z$2 -> 0.0006593864406 | AA62: ='min cases averted (1)'!E62/AA$2 -> 0.0006947109364 | AB62: ='min cases averted (1)'!F62/AB$2 -> 0.000700523253 | AC62: ='min cases averted (1)'!G62/AC$2 -> 0.0005652826064 | AD62: ='min cases averted (1)'!H62/AD$2 -> 0.0004929792161 | AE62: ='min cases averted (1)'!I62/AE$2 -> 0.0004384305837 | AF62: ='min cases averted (1)'!J62/AF$2 -> 0.0004530478765 | AH62: 8 | AI62: 968.9298347 | AJ62: ='Input data doses'!U64*SUM('min cases averted (1)'!Y62:Y$84)*AJ$2*N62 -> 249.0489041 | AK62: ='Input data doses'!V64*SUM('min cases averted (1)'!Z62:Z$84)*AK$2*O62 -> 174.8892167 | AL62: ='Input data doses'!W64*SUM('min cases averted (1)'!AA62:AA$84)*AL$2*P62 -> 0 | AM62: ='Input data doses'!X64*SUM('min cases averted (1)'!AB62:AB$84)*AM$2*Q62 -> 167.1152213 | AN62: ='Input data doses'!Y64*SUM('min cases averted (1)'!AC62:AC$84)*AN$2*R62 -> 35.07307245 | AO62: ='Input data doses'!Z64*SUM('min cases averted (1)'!AD62:AD$84)*AO$2*S62 -> 22.19767645 | AP62: ='Input data doses'!AA64*SUM('min cases averted (1)'!AE62:AE$84)*AP$2*T62 -> 229.0123512 | AQ62: ='Input data doses'!AB64*SUM('min cases averted (1)'!AF62:AF$84)*AQ$2*U62 -> 91.59339245
A63: 9 | B63: ='Input data cases'!D64 -> 72348.46112 | C63: 14570.58215 | D63: 16162.64622 | E63: 1591.666145 | F63: 9767.042252 | G63: 4051.513823 | H63: 1808.711528 | I63: 17327.89342 | J63: 7068.405584 | L63: 9 | M63: =1-(((SUM(B$3:B63)*(1/$S$2))/X$2)) -> 0.7940058079 | N63: =1-(((SUM(C$3:C63)*(1/$S$2))/Y$2)) -> 0.6851347243 | O63: =1-(((SUM(D$3:D63)*(1/$S$2))/Z$2)) -> 0.7692650548 | P63: =1-(((SUM(E$3:E63)*(1/$S$2))/AA$2)) -> 0.7569041765 | Q63: =1-(((SUM(F$3:F63)*(1/$S$2))/AB$2)) -> 0.7548703091 | R63: =1-(((SUM(G$3:G63)*(1/$S$2))/AC$2)) -> 0.802194217 | S63: =1-(((SUM(H$3:H63)*(1/$S$2))/AD$2)) -> 0.8274948871 | T63: =1-(((SUM(I$3:I63)*(1/$S$2))/AE$2)) -> 0.8465827465 | U63: =1-(((SUM(J$3:J63)*(1/$S$2))/AF$2)) -> 0.8414678093 | W63: 9 | X63: ='min cases averted (1)'!B63/X$2 -> 0.0002417631372 | Y63: ='min cases averted (1)'!C63/Y$2 -> 0.0003695386557 | Z63: ='min cases averted (1)'!D63/Z$2 -> 0.0002707998883 | AA63: ='min cases averted (1)'!E63/AA$2 -> 0.0002853071164 | AB63: ='min cases averted (1)'!F63/AB$2 -> 0.0002876941456 | AC63: ='min cases averted (1)'!G63/AC$2 -> 0.0002321528882 | AD63: ='min cases averted (1)'!H63/AD$2 -> 0.0002024589958 | AE63: ='min cases averted (1)'!I63/AE$2 -> 0.0001800567099 | AF63: ='min cases averted (1)'!J63/AF$2 -> 0.0001860598077 | AH63: 9 | AI63: 501.420253 | AJ63: ='Input data doses'!U65*SUM('min cases averted (1)'!Y63:Y$84)*AJ$2*N63 -> 128.8484457 | AK63: ='Input data doses'!V65*SUM('min cases averted (1)'!Z63:Z$84)*AK$2*O63 -> 90.50558067 | AL63: ='Input data doses'!W65*SUM('min cases averted (1)'!AA63:AA$84)*AL$2*P63 -> 0 | AM63: ='Input data doses'!X65*SUM('min cases averted (1)'!AB63:AB$84)*AM$2*Q63 -> 86.47860473 | AN63: ='Input data doses'!Y65*SUM('min cases averted (1)'!AC63:AC$84)*AN$2*R63 -> 18.15225474 | AO63: ='Input data doses'!Z65*SUM('min cases averted (1)'!AD63:AD$84)*AO$2*S63 -> 11.48906807 | AP63: ='Input data doses'!AA65*SUM('min cases averted (1)'!AE63:AE$84)*AP$2*T63 -> 118.5378183 | AQ63: ='Input data doses'!AB65*SUM('min cases averted (1)'!AF63:AF$84)*AQ$2*U63 -> 47.40848067
A64: 10 | B64: ='Input data cases'!D65 -> 75089.96808 | C64: 15122.70658 | D64: 16775.09887 | E64: 1651.979298 | F64: 10137.14569 | G64: 4205.038212 | H64: 1877.249202 | I64: 17984.5009 | J64: 7336.249333 | L64: 10 | M64: =1-(((SUM(B$3:B64)*(1/$S$2))/X$2)) -> 0.7936473446 | N64: =1-(((SUM(C$3:C64)*(1/$S$2))/Y$2)) -> 0.6845868077 | O64: =1-(((SUM(D$3:D64)*(1/$S$2))/Z$2)) -> 0.7688635386 | P64: =1-(((SUM(E$3:E64)*(1/$S$2))/AA$2)) -> 0.7564811503 | Q64: =1-(((SUM(F$3:F64)*(1/$S$2))/AB$2)) -> 0.7544437437 | R64: =1-(((SUM(G$3:G64)*(1/$S$2))/AC$2)) -> 0.8018500029 | S64: =1-(((SUM(H$3:H64)*(1/$S$2))/AD$2)) -> 0.8271947003 | T64: =1-(((SUM(I$3:I64)*(1/$S$2))/AE$2)) -> 0.8463157757 | U64: =1-(((SUM(J$3:J64)*(1/$S$2))/AF$2)) -> 0.8411919376 | W64: 10 | X64: ='min cases averted (1)'!B64/X$2 -> 0.0002509242903 | Y64: ='min cases averted (1)'!C64/Y$2 -> 0.0003835416183 | Z64: ='min cases averted (1)'!D64/Z$2 -> 0.0002810613336 | AA64: ='min cases averted (1)'!E64/AA$2 -> 0.0002961182854 | AB64: ='min cases averted (1)'!F64/AB$2 -> 0.0002985957665 | AC64: ='min cases averted (1)'!G64/AC$2 -> 0.0002409498792 | AD64: ='min cases averted (1)'!H64/AD$2 -> 0.0002101307933 | AE64: ='min cases averted (1)'!I64/AE$2 -> 0.0001868796156 | AF64: ='min cases averted (1)'!J64/AF$2 -> 0.0001931101893 | AH64: 10 | AI64: 309.4591599 | AJ64: ='Input data doses'!U66*SUM('min cases averted (1)'!Y64:Y$84)*AJ$2*N64 -> 79.49933692 | AK64: ='Input data doses'!V66*SUM('min cases averted (1)'!Z64:Z$84)*AK$2*O64 -> 55.85697251 | AL64: ='Input data doses'!W66*SUM('min cases averted (1)'!AA64:AA$84)*AL$2*P64 -> 0 | AM64: ='Input data doses'!X66*SUM('min cases averted (1)'!AB64:AB$84)*AM$2*Q64 -> 53.36955528 | AN64: ='Input data doses'!Y66*SUM('min cases averted (1)'!AC64:AC$84)*AN$2*R64 -> 11.20385182 | AO64: ='Input data doses'!Z66*SUM('min cases averted (1)'!AD64:AD$84)*AO$2*S64 -> 7.091986232 | AP64: ='Input data doses'!AA66*SUM('min cases averted (1)'!AE64:AE$84)*AP$2*T64 -> 73.17276062 | AQ64: ='Input data doses'!AB66*SUM('min cases averted (1)'!AF64:AF$84)*AQ$2*U64 -> 29.26469652
A65: 11 | B65: ='Input data cases'!D66 -> 10425.81386 | C65: =$B65*C$2 -> 2099.701569 | D65: 2329.126816 | E65: 229.3679049 | F65: 1407.484871 | G65: 583.8455761 | H65: 260.6453465 | I65: 2497.045391 | J65: 1018.596384 | L65: 11 | M65: =1-(((SUM(B$3:B65)*(1/$S$2))/X$2)) -> 0.793597574 | N65: =1-(((SUM(C$3:C65)*(1/$S$2))/Y$2)) -> 0.6845107326 | O65: =1-(((SUM(D$3:D65)*(1/$S$2))/Z$2)) -> 0.7688077904 | P65: =1-(((SUM(E$3:E65)*(1/$S$2))/AA$2)) -> 0.7564224156 | Q65: =1-(((SUM(F$3:F65)*(1/$S$2))/AB$2)) -> 0.7543845176 | R65: =1-(((SUM(G$3:G65)*(1/$S$2))/AC$2)) -> 0.8018022107 | S65: =1-(((SUM(H$3:H65)*(1/$S$2))/AD$2)) -> 0.827153021 | T65: =1-(((SUM(I$3:I65)*(1/$S$2))/AE$2)) -> 0.8462787083 | U65: =1-(((SUM(J$3:J65)*(1/$S$2))/AF$2)) -> 0.8411536344 | W65: 11 | X65: ='min cases averted (1)'!B65/X$2 -> 3.483940678e-05 | Y65: ='min cases averted (1)'!C65/Y$2 -> 5.325256651e-05 | Z65: ='min cases averted (1)'!D65/Z$2 -> 3.902376338e-05 | AA65: ='min cases averted (1)'!E65/AA$2 -> 4.111433528e-05 | AB65: ='min cases averted (1)'!F65/AB$2 -> 4.145831941e-05 | AC65: ='min cases averted (1)'!G65/AC$2 -> 3.345451668e-05 | AD65: ='min cases averted (1)'!H65/AD$2 -> 2.917546236e-05 | AE65: ='min cases averted (1)'!I65/AE$2 -> 2.594716892e-05 | AF65: ='min cases averted (1)'!J65/AF$2 -> 2.681224855e-05 | AH65: 11 | AI65: 51.3404129 | AJ65: ='Input data doses'!U67*SUM('min cases averted (1)'!Y65:Y$84)*AJ$2*N65 -> 14.1237759 | AK65: ='Input data doses'!V67*SUM('min cases averted (1)'!Z65:Z$84)*AK$2*O65 -> 6.864921761 | AL65: ='Input data doses'!W67*SUM('min cases averted (1)'!AA65:AA$84)*AL$2*P65 -> 0 | AM65: ='Input data doses'!X67*SUM('min cases averted (1)'!AB65:AB$84)*AM$2*Q65 -> 10.0329648 | AN65: ='Input data doses'!Y67*SUM('min cases averted (1)'!AC65:AC$84)*AN$2*R65 -> 3.104309116 | AO65: ='Input data doses'!Z67*SUM('min cases averted (1)'!AD65:AD$84)*AO$2*S65 -> 2.703907948 | AP65: ='Input data doses'!AA67*SUM('min cases averted (1)'!AE65:AE$84)*AP$2*T65 -> 9.52907911 | AQ65: ='Input data doses'!AB67*SUM('min cases averted (1)'!AF65:AF$84)*AQ$2*U65 -> 4.981454264
A66: 12 | B66: ='Input data cases'!D67 -> 10425.81386 | C66: 2099.701569 | D66: 2329.126816 | E66: 229.3679049 | F66: 1407.484871 | G66: 583.8455761 | H66: 260.6453465 | I66: 2497.045391 | J66: 1018.596384 | L66: 12 | M66: =1-(((SUM(B$3:B66)*(1/$S$2))/X$2)) -> 0.7935478034 | N66: =1-(((SUM(C$3:C66)*(1/$S$2))/Y$2)) -> 0.6844346576 | O66: =1-(((SUM(D$3:D66)*(1/$S$2))/Z$2)) -> 0.7687520422 | P66: =1-(((SUM(E$3:E66)*(1/$S$2))/AA$2)) -> 0.7563636808 | Q66: =1-(((SUM(F$3:F66)*(1/$S$2))/AB$2)) -> 0.7543252914 | R66: =1-(((SUM(G$3:G66)*(1/$S$2))/AC$2)) -> 0.8017544186 | S66: =1-(((SUM(H$3:H66)*(1/$S$2))/AD$2)) -> 0.8271113418 | T66: =1-(((SUM(I$3:I66)*(1/$S$2))/AE$2)) -> 0.8462416409 | U66: =1-(((SUM(J$3:J66)*(1/$S$2))/AF$2)) -> 0.8411153312 | W66: 12 | X66: ='min cases averted (1)'!B66/X$2 -> 3.483940678e-05 | Y66: ='min cases averted (1)'!C66/Y$2 -> 5.325256651e-05 | Z66: ='min cases averted (1)'!D66/Z$2 -> 3.902376338e-05 | AA66: ='min cases averted (1)'!E66/AA$2 -> 4.111433528e-05 | AB66: ='min cases averted (1)'!F66/AB$2 -> 4.145831941e-05 | AC66: ='min cases averted (1)'!G66/AC$2 -> 3.345451668e-05 | AD66: ='min cases averted (1)'!H66/AD$2 -> 2.917546236e-05 | AE66: ='min cases averted (1)'!I66/AE$2 -> 2.594716892e-05 | AF66: ='min cases averted (1)'!J66/AF$2 -> 2.681224855e-05 | AH66: 12 | AI66: 38.50251781 | AJ66: ='Input data doses'!U68*SUM('min cases averted (1)'!Y66:Y$84)*AJ$2*N66 -> 10.59172245 | AK66: ='Input data doses'!V68*SUM('min cases averted (1)'!Z66:Z$84)*AK$2*O66 -> 5.148262177 | AL66: ='Input data doses'!W68*SUM('min cases averted (1)'!AA66:AA$84)*AL$2*P66 -> 0 | AM66: ='Input data doses'!X68*SUM('min cases averted (1)'!AB66:AB$84)*AM$2*Q66 -> 7.524132842 | AN66: ='Input data doses'!Y68*SUM('min cases averted (1)'!AC66:AC$84)*AN$2*R66 -> 2.32814295 | AO66: ='Input data doses'!Z68*SUM('min cases averted (1)'!AD66:AD$84)*AO$2*S66 -> 2.027828776 | AP66: ='Input data doses'!AA68*SUM('min cases averted (1)'!AE66:AE$84)*AP$2*T66 -> 7.14653714 | AQ66: ='Input data doses'!AB68*SUM('min cases averted (1)'!AF66:AF$84)*AQ$2*U66 -> 3.735891477
A67: 13 | B67: ='Input data cases'!D68 -> 10425.81386 | C67: 2099.701569 | D67: 2329.126816 | E67: 229.3679049 | F67: 1407.484871 | G67: 583.8455761 | H67: 260.6453465 | I67: 2497.045391 | J67: 1018.596384 | L67: 13 | M67: =1-(((SUM(B$3:B67)*(1/$S$2))/X$2)) -> 0.7934980328 | N67: =1-(((SUM(C$3:C67)*(1/$S$2))/Y$2)) -> 0.6843585825 | O67: =1-(((SUM(D$3:D67)*(1/$S$2))/Z$2)) -> 0.7686962939 | P67: =1-(((SUM(E$3:E67)*(1/$S$2))/AA$2)) -> 0.756304946 | Q67: =1-(((SUM(F$3:F67)*(1/$S$2))/AB$2)) -> 0.7542660652 | R67: =1-(((SUM(G$3:G67)*(1/$S$2))/AC$2)) -> 0.8017066264 | S67: =1-(((SUM(H$3:H67)*(1/$S$2))/AD$2)) -> 0.8270696626 | T67: =1-(((SUM(I$3:I67)*(1/$S$2))/AE$2)) -> 0.8462045735 | U67: =1-(((SUM(J$3:J67)*(1/$S$2))/AF$2)) -> 0.841077028 | W67: 13 | X67: ='min cases averted (1)'!B67/X$2 -> 3.483940678e-05 | Y67: ='min cases averted (1)'!C67/Y$2 -> 5.325256651e-05 | Z67: ='min cases averted (1)'!D67/Z$2 -> 3.902376338e-05 | AA67: ='min cases averted (1)'!E67/AA$2 -> 4.111433528e-05 | AB67: ='min cases averted (1)'!F67/AB$2 -> 4.145831941e-05 | AC67: ='min cases averted (1)'!G67/AC$2 -> 3.345451668e-05 | AD67: ='min cases averted (1)'!H67/AD$2 -> 2.917546236e-05 | AE67: ='min cases averted (1)'!I67/AE$2 -> 2.594716892e-05 | AF67: ='min cases averted (1)'!J67/AF$2 -> 2.681224855e-05 | AH67: 13 | AI67: =SUM(AJ67:AQ67) -> 25.66643843 | AJ67: ='Input data doses'!U69*SUM('min cases averted (1)'!Y67:Y$84)*AJ$2*N67 -> 7.060318262 | AK67: ='Input data doses'!V69*SUM('min cases averted (1)'!Z67:Z$84)*AK$2*O67 -> 3.431963087 | AL67: ='Input data doses'!W69*SUM('min cases averted (1)'!AA67:AA$84)*AL$2*P67 -> 0 | AM67: ='Input data doses'!X69*SUM('min cases averted (1)'!AB67:AB$84)*AM$2*Q67 -> 5.015733496 | AN67: ='Input data doses'!Y69*SUM('min cases averted (1)'!AC67:AC$84)*AN$2*R67 -> 1.552002781 | AO67: ='Input data doses'!Z69*SUM('min cases averted (1)'!AD67:AD$84)*AO$2*S67 -> 1.351817727 | AP67: ='Input data doses'!AA69*SUM('min cases averted (1)'!AE67:AE$84)*AP$2*T67 -> 4.764122177 | AQ67: ='Input data doses'!AB69*SUM('min cases averted (1)'!AF67:AF$84)*AQ$2*U67 -> 2.4904809
A68: 14 | B68: ='Input data cases'!D69 -> 10425.81386 | C68: 2099.701569 | D68: 2329.126816 | E68: 229.3679049 | F68: 1407.484871 | G68: 583.8455761 | H68: 260.6453465 | I68: 2497.045391 | J68: 1018.596384 | L68: 14 | M68: =1-(((SUM(B$3:B68)*(1/$S$2))/X$2)) -> 0.7934482623 | N68: =1-(((SUM(C$3:C68)*(1/$S$2))/Y$2)) -> 0.6842825074 | O68: =1-(((SUM(D$3:D68)*(1/$S$2))/Z$2)) -> 0.7686405457 | P68: =1-(((SUM(E$3:E68)*(1/$S$2))/AA$2)) -> 0.7562462113 | Q68: =1-(((SUM(F$3:F68)*(1/$S$2))/AB$2)) -> 0.7542068391 | R68: =1-(((SUM(G$3:G68)*(1/$S$2))/AC$2)) -> 0.8016588342 | S68: =1-(((SUM(H$3:H68)*(1/$S$2))/AD$2)) -> 0.8270279833 | T68: =1-(((SUM(I$3:I68)*(1/$S$2))/AE$2)) -> 0.8461675061 | U68: =1-(((SUM(J$3:J68)*(1/$S$2))/AF$2)) -> 0.8410387248 | W68: 14 | X68: ='min cases averted (1)'!B68/X$2 -> 3.483940678e-05 | Y68: ='min cases averted (1)'!C68/Y$2 -> 5.325256651e-05 | Z68: ='min cases averted (1)'!D68/Z$2 -> 3.902376338e-05 | AA68: ='min cases averted (1)'!E68/AA$2 -> 4.111433528e-05 | AB68: ='min cases averted (1)'!F68/AB$2 -> 4.145831941e-05 | AC68: ='min cases averted (1)'!G68/AC$2 -> 3.345451668e-05 | AD68: ='min cases averted (1)'!H68/AD$2 -> 2.917546236e-05 | AE68: ='min cases averted (1)'!I68/AE$2 -> 2.594716892e-05 | AF68: ='min cases averted (1)'!J68/AF$2 -> 2.681224855e-05 | AH68: 14 | AI68: 12.83222607 | AJ68: ='Input data doses'!U70*SUM('min cases averted (1)'!Y68:Y$84)*AJ$2*N68 -> 3.529766709 | AK68: ='Input data doses'!V70*SUM('min cases averted (1)'!Z68:Z$84)*AK$2*O68 -> 1.715838498 | AL68: ='Input data doses'!W70*SUM('min cases averted (1)'!AA68:AA$84)*AL$2*P68 -> 0 | AM68: ='Input data doses'!X70*SUM('min cases averted (1)'!AB68:AB$84)*AM$2*Q68 -> 2.50765044 | AN68: ='Input data doses'!Y70*SUM('min cases averted (1)'!AC68:AC$84)*AN$2*R68 -> 0.7759551305 | AO68: ='Input data doses'!Z70*SUM('min cases averted (1)'!AD68:AD$84)*AO$2*S68 -> 0.6758748019 | AP68: ='Input data doses'!AA70*SUM('min cases averted (1)'!AE68:AE$84)*AP$2*T68 -> 2.381956744 | AQ68: ='Input data doses'!AB70*SUM('min cases averted (1)'!AF68:AF$84)*AQ$2*U68 -> 1.245183741
A69: 15 | B69: ='Input data cases'!D70 -> 0 | C69: 0 | D69: 0 | E69: 0 | F69: 0 | G69: 0 | H69: 0 | I69: 0 | J69: 0 | L69: 15 | M69: =1-(((SUM(B$3:B69)*(1/$S$2))/X$2)) -> 0.7934482623 | N69: =1-(((SUM(C$3:C69)*(1/$S$2))/Y$2)) -> 0.6842825074 | O69: =1-(((SUM(D$3:D69)*(1/$S$2))/Z$2)) -> 0.7686405457 | P69: =1-(((SUM(E$3:E69)*(1/$S$2))/AA$2)) -> 0.7562462113 | Q69: =1-(((SUM(F$3:F69)*(1/$S$2))/AB$2)) -> 0.7542068391 | R69: =1-(((SUM(G$3:G69)*(1/$S$2))/AC$2)) -> 0.8016588342 | S69: =1-(((SUM(H$3:H69)*(1/$S$2))/AD$2)) -> 0.8270279833 | T69: =1-(((SUM(I$3:I69)*(1/$S$2))/AE$2)) -> 0.8461675061 | U69: =1-(((SUM(J$3:J69)*(1/$S$2))/AF$2)) -> 0.8410387248 | W69: 15 | X69: ='min cases averted (1)'!B69/X$2 -> 0 | Y69: ='min cases averted (1)'!C69/Y$2 -> 0 | Z69: ='min cases averted (1)'!D69/Z$2 -> 0 | AA69: ='min cases averted (1)'!E69/AA$2 -> 0 | AB69: ='min cases averted (1)'!F69/AB$2 -> 0 | AC69: ='min cases averted (1)'!G69/AC$2 -> 0 | AD69: ='min cases averted (1)'!H69/AD$2 -> 0 | AE69: ='min cases averted (1)'!I69/AE$2 -> 0 | AF69: ='min cases averted (1)'!J69/AF$2 -> 0 | AH69: 15 | AI69: 0 | AJ69: ='Input data doses'!U71*SUM('min cases averted (1)'!Y69:Y$84)*AJ$2*N69 -> 0 | AK69: ='Input data doses'!V71*SUM('min cases averted (1)'!Z69:Z$84)*AK$2*O69 -> 0 | AL69: ='Input data doses'!W71*SUM('min cases averted (1)'!AA69:AA$84)*AL$2*P69 -> 0 | AM69: ='Input data doses'!X71*SUM('min cases averted (1)'!AB69:AB$84)*AM$2*Q69 -> 0 | AN69: ='Input data doses'!Y71*SUM('min cases averted (1)'!AC69:AC$84)*AN$2*R69 -> 0 | AO69: ='Input data doses'!Z71*SUM('min cases averted (1)'!AD69:AD$84)*AO$2*S69 -> 0 | AP69: ='Input data doses'!AA71*SUM('min cases averted (1)'!AE69:AE$84)*AP$2*T69 -> 0 | AQ69: ='Input data doses'!AB71*SUM('min cases averted (1)'!AF69:AF$84)*AQ$2*U69 -> 0
A70: 16 | B70: ='Input data cases'!D71 -> 0 | C70: 0 | D70: 0 | E70: 0 | F70: 0 | G70: 0 | H70: 0 | I70: 0 | J70: 0 | L70: 16 | M70: =1-(((SUM(B$3:B70)*(1/$S$2))/X$2)) -> 0.7934482623 | N70: =1-(((SUM(C$3:C70)*(1/$S$2))/Y$2)) -> 0.6842825074 | O70: =1-(((SUM(D$3:D70)*(1/$S$2))/Z$2)) -> 0.7686405457 | P70: =1-(((SUM(E$3:E70)*(1/$S$2))/AA$2)) -> 0.7562462113 | Q70: =1-(((SUM(F$3:F70)*(1/$S$2))/AB$2)) -> 0.7542068391 | R70: =1-(((SUM(G$3:G70)*(1/$S$2))/AC$2)) -> 0.8016588342 | S70: =1-(((SUM(H$3:H70)*(1/$S$2))/AD$2)) -> 0.8270279833 | T70: =1-(((SUM(I$3:I70)*(1/$S$2))/AE$2)) -> 0.8461675061 | U70: =1-(((SUM(J$3:J70)*(1/$S$2))/AF$2)) -> 0.8410387248 | W70: 16 | X70: ='min cases averted (1)'!B70/X$2 -> 0 | Y70: ='min cases averted (1)'!C70/Y$2 -> 0 | Z70: ='min cases averted (1)'!D70/Z$2 -> 0 | AA70: ='min cases averted (1)'!E70/AA$2 -> 0 | AB70: ='min cases averted (1)'!F70/AB$2 -> 0 | AC70: ='min cases averted (1)'!G70/AC$2 -> 0 | AD70: ='min cases averted (1)'!H70/AD$2 -> 0 | AE70: ='min cases averted (1)'!I70/AE$2 -> 0 | AF70: ='min cases averted (1)'!J70/AF$2 -> 0 | AH70: 16 | AI70: 0 | AJ70: ='Input data doses'!U72*SUM('min cases averted (1)'!Y70:Y$84)*AJ$2*N70 -> 0 | AK70: ='Input data doses'!V72*SUM('min cases averted (1)'!Z70:Z$84)*AK$2*O70 -> 0 | AL70: ='Input data doses'!W72*SUM('min cases averted (1)'!AA70:AA$84)*AL$2*P70 -> 0 | AM70: ='Input data doses'!X72*SUM('min cases averted (1)'!AB70:AB$84)*AM$2*Q70 -> 0 | AN70: ='Input data doses'!Y72*SUM('min cases averted (1)'!AC70:AC$84)*AN$2*R70 -> 0 | AO70: ='Input data doses'!Z72*SUM('min cases averted (1)'!AD70:AD$84)*AO$2*S70 -> 0 | AP70: ='Input data doses'!AA72*SUM('min cases averted (1)'!AE70:AE$84)*AP$2*T70 -> 0 | AQ70: ='Input data doses'!AB72*SUM('min cases averted (1)'!AF70:AF$84)*AQ$2*U70 -> 0
A71: 17 | B71: ='Input data cases'!D72 -> 0 | C71: 0 | D71: 0 | E71: 0 | F71: 0 | G71: 0 | H71: 0 | I71: 0 | J71: 0 | L71: 17 | M71: =1-(((SUM(B$3:B71)*(1/$S$2))/X$2)) -> 0.7934482623 | N71: =1-(((SUM(C$3:C71)*(1/$S$2))/Y$2)) -> 0.6842825074 | O71: =1-(((SUM(D$3:D71)*(1/$S$2))/Z$2)) -> 0.7686405457 | P71: =1-(((SUM(E$3:E71)*(1/$S$2))/AA$2)) -> 0.7562462113 | Q71: =1-(((SUM(F$3:F71)*(1/$S$2))/AB$2)) -> 0.7542068391 | R71: =1-(((SUM(G$3:G71)*(1/$S$2))/AC$2)) -> 0.8016588342 | S71: =1-(((SUM(H$3:H71)*(1/$S$2))/AD$2)) -> 0.8270279833 | T71: =1-(((SUM(I$3:I71)*(1/$S$2))/AE$2)) -> 0.8461675061 | U71: =1-(((SUM(J$3:J71)*(1/$S$2))/AF$2)) -> 0.8410387248 | W71: 17 | X71: ='min cases averted (1)'!B71/X$2 -> 0 | Y71: ='min cases averted (1)'!C71/Y$2 -> 0 | Z71: ='min cases averted (1)'!D71/Z$2 -> 0 | AA71: ='min cases averted (1)'!E71/AA$2 -> 0 | AB71: ='min cases averted (1)'!F71/AB$2 -> 0 | AC71: ='min cases averted (1)'!G71/AC$2 -> 0 | AD71: ='min cases averted (1)'!H71/AD$2 -> 0 | AE71: ='min cases averted (1)'!I71/AE$2 -> 0 | AF71: ='min cases averted (1)'!J71/AF$2 -> 0 | AH71: 17 | AI71: 0 | AJ71: ='Input data doses'!U73*SUM('min cases averted (1)'!Y71:Y$84)*AJ$2*N71 -> 0 | AK71: ='Input data doses'!V73*SUM('min cases averted (1)'!Z71:Z$84)*AK$2*O71 -> 0 | AL71: ='Input data doses'!W73*SUM('min cases averted (1)'!AA71:AA$84)*AL$2*P71 -> 0 | AM71: ='Input data doses'!X73*SUM('min cases averted (1)'!AB71:AB$84)*AM$2*Q71 -> 0 | AN71: ='Input data doses'!Y73*SUM('min cases averted (1)'!AC71:AC$84)*AN$2*R71 -> 0 | AO71: ='Input data doses'!Z73*SUM('min cases averted (1)'!AD71:AD$84)*AO$2*S71 -> 0 | AP71: ='Input data doses'!AA73*SUM('min cases averted (1)'!AE71:AE$84)*AP$2*T71 -> 0 | AQ71: ='Input data doses'!AB73*SUM('min cases averted (1)'!AF71:AF$84)*AQ$2*U71 -> 0
A72: 18 | B72: ='Input data cases'!D73 -> 0 | C72: 0 | D72: 0 | E72: 0 | F72: 0 | G72: 0 | H72: 0 | I72: 0 | J72: 0 | L72: 18 | M72: =1-(((SUM(B$3:B72)*(1/$S$2))/X$2)) -> 0.7934482623 | N72: =1-(((SUM(C$3:C72)*(1/$S$2))/Y$2)) -> 0.6842825074 | O72: =1-(((SUM(D$3:D72)*(1/$S$2))/Z$2)) -> 0.7686405457 | P72: =1-(((SUM(E$3:E72)*(1/$S$2))/AA$2)) -> 0.7562462113 | Q72: =1-(((SUM(F$3:F72)*(1/$S$2))/AB$2)) -> 0.7542068391 | R72: =1-(((SUM(G$3:G72)*(1/$S$2))/AC$2)) -> 0.8016588342 | S72: =1-(((SUM(H$3:H72)*(1/$S$2))/AD$2)) -> 0.8270279833 | T72: =1-(((SUM(I$3:I72)*(1/$S$2))/AE$2)) -> 0.8461675061 | U72: =1-(((SUM(J$3:J72)*(1/$S$2))/AF$2)) -> 0.8410387248 | W72: 18 | X72: ='min cases averted (1)'!B72/X$2 -> 0 | Y72: ='min cases averted (1)'!C72/Y$2 -> 0 | Z72: ='min cases averted (1)'!D72/Z$2 -> 0 | AA72: ='min cases averted (1)'!E72/AA$2 -> 0 | AB72: ='min cases averted (1)'!F72/AB$2 -> 0 | AC72: ='min cases averted (1)'!G72/AC$2 -> 0 | AD72: ='min cases averted (1)'!H72/AD$2 -> 0 | AE72: ='min cases averted (1)'!I72/AE$2 -> 0 | AF72: ='min cases averted (1)'!J72/AF$2 -> 0 | AH72: 18 | AI72: 0 | AJ72: ='Input data doses'!U74*SUM('min cases averted (1)'!Y72:Y$84)*AJ$2*N72 -> 0 | AK72: ='Input data doses'!V74*SUM('min cases averted (1)'!Z72:Z$84)*AK$2*O72 -> 0 | AL72: ='Input data doses'!W74*SUM('min cases averted (1)'!AA72:AA$84)*AL$2*P72 -> 0 | AM72: ='Input data doses'!X74*SUM('min cases averted (1)'!AB72:AB$84)*AM$2*Q72 -> 0 | AN72: ='Input data doses'!Y74*SUM('min cases averted (1)'!AC72:AC$84)*AN$2*R72 -> 0 | AO72: ='Input data doses'!Z74*SUM('min cases averted (1)'!AD72:AD$84)*AO$2*S72 -> 0 | AP72: ='Input data doses'!AA74*SUM('min cases averted (1)'!AE72:AE$84)*AP$2*T72 -> 0 | AQ72: ='Input data doses'!AB74*SUM('min cases averted (1)'!AF72:AF$84)*AQ$2*U72 -> 0
A73: 19 | B73: ='Input data cases'!D74 -> 0 | C73: 0 | D73: 0 | E73: 0 | F73: 0 | G73: 0 | H73: 0 | I73: 0 | J73: 0 | L73: 19 | M73: =1-(((SUM(B$3:B73)*(1/$S$2))/X$2)) -> 0.7934482623 | N73: =1-(((SUM(C$3:C73)*(1/$S$2))/Y$2)) -> 0.6842825074 | O73: =1-(((SUM(D$3:D73)*(1/$S$2))/Z$2)) -> 0.7686405457 | P73: =1-(((SUM(E$3:E73)*(1/$S$2))/AA$2)) -> 0.7562462113 | Q73: =1-(((SUM(F$3:F73)*(1/$S$2))/AB$2)) -> 0.7542068391 | R73: =1-(((SUM(G$3:G73)*(1/$S$2))/AC$2)) -> 0.8016588342 | S73: =1-(((SUM(H$3:H73)*(1/$S$2))/AD$2)) -> 0.8270279833 | T73: =1-(((SUM(I$3:I73)*(1/$S$2))/AE$2)) -> 0.8461675061 | U73: =1-(((SUM(J$3:J73)*(1/$S$2))/AF$2)) -> 0.8410387248 | W73: 19 | X73: ='min cases averted (1)'!B73/X$2 -> 0 | Y73: ='min cases averted (1)'!C73/Y$2 -> 0 | Z73: ='min cases averted (1)'!D73/Z$2 -> 0 | AA73: ='min cases averted (1)'!E73/AA$2 -> 0 | AB73: ='min cases averted (1)'!F73/AB$2 -> 0 | AC73: ='min cases averted (1)'!G73/AC$2 -> 0 | AD73: ='min cases averted (1)'!H73/AD$2 -> 0 | AE73: ='min cases averted (1)'!I73/AE$2 -> 0 | AF73: ='min cases averted (1)'!J73/AF$2 -> 0 | AH73: 19 | AI73: 0 | AJ73: ='Input data doses'!U75*SUM('min cases averted (1)'!Y73:Y$84)*AJ$2*N73 -> 0 | AK73: ='Input data doses'!V75*SUM('min cases averted (1)'!Z73:Z$84)*AK$2*O73 -> 0 | AL73: ='Input data doses'!W75*SUM('min cases averted (1)'!AA73:AA$84)*AL$2*P73 -> 0 | AM73: ='Input data doses'!X75*SUM('min cases averted (1)'!AB73:AB$84)*AM$2*Q73 -> 0 | AN73: ='Input data doses'!Y75*SUM('min cases averted (1)'!AC73:AC$84)*AN$2*R73 -> 0 | AO73: ='Input data doses'!Z75*SUM('min cases averted (1)'!AD73:AD$84)*AO$2*S73 -> 0 | AP73: ='Input data doses'!AA75*SUM('min cases averted (1)'!AE73:AE$84)*AP$2*T73 -> 0 | AQ73: ='Input data doses'!AB75*SUM('min cases averted (1)'!AF73:AF$84)*AQ$2*U73 -> 0
A74: 20 | B74: ='Input data cases'!D75 -> 0 | C74: 0 | D74: 0 | E74: 0 | F74: 0 | G74: 0 | H74: 0 | I74: 0 | J74: 0 | L74: 20 | M74: =1-(((SUM(B$3:B74)*(1/$S$2))/X$2)) -> 0.7934482623 | N74: =1-(((SUM(C$3:C74)*(1/$S$2))/Y$2)) -> 0.6842825074 | O74: =1-(((SUM(D$3:D74)*(1/$S$2))/Z$2)) -> 0.7686405457 | P74: =1-(((SUM(E$3:E74)*(1/$S$2))/AA$2)) -> 0.7562462113 | Q74: =1-(((SUM(F$3:F74)*(1/$S$2))/AB$2)) -> 0.7542068391 | R74: =1-(((SUM(G$3:G74)*(1/$S$2))/AC$2)) -> 0.8016588342 | S74: =1-(((SUM(H$3:H74)*(1/$S$2))/AD$2)) -> 0.8270279833 | T74: =1-(((SUM(I$3:I74)*(1/$S$2))/AE$2)) -> 0.8461675061 | U74: =1-(((SUM(J$3:J74)*(1/$S$2))/AF$2)) -> 0.8410387248 | W74: 20 | X74: ='min cases averted (1)'!B74/X$2 -> 0 | Y74: ='min cases averted (1)'!C74/Y$2 -> 0 | Z74: ='min cases averted (1)'!D74/Z$2 -> 0 | AA74: ='min cases averted (1)'!E74/AA$2 -> 0 | AB74: ='min cases averted (1)'!F74/AB$2 -> 0 | AC74: ='min cases averted (1)'!G74/AC$2 -> 0 | AD74: ='min cases averted (1)'!H74/AD$2 -> 0 | AE74: ='min cases averted (1)'!I74/AE$2 -> 0 | AF74: ='min cases averted (1)'!J74/AF$2 -> 0 | AH74: 20 | AI74: 0 | AJ74: ='Input data doses'!U76*SUM('min cases averted (1)'!Y74:Y$84)*AJ$2*N74 -> 0 | AK74: ='Input data doses'!V76*SUM('min cases averted (1)'!Z74:Z$84)*AK$2*O74 -> 0 | AL74: ='Input data doses'!W76*SUM('min cases averted (1)'!AA74:AA$84)*AL$2*P74 -> 0 | AM74: ='Input data doses'!X76*SUM('min cases averted (1)'!AB74:AB$84)*AM$2*Q74 -> 0 | AN74: ='Input data doses'!Y76*SUM('min cases averted (1)'!AC74:AC$84)*AN$2*R74 -> 0 | AO74: ='Input data doses'!Z76*SUM('min cases averted (1)'!AD74:AD$84)*AO$2*S74 -> 0 | AP74: ='Input data doses'!AA76*SUM('min cases averted (1)'!AE74:AE$84)*AP$2*T74 -> 0 | AQ74: ='Input data doses'!AB76*SUM('min cases averted (1)'!AF74:AF$84)*AQ$2*U74 -> 0
A75: 21 | B75: ='Input data cases'!D76 -> 0 | C75: 0 | D75: 0 | E75: 0 | F75: 0 | G75: 0 | H75: 0 | I75: 0 | J75: 0 | L75: 21 | M75: =1-(((SUM(B$3:B75)*(1/$S$2))/X$2)) -> 0.7934482623 | N75: =1-(((SUM(C$3:C75)*(1/$S$2))/Y$2)) -> 0.6842825074 | O75: =1-(((SUM(D$3:D75)*(1/$S$2))/Z$2)) -> 0.7686405457 | P75: =1-(((SUM(E$3:E75)*(1/$S$2))/AA$2)) -> 0.7562462113 | Q75: =1-(((SUM(F$3:F75)*(1/$S$2))/AB$2)) -> 0.7542068391 | R75: =1-(((SUM(G$3:G75)*(1/$S$2))/AC$2)) -> 0.8016588342 | S75: =1-(((SUM(H$3:H75)*(1/$S$2))/AD$2)) -> 0.8270279833 | T75: =1-(((SUM(I$3:I75)*(1/$S$2))/AE$2)) -> 0.8461675061 | U75: =1-(((SUM(J$3:J75)*(1/$S$2))/AF$2)) -> 0.8410387248 | W75: 21 | X75: ='min cases averted (1)'!B75/X$2 -> 0 | Y75: ='min cases averted (1)'!C75/Y$2 -> 0 | Z75: ='min cases averted (1)'!D75/Z$2 -> 0 | AA75: ='min cases averted (1)'!E75/AA$2 -> 0 | AB75: ='min cases averted (1)'!F75/AB$2 -> 0 | AC75: ='min cases averted (1)'!G75/AC$2 -> 0 | AD75: ='min cases averted (1)'!H75/AD$2 -> 0 | AE75: ='min cases averted (1)'!I75/AE$2 -> 0 | AF75: ='min cases averted (1)'!J75/AF$2 -> 0 | AH75: 21 | AI75: 0 | AJ75: ='Input data doses'!U77*SUM('min cases averted (1)'!Y75:Y$84)*AJ$2*N75 -> 0 | AK75: ='Input data doses'!V77*SUM('min cases averted (1)'!Z75:Z$84)*AK$2*O75 -> 0 | AL75: ='Input data doses'!W77*SUM('min cases averted (1)'!AA75:AA$84)*AL$2*P75 -> 0 | AM75: ='Input data doses'!X77*SUM('min cases averted (1)'!AB75:AB$84)*AM$2*Q75 -> 0 | AN75: ='Input data doses'!Y77*SUM('min cases averted (1)'!AC75:AC$84)*AN$2*R75 -> 0 | AO75: ='Input data doses'!Z77*SUM('min cases averted (1)'!AD75:AD$84)*AO$2*S75 -> 0 | AP75: ='Input data doses'!AA77*SUM('min cases averted (1)'!AE75:AE$84)*AP$2*T75 -> 0 | AQ75: ='Input data doses'!AB77*SUM('min cases averted (1)'!AF75:AF$84)*AQ$2*U75 -> 0
A76: 22 | B76: ='Input data cases'!D77 -> 0 | C76: 0 | D76: 0 | E76: 0 | F76: 0 | G76: 0 | H76: 0 | I76: 0 | J76: 0 | L76: 22 | M76: =1-(((SUM(B$3:B76)*(1/$S$2))/X$2)) -> 0.7934482623 | N76: =1-(((SUM(C$3:C76)*(1/$S$2))/Y$2)) -> 0.6842825074 | O76: =1-(((SUM(D$3:D76)*(1/$S$2))/Z$2)) -> 0.7686405457 | P76: =1-(((SUM(E$3:E76)*(1/$S$2))/AA$2)) -> 0.7562462113 | Q76: =1-(((SUM(F$3:F76)*(1/$S$2))/AB$2)) -> 0.7542068391 | R76: =1-(((SUM(G$3:G76)*(1/$S$2))/AC$2)) -> 0.8016588342 | S76: =1-(((SUM(H$3:H76)*(1/$S$2))/AD$2)) -> 0.8270279833 | T76: =1-(((SUM(I$3:I76)*(1/$S$2))/AE$2)) -> 0.8461675061 | U76: =1-(((SUM(J$3:J76)*(1/$S$2))/AF$2)) -> 0.8410387248 | W76: 22 | X76: ='min cases averted (1)'!B76/X$2 -> 0 | Y76: ='min cases averted (1)'!C76/Y$2 -> 0 | Z76: ='min cases averted (1)'!D76/Z$2 -> 0 | AA76: ='min cases averted (1)'!E76/AA$2 -> 0 | AB76: ='min cases averted (1)'!F76/AB$2 -> 0 | AC76: ='min cases averted (1)'!G76/AC$2 -> 0 | AD76: ='min cases averted (1)'!H76/AD$2 -> 0 | AE76: ='min cases averted (1)'!I76/AE$2 -> 0 | AF76: ='min cases averted (1)'!J76/AF$2 -> 0 | AH76: 22 | AI76: 0 | AJ76: ='Input data doses'!U78*SUM('min cases averted (1)'!Y76:Y$84)*AJ$2*N76 -> 0 | AK76: ='Input data doses'!V78*SUM('min cases averted (1)'!Z76:Z$84)*AK$2*O76 -> 0 | AL76: ='Input data doses'!W78*SUM('min cases averted (1)'!AA76:AA$84)*AL$2*P76 -> 0 | AM76: ='Input data doses'!X78*SUM('min cases averted (1)'!AB76:AB$84)*AM$2*Q76 -> 0 | AN76: ='Input data doses'!Y78*SUM('min cases averted (1)'!AC76:AC$84)*AN$2*R76 -> 0 | AO76: ='Input data doses'!Z78*SUM('min cases averted (1)'!AD76:AD$84)*AO$2*S76 -> 0 | AP76: ='Input data doses'!AA78*SUM('min cases averted (1)'!AE76:AE$84)*AP$2*T76 -> 0 | AQ76: ='Input data doses'!AB78*SUM('min cases averted (1)'!AF76:AF$84)*AQ$2*U76 -> 0
A77: 23 | B77: ='Input data cases'!D78 -> 0 | C77: 0 | D77: 0 | E77: 0 | F77: 0 | G77: 0 | H77: 0 | I77: 0 | J77: 0 | L77: 23 | M77: =1-(((SUM(B$3:B77)*(1/$S$2))/X$2)) -> 0.7934482623 | N77: =1-(((SUM(C$3:C77)*(1/$S$2))/Y$2)) -> 0.6842825074 | O77: =1-(((SUM(D$3:D77)*(1/$S$2))/Z$2)) -> 0.7686405457 | P77: =1-(((SUM(E$3:E77)*(1/$S$2))/AA$2)) -> 0.7562462113 | Q77: =1-(((SUM(F$3:F77)*(1/$S$2))/AB$2)) -> 0.7542068391 | R77: =1-(((SUM(G$3:G77)*(1/$S$2))/AC$2)) -> 0.8016588342 | S77: =1-(((SUM(H$3:H77)*(1/$S$2))/AD$2)) -> 0.8270279833 | T77: =1-(((SUM(I$3:I77)*(1/$S$2))/AE$2)) -> 0.8461675061 | U77: =1-(((SUM(J$3:J77)*(1/$S$2))/AF$2)) -> 0.8410387248 | W77: 23 | X77: ='min cases averted (1)'!B77/X$2 -> 0 | Y77: ='min cases averted (1)'!C77/Y$2 -> 0 | Z77: ='min cases averted (1)'!D77/Z$2 -> 0 | AA77: ='min cases averted (1)'!E77/AA$2 -> 0 | AB77: ='min cases averted (1)'!F77/AB$2 -> 0 | AC77: ='min cases averted (1)'!G77/AC$2 -> 0 | AD77: ='min cases averted (1)'!H77/AD$2 -> 0 | AE77: ='min cases averted (1)'!I77/AE$2 -> 0 | AF77: ='min cases averted (1)'!J77/AF$2 -> 0 | AH77: 23 | AI77: 0 | AJ77: ='Input data doses'!U79*SUM('min cases averted (1)'!Y77:Y$84)*AJ$2*N77 -> 0 | AK77: ='Input data doses'!V79*SUM('min cases averted (1)'!Z77:Z$84)*AK$2*O77 -> 0 | AL77: ='Input data doses'!W79*SUM('min cases averted (1)'!AA77:AA$84)*AL$2*P77 -> 0 | AM77: ='Input data doses'!X79*SUM('min cases averted (1)'!AB77:AB$84)*AM$2*Q77 -> 0 | AN77: ='Input data doses'!Y79*SUM('min cases averted (1)'!AC77:AC$84)*AN$2*R77 -> 0 | AO77: ='Input data doses'!Z79*SUM('min cases averted (1)'!AD77:AD$84)*AO$2*S77 -> 0 | AP77: ='Input data doses'!AA79*SUM('min cases averted (1)'!AE77:AE$84)*AP$2*T77 -> 0 | AQ77: ='Input data doses'!AB79*SUM('min cases averted (1)'!AF77:AF$84)*AQ$2*U77 -> 0
A78: 24 | B78: ='Input data cases'!D79 -> 0 | C78: 0 | D78: 0 | E78: 0 | F78: 0 | G78: 0 | H78: 0 | I78: 0 | J78: 0 | L78: 24 | M78: =1-(((SUM(B$3:B78)*(1/$S$2))/X$2)) -> 0.7934482623 | N78: =1-(((SUM(C$3:C78)*(1/$S$2))/Y$2)) -> 0.6842825074 | O78: =1-(((SUM(D$3:D78)*(1/$S$2))/Z$2)) -> 0.7686405457 | P78: =1-(((SUM(E$3:E78)*(1/$S$2))/AA$2)) -> 0.7562462113 | Q78: =1-(((SUM(F$3:F78)*(1/$S$2))/AB$2)) -> 0.7542068391 | R78: =1-(((SUM(G$3:G78)*(1/$S$2))/AC$2)) -> 0.8016588342 | S78: =1-(((SUM(H$3:H78)*(1/$S$2))/AD$2)) -> 0.8270279833 | T78: =1-(((SUM(I$3:I78)*(1/$S$2))/AE$2)) -> 0.8461675061 | U78: =1-(((SUM(J$3:J78)*(1/$S$2))/AF$2)) -> 0.8410387248 | W78: 24 | X78: ='min cases averted (1)'!B78/X$2 -> 0 | Y78: ='min cases averted (1)'!C78/Y$2 -> 0 | Z78: ='min cases averted (1)'!D78/Z$2 -> 0 | AA78: ='min cases averted (1)'!E78/AA$2 -> 0 | AB78: ='min cases averted (1)'!F78/AB$2 -> 0 | AC78: ='min cases averted (1)'!G78/AC$2 -> 0 | AD78: ='min cases averted (1)'!H78/AD$2 -> 0 | AE78: ='min cases averted (1)'!I78/AE$2 -> 0 | AF78: ='min cases averted (1)'!J78/AF$2 -> 0 | AH78: 24 | AI78: 0 | AJ78: ='Input data doses'!U80*SUM('min cases averted (1)'!Y78:Y$84)*AJ$2*N78 -> 0 | AK78: ='Input data doses'!V80*SUM('min cases averted (1)'!Z78:Z$84)*AK$2*O78 -> 0 | AL78: ='Input data doses'!W80*SUM('min cases averted (1)'!AA78:AA$84)*AL$2*P78 -> 0 | AM78: ='Input data doses'!X80*SUM('min cases averted (1)'!AB78:AB$84)*AM$2*Q78 -> 0 | AN78: ='Input data doses'!Y80*SUM('min cases averted (1)'!AC78:AC$84)*AN$2*R78 -> 0 | AO78: ='Input data doses'!Z80*SUM('min cases averted (1)'!AD78:AD$84)*AO$2*S78 -> 0 | AP78: ='Input data doses'!AA80*SUM('min cases averted (1)'!AE78:AE$84)*AP$2*T78 -> 0 | AQ78: ='Input data doses'!AB80*SUM('min cases averted (1)'!AF78:AF$84)*AQ$2*U78 -> 0
A79: 25 | B79: ='Input data cases'!D80 -> 0 | C79: 0 | D79: 0 | E79: 0 | F79: 0 | G79: 0 | H79: 0 | I79: 0 | J79: 0 | L79: 25 | M79: =1-(((SUM(B$3:B79)*(1/$S$2))/X$2)) -> 0.7934482623 | N79: =1-(((SUM(C$3:C79)*(1/$S$2))/Y$2)) -> 0.6842825074 | O79: =1-(((SUM(D$3:D79)*(1/$S$2))/Z$2)) -> 0.7686405457 | P79: =1-(((SUM(E$3:E79)*(1/$S$2))/AA$2)) -> 0.7562462113 | Q79: =1-(((SUM(F$3:F79)*(1/$S$2))/AB$2)) -> 0.7542068391 | R79: =1-(((SUM(G$3:G79)*(1/$S$2))/AC$2)) -> 0.8016588342 | S79: =1-(((SUM(H$3:H79)*(1/$S$2))/AD$2)) -> 0.8270279833 | T79: =1-(((SUM(I$3:I79)*(1/$S$2))/AE$2)) -> 0.8461675061 | U79: =1-(((SUM(J$3:J79)*(1/$S$2))/AF$2)) -> 0.8410387248 | W79: 25 | X79: ='min cases averted (1)'!B79/X$2 -> 0 | Y79: ='min cases averted (1)'!C79/Y$2 -> 0 | Z79: ='min cases averted (1)'!D79/Z$2 -> 0 | AA79: ='min cases averted (1)'!E79/AA$2 -> 0 | AB79: ='min cases averted (1)'!F79/AB$2 -> 0 | AC79: ='min cases averted (1)'!G79/AC$2 -> 0 | AD79: ='min cases averted (1)'!H79/AD$2 -> 0 | AE79: ='min cases averted (1)'!I79/AE$2 -> 0 | AF79: ='min cases averted (1)'!J79/AF$2 -> 0 | AH79: 25 | AI79: 0 | AJ79: ='Input data doses'!U81*SUM('min cases averted (1)'!Y79:Y$84)*AJ$2*N79 -> 0 | AK79: ='Input data doses'!V81*SUM('min cases averted (1)'!Z79:Z$84)*AK$2*O79 -> 0 | AL79: ='Input data doses'!W81*SUM('min cases averted (1)'!AA79:AA$84)*AL$2*P79 -> 0 | AM79: ='Input data doses'!X81*SUM('min cases averted (1)'!AB79:AB$84)*AM$2*Q79 -> 0 | AN79: ='Input data doses'!Y81*SUM('min cases averted (1)'!AC79:AC$84)*AN$2*R79 -> 0 | AO79: ='Input data doses'!Z81*SUM('min cases averted (1)'!AD79:AD$84)*AO$2*S79 -> 0 | AP79: ='Input data doses'!AA81*SUM('min cases averted (1)'!AE79:AE$84)*AP$2*T79 -> 0 | AQ79: ='Input data doses'!AB81*SUM('min cases averted (1)'!AF79:AF$84)*AQ$2*U79 -> 0
A80: 26 | B80: ='Input data cases'!D81 -> 0 | C80: 0 | D80: 0 | E80: 0 | F80: 0 | G80: 0 | H80: 0 | I80: 0 | J80: 0 | L80: 26 | M80: =1-(((SUM(B$3:B80)*(1/$S$2))/X$2)) -> 0.7934482623 | N80: =1-(((SUM(C$3:C80)*(1/$S$2))/Y$2)) -> 0.6842825074 | O80: =1-(((SUM(D$3:D80)*(1/$S$2))/Z$2)) -> 0.7686405457 | P80: =1-(((SUM(E$3:E80)*(1/$S$2))/AA$2)) -> 0.7562462113 | Q80: =1-(((SUM(F$3:F80)*(1/$S$2))/AB$2)) -> 0.7542068391 | R80: =1-(((SUM(G$3:G80)*(1/$S$2))/AC$2)) -> 0.8016588342 | S80: =1-(((SUM(H$3:H80)*(1/$S$2))/AD$2)) -> 0.8270279833 | T80: =1-(((SUM(I$3:I80)*(1/$S$2))/AE$2)) -> 0.8461675061 | U80: =1-(((SUM(J$3:J80)*(1/$S$2))/AF$2)) -> 0.8410387248 | W80: 26 | X80: ='min cases averted (1)'!B80/X$2 -> 0 | Y80: ='min cases averted (1)'!C80/Y$2 -> 0 | Z80: ='min cases averted (1)'!D80/Z$2 -> 0 | AA80: ='min cases averted (1)'!E80/AA$2 -> 0 | AB80: ='min cases averted (1)'!F80/AB$2 -> 0 | AC80: ='min cases averted (1)'!G80/AC$2 -> 0 | AD80: ='min cases averted (1)'!H80/AD$2 -> 0 | AE80: ='min cases averted (1)'!I80/AE$2 -> 0 | AF80: ='min cases averted (1)'!J80/AF$2 -> 0 | AH80: 26 | AI80: 0 | AJ80: ='Input data doses'!U82*SUM('min cases averted (1)'!Y80:Y$84)*AJ$2*N80 -> 0 | AK80: ='Input data doses'!V82*SUM('min cases averted (1)'!Z80:Z$84)*AK$2*O80 -> 0 | AL80: ='Input data doses'!W82*SUM('min cases averted (1)'!AA80:AA$84)*AL$2*P80 -> 0 | AM80: ='Input data doses'!X82*SUM('min cases averted (1)'!AB80:AB$84)*AM$2*Q80 -> 0 | AN80: ='Input data doses'!Y82*SUM('min cases averted (1)'!AC80:AC$84)*AN$2*R80 -> 0 | AO80: ='Input data doses'!Z82*SUM('min cases averted (1)'!AD80:AD$84)*AO$2*S80 -> 0 | AP80: ='Input data doses'!AA82*SUM('min cases averted (1)'!AE80:AE$84)*AP$2*T80 -> 0 | AQ80: ='Input data doses'!AB82*SUM('min cases averted (1)'!AF80:AF$84)*AQ$2*U80 -> 0
A81: 27 | B81: ='Input data cases'!D82 -> 0 | C81: 0 | D81: 0 | E81: 0 | F81: 0 | G81: 0 | H81: 0 | I81: 0 | J81: 0 | L81: 27 | M81: =1-(((SUM(B$3:B81)*(1/$S$2))/X$2)) -> 0.7934482623 | N81: =1-(((SUM(C$3:C81)*(1/$S$2))/Y$2)) -> 0.6842825074 | O81: =1-(((SUM(D$3:D81)*(1/$S$2))/Z$2)) -> 0.7686405457 | P81: =1-(((SUM(E$3:E81)*(1/$S$2))/AA$2)) -> 0.7562462113 | Q81: =1-(((SUM(F$3:F81)*(1/$S$2))/AB$2)) -> 0.7542068391 | R81: =1-(((SUM(G$3:G81)*(1/$S$2))/AC$2)) -> 0.8016588342 | S81: =1-(((SUM(H$3:H81)*(1/$S$2))/AD$2)) -> 0.8270279833 | T81: =1-(((SUM(I$3:I81)*(1/$S$2))/AE$2)) -> 0.8461675061 | U81: =1-(((SUM(J$3:J81)*(1/$S$2))/AF$2)) -> 0.8410387248 | W81: 27 | X81: ='min cases averted (1)'!B81/X$2 -> 0 | Y81: ='min cases averted (1)'!C81/Y$2 -> 0 | Z81: ='min cases averted (1)'!D81/Z$2 -> 0 | AA81: ='min cases averted (1)'!E81/AA$2 -> 0 | AB81: ='min cases averted (1)'!F81/AB$2 -> 0 | AC81: ='min cases averted (1)'!G81/AC$2 -> 0 | AD81: ='min cases averted (1)'!H81/AD$2 -> 0 | AE81: ='min cases averted (1)'!I81/AE$2 -> 0 | AF81: ='min cases averted (1)'!J81/AF$2 -> 0 | AH81: 27 | AI81: 0 | AJ81: ='Input data doses'!U83*SUM('min cases averted (1)'!Y81:Y$84)*AJ$2*N81 -> 0 | AK81: ='Input data doses'!V83*SUM('min cases averted (1)'!Z81:Z$84)*AK$2*O81 -> 0 | AL81: ='Input data doses'!W83*SUM('min cases averted (1)'!AA81:AA$84)*AL$2*P81 -> 0 | AM81: ='Input data doses'!X83*SUM('min cases averted (1)'!AB81:AB$84)*AM$2*Q81 -> 0 | AN81: ='Input data doses'!Y83*SUM('min cases averted (1)'!AC81:AC$84)*AN$2*R81 -> 0 | AO81: ='Input data doses'!Z83*SUM('min cases averted (1)'!AD81:AD$84)*AO$2*S81 -> 0 | AP81: ='Input data doses'!AA83*SUM('min cases averted (1)'!AE81:AE$84)*AP$2*T81 -> 0 | AQ81: ='Input data doses'!AB83*SUM('min cases averted (1)'!AF81:AF$84)*AQ$2*U81 -> 0
A82: 28 | B82: ='Input data cases'!D83 -> 0 | C82: 0 | D82: 0 | E82: 0 | F82: 0 | G82: 0 | H82: 0 | I82: 0 | J82: 0 | L82: 28 | M82: =1-(((SUM(B$3:B82)*(1/$S$2))/X$2)) -> 0.7934482623 | N82: =1-(((SUM(C$3:C82)*(1/$S$2))/Y$2)) -> 0.6842825074 | O82: =1-(((SUM(D$3:D82)*(1/$S$2))/Z$2)) -> 0.7686405457 | P82: =1-(((SUM(E$3:E82)*(1/$S$2))/AA$2)) -> 0.7562462113 | Q82: =1-(((SUM(F$3:F82)*(1/$S$2))/AB$2)) -> 0.7542068391 | R82: =1-(((SUM(G$3:G82)*(1/$S$2))/AC$2)) -> 0.8016588342 | S82: =1-(((SUM(H$3:H82)*(1/$S$2))/AD$2)) -> 0.8270279833 | T82: =1-(((SUM(I$3:I82)*(1/$S$2))/AE$2)) -> 0.8461675061 | U82: =1-(((SUM(J$3:J82)*(1/$S$2))/AF$2)) -> 0.8410387248 | W82: 28 | X82: ='min cases averted (1)'!B82/X$2 -> 0 | Y82: ='min cases averted (1)'!C82/Y$2 -> 0 | Z82: ='min cases averted (1)'!D82/Z$2 -> 0 | AA82: ='min cases averted (1)'!E82/AA$2 -> 0 | AB82: ='min cases averted (1)'!F82/AB$2 -> 0 | AC82: ='min cases averted (1)'!G82/AC$2 -> 0 | AD82: ='min cases averted (1)'!H82/AD$2 -> 0 | AE82: ='min cases averted (1)'!I82/AE$2 -> 0 | AF82: ='min cases averted (1)'!J82/AF$2 -> 0 | AH82: 28 | AI82: 0 | AJ82: ='Input data doses'!U84*SUM('min cases averted (1)'!Y82:Y$84)*AJ$2*N82 -> 0 | AK82: ='Input data doses'!V84*SUM('min cases averted (1)'!Z82:Z$84)*AK$2*O82 -> 0 | AL82: ='Input data doses'!W84*SUM('min cases averted (1)'!AA82:AA$84)*AL$2*P82 -> 0 | AM82: ='Input data doses'!X84*SUM('min cases averted (1)'!AB82:AB$84)*AM$2*Q82 -> 0 | AN82: ='Input data doses'!Y84*SUM('min cases averted (1)'!AC82:AC$84)*AN$2*R82 -> 0 | AO82: ='Input data doses'!Z84*SUM('min cases averted (1)'!AD82:AD$84)*AO$2*S82 -> 0 | AP82: ='Input data doses'!AA84*SUM('min cases averted (1)'!AE82:AE$84)*AP$2*T82 -> 0 | AQ82: ='Input data doses'!AB84*SUM('min cases averted (1)'!AF82:AF$84)*AQ$2*U82 -> 0
A83: 29 | B83: ='Input data cases'!D84 -> 0 | C83: 0 | D83: 0 | E83: 0 | F83: 0 | G83: 0 | H83: 0 | I83: 0 | J83: 0 | L83: 29 | M83: =1-(((SUM(B$3:B83)*(1/$S$2))/X$2)) -> 0.7934482623 | N83: =1-(((SUM(C$3:C83)*(1/$S$2))/Y$2)) -> 0.6842825074 | O83: =1-(((SUM(D$3:D83)*(1/$S$2))/Z$2)) -> 0.7686405457 | P83: =1-(((SUM(E$3:E83)*(1/$S$2))/AA$2)) -> 0.7562462113 | Q83: =1-(((SUM(F$3:F83)*(1/$S$2))/AB$2)) -> 0.7542068391 | R83: =1-(((SUM(G$3:G83)*(1/$S$2))/AC$2)) -> 0.8016588342 | S83: =1-(((SUM(H$3:H83)*(1/$S$2))/AD$2)) -> 0.8270279833 | T83: =1-(((SUM(I$3:I83)*(1/$S$2))/AE$2)) -> 0.8461675061 | U83: =1-(((SUM(J$3:J83)*(1/$S$2))/AF$2)) -> 0.8410387248 | W83: 29 | X83: ='min cases averted (1)'!B83/X$2 -> 0 | Y83: ='min cases averted (1)'!C83/Y$2 -> 0 | Z83: ='min cases averted (1)'!D83/Z$2 -> 0 | AA83: ='min cases averted (1)'!E83/AA$2 -> 0 | AB83: ='min cases averted (1)'!F83/AB$2 -> 0 | AC83: ='min cases averted (1)'!G83/AC$2 -> 0 | AD83: ='min cases averted (1)'!H83/AD$2 -> 0 | AE83: ='min cases averted (1)'!I83/AE$2 -> 0 | AF83: ='min cases averted (1)'!J83/AF$2 -> 0 | AH83: 29 | AI83: 0 | AJ83: ='Input data doses'!U85*SUM('min cases averted (1)'!Y83:Y$84)*AJ$2*N83 -> 0 | AK83: ='Input data doses'!V85*SUM('min cases averted (1)'!Z83:Z$84)*AK$2*O83 -> 0 | AL83: ='Input data doses'!W85*SUM('min cases averted (1)'!AA83:AA$84)*AL$2*P83 -> 0 | AM83: ='Input data doses'!X85*SUM('min cases averted (1)'!AB83:AB$84)*AM$2*Q83 -> 0 | AN83: ='Input data doses'!Y85*SUM('min cases averted (1)'!AC83:AC$84)*AN$2*R83 -> 0 | AO83: ='Input data doses'!Z85*SUM('min cases averted (1)'!AD83:AD$84)*AO$2*S83 -> 0 | AP83: ='Input data doses'!AA85*SUM('min cases averted (1)'!AE83:AE$84)*AP$2*T83 -> 0 | AQ83: ='Input data doses'!AB85*SUM('min cases averted (1)'!AF83:AF$84)*AQ$2*U83 -> 0
A84: 30 | B84: ='Input data cases'!D85 -> 0 | C84: 0 | D84: 0 | E84: 0 | F84: 0 | G84: 0 | H84: 0 | I84: 0 | J84: 0 | L84: 30 | M84: =1-(((SUM(B$3:B84)*(1/$S$2))/X$2)) -> 0.7934482623 | N84: =1-(((SUM(C$3:C84)*(1/$S$2))/Y$2)) -> 0.6842825074 | O84: =1-(((SUM(D$3:D84)*(1/$S$2))/Z$2)) -> 0.7686405457 | P84: =1-(((SUM(E$3:E84)*(1/$S$2))/AA$2)) -> 0.7562462113 | Q84: =1-(((SUM(F$3:F84)*(1/$S$2))/AB$2)) -> 0.7542068391 | R84: =1-(((SUM(G$3:G84)*(1/$S$2))/AC$2)) -> 0.8016588342 | S84: =1-(((SUM(H$3:H84)*(1/$S$2))/AD$2)) -> 0.8270279833 | T84: =1-(((SUM(I$3:I84)*(1/$S$2))/AE$2)) -> 0.8461675061 | U84: =1-(((SUM(J$3:J84)*(1/$S$2))/AF$2)) -> 0.8410387248 | W84: 30 | X84: ='min cases averted (1)'!B84/X$2 -> 0 | Y84: ='min cases averted (1)'!C84/Y$2 -> 0 | Z84: ='min cases averted (1)'!D84/Z$2 -> 0 | AA84: ='min cases averted (1)'!E84/AA$2 -> 0 | AB84: ='min cases averted (1)'!F84/AB$2 -> 0 | AC84: ='min cases averted (1)'!G84/AC$2 -> 0 | AD84: ='min cases averted (1)'!H84/AD$2 -> 0 | AE84: ='min cases averted (1)'!I84/AE$2 -> 0 | AF84: ='min cases averted (1)'!J84/AF$2 -> 0 | AH84: 30 | AI84: 0 | AJ84: ='Input data doses'!U86*SUM('min cases averted (1)'!Y84:Y$84)*AJ$2*N84 -> 0 | AK84: ='Input data doses'!V86*SUM('min cases averted (1)'!Z84:Z$84)*AK$2*O84 -> 0 | AL84: ='Input data doses'!W86*SUM('min cases averted (1)'!AA84:AA$84)*AL$2*P84 -> 0 | AM84: ='Input data doses'!X86*SUM('min cases averted (1)'!AB84:AB$84)*AM$2*Q84 -> 0 | AN84: ='Input data doses'!Y86*SUM('min cases averted (1)'!AC84:AC$84)*AN$2*R84 -> 0 | AO84: ='Input data doses'!Z86*SUM('min cases averted (1)'!AD84:AD$84)*AO$2*S84 -> 0 | AP84: ='Input data doses'!AA86*SUM('min cases averted (1)'!AE84:AE$84)*AP$2*T84 -> 0 | AQ84: ='Input data doses'!AB86*SUM('min cases averted (1)'!AF84:AF$84)*AQ$2*U84 -> 0
A86: Total | B86: =SUM(B3:B84) -> 43267929 | C86: =SUM(C3:C84) -> 8713922.927 | D86: 9666055.339 | E86: 951894.438 | F86: 5841170.415 | G86: 2423004.024 | H86: 1081698.225 | I86: 10362930.33 | J86: 4227253.299 | W86: Total | X86: =SUM(X3:X84) -> 0.1445862164 | Y86: =SUM(Y3:Y84) -> 0.2210022448 | Z86: 0.161951618 | AA86: 0.1706276521 | AB86: 0.1720552127 | AC86: 0.138838816 | AD86: 0.1210804117 | AE86: 0.1076827457 | AF86: 0.1112728927 | AH86: Total based on orig. epi curve | AI86: =SUM(AI3:AI84) -> 689438.3701 | AJ86: 50709.97824 | AK86: 206007.5659 | AL86: 49775.18574 | AM86: 113194.1057 | AN86: 82951.19919 | AO86: 19337.2611 | AP86: 105245.5888 | AQ86: 62217.4854
A87: attack rate | B87: =B86*100000/X2 -> 14458.62164 | C87: =C86*100000/Y2 -> 22100.22448 | D87: 16195.1618 | E87: 17062.76521 | F87: 17205.52127 | G87: 13883.8816 | H87: 12108.04117 | I87: 10768.27457 | J87: 11127.28927
AH88: Case estimates with a vaccination program
B89: 0-17 | C89: =C86+((8/15)*D86) -> 13869152.44 | AH89: Original | AI89: ='min cases averted (1)'!B86 -> 43267929 | AJ89: ='min cases averted (1)'!C86 -> 8713922.927 | AK89: ='min cases averted (1)'!D86 -> 9666055.339 | AL89: ='min cases averted (1)'!E86 -> 951894.438 | AM89: ='min cases averted (1)'!F86 -> 5841170.415 | AN89: ='min cases averted (1)'!G86 -> 2423004.024 | AO89: ='min cases averted (1)'!H86 -> 1081698.225 | AP89: ='min cases averted (1)'!I86 -> 10362930.33 | AQ89: ='min cases averted (1)'!J86 -> 4227253.299
B90: 18-64 | C90: =((7/15)*D86)+E86+F86+G86+H86+I86 -> 25171523.26 | AH90: Impact of 1st iteration | AI90: =AI89-AI86 -> 42578490.63 | AJ90: 8663212.949 | AK90: 9460047.773 | AL90: 902119.2523 | AM90: 5727976.309 | AN90: 2340052.825 | AO90: 1062360.964 | AP90: 10257684.74 | AQ90: 4165035.813
B91: 65+ | C91: =J86 -> 4227253.299
C92: =SUM(C89:C91) -> 43267929

Sheet mid cases averted (1)
A1: week | B1: Total Mid cases | C1: ='Input data doses'!U3 -> 6 Months-9 Years | D1: ='Input data doses'!V3 -> 10-24, (10-17 all, 18-24 not pregnant) | E1: ='Input data doses'!W3 -> Pregnant 18-64 | F1: ='Input data doses'!X3 -> 25-64, High Risk, not pregnant | G1: ='Input data doses'!Y3 -> 25-64, Health Care Worker, non-HR, not pregnant | H1: ='Input data doses'!Z3 -> 25-64, Contact <6m, non-HCW, non-HR, not pregnant | I1: ='Input data doses'!AA3 -> 25-64, non-Contact <6m, non-HCW, non-HR, not pregnant | J1: ='Input data doses'!AB3 -> 65 Years+ | L1: prior infection adjustment for vaccinees: currently totally made up- needs values | M1: =B1 -> Total Mid cases | N1: =C1 -> 6 Months-9 Years | O1: 10-24, (10-17 all, 18-24 not pregnant) | P1: Pregnant 18-64 | Q1: 25-64, High Risk, not pregnant | R1: 25-64, Health Care Worker, non-HR, not pregnant | S1: 25-64, Contact <6m, non-HCW, non-HR, not pregnant | T1: 25-64, non-Contact <6m, non-HCW, non-HR, not pregnant | U1: 65 Years+ | W1: week | X1: Probability of infection | Y1: ='Input data doses'!U3 -> 6 Months-9 Years | Z1: ='Input data doses'!V3 -> 10-24, (10-17 all, 18-24 not pregnant) | AA1: ='Input data doses'!W3 -> Pregnant 18-64 | AB1: ='Input data doses'!X3 -> 25-64, High Risk, not pregnant | AC1: ='Input data doses'!Y3 -> 25-64, Health Care Worker, non-HR, not pregnant | AD1: ='Input data doses'!Z3 -> 25-64, Contact <6m, non-HCW, non-HR, not pregnant | AE1: ='Input data doses'!AA3 -> 25-64, non-Contact <6m, non-HCW, non-HR, not pregnant | AF1: ='Input data doses'!AB3 -> 65 Years+ | AH1: week | AI1: Total Mid Cases averted | AJ1: ='Input data doses'!U3 -> 6 Months-9 Years | AK1: ='Input data doses'!V3 -> 10-24, (10-17 all, 18-24 not pregnant) | AL1: ='Input data doses'!W3 -> Pregnant 18-64 | AM1: ='Input data doses'!X3 -> 25-64, High Risk, not pregnant | AN1: ='Input data doses'!Y3 -> 25-64, Health Care Worker, non-HR, not pregnant | AO1: ='Input data doses'!Z3 -> 25-64, Contact <6m, non-HCW, non-HR, not pregnant | AP1: ='Input data doses'!AA3 -> 25-64, non-Contact <6m, non-HCW, non-HR, not pregnant | AQ1: ='Input data doses'!AB3 -> 65 Years+
A2: percentage | B2: ='min cases averted (1)'!B2 -> 1 | C2: ='Input data breakdown'!C5 -> 0.2013945 | D2: ='Input data breakdown'!D5 -> 0.2234 | E2: ='Input data breakdown'!E5 -> 0.022 | F2: ='Input data breakdown'!F5 -> 0.135 | G2: ='Input data breakdown'!G5 -> 0.056 | H2: ='Input data breakdown'!H5 -> 0.025 | I2: ='Input data breakdown'!I5 -> 0.23950604 | J2: ='Input data breakdown'!J5 -> 0.09769946 | L2: influenza week | M2: proportion of clinical cases among total seropositives | S2: ='min cases averted (1)'!S2 -> 0.7 | W2: population | X2: =SUM(Y2:AF2) -> 299253484 | Y2: ='Input data breakdown'!C4 -> 39429115 | Z2: ='Input data breakdown'!D4 -> 59684833.4 | AA2: ='Input data breakdown'!E4 -> 5578781.788 | AB2: ='Input data breakdown'!F4 -> 33949395.23 | AC2: ='Input data breakdown'!G4 -> 17451920.82 | AD2: ='Input data breakdown'!H4 -> 8933717.767 | AE2: ='Input data breakdown'!I4 -> 96235755 | AF2: ='Input data breakdown'!J4 -> 37989965.01 | AH2: vaccine effectiveness | AJ2: ='Input data breakdown'!C11 -> 0.62 | AK2: ='Input data breakdown'!D11 -> 0.62 | AL2: ='Input data breakdown'!E11 -> 0.62 | AM2: ='Input data breakdown'!F11 -> 0.62 | AN2: ='Input data breakdown'!G11 -> 0.62 | AO2: ='Input data breakdown'!H11 -> 0.62 | AP2: ='Input data breakdown'!I11 -> 0.62 | AQ2: ='Input data breakdown'!J11 -> 0.43
A3: cases with prior immunity | B3: ='Input data cases'!E4 -> 0 | C3: =$B3*C$2 -> 0 | D3: 0 | E3: 0 | F3: 0 | G3: 0 | H3: 0 | I3: 0 | J3: 0 | L3: 1 | M3: =1-(((SUM(B$3:B3)*(1/$S$2))/X$2)) -> 1 | N3: =1-(((SUM(C$3:C3)*(1/$S$2))/Y$2)) -> 1 | O3: =1-(((SUM(D$3:D3)*(1/$S$2))/Z$2)) -> 1 | P3: =1-(((SUM(E$3:E3)*(1/$S$2))/AA$2)) -> 1 | Q3: =1-(((SUM(F$3:F3)*(1/$S$2))/AB$2)) -> 1 | R3: =1-(((SUM(G$3:G3)*(1/$S$2))/AC$2)) -> 1 | S3: =1-(((SUM(H$3:H3)*(1/$S$2))/AD$2)) -> 1 | T3: =1-(((SUM(I$3:I3)*(1/$S$2))/AE$2)) -> 1 | U3: =1-(((SUM(J$3:J3)*(1/$S$2))/AF$2)) -> 1 | W3: 1 | X3: ='mid cases averted (1)'!B3/X$2 -> 0 | Y3: ='mid cases averted (1)'!C3/Y$2 -> 0 | Z3: ='mid cases averted (1)'!D3/Z$2 -> 0 | AA3: ='mid cases averted (1)'!E3/AA$2 -> 0 | AB3: ='mid cases averted (1)'!F3/AB$2 -> 0 | AC3: ='mid cases averted (1)'!G3/AC$2 -> 0 | AD3: ='mid cases averted (1)'!H3/AD$2 -> 0 | AE3: ='mid cases averted (1)'!I3/AE$2 -> 0 | AF3: ='mid cases averted (1)'!J3/AF$2 -> 0 | AH3: 1 | AI3: =SUM(AJ3:AQ3) -> 0 | AJ3: ='Input data doses'!U5*SUM('mid cases averted (1)'!Y3:Y$84)*AJ$2*N3 -> 0 | AK3: ='Input data doses'!V5*SUM('mid cases averted (1)'!Z3:Z$84)*AK$2*O3 -> 0 | AL3: ='Input data doses'!W5*SUM('mid cases averted (1)'!AA3:AA$84)*AL$2*P3 -> 0 | AM3: ='Input data doses'!X5*SUM('mid cases averted (1)'!AB3:AB$84)*AM$2*Q3 -> 0 | AN3: ='Input data doses'!Y5*SUM('mid cases averted (1)'!AC3:AC$84)*AN$2*R3 -> 0 | AO3: ='Input data doses'!Z5*SUM('mid cases averted (1)'!AD3:AD$84)*AO$2*S3 -> 0 | AP3: ='Input data doses'!AA5*SUM('mid cases averted (1)'!AE3:AE$84)*AP$2*T3 -> 0 | AQ3: ='Input data doses'!AB5*SUM('mid cases averted (1)'!AF3:AF$84)*AQ$2*U3 -> 0
A4: 2 | B4: ='Input data cases'!E5 -> 0 | C4: 0 | D4: 0 | E4: 0 | F4: 0 | G4: 0 | H4: 0 | I4: 0 | J4: 0 | L4: 2 | M4: =1-(((SUM(B$3:B4)*(1/$S$2))/X$2)) -> 1 | N4: =1-(((SUM(C$3:C4)*(1/$S$2))/Y$2)) -> 1 | O4: =1-(((SUM(D$3:D4)*(1/$S$2))/Z$2)) -> 1 | P4: =1-(((SUM(E$3:E4)*(1/$S$2))/AA$2)) -> 1 | Q4: =1-(((SUM(F$3:F4)*(1/$S$2))/AB$2)) -> 1 | R4: =1-(((SUM(G$3:G4)*(1/$S$2))/AC$2)) -> 1 | S4: =1-(((SUM(H$3:H4)*(1/$S$2))/AD$2)) -> 1 | T4: =1-(((SUM(I$3:I4)*(1/$S$2))/AE$2)) -> 1 | U4: =1-(((SUM(J$3:J4)*(1/$S$2))/AF$2)) -> 1 | W4: 2 | X4: ='mid cases averted (1)'!B4/X$2 -> 0 | Y4: ='mid cases averted (1)'!C4/Y$2 -> 0 | Z4: ='mid cases averted (1)'!D4/Z$2 -> 0 | AA4: ='mid cases averted (1)'!E4/AA$2 -> 0 | AB4: ='mid cases averted (1)'!F4/AB$2 -> 0 | AC4: ='mid cases averted (1)'!G4/AC$2 -> 0 | AD4: ='mid cases averted (1)'!H4/AD$2 -> 0 | AE4: ='mid cases averted (1)'!I4/AE$2 -> 0 | AF4: ='mid cases averted (1)'!J4/AF$2 -> 0 | AH4: 2 | AI4: 0 | AJ4: ='Input data doses'!U6*SUM('mid cases averted (1)'!Y4:Y$84)*AJ$2*N4 -> 0 | AK4: ='Input data doses'!V6*SUM('mid cases averted (1)'!Z4:Z$84)*AK$2*O4 -> 0 | AL4: ='Input data doses'!W6*SUM('mid cases averted (1)'!AA4:AA$84)*AL$2*P4 -> 0 | AM4: ='Input data doses'!X6*SUM('mid cases averted (1)'!AB4:AB$84)*AM$2*Q4 -> 0 | AN4: ='Input data doses'!Y6*SUM('mid cases averted (1)'!AC4:AC$84)*AN$2*R4 -> 0 | AO4: ='Input data doses'!Z6*SUM('mid cases averted (1)'!AD4:AD$84)*AO$2*S4 -> 0 | AP4: ='Input data doses'!AA6*SUM('mid cases averted (1)'!AE4:AE$84)*AP$2*T4 -> 0 | AQ4: ='Input data doses'!AB6*SUM('mid cases averted (1)'!AF4:AF$84)*AQ$2*U4 -> 0
A5: 3 | B5: ='Input data cases'!E6 -> 0 | C5: 0 | D5: 0 | E5: 0 | F5: 0 | G5: 0 | H5: 0 | I5: 0 | J5: 0 | L5: 3 | M5: =1-(((SUM(B$3:B5)*(1/$S$2))/X$2)) -> 1 | N5: =1-(((SUM(C$3:C5)*(1/$S$2))/Y$2)) -> 1 | O5: =1-(((SUM(D$3:D5)*(1/$S$2))/Z$2)) -> 1 | P5: =1-(((SUM(E$3:E5)*(1/$S$2))/AA$2)) -> 1 | Q5: =1-(((SUM(F$3:F5)*(1/$S$2))/AB$2)) -> 1 | R5: =1-(((SUM(G$3:G5)*(1/$S$2))/AC$2)) -> 1 | S5: =1-(((SUM(H$3:H5)*(1/$S$2))/AD$2)) -> 1 | T5: =1-(((SUM(I$3:I5)*(1/$S$2))/AE$2)) -> 1 | U5: =1-(((SUM(J$3:J5)*(1/$S$2))/AF$2)) -> 1 | W5: 3 | X5: ='mid cases averted (1)'!B5/X$2 -> 0 | Y5: ='mid cases averted (1)'!C5/Y$2 -> 0 | Z5: ='mid cases averted (1)'!D5/Z$2 -> 0 | AA5: ='mid cases averted (1)'!E5/AA$2 -> 0 | AB5: ='mid cases averted (1)'!F5/AB$2 -> 0 | AC5: ='mid cases averted (1)'!G5/AC$2 -> 0 | AD5: ='mid cases averted (1)'!H5/AD$2 -> 0 | AE5: ='mid cases averted (1)'!I5/AE$2 -> 0 | AF5: ='mid cases averted (1)'!J5/AF$2 -> 0 | AH5: 3 | AI5: 0 | AJ5: ='Input data doses'!U7*SUM('mid cases averted (1)'!Y5:Y$84)*AJ$2*N5 -> 0 | AK5: ='Input data doses'!V7*SUM('mid cases averted (1)'!Z5:Z$84)*AK$2*O5 -> 0 | AL5: ='Input data doses'!W7*SUM('mid cases averted (1)'!AA5:AA$84)*AL$2*P5 -> 0 | AM5: ='Input data doses'!X7*SUM('mid cases averted (1)'!AB5:AB$84)*AM$2*Q5 -> 0 | AN5: ='Input data doses'!Y7*SUM('mid cases averted (1)'!AC5:AC$84)*AN$2*R5 -> 0 | AO5: ='Input data doses'!Z7*SUM('mid cases averted (1)'!AD5:AD$84)*AO$2*S5 -> 0 | AP5: ='Input data doses'!AA7*SUM('mid cases averted (1)'!AE5:AE$84)*AP$2*T5 -> 0 | AQ5: ='Input data doses'!AB7*SUM('mid cases averted (1)'!AF5:AF$84)*AQ$2*U5 -> 0
A6: 4 | B6: ='Input data cases'!E7 -> 0 | C6: 0 | D6: 0 | E6: 0 | F6: 0 | G6: 0 | H6: 0 | I6: 0 | J6: 0 | L6: 4 | M6: =1-(((SUM(B$3:B6)*(1/$S$2))/X$2)) -> 1 | N6: =1-(((SUM(C$3:C6)*(1/$S$2))/Y$2)) -> 1 | O6: =1-(((SUM(D$3:D6)*(1/$S$2))/Z$2)) -> 1 | P6: =1-(((SUM(E$3:E6)*(1/$S$2))/AA$2)) -> 1 | Q6: =1-(((SUM(F$3:F6)*(1/$S$2))/AB$2)) -> 1 | R6: =1-(((SUM(G$3:G6)*(1/$S$2))/AC$2)) -> 1 | S6: =1-(((SUM(H$3:H6)*(1/$S$2))/AD$2)) -> 1 | T6: =1-(((SUM(I$3:I6)*(1/$S$2))/AE$2)) -> 1 | U6: =1-(((SUM(J$3:J6)*(1/$S$2))/AF$2)) -> 1 | W6: 4 | X6: ='mid cases averted (1)'!B6/X$2 -> 0 | Y6: ='mid cases averted (1)'!C6/Y$2 -> 0 | Z6: ='mid cases averted (1)'!D6/Z$2 -> 0 | AA6: ='mid cases averted (1)'!E6/AA$2 -> 0 | AB6: ='mid cases averted (1)'!F6/AB$2 -> 0 | AC6: ='mid cases averted (1)'!G6/AC$2 -> 0 | AD6: ='mid cases averted (1)'!H6/AD$2 -> 0 | AE6: ='mid cases averted (1)'!I6/AE$2 -> 0 | AF6: ='mid cases averted (1)'!J6/AF$2 -> 0 | AH6: 4 | AI6: 0 | AJ6: ='Input data doses'!U8*SUM('mid cases averted (1)'!Y6:Y$84)*AJ$2*N6 -> 0 | AK6: ='Input data doses'!V8*SUM('mid cases averted (1)'!Z6:Z$84)*AK$2*O6 -> 0 | AL6: ='Input data doses'!W8*SUM('mid cases averted (1)'!AA6:AA$84)*AL$2*P6 -> 0 | AM6: ='Input data doses'!X8*SUM('mid cases averted (1)'!AB6:AB$84)*AM$2*Q6 -> 0 | AN6: ='Input data doses'!Y8*SUM('mid cases averted (1)'!AC6:AC$84)*AN$2*R6 -> 0 | AO6: ='Input data doses'!Z8*SUM('mid cases averted (1)'!AD6:AD$84)*AO$2*S6 -> 0 | AP6: ='Input data doses'!AA8*SUM('mid cases averted (1)'!AE6:AE$84)*AP$2*T6 -> 0 | AQ6: ='Input data doses'!AB8*SUM('mid cases averted (1)'!AF6:AF$84)*AQ$2*U6 -> 0
A7: 5 | B7: ='Input data cases'!E8 -> 0 | C7: 0 | D7: 0 | E7: 0 | F7: 0 | G7: 0 | H7: 0 | I7: 0 | J7: 0 | L7: 5 | M7: =1-(((SUM(B$3:B7)*(1/$S$2))/X$2)) -> 1 | N7: =1-(((SUM(C$3:C7)*(1/$S$2))/Y$2)) -> 1 | O7: =1-(((SUM(D$3:D7)*(1/$S$2))/Z$2)) -> 1 | P7: =1-(((SUM(E$3:E7)*(1/$S$2))/AA$2)) -> 1 | Q7: =1-(((SUM(F$3:F7)*(1/$S$2))/AB$2)) -> 1 | R7: =1-(((SUM(G$3:G7)*(1/$S$2))/AC$2)) -> 1 | S7: =1-(((SUM(H$3:H7)*(1/$S$2))/AD$2)) -> 1 | T7: =1-(((SUM(I$3:I7)*(1/$S$2))/AE$2)) -> 1 | U7: =1-(((SUM(J$3:J7)*(1/$S$2))/AF$2)) -> 1 | W7: 5 | X7: ='mid cases averted (1)'!B7/X$2 -> 0 | Y7: ='mid cases averted (1)'!C7/Y$2 -> 0 | Z7: ='mid cases averted (1)'!D7/Z$2 -> 0 | AA7: ='mid cases averted (1)'!E7/AA$2 -> 0 | AB7: ='mid cases averted (1)'!F7/AB$2 -> 0 | AC7: ='mid cases averted (1)'!G7/AC$2 -> 0 | AD7: ='mid cases averted (1)'!H7/AD$2 -> 0 | AE7: ='mid cases averted (1)'!I7/AE$2 -> 0 | AF7: ='mid cases averted (1)'!J7/AF$2 -> 0 | AH7: 5 | AI7: 0 | AJ7: ='Input data doses'!U9*SUM('mid cases averted (1)'!Y7:Y$84)*AJ$2*N7 -> 0 | AK7: ='Input data doses'!V9*SUM('mid cases averted (1)'!Z7:Z$84)*AK$2*O7 -> 0 | AL7: ='Input data doses'!W9*SUM('mid cases averted (1)'!AA7:AA$84)*AL$2*P7 -> 0 | AM7: ='Input data doses'!X9*SUM('mid cases averted (1)'!AB7:AB$84)*AM$2*Q7 -> 0 | AN7: ='Input data doses'!Y9*SUM('mid cases averted (1)'!AC7:AC$84)*AN$2*R7 -> 0 | AO7: ='Input data doses'!Z9*SUM('mid cases averted (1)'!AD7:AD$84)*AO$2*S7 -> 0 | AP7: ='Input data doses'!AA9*SUM('mid cases averted (1)'!AE7:AE$84)*AP$2*T7 -> 0 | AQ7: ='Input data doses'!AB9*SUM('mid cases averted (1)'!AF7:AF$84)*AQ$2*U7 -> 0
A8: 6 | B8: ='Input data cases'!E9 -> 0 | C8: 0 | D8: 0 | E8: 0 | F8: 0 | G8: 0 | H8: 0 | I8: 0 | J8: 0 | L8: 6 | M8: =1-(((SUM(B$3:B8)*(1/$S$2))/X$2)) -> 1 | N8: =1-(((SUM(C$3:C8)*(1/$S$2))/Y$2)) -> 1 | O8: =1-(((SUM(D$3:D8)*(1/$S$2))/Z$2)) -> 1 | P8: =1-(((SUM(E$3:E8)*(1/$S$2))/AA$2)) -> 1 | Q8: =1-(((SUM(F$3:F8)*(1/$S$2))/AB$2)) -> 1 | R8: =1-(((SUM(G$3:G8)*(1/$S$2))/AC$2)) -> 1 | S8: =1-(((SUM(H$3:H8)*(1/$S$2))/AD$2)) -> 1 | T8: =1-(((SUM(I$3:I8)*(1/$S$2))/AE$2)) -> 1 | U8: =1-(((SUM(J$3:J8)*(1/$S$2))/AF$2)) -> 1 | W8: 6 | X8: ='mid cases averted (1)'!B8/X$2 -> 0 | Y8: ='mid cases averted (1)'!C8/Y$2 -> 0 | Z8: ='mid cases averted (1)'!D8/Z$2 -> 0 | AA8: ='mid cases averted (1)'!E8/AA$2 -> 0 | AB8: ='mid cases averted (1)'!F8/AB$2 -> 0 | AC8: ='mid cases averted (1)'!G8/AC$2 -> 0 | AD8: ='mid cases averted (1)'!H8/AD$2 -> 0 | AE8: ='mid cases averted (1)'!I8/AE$2 -> 0 | AF8: ='mid cases averted (1)'!J8/AF$2 -> 0 | AH8: 6 | AI8: 0 | AJ8: ='Input data doses'!U10*SUM('mid cases averted (1)'!Y8:Y$84)*AJ$2*N8 -> 0 | AK8: ='Input data doses'!V10*SUM('mid cases averted (1)'!Z8:Z$84)*AK$2*O8 -> 0 | AL8: ='Input data doses'!W10*SUM('mid cases averted (1)'!AA8:AA$84)*AL$2*P8 -> 0 | AM8: ='Input data doses'!X10*SUM('mid cases averted (1)'!AB8:AB$84)*AM$2*Q8 -> 0 | AN8: ='Input data doses'!Y10*SUM('mid cases averted (1)'!AC8:AC$84)*AN$2*R8 -> 0 | AO8: ='Input data doses'!Z10*SUM('mid cases averted (1)'!AD8:AD$84)*AO$2*S8 -> 0 | AP8: ='Input data doses'!AA10*SUM('mid cases averted (1)'!AE8:AE$84)*AP$2*T8 -> 0 | AQ8: ='Input data doses'!AB10*SUM('mid cases averted (1)'!AF8:AF$84)*AQ$2*U8 -> 0
A9: 7 | B9: ='Input data cases'!E10 -> 0 | C9: 0 | D9: 0 | E9: 0 | F9: 0 | G9: 0 | H9: 0 | I9: 0 | J9: 0 | L9: 7 | M9: =1-(((SUM(B$3:B9)*(1/$S$2))/X$2)) -> 1 | N9: =1-(((SUM(C$3:C9)*(1/$S$2))/Y$2)) -> 1 | O9: =1-(((SUM(D$3:D9)*(1/$S$2))/Z$2)) -> 1 | P9: =1-(((SUM(E$3:E9)*(1/$S$2))/AA$2)) -> 1 | Q9: =1-(((SUM(F$3:F9)*(1/$S$2))/AB$2)) -> 1 | R9: =1-(((SUM(G$3:G9)*(1/$S$2))/AC$2)) -> 1 | S9: =1-(((SUM(H$3:H9)*(1/$S$2))/AD$2)) -> 1 | T9: =1-(((SUM(I$3:I9)*(1/$S$2))/AE$2)) -> 1 | U9: =1-(((SUM(J$3:J9)*(1/$S$2))/AF$2)) -> 1 | W9: 7 | X9: ='mid cases averted (1)'!B9/X$2 -> 0 | Y9: ='mid cases averted (1)'!C9/Y$2 -> 0 | Z9: ='mid cases averted (1)'!D9/Z$2 -> 0 | AA9: ='mid cases averted (1)'!E9/AA$2 -> 0 | AB9: ='mid cases averted (1)'!F9/AB$2 -> 0 | AC9: ='mid cases averted (1)'!G9/AC$2 -> 0 | AD9: ='mid cases averted (1)'!H9/AD$2 -> 0 | AE9: ='mid cases averted (1)'!I9/AE$2 -> 0 | AF9: ='mid cases averted (1)'!J9/AF$2 -> 0 | AH9: 7 | AI9: 0 | AJ9: ='Input data doses'!U11*SUM('mid cases averted (1)'!Y9:Y$84)*AJ$2*N9 -> 0 | AK9: ='Input data doses'!V11*SUM('mid cases averted (1)'!Z9:Z$84)*AK$2*O9 -> 0 | AL9: ='Input data doses'!W11*SUM('mid cases averted (1)'!AA9:AA$84)*AL$2*P9 -> 0 | AM9: ='Input data doses'!X11*SUM('mid cases averted (1)'!AB9:AB$84)*AM$2*Q9 -> 0 | AN9: ='Input data doses'!Y11*SUM('mid cases averted (1)'!AC9:AC$84)*AN$2*R9 -> 0 | AO9: ='Input data doses'!Z11*SUM('mid cases averted (1)'!AD9:AD$84)*AO$2*S9 -> 0 | AP9: ='Input data doses'!AA11*SUM('mid cases averted (1)'!AE9:AE$84)*AP$2*T9 -> 0 | AQ9: ='Input data doses'!AB11*SUM('mid cases averted (1)'!AF9:AF$84)*AQ$2*U9 -> 0
A10: 8 | B10: ='Input data cases'!E11 -> 0 | C10: 0 | D10: 0 | E10: 0 | F10: 0 | G10: 0 | H10: 0 | I10: 0 | J10: 0 | L10: 8 | M10: =1-(((SUM(B$3:B10)*(1/$S$2))/X$2)) -> 1 | N10: =1-(((SUM(C$3:C10)*(1/$S$2))/Y$2)) -> 1 | O10: =1-(((SUM(D$3:D10)*(1/$S$2))/Z$2)) -> 1 | P10: =1-(((SUM(E$3:E10)*(1/$S$2))/AA$2)) -> 1 | Q10: =1-(((SUM(F$3:F10)*(1/$S$2))/AB$2)) -> 1 | R10: =1-(((SUM(G$3:G10)*(1/$S$2))/AC$2)) -> 1 | S10: =1-(((SUM(H$3:H10)*(1/$S$2))/AD$2)) -> 1 | T10: =1-(((SUM(I$3:I10)*(1/$S$2))/AE$2)) -> 1 | U10: =1-(((SUM(J$3:J10)*(1/$S$2))/AF$2)) -> 1 | W10: 8 | X10: ='mid cases averted (1)'!B10/X$2 -> 0 | Y10: ='mid cases averted (1)'!C10/Y$2 -> 0 | Z10: ='mid cases averted (1)'!D10/Z$2 -> 0 | AA10: ='mid cases averted (1)'!E10/AA$2 -> 0 | AB10: ='mid cases averted (1)'!F10/AB$2 -> 0 | AC10: ='mid cases averted (1)'!G10/AC$2 -> 0 | AD10: ='mid cases averted (1)'!H10/AD$2 -> 0 | AE10: ='mid cases averted (1)'!I10/AE$2 -> 0 | AF10: ='mid cases averted (1)'!J10/AF$2 -> 0 | AH10: 8 | AI10: 0 | AJ10: ='Input data doses'!U12*SUM('mid cases averted (1)'!Y10:Y$84)*AJ$2*N10 -> 0 | AK10: ='Input data doses'!V12*SUM('mid cases averted (1)'!Z10:Z$84)*AK$2*O10 -> 0 | AL10: ='Input data doses'!W12*SUM('mid cases averted (1)'!AA10:AA$84)*AL$2*P10 -> 0 | AM10: ='Input data doses'!X12*SUM('mid cases averted (1)'!AB10:AB$84)*AM$2*Q10 -> 0 | AN10: ='Input data doses'!Y12*SUM('mid cases averted (1)'!AC10:AC$84)*AN$2*R10 -> 0 | AO10: ='Input data doses'!Z12*SUM('mid cases averted (1)'!AD10:AD$84)*AO$2*S10 -> 0 | AP10: ='Input data doses'!AA12*SUM('mid cases averted (1)'!AE10:AE$84)*AP$2*T10 -> 0 | AQ10: ='Input data doses'!AB12*SUM('mid cases averted (1)'!AF10:AF$84)*AQ$2*U10 -> 0
A11: 9 | B11: ='Input data cases'!E12 -> 0 | C11: 0 | D11: 0 | E11: 0 | F11: 0 | G11: 0 | H11: 0 | I11: 0 | J11: 0 | L11: 9 | M11: =1-(((SUM(B$3:B11)*(1/$S$2))/X$2)) -> 1 | N11: =1-(((SUM(C$3:C11)*(1/$S$2))/Y$2)) -> 1 | O11: =1-(((SUM(D$3:D11)*(1/$S$2))/Z$2)) -> 1 | P11: =1-(((SUM(E$3:E11)*(1/$S$2))/AA$2)) -> 1 | Q11: =1-(((SUM(F$3:F11)*(1/$S$2))/AB$2)) -> 1 | R11: =1-(((SUM(G$3:G11)*(1/$S$2))/AC$2)) -> 1 | S11: =1-(((SUM(H$3:H11)*(1/$S$2))/AD$2)) -> 1 | T11: =1-(((SUM(I$3:I11)*(1/$S$2))/AE$2)) -> 1 | U11: =1-(((SUM(J$3:J11)*(1/$S$2))/AF$2)) -> 1 | W11: 9 | X11: ='mid cases averted (1)'!B11/X$2 -> 0 | Y11: ='mid cases averted (1)'!C11/Y$2 -> 0 | Z11: ='mid cases averted (1)'!D11/Z$2 -> 0 | AA11: ='mid cases averted (1)'!E11/AA$2 -> 0 | AB11: ='mid cases averted (1)'!F11/AB$2 -> 0 | AC11: ='mid cases averted (1)'!G11/AC$2 -> 0 | AD11: ='mid cases averted (1)'!H11/AD$2 -> 0 | AE11: ='mid cases averted (1)'!I11/AE$2 -> 0 | AF11: ='mid cases averted (1)'!J11/AF$2 -> 0 | AH11: 9 | AI11: 0 | AJ11: ='Input data doses'!U13*SUM('mid cases averted (1)'!Y11:Y$84)*AJ$2*N11 -> 0 | AK11: ='Input data doses'!V13*SUM('mid cases averted (1)'!Z11:Z$84)*AK$2*O11 -> 0 | AL11: ='Input data doses'!W13*SUM('mid cases averted (1)'!AA11:AA$84)*AL$2*P11 -> 0 | AM11: ='Input data doses'!X13*SUM('mid cases averted (1)'!AB11:AB$84)*AM$2*Q11 -> 0 | AN11: ='Input data doses'!Y13*SUM('mid cases averted (1)'!AC11:AC$84)*AN$2*R11 -> 0 | AO11: ='Input data doses'!Z13*SUM('mid cases averted (1)'!AD11:AD$84)*AO$2*S11 -> 0 | AP11: ='Input data doses'!AA13*SUM('mid cases averted (1)'!AE11:AE$84)*AP$2*T11 -> 0 | AQ11: ='Input data doses'!AB13*SUM('mid cases averted (1)'!AF11:AF$84)*AQ$2*U11 -> 0
A12: 10 | B12: ='Input data cases'!E13 -> 0 | C12: 0 | D12: 0 | E12: 0 | F12: 0 | G12: 0 | H12: 0 | I12: 0 | J12: 0 | L12: 10 | M12: =1-(((SUM(B$3:B12)*(1/$S$2))/X$2)) -> 1 | N12: =1-(((SUM(C$3:C12)*(1/$S$2))/Y$2)) -> 1 | O12: =1-(((SUM(D$3:D12)*(1/$S$2))/Z$2)) -> 1 | P12: =1-(((SUM(E$3:E12)*(1/$S$2))/AA$2)) -> 1 | Q12: =1-(((SUM(F$3:F12)*(1/$S$2))/AB$2)) -> 1 | R12: =1-(((SUM(G$3:G12)*(1/$S$2))/AC$2)) -> 1 | S12: =1-(((SUM(H$3:H12)*(1/$S$2))/AD$2)) -> 1 | T12: =1-(((SUM(I$3:I12)*(1/$S$2))/AE$2)) -> 1 | U12: =1-(((SUM(J$3:J12)*(1/$S$2))/AF$2)) -> 1 | W12: 10 | X12: ='mid cases averted (1)'!B12/X$2 -> 0 | Y12: ='mid cases averted (1)'!C12/Y$2 -> 0 | Z12: ='mid cases averted (1)'!D12/Z$2 -> 0 | AA12: ='mid cases averted (1)'!E12/AA$2 -> 0 | AB12: ='mid cases averted (1)'!F12/AB$2 -> 0 | AC12: ='mid cases averted (1)'!G12/AC$2 -> 0 | AD12: ='mid cases averted (1)'!H12/AD$2 -> 0 | AE12: ='mid cases averted (1)'!I12/AE$2 -> 0 | AF12: ='mid cases averted (1)'!J12/AF$2 -> 0 | AH12: 10 | AI12: 0 | AJ12: ='Input data doses'!U14*SUM('mid cases averted (1)'!Y12:Y$84)*AJ$2*N12 -> 0 | AK12: ='Input data doses'!V14*SUM('mid cases averted (1)'!Z12:Z$84)*AK$2*O12 -> 0 | AL12: ='Input data doses'!W14*SUM('mid cases averted (1)'!AA12:AA$84)*AL$2*P12 -> 0 | AM12: ='Input data doses'!X14*SUM('mid cases averted (1)'!AB12:AB$84)*AM$2*Q12 -> 0 | AN12: ='Input data doses'!Y14*SUM('mid cases averted (1)'!AC12:AC$84)*AN$2*R12 -> 0 | AO12: ='Input data doses'!Z14*SUM('mid cases averted (1)'!AD12:AD$84)*AO$2*S12 -> 0 | AP12: ='Input data doses'!AA14*SUM('mid cases averted (1)'!AE12:AE$84)*AP$2*T12 -> 0 | AQ12: ='Input data doses'!AB14*SUM('mid cases averted (1)'!AF12:AF$84)*AQ$2*U12 -> 0
A13: 11 | B13: ='Input data cases'!E14 -> 0 | C13: 0 | D13: 0 | E13: 0 | F13: 0 | G13: 0 | H13: 0 | I13: 0 | J13: 0 | L13: 11 | M13: =1-(((SUM(B$3:B13)*(1/$S$2))/X$2)) -> 1 | N13: =1-(((SUM(C$3:C13)*(1/$S$2))/Y$2)) -> 1 | O13: =1-(((SUM(D$3:D13)*(1/$S$2))/Z$2)) -> 1 | P13: =1-(((SUM(E$3:E13)*(1/$S$2))/AA$2)) -> 1 | Q13: =1-(((SUM(F$3:F13)*(1/$S$2))/AB$2)) -> 1 | R13: =1-(((SUM(G$3:G13)*(1/$S$2))/AC$2)) -> 1 | S13: =1-(((SUM(H$3:H13)*(1/$S$2))/AD$2)) -> 1 | T13: =1-(((SUM(I$3:I13)*(1/$S$2))/AE$2)) -> 1 | U13: =1-(((SUM(J$3:J13)*(1/$S$2))/AF$2)) -> 1 | W13: 11 | X13: ='mid cases averted (1)'!B13/X$2 -> 0 | Y13: ='mid cases averted (1)'!C13/Y$2 -> 0 | Z13: ='mid cases averted (1)'!D13/Z$2 -> 0 | AA13: ='mid cases averted (1)'!E13/AA$2 -> 0 | AB13: ='mid cases averted (1)'!F13/AB$2 -> 0 | AC13: ='mid cases averted (1)'!G13/AC$2 -> 0 | AD13: ='mid cases averted (1)'!H13/AD$2 -> 0 | AE13: ='mid cases averted (1)'!I13/AE$2 -> 0 | AF13: ='mid cases averted (1)'!J13/AF$2 -> 0 | AH13: 11 | AI13: 0 | AJ13: ='Input data doses'!U15*SUM('mid cases averted (1)'!Y13:Y$84)*AJ$2*N13 -> 0 | AK13: ='Input data doses'!V15*SUM('mid cases averted (1)'!Z13:Z$84)*AK$2*O13 -> 0 | AL13: ='Input data doses'!W15*SUM('mid cases averted (1)'!AA13:AA$84)*AL$2*P13 -> 0 | AM13: ='Input data doses'!X15*SUM('mid cases averted (1)'!AB13:AB$84)*AM$2*Q13 -> 0 | AN13: ='Input data doses'!Y15*SUM('mid cases averted (1)'!AC13:AC$84)*AN$2*R13 -> 0 | AO13: ='Input data doses'!Z15*SUM('mid cases averted (1)'!AD13:AD$84)*AO$2*S13 -> 0 | AP13: ='Input data doses'!AA15*SUM('mid cases averted (1)'!AE13:AE$84)*AP$2*T13 -> 0 | AQ13: ='Input data doses'!AB15*SUM('mid cases averted (1)'!AF13:AF$84)*AQ$2*U13 -> 0
A14: 12 | B14: ='Input data cases'!E15 -> 0 | C14: 0 | D14: 0 | E14: 0 | F14: 0 | G14: 0 | H14: 0 | I14: 0 | J14: 0 | L14: 12 | M14: =1-(((SUM(B$3:B14)*(1/$S$2))/X$2)) -> 1 | N14: =1-(((SUM(C$3:C14)*(1/$S$2))/Y$2)) -> 1 | O14: =1-(((SUM(D$3:D14)*(1/$S$2))/Z$2)) -> 1 | P14: =1-(((SUM(E$3:E14)*(1/$S$2))/AA$2)) -> 1 | Q14: =1-(((SUM(F$3:F14)*(1/$S$2))/AB$2)) -> 1 | R14: =1-(((SUM(G$3:G14)*(1/$S$2))/AC$2)) -> 1 | S14: =1-(((SUM(H$3:H14)*(1/$S$2))/AD$2)) -> 1 | T14: =1-(((SUM(I$3:I14)*(1/$S$2))/AE$2)) -> 1 | U14: =1-(((SUM(J$3:J14)*(1/$S$2))/AF$2)) -> 1 | W14: 12 | X14: ='mid cases averted (1)'!B14/X$2 -> 0 | Y14: ='mid cases averted (1)'!C14/Y$2 -> 0 | Z14: ='mid cases averted (1)'!D14/Z$2 -> 0 | AA14: ='mid cases averted (1)'!E14/AA$2 -> 0 | AB14: ='mid cases averted (1)'!F14/AB$2 -> 0 | AC14: ='mid cases averted (1)'!G14/AC$2 -> 0 | AD14: ='mid cases averted (1)'!H14/AD$2 -> 0 | AE14: ='mid cases averted (1)'!I14/AE$2 -> 0 | AF14: ='mid cases averted (1)'!J14/AF$2 -> 0 | AH14: 12 | AI14: 0 | AJ14: ='Input data doses'!U16*SUM('mid cases averted (1)'!Y14:Y$84)*AJ$2*N14 -> 0 | AK14: ='Input data doses'!V16*SUM('mid cases averted (1)'!Z14:Z$84)*AK$2*O14 -> 0 | AL14: ='Input data doses'!W16*SUM('mid cases averted (1)'!AA14:AA$84)*AL$2*P14 -> 0 | AM14: ='Input data doses'!X16*SUM('mid cases averted (1)'!AB14:AB$84)*AM$2*Q14 -> 0 | AN14: ='Input data doses'!Y16*SUM('mid cases averted (1)'!AC14:AC$84)*AN$2*R14 -> 0 | AO14: ='Input data doses'!Z16*SUM('mid cases averted (1)'!AD14:AD$84)*AO$2*S14 -> 0 | AP14: ='Input data doses'!AA16*SUM('mid cases averted (1)'!AE14:AE$84)*AP$2*T14 -> 0 | AQ14: ='Input data doses'!AB16*SUM('mid cases averted (1)'!AF14:AF$84)*AQ$2*U14 -> 0
A15: 13 | B15: ='Input data cases'!E16 -> 0 | C15: 0 | D15: 0 | E15: 0 | F15: 0 | G15: 0 | H15: 0 | I15: 0 | J15: 0 | L15: 13 | M15: =1-(((SUM(B$3:B15)*(1/$S$2))/X$2)) -> 1 | N15: =1-(((SUM(C$3:C15)*(1/$S$2))/Y$2)) -> 1 | O15: =1-(((SUM(D$3:D15)*(1/$S$2))/Z$2)) -> 1 | P15: =1-(((SUM(E$3:E15)*(1/$S$2))/AA$2)) -> 1 | Q15: =1-(((SUM(F$3:F15)*(1/$S$2))/AB$2)) -> 1 | R15: =1-(((SUM(G$3:G15)*(1/$S$2))/AC$2)) -> 1 | S15: =1-(((SUM(H$3:H15)*(1/$S$2))/AD$2)) -> 1 | T15: =1-(((SUM(I$3:I15)*(1/$S$2))/AE$2)) -> 1 | U15: =1-(((SUM(J$3:J15)*(1/$S$2))/AF$2)) -> 1 | W15: 13 | X15: ='mid cases averted (1)'!B15/X$2 -> 0 | Y15: ='mid cases averted (1)'!C15/Y$2 -> 0 | Z15: ='mid cases averted (1)'!D15/Z$2 -> 0 | AA15: ='mid cases averted (1)'!E15/AA$2 -> 0 | AB15: ='mid cases averted (1)'!F15/AB$2 -> 0 | AC15: ='mid cases averted (1)'!G15/AC$2 -> 0 | AD15: ='mid cases averted (1)'!H15/AD$2 -> 0 | AE15: ='mid cases averted (1)'!I15/AE$2 -> 0 | AF15: ='mid cases averted (1)'!J15/AF$2 -> 0 | AH15: 13 | AI15: 0 | AJ15: ='Input data doses'!U17*SUM('mid cases averted (1)'!Y15:Y$84)*AJ$2*N15 -> 0 | AK15: ='Input data doses'!V17*SUM('mid cases averted (1)'!Z15:Z$84)*AK$2*O15 -> 0 | AL15: ='Input data doses'!W17*SUM('mid cases averted (1)'!AA15:AA$84)*AL$2*P15 -> 0 | AM15: ='Input data doses'!X17*SUM('mid cases averted (1)'!AB15:AB$84)*AM$2*Q15 -> 0 | AN15: ='Input data doses'!Y17*SUM('mid cases averted (1)'!AC15:AC$84)*AN$2*R15 -> 0 | AO15: ='Input data doses'!Z17*SUM('mid cases averted (1)'!AD15:AD$84)*AO$2*S15 -> 0 | AP15: ='Input data doses'!AA17*SUM('mid cases averted (1)'!AE15:AE$84)*AP$2*T15 -> 0 | AQ15: ='Input data doses'!AB17*SUM('mid cases averted (1)'!AF15:AF$84)*AQ$2*U15 -> 0
A16: 14 | B16: ='Input data cases'!E17 -> 120077.3777 | C16: 24182.92344 | D16: 26825.28618 | E16: 2641.702309 | F16: 16210.44599 | G16: 6724.333151 | H16: 3001.934443 | I16: 28759.25723 | J16: 11731.49496 | L16: 14 | M16: =1-(((SUM(B$3:B16)*(1/$S$2))/X$2)) -> 0.9994267766 | N16: =1-(((SUM(C$3:C16)*(1/$S$2))/Y$2)) -> 0.9991238192 | O16: =1-(((SUM(D$3:D16)*(1/$S$2))/Z$2)) -> 0.9993579301 | P16: =1-(((SUM(E$3:E16)*(1/$S$2))/AA$2)) -> 0.9993235332 | Q16: =1-(((SUM(F$3:F16)*(1/$S$2))/AB$2)) -> 0.9993178736 | R16: =1-(((SUM(G$3:G16)*(1/$S$2))/AC$2)) -> 0.9994495626 | S16: =1-(((SUM(H$3:H16)*(1/$S$2))/AD$2)) -> 0.9995199672 | T16: =1-(((SUM(I$3:I16)*(1/$S$2))/AE$2)) -> 0.9995730833 | U16: =1-(((SUM(J$3:J16)*(1/$S$2))/AF$2)) -> 0.9995588499 | W16: 14 | X16: ='mid cases averted (1)'!B16/X$2 -> 0.0004012564068 | Y16: ='mid cases averted (1)'!C16/Y$2 -> 0.0006133265594 | Z16: ='mid cases averted (1)'!D16/Z$2 -> 0.000449448958 | AA16: ='mid cases averted (1)'!E16/AA$2 -> 0.0004735267322 | AB16: ='mid cases averted (1)'!F16/AB$2 -> 0.0004774885055 | AC16: ='mid cases averted (1)'!G16/AC$2 -> 0.0003853061919 | AD16: ='mid cases averted (1)'!H16/AD$2 -> 0.0003360229773 | AE16: ='mid cases averted (1)'!I16/AE$2 -> 0.0002988417063 | AF16: ='mid cases averted (1)'!J16/AF$2 -> 0.0003088051005 | AH16: 14 | AI16: 0 | AJ16: ='Input data doses'!U18*SUM('mid cases averted (1)'!Y16:Y$84)*AJ$2*N16 -> 0 | AK16: ='Input data doses'!V18*SUM('mid cases averted (1)'!Z16:Z$84)*AK$2*O16 -> 0 | AL16: ='Input data doses'!W18*SUM('mid cases averted (1)'!AA16:AA$84)*AL$2*P16 -> 0 | AM16: ='Input data doses'!X18*SUM('mid cases averted (1)'!AB16:AB$84)*AM$2*Q16 -> 0 | AN16: ='Input data doses'!Y18*SUM('mid cases averted (1)'!AC16:AC$84)*AN$2*R16 -> 0 | AO16: ='Input data doses'!Z18*SUM('mid cases averted (1)'!AD16:AD$84)*AO$2*S16 -> 0 | AP16: ='Input data doses'!AA18*SUM('mid cases averted (1)'!AE16:AE$84)*AP$2*T16 -> 0 | AQ16: ='Input data doses'!AB18*SUM('mid cases averted (1)'!AF16:AF$84)*AQ$2*U16 -> 0
A17: 15 | B17: ='Input data cases'!E18 -> 35606.46783 | C17: 7170.946786 | D17: 7954.484914 | E17: 783.3422923 | F17: 4806.873157 | G17: 1993.962199 | H17: 890.1616958 | I17: 8527.964109 | J17: 3478.73268 | L17: 15 | M17: =1-(((SUM(B$3:B17)*(1/$S$2))/X$2)) -> 0.999256799 | N17: =1-(((SUM(C$3:C17)*(1/$S$2))/Y$2)) -> 0.9988640059 | O17: =1-(((SUM(D$3:D17)*(1/$S$2))/Z$2)) -> 0.9991675375 | P17: =1-(((SUM(E$3:E17)*(1/$S$2))/AA$2)) -> 0.999122941 | Q17: =1-(((SUM(F$3:F17)*(1/$S$2))/AB$2)) -> 0.999115603 | R17: =1-(((SUM(G$3:G17)*(1/$S$2))/AC$2)) -> 0.9992863417 | S17: =1-(((SUM(H$3:H17)*(1/$S$2))/AD$2)) -> 0.9993776233 | T17: =1-(((SUM(I$3:I17)*(1/$S$2))/AE$2)) -> 0.9994464899 | U17: =1-(((SUM(J$3:J17)*(1/$S$2))/AF$2)) -> 0.9994280359 | W17: 15 | X17: ='mid cases averted (1)'!B17/X$2 -> 0.0001189843051 | Y17: ='mid cases averted (1)'!C17/Y$2 -> 0.0001818693315 | Z17: ='mid cases averted (1)'!D17/Z$2 -> 0.0001332748114 | AA17: ='mid cases averted (1)'!E17/AA$2 -> 0.0001404145783 | AB17: ='mid cases averted (1)'!F17/AB$2 -> 0.0001415893604 | AC17: ='mid cases averted (1)'!G17/AC$2 -> 0.0001142545981 | AD17: ='mid cases averted (1)'!H17/AD$2 -> 9.964067805e-05 | AE17: ='mid cases averted (1)'!I17/AE$2 -> 8.861533958e-05 | AF17: ='mid cases averted (1)'!J17/AF$2 -> 9.156977847e-05 | AH17: 15 | AI17: 0 | AJ17: ='Input data doses'!U19*SUM('mid cases averted (1)'!Y17:Y$84)*AJ$2*N17 -> 0 | AK17: ='Input data doses'!V19*SUM('mid cases averted (1)'!Z17:Z$84)*AK$2*O17 -> 0 | AL17: ='Input data doses'!W19*SUM('mid cases averted (1)'!AA17:AA$84)*AL$2*P17 -> 0 | AM17: ='Input data doses'!X19*SUM('mid cases averted (1)'!AB17:AB$84)*AM$2*Q17 -> 0 | AN17: ='Input data doses'!Y19*SUM('mid cases averted (1)'!AC17:AC$84)*AN$2*R17 -> 0 | AO17: ='Input data doses'!Z19*SUM('mid cases averted (1)'!AD17:AD$84)*AO$2*S17 -> 0 | AP17: ='Input data doses'!AA19*SUM('mid cases averted (1)'!AE17:AE$84)*AP$2*T17 -> 0 | AQ17: ='Input data doses'!AB19*SUM('mid cases averted (1)'!AF17:AF$84)*AQ$2*U17 -> 0
A18: 16 | B18: ='Input data cases'!E19 -> 65555.44113 | C18: 13202.50529 | D18: 14645.08555 | E18: 1442.219705 | F18: 8849.984552 | G18: 3671.104703 | H18: 1638.886028 | I18: 15700.9241 | J18: 6404.731198 | L18: 16 | M18: =1-(((SUM(B$3:B18)*(1/$S$2))/X$2)) -> 0.9989438515 | N18: =1-(((SUM(C$3:C18)*(1/$S$2))/Y$2)) -> 0.9983856608 | O18: =1-(((SUM(D$3:D18)*(1/$S$2))/Z$2)) -> 0.9988170037 | P18: =1-(((SUM(E$3:E18)*(1/$S$2))/AA$2)) -> 0.9987536285 | Q18: =1-(((SUM(F$3:F18)*(1/$S$2))/AB$2)) -> 0.9987432007 | R18: =1-(((SUM(G$3:G18)*(1/$S$2))/AC$2)) -> 0.9989858341 | S18: =1-(((SUM(H$3:H18)*(1/$S$2))/AD$2)) -> 0.9991155526 | T18: =1-(((SUM(I$3:I18)*(1/$S$2))/AE$2)) -> 0.9992134176 | U18: =1-(((SUM(J$3:J18)*(1/$S$2))/AF$2)) -> 0.9991871929 | W18: 16 | X18: ='mid cases averted (1)'!B18/X$2 -> 0.0002190632512 | Y18: ='mid cases averted (1)'!C18/Y$2 -> 0.0003348415324 | Z18: ='mid cases averted (1)'!D18/Z$2 -> 0.0002453736521 | AA18: ='mid cases averted (1)'!E18/AA$2 -> 0.0002585187519 | AB18: ='mid cases averted (1)'!F18/AB$2 -> 0.0002606816556 | AC18: ='mid cases averted (1)'!G18/AC$2 -> 0.000210355338 | AD18: ='mid cases averted (1)'!H18/AD$2 -> 0.0001834494967 | AE18: ='mid cases averted (1)'!I18/AE$2 -> 0.0001631506305 | AF18: ='mid cases averted (1)'!J18/AF$2 -> 0.0001685900789 | AH18: 16 | AI18: 0 | AJ18: ='Input data doses'!U20*SUM('mid cases averted (1)'!Y18:Y$84)*AJ$2*N18 -> 0 | AK18: ='Input data doses'!V20*SUM('mid cases averted (1)'!Z18:Z$84)*AK$2*O18 -> 0 | AL18: ='Input data doses'!W20*SUM('mid cases averted (1)'!AA18:AA$84)*AL$2*P18 -> 0 | AM18: ='Input data doses'!X20*SUM('mid cases averted (1)'!AB18:AB$84)*AM$2*Q18 -> 0 | AN18: ='Input data doses'!Y20*SUM('mid cases averted (1)'!AC18:AC$84)*AN$2*R18 -> 0 | AO18: ='Input data doses'!Z20*SUM('mid cases averted (1)'!AD18:AD$84)*AO$2*S18 -> 0 | AP18: ='Input data doses'!AA20*SUM('mid cases averted (1)'!AE18:AE$84)*AP$2*T18 -> 0 | AQ18: ='Input data doses'!AB20*SUM('mid cases averted (1)'!AF18:AF$84)*AQ$2*U18 -> 0
A19: 17 | B19: ='Input data cases'!E20 -> 58322.36865 | C19: =$B19*C$2 -> 11745.80427 | D19: 13029.21716 | E19: 1283.09211 | F19: 7873.519767 | G19: 3266.052644 | H19: 1458.059216 | I19: 13968.55956 | J19: 5698.063923 | L19: 17 | M19: =1-(((SUM(B$3:B19)*(1/$S$2))/X$2)) -> 0.9986654331 | N19: =1-(((SUM(C$3:C19)*(1/$S$2))/Y$2)) -> 0.9979600941 | O19: =1-(((SUM(D$3:D19)*(1/$S$2))/Z$2)) -> 0.9985051461 | P19: =1-(((SUM(E$3:E19)*(1/$S$2))/AA$2)) -> 0.9984250641 | Q19: =1-(((SUM(F$3:F19)*(1/$S$2))/AB$2)) -> 0.9984118874 | R19: =1-(((SUM(G$3:G19)*(1/$S$2))/AC$2)) -> 0.998718483 | S19: =1-(((SUM(H$3:H19)*(1/$S$2))/AD$2)) -> 0.9988823976 | T19: =1-(((SUM(I$3:I19)*(1/$S$2))/AE$2)) -> 0.9990060614 | U19: =1-(((SUM(J$3:J19)*(1/$S$2))/AF$2)) -> 0.9989729234 | W19: 17 | X19: ='mid cases averted (1)'!B19/X$2 -> 0.0001948928643 | Y19: ='mid cases averted (1)'!C19/Y$2 -> 0.0002978967261 | Z19: ='mid cases averted (1)'!D19/Z$2 -> 0.000218300302 | AA19: ='mid cases averted (1)'!E19/AA$2 -> 0.0002299950346 | AB19: ='mid cases averted (1)'!F19/AB$2 -> 0.0002319192939 | AC19: ='mid cases averted (1)'!G19/AC$2 -> 0.0001871457405 | AD19: ='mid cases averted (1)'!H19/AD$2 -> 0.0001632085604 | AE19: ='mid cases averted (1)'!I19/AE$2 -> 0.0001451493736 | AF19: ='mid cases averted (1)'!J19/AF$2 -> 0.0001499886594 | AH19: 17 | AI19: 0 | AJ19: ='Input data doses'!U21*SUM('mid cases averted (1)'!Y19:Y$84)*AJ$2*N19 -> 0 | AK19: ='Input data doses'!V21*SUM('mid cases averted (1)'!Z19:Z$84)*AK$2*O19 -> 0 | AL19: ='Input data doses'!W21*SUM('mid cases averted (1)'!AA19:AA$84)*AL$2*P19 -> 0 | AM19: ='Input data doses'!X21*SUM('mid cases averted (1)'!AB19:AB$84)*AM$2*Q19 -> 0 | AN19: ='Input data doses'!Y21*SUM('mid cases averted (1)'!AC19:AC$84)*AN$2*R19 -> 0 | AO19: ='Input data doses'!Z21*SUM('mid cases averted (1)'!AD19:AD$84)*AO$2*S19 -> 0 | AP19: ='Input data doses'!AA21*SUM('mid cases averted (1)'!AE19:AE$84)*AP$2*T19 -> 0 | AQ19: ='Input data doses'!AB21*SUM('mid cases averted (1)'!AF19:AF$84)*AQ$2*U19 -> 0
